Workbook

Sheet Discussion Items
A1: Gateway Enclaves
A4: YOU MUST INPUT ALL ORANGE HIGHLIGHTED CELLS!
J5: Was NOI idea reflected in the 2023 Budget? (Yes or No)
A6: 1
A11: 2
A16: 3

Sheet Capital Exp
A1: Capital Expenses
A3: Description | B3: # of units | C3: Price per unit | D3: Est. Amount | E3: Proposal or Guesstimate or Other? | F3: Reason for Expense | G3: Vendor | H3: G/L Account | I3: Priority (High, Med, Low)
A4: Renovations | B4: =Renovations!D7 -> 8 | C4: =SUM(Renovations!D10:D21) -> 21650 | D4: =SUM(Renovations!F10:F21) -> 173200 | E4: guesstimate | F4: Unit renovations | G4: N/A | H4: 60147
A5: Make Ready Plank Flooring | B5: ='Make Ready'!D28 -> 6.889351852 | C5: ='Make Ready'!C28 -> 1800 | D5: ='Make Ready'!F28 -> 12400.83333 | E5: guesstimate | F5: Unit Upgrade | G5: N/A | H5: 60102
A6: Make Ready Countertop | B6: ='Make Ready'!D29 -> 20.66805556 | C6: ='Make Ready'!C29 -> 2100 | D6: ='Make Ready'!F29 -> 43402.91667 | E6: guesstimate | F6: Unit Upgrade | G6: N/A | H6: 60102
A7: Make Ready Appliance Package | B7: ='Make Ready'!D30 -> 0 | C7: ='Make Ready'!C30 -> 0 | D7: ='Make Ready'!F30 -> 0 | E7: guesstimate | F7: Unit Upgrade | G7: N/A | H7: 60102
A8: SUBTOTAL Make Ready & Renos | D8: =SUM(D4:D7) -> 229003.75
A10: Enter capital projects below
A14: Phase I new windows | B14: 48 | C14: 2500 | D14: 120000 | E14: guesstimate | F14: windows in poor condition--many frames sagging and leaking | I14: high
A15: Low E sliding door replacements | B15: 25 | C15: 3000 | D15: 75000 | E15: guesstimate | F15: many doors are no longer see through | H15: 60112 | I15: high
A16: Masonary | B16: 1 | C16: 80000 | D16: 80000 | E16: guesstimate | F16: many cracks in the stone-- | H16: 60136 | I16: high
A17: Water heaters | B17: 20 | C17: 1200 | D17: 24000 | E17: guesstimate | F17: replaced as needed | H17: 60105 | I17: high
A18: Carpets---8 hallways | B18: 8 | C18: 2200 | D18: 17600 | E18: guesstimate | F18: carpets heavily worn | H18: 60106
A19: Gate | D19: 100000 | E19: guesstimate
A25: SUBTOTAL Capital Projects | D25: =SUM(D11:D24) -> 416600
A26: TOTAL ALL Capital Projects | D26: =SUM(D25+D8) -> 645603.75

Sheet Summary NOI Report
A1: All Residential Properties (.allresd)
A2: Budget Season Report - Enter end of year date
A3: Period = Dec 2022
A4: Book = Accrual ; Tree = summary_noi
C5: 2023 Budget | D5: 2022 Budget | E5: T12 (Aug 21-Jul 22) Actual | F5: 2022 Est/Act | G5: Variance $ 2023 Bud vs 2022 Act/Bud | H5: Variance % 2023 Bud vs 2022 Act/Bud | I5: Comments
A6: 39999 | B6: OPERATING INCOME
A7: 40001 | B7: Market Rent | C7: =Methodology!D4 -> 5020704 | D7: =VLOOKUP($B7,'Summary NOI Report Support'!$B:$H,3,FALSE) -> 5633703.15 | E7: =VLOOKUP($B7,'Summary NOI Report Support'!$B:$H,4,FALSE) -> 5248387 | F7: =VLOOKUP($B7,'Summary NOI Report Support'!$B:$H,5,FALSE) -> 5581138.95 | G7: =C7-F7 -> -560434.95 | H7: =G7/F7 -> -0.1004158748
A8: 40002 | B8: Rental Income | C8: =Methodology!D5 -> 0 | D8: =IFERROR(VLOOKUP($B8,'Summary NOI Report Support'!$B:$H,3,FALSE),0) -> 0 | E8: =IFERROR(VLOOKUP($B8,'Summary NOI Report Support'!$B:$H,4,FALSE),0) -> 0 | F8: =IFERROR(VLOOKUP($B8,'Summary NOI Report Support'!$B:$H,5,FALSE),0) -> 0 | G8: =C8-F8 -> 0 | H8: =G8/F8 -> 
A9: 40003 | B9: Loss to Lease | C9: =Methodology!D51 -> 660.4193653 | D9: =VLOOKUP($B9,'Summary NOI Report Support'!$B:$H,3,FALSE) -> -825026.73 | E9: =VLOOKUP($B9,'Summary NOI Report Support'!$B:$H,4,FALSE) -> -634788 | F9: =VLOOKUP($B9,'Summary NOI Report Support'!$B:$H,5,FALSE) -> -762114.27 | G9: 762774.6894 | H9: -1.000866562
B10: GPR | C10: =SUM(C7:C9) -> 5021364.419 | D10: =SUM(D7:D9) -> 4808676.42 | E10: 4613599 | F10: 4819024.68 | G10: =C10-F10 -> 202339.7394 | H10: =G10/F10 -> 0.04198769519 | I10: 4.4% GPR increase
A11: 40004 | B11: Vacancy | C11: =Methodology!D52 -> -285761.736 | D11: =VLOOKUP($B11,'Summary NOI Report Support'!$B:$H,3,FALSE) -> -272061.01 | E11: =VLOOKUP($B11,'Summary NOI Report Support'!$B:$H,4,FALSE) -> -241762.36 | F11: =VLOOKUP($B11,'Summary NOI Report Support'!$B:$H,5,FALSE) -> -247019.64 | G11: -38742.096 | H11: 0.1568381202 | I11: 94.31% occupancy
A12: 40340 | B12: Down Units | C12: =Methodology!D3 ->  | D12: =VLOOKUP($B12,'Summary NOI Report Support'!$B:$H,3,FALSE) ->  | E12: =VLOOKUP($B12,'Summary NOI Report Support'!$B:$H,4,FALSE) ->  | F12: =VLOOKUP($B12,'Summary NOI Report Support'!$B:$H,5,FALSE) -> 
A13: 40007 | B13: Commercial Space Income | C13: =Methodology!D184 ->  | D13: =VLOOKUP($B13,'Summary NOI Report Support'!$B:$H,3,FALSE) ->  | E13: =VLOOKUP($B13,'Summary NOI Report Support'!$B:$H,4,FALSE) ->  | F13: =VLOOKUP($B13,'Summary NOI Report Support'!$B:$H,5,FALSE) -> 
A14: 40009 | B14: Roof Rent Inc | C14: =Methodology!D183 ->  | D14: =VLOOKUP($B14,'Summary NOI Report Support'!$B:$H,3,FALSE) ->  | E14: =VLOOKUP($B14,'Summary NOI Report Support'!$B:$H,4,FALSE) ->  | F14: =VLOOKUP($B14,'Summary NOI Report Support'!$B:$H,5,FALSE) ->  | G14: =C14-F14 ->  | H14: =G14/F14 -> 
A15: 40048 | B15: Card Access Key Income | C15: =Methodology!D337 ->  | D15: =VLOOKUP($B15,'Summary NOI Report Support'!$B:$H,3,FALSE) ->  | E15: =VLOOKUP($B15,'Summary NOI Report Support'!$B:$H,4,FALSE) ->  | F15: =VLOOKUP($B15,'Summary NOI Report Support'!$B:$H,5,FALSE) -> 
A16: 40053 | B16: Laundry/Vend Inc | C16: =Methodology!D328 ->  | D16: =VLOOKUP($B16,'Summary NOI Report Support'!$B:$H,3,FALSE) ->  | E16: =VLOOKUP($B16,'Summary NOI Report Support'!$B:$H,4,FALSE) ->  | F16: =VLOOKUP($B16,'Summary NOI Report Support'!$B:$H,5,FALSE) ->  | G16: =C16-F16 -> 
B17: Non-Inc Units | C17: =SUM(Methodology!D185:D193) -> -7799.999 | D17: =VLOOKUP($B17,'Summary NOI Report Support'!$B:$H,3,FALSE) -> -6829.08 | E17: =VLOOKUP($B17,'Summary NOI Report Support'!$B:$H,4,FALSE) -> -4736.98 | F17: =VLOOKUP($B17,'Summary NOI Report Support'!$B:$H,5,FALSE) -> -7172.43 | G17: -627.569 | H17: 0.08749740325
B18: Concessions | C18: =SUM(Methodology!D247:D256) -> -70614.999 | D18: =VLOOKUP($B18,'Summary NOI Report Support'!$B:$H,3,FALSE) -> -73647.96 | E18: =VLOOKUP($B18,'Summary NOI Report Support'!$B:$H,4,FALSE) -> -73585.39 | F18: =VLOOKUP($B18,'Summary NOI Report Support'!$B:$H,5,FALSE) -> -73918.4 | G18: 3303.401 | H18: -0.04468983365 | I18: eliminated inconvenience concessions
B19: Bad Debts | C19: =SUM(Methodology!D332:D334) -> -73057.87 | D19: =VLOOKUP($B19,'Summary NOI Report Support'!$B:$H,3,FALSE) -> -78866.76 | E19: =VLOOKUP($B19,'Summary NOI Report Support'!$B:$H,4,FALSE) -> -13017.58 | F19: =VLOOKUP($B19,'Summary NOI Report Support'!$B:$H,5,FALSE) -> -40611.34 | G19: -32446.53 | H19: 0.7989524601 | I19: 1.6% of total billings - .6% due to 4 evictions in Jan/Feb - 1% for normal run rate
B20: Misc Inc & Fees | C20: =SUM(Methodology!D258:D275)+SUM(Methodology!D277:D326) -> 194410.003 | D20: =VLOOKUP($B20,'Summary NOI Report Support'!$B:$H,3,FALSE) -> 199073.88 | E20: =VLOOKUP($B20,'Summary NOI Report Support'!$B:$H,4,FALSE) -> 210768.93 | F20: =VLOOKUP($B20,'Summary NOI Report Support'!$B:$H,5,FALSE) -> 211300.41 | G20: -16890.407 | H20: -0.07993551456 | I20: 3 yr avg for term fees & app fees ($9300) - zero'd out forfeited security deposits & renters ins inc ($5000)
A21: 49999 | B21: TOTAL OP INCOME | C21: =SUM(C7:C9)+SUM(C11:C20) -> 4778539.818 | D21: =VLOOKUP($B21,'Summary NOI Report Support'!$B:$H,3,FALSE) -> 4576345.49 | E21: =VLOOKUP($B21,'Summary NOI Report Support'!$B:$H,4,FALSE) -> 4491265.62 | F21: =VLOOKUP($B21,'Summary NOI Report Support'!$B:$H,5,FALSE) -> 4661603.28 | G21: 116936.5384 | H21: 0.02508504721
B22: OPERATING EXPENSES | D22: =VLOOKUP($B22,'Summary NOI Report Support'!$B:$H,3,FALSE) -> 0 | E22: =VLOOKUP($B22,'Summary NOI Report Support'!$B:$H,4,FALSE) -> 0 | F22: =VLOOKUP($B22,'Summary NOI Report Support'!$B:$H,5,FALSE) -> 0
A23: 50110 | B23: Electric Exp | C23: =Methodology!D338 -> 36000 | D23: =VLOOKUP($B23,'Summary NOI Report Support'!$B:$H,3,FALSE) -> 36523 | E23: =VLOOKUP($B23,'Summary NOI Report Support'!$B:$H,4,FALSE) -> 40945.52 | F23: =VLOOKUP($B23,'Summary NOI Report Support'!$B:$H,5,FALSE) -> 35176.56 | G23: =F23-C23 -> -823.44 | H23: =G23/F23 -> -0.02340876993
A24: 50111 | B24: Electric Inc | C24: =Methodology!D336 -> 0.001 | D24: =VLOOKUP($B24,'Summary NOI Report Support'!$B:$H,3,FALSE) -> 0 | E24: =VLOOKUP($B24,'Summary NOI Report Support'!$B:$H,4,FALSE) -> -4154.16 | F24: =VLOOKUP($B24,'Summary NOI Report Support'!$B:$H,5,FALSE) -> -2659.74 | G24: =F24-C24 -> -2659.741 | H24: =G24/F24 -> 1.000000376 | I24: zero'd out vacancy cost recovery income
A25: 50120 | B25: Gas Exp | C25: =Methodology!D335 -> 900 | D25: =VLOOKUP($B25,'Summary NOI Report Support'!$B:$H,3,FALSE) -> 10000 | E25: =VLOOKUP($B25,'Summary NOI Report Support'!$B:$H,4,FALSE) -> 15115.4 | F25: =VLOOKUP($B25,'Summary NOI Report Support'!$B:$H,5,FALSE) -> 14189.32 | G25: 13289.32 | H25: =G25/F25 -> 0.9365720133 | I25: zero'd out vacancy cost recovery income - it is timing that the exp & inc don’t offset
A26: 50121 | B26: Gas Inc | C26: =Methodology!D327 -> 0.001 | D26: =VLOOKUP($B26,'Summary NOI Report Support'!$B:$H,3,FALSE) -> 0 | E26: =VLOOKUP($B26,'Summary NOI Report Support'!$B:$H,4,FALSE) -> -8715 | F26: =VLOOKUP($B26,'Summary NOI Report Support'!$B:$H,5,FALSE) -> -7227.97 | G26: -7227.971 | H26: =G26/F26 -> 1.000000138 | I26: zero'd out vacancy cost recovery income - it is timing that the exp & inc don’t offset
A27: 50130 | B27: Water & Sewer | C27: =Methodology!D199 -> 61165 | D27: =VLOOKUP($B27,'Summary NOI Report Support'!$B:$H,3,FALSE) -> 68000 | E27: =VLOOKUP($B27,'Summary NOI Report Support'!$B:$H,4,FALSE) -> 61164.92 | F27: =VLOOKUP($B27,'Summary NOI Report Support'!$B:$H,5,FALSE) -> 64421.99 | G27: 3256.99 | H27: =G27/F27 -> 0.05055711567 | I27: Used T12
A28: 50131 | B28: Water Usage Inc | C28: =Methodology!D329 -> -91097 | D28: =VLOOKUP($B28,'Summary NOI Report Support'!$B:$H,3,FALSE) -> -91940.39 | E28: =VLOOKUP($B28,'Summary NOI Report Support'!$B:$H,4,FALSE) -> -91097.37 | F28: =VLOOKUP($B28,'Summary NOI Report Support'!$B:$H,5,FALSE) -> -91214.41 | G28: -117.41 | H28: =G28/F28 -> 0.00128718697
A29: 50132 | B29: Oil-Fuel | C29: =Methodology!D246 ->  | D29: =VLOOKUP($B29,'Summary NOI Report Support'!$B:$H,3,FALSE) ->  | E29: =VLOOKUP($B29,'Summary NOI Report Support'!$B:$H,4,FALSE) ->  | F29: =VLOOKUP($B29,'Summary NOI Report Support'!$B:$H,5,FALSE) ->  | H29: =G29/F29 -> 
A30: 50140 | B30: Sewer Expense | C30: =Methodology!D339 -> 32974 | D30: =VLOOKUP($B30,'Summary NOI Report Support'!$B:$H,3,FALSE) -> 30000 | E30: =VLOOKUP($B30,'Summary NOI Report Support'!$B:$H,4,FALSE) -> 32974.16 | F30: =VLOOKUP($B30,'Summary NOI Report Support'!$B:$H,5,FALSE) -> 31370.33 | G30: -1603.67 | H30: =G30/F30 -> -0.05112059707 | I30: offsets with income
A31: 50141 | B31: Sewer Income | C31: =Methodology!D340 -> -33037 | D31: =VLOOKUP($B31,'Summary NOI Report Support'!$B:$H,3,FALSE) -> -27000 | E31: =VLOOKUP($B31,'Summary NOI Report Support'!$B:$H,4,FALSE) -> -33037.21 | F31: =VLOOKUP($B31,'Summary NOI Report Support'!$B:$H,5,FALSE) -> -30448.38 | G31: 2588.62 | H31: =G31/F31 -> -0.08501667412 | I31: offsets with expense
B32: Corp Suite Exp | C32: =SUM(Methodology!D194:D198) -> 0 | D32: =VLOOKUP($B32,'Summary NOI Report Support'!$B:$H,3,FALSE) ->  | E32: =VLOOKUP($B32,'Summary NOI Report Support'!$B:$H,4,FALSE) ->  | F32: =VLOOKUP($B32,'Summary NOI Report Support'!$B:$H,5,FALSE) -> 
B33: Payroll & Benefits | C33: =SUM(Methodology!D7:D50) -> 287786.178 | D33: =VLOOKUP($B33,'Summary NOI Report Support'!$B:$H,3,FALSE) -> 278812.95 | E33: =VLOOKUP($B33,'Summary NOI Report Support'!$B:$H,4,FALSE) -> 257926.43 | F33: =VLOOKUP($B33,'Summary NOI Report Support'!$B:$H,5,FALSE) -> 275641.24 | G33: -12144.93797 | H33: -0.04406067094 | I33: Allocated .5 maint tech from Gateway to Enclaves ($36k). Enclaves now has 2.25 maint techs & Gateway has 5.75 Budgeted full bonuses ($12k). Equity adjustments for leasing & Maint ($5k). In total, moved "1" salary to Gateway AIrport ($15k).. Versus 2022 budget Eliminated a part-time front desk position ($5k) & leasing position ($13k). This is Enclaves' portion only
A34: 55010 | B34: Real Estate Taxes | C34: =Methodology!D6 -> 484000 | D34: =VLOOKUP($B34,'Summary NOI Report Support'!$B:$H,3,FALSE) -> 456269.04 | E34: =VLOOKUP($B34,'Summary NOI Report Support'!$B:$H,4,FALSE) -> 456269.01 | F34: =VLOOKUP($B34,'Summary NOI Report Support'!$B:$H,5,FALSE) -> 456269.04 | G34: -27730.96 | H34: -0.06077764996 | I34: 6% increase
A35: 55040 | B35: Insurance Exp | C35: =Methodology!D331+Methodology!D330 -> 146777.401 | D35: =VLOOKUP($B35,'Summary NOI Report Support'!$B:$H,3,FALSE) -> 126156.02 | E35: =VLOOKUP($B35,'Summary NOI Report Support'!$B:$H,4,FALSE) -> 113691.36 | F35: =VLOOKUP($B35,'Summary NOI Report Support'!$B:$H,5,FALSE) -> 126156.01 | G35: -20621.391 | H35: -0.163459442 | I35: 10% increase
A36: 55050 | B36: Mgmt Fees | C36: =Methodology!D257 -> 147080.2145 | D36: =VLOOKUP($B36,'Summary NOI Report Support'!$B:$H,3,FALSE) -> 140048.57 | E36: =VLOOKUP($B36,'Summary NOI Report Support'!$B:$H,4,FALSE) -> 138343.63 | F36: =VLOOKUP($B36,'Summary NOI Report Support'!$B:$H,5,FALSE) -> 140252.5 | G36: -6827.714491 | H36: -0.0486815885
B37: Supplies | C37: =SUM(Methodology!D200:D245) -> 33758.006 | D37: =VLOOKUP($B37,'Summary NOI Report Support'!$B:$H,3,FALSE) -> 32054.41 | E37: =VLOOKUP($B37,'Summary NOI Report Support'!$B:$H,4,FALSE) -> 37645.55 | F37: =VLOOKUP($B37,'Summary NOI Report Support'!$B:$H,5,FALSE) -> 36726.94 | G37: 2968.934 | H37: 0.08083804423 | I37: used 3 yr avg - ($2300) due to appliances
B38: Repairs | C38: =SUM(Methodology!D66:D110) -> 229468.285 | D38: =VLOOKUP($B38,'Summary NOI Report Support'!$B:$H,3,FALSE) -> 220595.1 | E38: =VLOOKUP($B38,'Summary NOI Report Support'!$B:$H,4,FALSE) -> 218160.86 | F38: =VLOOKUP($B38,'Summary NOI Report Support'!$B:$H,5,FALSE) -> 232601.09 | G38: 3132.805 | H38: 0.01346857403 | I38: security contract unfavorable ($7400) increased rate switching from what Cardinal proposed $21/hr to Phildelphia Protections $19/hr - 3 yr avg for snow removal favorable ($12k)
A39: 56400 | B39: Make Ready | C39: =SUM(Methodology!D53:D64) -> 117552.5973 | D39: =VLOOKUP($B39,'Summary NOI Report Support'!$B:$H,3,FALSE) -> 117193.07 | E39: =VLOOKUP($B39,'Summary NOI Report Support'!$B:$H,4,FALSE) -> 129180.1 | F39: =VLOOKUP($B39,'Summary NOI Report Support'!$B:$H,5,FALSE) -> 131308.19 | G39: 13755.59271 | H39: 0.1047580712 | I39: 69 units @ $1706/unit - budgeting 16 less make readys - Occupancy dipped below 94% for 3 months - some offset by increased paint costs
A40: 56445 | B40: Vacant Electric Exp MR | C40: =Methodology!D65 -> 0 | D40: =VLOOKUP($B40,'Summary NOI Report Support'!$B:$H,3,FALSE) -> 0 | E40: =VLOOKUP($B40,'Summary NOI Report Support'!$B:$H,4,FALSE) -> 426.55 | F40: =VLOOKUP($B40,'Summary NOI Report Support'!$B:$H,5,FALSE) -> 134.19 | G40: 134.19 | H40: 1
B41: General & Admin | C41: =SUM(Methodology!D111:D182) -> 197666.006 | D41: =VLOOKUP($B41,'Summary NOI Report Support'!$B:$H,3,FALSE) -> 205669.91 | E41: =VLOOKUP($B41,'Summary NOI Report Support'!$B:$H,4,FALSE) -> 201799.33 | F41: =VLOOKUP($B41,'Summary NOI Report Support'!$B:$H,5,FALSE) -> 196460.82 | G41: -1205.186 | H41: -0.006134485237 | I41: ($4k) 3 yr avg for eviction exp, offsets with court fee inc : Reliant Parking unfavorable ($8k)
A42: 58999 | B42: TOTAL OP EXPENSE | C42: =SUM(C23:C41) -> 1650993.69 | D42: =VLOOKUP($B42,'Summary NOI Report Support'!$B:$H,3,FALSE) -> 1602381.68 | E42: =VLOOKUP($B42,'Summary NOI Report Support'!$B:$H,4,FALSE) -> 1566639.08 | F42: =VLOOKUP($B42,'Summary NOI Report Support'!$B:$H,5,FALSE) -> 1609157.72 | G42: =F42-C42 -> -41835.96975 | H42: -0.02599867572
A43: 59999 | B43: NET OPERATING INC | C43: =C21-C42 -> 3127546.129 | D43: =VLOOKUP($B43,'Summary NOI Report Support'!$B:$H,3,FALSE) -> 2973963.81 | E43: =VLOOKUP($B43,'Summary NOI Report Support'!$B:$H,4,FALSE) -> 2924626.54 | F43: =VLOOKUP($B43,'Summary NOI Report Support'!$B:$H,5,FALSE) -> 3052445.56 | G43: =C43-F43 -> 75100.56862 | H43: 0.02460340967
B44: NOI without RE Tax & Insurance | C44: =+C43+C35+C34 -> 3758323.53 | F44: =+F43+F35+F34 -> 3634870.61 | G44: =+C44-F44 -> 123452.9196 | H44: =G44/F44 -> 0.0339634977

Sheet DETAIL IS REPORT (hidden)
A1: Gateway Enclave (129)
A2: Budget Season Report - Enter end of year date
A3: Period = Dec 2022
A4: Book = Accrual ; Tree = mgr_is
C5: 2023 Budget | D5: 2022 Budget | E5: T12 (Aug 21-Jul 22) Actual | F5: 2022 Est/Act | G5: Variance $ 2023 Bud vs 2022 Act/Bud | H5: Variance % 2023 Bud vs 2022 Act/Bud | I5: 2023 Budget | J5: Variance
A6: 39999 | B6: INCOME | J6: =I6-D6 -> 0
A7: 40001 | B7: Market Rent | C7: 0 | D7: 5633703.15 | E7: 5248387 | F7: 5581138.95 | G7: -5581138.95 | H7: -100 | I7: =VLOOKUP(A7,Methodology!A:D,4,FALSE) -> 5020704 | J7: =I7-F7 -> -560434.95
A8: 40003 | B8: Loss to Lease | C8: 0 | D8: -825026.73 | E8: -634788 | F8: -762114.27 | G8: 762114.27 | H8: -100 | I8: =VLOOKUP(A8,Methodology!A:D,4,FALSE) -> 660.4193653 | J8: =I8-F8 -> 762774.6894
A9: 40004 | B9: Vacancy | C9: 0 | D9: -272061.01 | E9: -241762.36 | F9: -247019.64 | G9: 247019.64 | H9: -100 | I9: =VLOOKUP(A9,Methodology!A:D,4,FALSE) -> -285761.736 | J9: -38742.096
A10: 40005 | B10: Late charge income | C10: 0 | D10: 15000 | E10: 18800 | F10: 20000 | G10: -20000 | H10: -100 | I10: =VLOOKUP(A10,Methodology!A:D,4,FALSE) -> 18800 | J10: -1200
A11: 40006 | B11: Check fee income | C11: 0 | D11: 653.28 | E11: 420 | F11: 482.2 | G11: -482.2 | H11: -100 | I11: =VLOOKUP(A11,Methodology!A:D,4,FALSE) -> 548 | J11: 65.8
A12: 40008 | B12: Court cost fee income | C12: 0 | D12: 5616.12 | E12: 6542.25 | F12: 7206.8 | G12: -7206.8 | H12: -100 | I12: =VLOOKUP(A12,Methodology!A:D,4,FALSE) -> 4847 | J12: -2359.8
A13: 40010 | B13: Damage incomes | C13: 0 | D13: 15051.6 | E13: 19938.79 | F13: 18203.49 | G13: -18203.49 | H13: -100 | I13: =VLOOKUP(A13,Methodology!A:D,4,FALSE) -> 15647 | J13: -2556.49
A14: 40014 | B14: Miscellaneous rental income | C14: 0 | D14: 54316.68 | E14: 54000 | F14: 54131.95 | G14: -54131.95 | H14: -100 | I14: =VLOOKUP(A14,Methodology!A:D,4,FALSE) -> 54000 | J14: -131.95
A15: 40020 | B15: Pet fee income | C15: 0 | D15: 19402.32 | E15: 19187.47 | F15: 19584.7 | G15: -19584.7 | H15: -100 | I15: =VLOOKUP(A15,Methodology!A:D,4,FALSE) -> 19187 | J15: -397.7
A16: 40021 | B16: Early Lease Termination fees | C16: 0 | D16: 61546.8 | E16: 77711.96 | F16: 72441.87 | G16: -72441.87 | H16: -100 | I16: =VLOOKUP(A16,Methodology!A:D,4,FALSE) -> 65256 | J16: -7185.87
A17: 40022 | B17: short-term/mm fee | C17: 0 | D17: 0 | E17: 489 | F17: 0 | G17: 0 | H17: 0 | I17: =VLOOKUP(A17,Methodology!A:D,4,FALSE) -> 0.001 | J17: 0.001
A18: 40024 | B18: Application fee income | C18: 0 | D18: 10700.04 | E18: 9950 | F18: 12158.35 | G18: -12158.35 | H18: -100 | I18: =VLOOKUP(A18,Methodology!A:D,4,FALSE) -> 9950 | J18: -2208.35
A19: 40050 | B19: Garage fee and parking income | C19: 0 | D19: 216 | E19: 1664.92 | F19: 1359.96 | G19: -1359.96 | H19: -100 | I19: =VLOOKUP(A19,Methodology!A:D,4,FALSE) -> 1665 | J19: 305.04
A20: 40056 | B20: Telecom marketing income | C20: 0 | D20: 3986.52 | E20: 4510.18 | F20: 3808.55 | G20: -3808.55 | H20: -100 | I20: =VLOOKUP(A20,Methodology!A:D,4,FALSE) -> 4510 | J20: 701.45
A21: 40130 | B21: Employee non income unit | C21: 0 | D21: -6829.08 | E21: -4736.98 | F21: -7172.43 | G21: 7172.43 | H21: -100 | I21: =VLOOKUP(A21,Methodology!A:D,4,FALSE) -> -7800 | J21: -627.57
A22: 40204 | B22: Discounts-Military | C22: 0 | D22: -6612.96 | E22: -3342.13 | F22: -4221.65 | G22: 4221.65 | H22: -100 | I22: =VLOOKUP(A22,Methodology!A:D,4,FALSE) -> -1896 | J22: 2325.65
A23: 40206 | B23: Discounts-Government | C23: 0 | D23: -1121.04 | E23: -1100.4 | F23: -1111.1 | G23: 1111.1 | H23: -100 | I23: =VLOOKUP(A23,Methodology!A:D,4,FALSE) -> -1100 | J23: 11.1
A24: 40207 | B24: Discounts-Local Employer | C24: 0 | D24: -63600 | E24: -66259.86 | F24: -65333.5 | G24: 65333.5 | H24: -100 | I24: =VLOOKUP(A24,Methodology!A:D,4,FALSE) -> -66260 | J24: -926.5
A25: 40208 | B25: Discounts-Students | C25: 0 | D25: -564 | E25: -609 | F25: -599 | G25: 599 | H25: -100 | I25: =VLOOKUP(A25,Methodology!A:D,4,FALSE) -> -609 | J25: -10
A26: 40210 | B26: Concessions-Marketing | C26: 0 | D26: -1749.96 | E26: -750 | F26: -1329.15 | G26: 1329.15 | H26: -100 | I26: =VLOOKUP(A26,Methodology!A:D,4,FALSE) -> -750 | J26: 579.15
A27: 40214 | B27: Concession-Inconvenience | C27: 0 | D27: 0 | E27: -1524 | F27: -1324 | G27: 1324 | H27: -100 | I27: =VLOOKUP(A27,Methodology!A:D,4,FALSE) -> 0.001 | J27: 1324.001
A28: 40301 | B28: Misc Income | C28: 0 | D28: 0 | E28: 500 | F28: 500 | G28: -500 | H28: -100 | I28: =VLOOKUP(A28,Methodology!A:D,4,FALSE) -> 0 | J28: -500
A29: 40302 | B29: Renters Ins Income | C29: 0 | D29: 1986.72 | E29: 1630.44 | F29: 1798.37 | G29: -1798.37 | H29: -100 | I29: =VLOOKUP(A29,Methodology!A:D,4,FALSE) -> 0.001 | J29: -1798.369
A30: 40303 | B30: Forfeit Sec Deposit Inc | C30: 0 | D30: 10597.8 | E30: -1215.25 | F30: 3200.5 | G30: -3200.5 | H30: -100 | I30: =VLOOKUP(A30,Methodology!A:D,4,FALSE) -> 0.001 | J30: -3200.499
A31: 40347 | B31: Allowance for Doubtful Accounts | C31: 0 | D31: 0 | E31: 3949.05 | F31: 29861.5 | G31: -29861.5 | H31: -100 | I31: =VLOOKUP(A31,Methodology!A:D,4,FALSE) -> 
A32: 40350 | B32: Bad Debts-Rent & Utils | C32: 0 | D32: -67500 | E32: -24449.83 | F32: -48658.78 | G32: 48658.78 | H32: -100 | I32: =VLOOKUP(A32,Methodology!A:D,4,FALSE) -> -71457.87 | J32: -22799.09
A33: 40351 | B33: Recovery Bad Debt | C33: 0 | D33: 12054.96 | E33: 26807.55 | F33: 22380.45 | G33: -22380.45 | H33: -100 | I33: =VLOOKUP(A33,Methodology!A:D,4,FALSE) -> 17900 | J33: -4480.45
A34: 40352 | B34: Bad Debts-Termination Fee | C34: 0 | D34: -23421.72 | E34: -19324.35 | F34: -19194.51 | G34: 19194.51 | H34: -100 | I34: =VLOOKUP(A34,Methodology!A:D,4,FALSE) -> -19500 | J34: -305.49
A35: 40398 | B35: Rent Adjustment | C35: 0 | D35: 0 | E35: -3360.83 | F35: -3576.33 | G35: 3576.33 | H35: -100 | I35: =VLOOKUP(A35,Methodology!A:D,4,FALSE) -> 0 | J35: 3576.33
A36: 49999 | B36: TOTAL INCOME | C36: 0 | D36: 4576345.49 | E36: 4491265.62 | F36: 4686603.28 | G36: -4686603.28 | H36: -100 | I36: =VLOOKUP(A36,Methodology!A:D,4,FALSE) -> 
A37: 50001 | B37: OPERATING EXPENSES | I37: =VLOOKUP(A37,Methodology!A:D,4,FALSE) -> 
A38: 50100 | B38: UTILITIES | I38: =VLOOKUP(A38,Methodology!A:D,4,FALSE) -> 
A39: 50110 | B39: Electric Expense | C39: 0 | D39: 36523 | E39: 40945.52 | F39: 35176.56 | G39: 35176.56 | H39: 100 | I39: =VLOOKUP(A39,Methodology!A:D,4,FALSE) -> 36000 | J39: 823.44
A40: 50111 | B40: Electric Income | C40: 0 | D40: 0 | E40: -4154.16 | F40: -2659.74 | G40: -2659.74 | H40: -100 | I40: =VLOOKUP(A40,Methodology!A:D,4,FALSE) -> 0.001 | J40: 2659.741
A41: 50120 | B41: Gas Expense | C41: 0 | D41: 10000 | E41: 15115.4 | F41: 14189.32 | G41: 14189.32 | H41: 100 | I41: =VLOOKUP(A41,Methodology!A:D,4,FALSE) -> 900 | J41: -13289.32
A42: 50121 | B42: Gas Income | C42: 0 | D42: 0 | E42: -8715 | F42: -7227.97 | G42: -7227.97 | H42: -100 | I42: =VLOOKUP(A42,Methodology!A:D,4,FALSE) -> 0.001 | J42: 7227.971
A43: 50130 | B43: Water Expense (some incl sewer) | C43: 0 | D43: 68000 | E43: 61164.92 | F43: 64421.99 | G43: 64421.99 | H43: 100 | I43: =VLOOKUP(A43,Methodology!A:D,4,FALSE) -> 61165 | J43: -3256.99
A44: 50131 | B44: Water Usage Income | C44: 0 | D44: -91940.39 | E44: -91097.37 | F44: -91214.41 | G44: -91214.41 | H44: -100 | I44: =VLOOKUP(A44,Methodology!A:D,4,FALSE) -> -91097 | J44: 117.41
A45: 50140 | B45: Sewer Expense | C45: 0 | D45: 30000 | E45: 32974.16 | F45: 31370.33 | G45: 31370.33 | H45: 100 | I45: =VLOOKUP(A45,Methodology!A:D,4,FALSE) -> 32974 | J45: 1603.67
A46: 50141 | B46: Sewer Income | C46: 0 | D46: -27000 | E46: -33037.21 | F46: -30448.38 | G46: -30448.38 | H46: -100 | I46: =VLOOKUP(A46,Methodology!A:D,4,FALSE) -> -33037 | J46: -2588.62
A47: 50150 | B47: TOTAL UTILITIES | C47: 0 | D47: 25582.61 | E47: 13196.26 | F47: 13607.7 | G47: 13607.7 | H47: 100 | I47: =VLOOKUP(A47,Methodology!A:D,4,FALSE) -> 
A48: 51000 | B48: PAYROLL EXPENSE | I48: =VLOOKUP(A48,Methodology!A:D,4,FALSE) -> 
A49: 51201 | B49: Executive Management | C49: 0 | D49: 0 | E49: 335.72 | F49: 335.72 | G49: 335.72 | H49: 100 | I49: =VLOOKUP(A49,Methodology!A:D,4,FALSE) -> 
A50: 51202 | B50: Community Managers | C50: 0 | D50: 24301.82 | E50: 25908.61 | F50: 24191.54 | G50: 24191.54 | H50: 100 | I50: =VLOOKUP(A50,Methodology!A:D,4,FALSE) -> 25432.13376 | J50: 1240.59376
A51: 51203 | B51: Office Payroll | C51: 0 | D51: 0 | E51: 748.99 | F51: 239.44 | G51: 239.44 | H51: 100 | I51: =VLOOKUP(A51,Methodology!A:D,4,FALSE) -> 0 | J51: -239.44
A52: 51204 | B52: Assistant Managers | C52: 0 | D52: 16248.3 | E52: 13804.62 | F52: 15431.12 | G52: 15431.12 | H52: 100 | I52: =VLOOKUP(A52,Methodology!A:D,4,FALSE) -> 15986.27964 | J52: 555.1596352
A53: 51205 | B53: Resident Services | C53: 0 | D53: 42191.9 | E53: 34587.53 | F53: 36482.64 | G53: 36482.64 | H53: 100 | I53: =VLOOKUP(A53,Methodology!A:D,4,FALSE) -> 30210.29222 | J53: -6272.347776
A54: 51206 | B54: Reception/Front Desk | C54: 0 | D54: 21758.62 | E54: 18372.82 | F54: 17817.91 | G54: 17817.91 | H54: 100 | I54: =VLOOKUP(A54,Methodology!A:D,4,FALSE) -> 19246.47367 | J54: 1428.563671
A55: 51209 | B55: Maint Manager | C55: 0 | D55: 0 | E55: 9348.91 | F55: 6153.1 | G55: 6153.1 | H55: 100 | I55: =VLOOKUP(A55,Methodology!A:D,4,FALSE) -> 0 | J55: -6153.1
A56: 51210 | B56: Maintenance-super | C56: 0 | D56: 20486.96 | E56: 9911.99 | F56: 18579.55 | G56: 18579.55 | H56: 100 | I56: =VLOOKUP(A56,Methodology!A:D,4,FALSE) -> 18581.72736 | J56: 2.17736
A57: 51211 | B57: Maintenance-staff | C57: 0 | D57: 65498.68 | E57: 71630.24 | F57: 75819.66 | G57: 75819.66 | H57: 100 | I57: =VLOOKUP(A57,Methodology!A:D,4,FALSE) -> 88875.35299 | J57: 13055.69299
A58: 51270 | B58: Payroll Bonuses | C58: 0 | D58: 32810.04 | E58: 18802 | F58: 24771.85 | G58: 24771.85 | H58: 100 | I58: =VLOOKUP(A58,Methodology!A:D,4,FALSE) -> 28419.96 | J58: 3648.11
A59: 51450 | B59: Temp Help | C59: 0 | D59: 0 | E59: 545.48 | F59: 545.48 | G59: 545.48 | H59: 100 | I59: =VLOOKUP(A59,Methodology!A:D,4,FALSE) -> 
A60: 51530 | B60: Payroll Taxes-Employer | C60: 0 | D60: 22329.63 | E60: 19165.04 | F60: 20910.9 | G60: 20910.9 | H60: 100 | I60: =VLOOKUP(A60,Methodology!A:D,4,FALSE) -> 22326.3724 | J60: 1415.472396
A61: 51531 | B61: 401k Match Co. Exp | C61: 0 | D61: 6698.9 | E61: 6357.7 | F61: 5826.52 | G61: 5826.52 | H61: 100 | I61: =VLOOKUP(A61,Methodology!A:D,4,FALSE) -> 6802.566589 | J61: 976.0465893
A62: 51540 | B62: Workers Compensation Ins | C62: 0 | D62: 7240.1 | E62: 6729.36 | F62: 7268.62 | G62: 7268.62 | H62: 100 | I62: =VLOOKUP(A62,Methodology!A:D,4,FALSE) -> 8277.089342 | J62: 1008.469342
A63: 51560 | B63: Health & Dental Ins Benefits | C63: 0 | D63: 19248 | E63: 21677.42 | F63: 21267.19 | G63: 21267.19 | H63: 100 | I63: =VLOOKUP(A63,Methodology!A:D,4,FALSE) -> 23627.93 | J63: 2360.74
A64: 51999 | B64: TOTAL PAYROLL EXPENSE | C64: 0 | D64: 278812.95 | E64: 257926.43 | F64: 0 | G64: 0 | H64: N/A | I64: =VLOOKUP(A64,Methodology!A:D,4,FALSE) -> 
A65: 55000 | B65: FIXED EXPENSES | I65: =VLOOKUP(A65,Methodology!A:D,4,FALSE) -> 
A66: 55010 | B66: Real estate taxes | C66: 0 | D66: 456269.04 | E66: 456269.01 | F66: 456269.04 | G66: 456269.04 | H66: 100 | I66: =VLOOKUP(A66,Methodology!A:D,4,FALSE) -> 484000 | J66: 27730.96
A67: 55040 | B67: Ins-Bldg/Fire-Liab-Boiler-Machinery | C67: 0 | D67: 126156.02 | E67: 113691.36 | F67: 126156.01 | G67: 126156.01 | H67: 100 | I67: =VLOOKUP(A67,Methodology!A:D,4,FALSE) -> 146777.4 | J67: 20621.39
A68: 55050 | B68: Management fees | C68: 0 | D68: 140048.57 | E68: 138343.63 | F68: 140252.5 | G68: 140252.5 | H68: 100 | I68: =VLOOKUP(A68,Methodology!A:D,4,FALSE) -> 147080.2145 | J68: 6827.714491
A69: 55999 | B69: TOTAL FIXED EXPENSES | C69: 0 | D69: 722473.63 | E69: 708304 | F69: 0 | G69: 0 | H69: N/A | I69: =VLOOKUP(A69,Methodology!A:D,4,FALSE) -> 
A70: 56000 | B70: SUPPLIES | I70: =VLOOKUP(A70,Methodology!A:D,4,FALSE) -> 
A71: 56110 | B71: Appliance Repair Supplies | C71: 0 | D71: 2123.88 | E71: 5327.38 | F71: 4555.67 | G71: 4555.67 | H71: 100 | I71: =VLOOKUP(A71,Methodology!A:D,4,FALSE) -> 2188 | J71: -2367.67
A72: 56112 | B72: Blinds Supplies | C72: 0 | D72: 633.96 | E72: 1481.64 | F72: 1745.79 | G72: 1745.79 | H72: 100 | I72: =VLOOKUP(A72,Methodology!A:D,4,FALSE) -> 1500 | J72: =I72-F72 -> -245.79
A73: 56113 | B73: Building Supplies | C73: 0 | D73: 655.44 | E73: 0 | F73: 273.1 | G73: 273.1 | H73: 100 | I73: =VLOOKUP(A73,Methodology!A:D,4,FALSE) -> 549 | J73: 275.9
A74: 56114 | B74: Carpentry Supplies | C74: 0 | D74: 76.8 | E74: 0 | F74: 32 | G74: 32 | H74: 100 | I74: =VLOOKUP(A74,Methodology!A:D,4,FALSE) -> 0.001 | J74: -31.999
A75: 56116 | B75: Custodial Supplies | C75: 0 | D75: 3176.16 | E75: 3812.5 | F75: 3511.98 | G75: 3511.98 | H75: 100 | I75: =VLOOKUP(A75,Methodology!A:D,4,FALSE) -> 3770 | J75: 258.02
A76: 56117 | B76: Decorating Supplies | C76: 0 | D76: 3799.92 | E76: 3754.15 | F76: 3031.78 | G76: 3031.78 | H76: 100 | I76: =VLOOKUP(A76,Methodology!A:D,4,FALSE) -> 3678 | J76: 646.22
A77: 56118 | B77: Doors Supplies | C77: 0 | D77: 422.04 | E77: 783.88 | F77: 959.73 | G77: 959.73 | H77: 100 | I77: =VLOOKUP(A77,Methodology!A:D,4,FALSE) -> 413 | J77: -546.73
A78: 56119 | B78: Electrical Supplies | C78: 0 | D78: 1069.56 | E78: 1688.5 | F78: 1610.08 | G78: 1610.08 | H78: 100 | I78: =VLOOKUP(A78,Methodology!A:D,4,FALSE) -> 1700 | J78: 89.92
A79: 56121 | B79: Exterminating Supplies | C79: 0 | D79: 70.08 | E79: 102.6 | F79: 131.8 | G79: 131.8 | H79: 100 | I79: =VLOOKUP(A79,Methodology!A:D,4,FALSE) -> 104 | J79: -27.8
A80: 56122 | B80: Fence & Gate Supplies | C80: 0 | D80: 24 | E80: 0 | F80: 10 | G80: 10 | H80: 100 | I80: =VLOOKUP(A80,Methodology!A:D,4,FALSE) -> 0.001 | J80: -9.999
A81: 56123 | B81: Fire Protection Supplies | C81: 0 | D81: 551.04 | E81: 567.14 | F81: 702.64 | G81: 702.64 | H81: 100 | I81: =VLOOKUP(A81,Methodology!A:D,4,FALSE) -> 567 | J81: -135.64
A82: 56126 | B82: Hardware Supplies | C82: 0 | D82: 1003.8 | E82: 1081.27 | F82: 650.42 | G82: 650.42 | H82: 100 | I82: =VLOOKUP(A82,Methodology!A:D,4,FALSE) -> 1182 | J82: 531.58
A83: 56127 | B83: Hospitality Supplies | C83: 0 | D83: 77.04 | E83: 114.6 | F83: 74.49 | G83: 74.49 | H83: 100 | I83: =VLOOKUP(A83,Methodology!A:D,4,FALSE) -> 115 | J83: 40.51
A84: 56128 | B84: HVAC Supplies | C84: 0 | D84: 5792.4 | E84: 1885.85 | F84: 3072.35 | G84: 3072.35 | H84: 100 | I84: =VLOOKUP(A84,Methodology!A:D,4,FALSE) -> 2457 | J84: -615.35
A85: 56129 | B85: Keys & Locks Supplies | C85: 0 | D85: 437.4 | E85: 305.36 | F85: 487.61 | G85: 487.61 | H85: 100 | I85: =VLOOKUP(A85,Methodology!A:D,4,FALSE) -> 298 | J85: -189.61
A86: 56131 | B86: Landscaping Supplies | C86: 0 | D86: 264.34 | E86: 211.48 | F86: 211.48 | G86: 211.48 | H86: 100 | I86: =VLOOKUP(A86,Methodology!A:D,4,FALSE) -> 253 | J86: 41.52
A87: 56133 | B87: Misc Supplies | C87: 0 | D87: 104.04 | E87: 734.2 | F87: 361.93 | G87: 361.93 | H87: 100 | I87: =VLOOKUP(A87,Methodology!A:D,4,FALSE) -> 349 | J87: -12.93
A88: 56134 | B88: Painting Supplies | C88: 0 | D88: 119.04 | E88: 570.54 | F88: 596.3 | G88: 596.3 | H88: 100 | I88: =VLOOKUP(A88,Methodology!A:D,4,FALSE) -> 243 | J88: -353.3
A89: 56135 | B89: Pave&Concrete Supplies | C89: 0 | D89: 43.32 | E89: 62.52 | F89: 80.57 | G89: 80.57 | H89: 100 | I89: =VLOOKUP(A89,Methodology!A:D,4,FALSE) -> 0.001 | J89: -80.569
A90: 56136 | B90: Plumbing Supplies | C90: 0 | D90: 2875.92 | E90: 3065.07 | F90: 3941.51 | G90: 3941.51 | H90: 100 | I90: =VLOOKUP(A90,Methodology!A:D,4,FALSE) -> 2810 | J90: -1131.51
A91: 56137 | B91: Pool Supplies | C91: 0 | D91: 895.54 | E91: 202.28 | F91: 202.28 | G91: 202.28 | H91: 100 | I91: =VLOOKUP(A91,Methodology!A:D,4,FALSE) -> 320 | J91: 117.72
A92: 56140 | B92: Security Supplies | C92: 0 | D92: 0 | E92: 88.3 | F92: 88.3 | G92: 88.3 | H92: 100 | I92: =VLOOKUP(A92,Methodology!A:D,4,FALSE) -> 0.001 | J92: -88.299
A93: 56141 | B93: Signs Supplies | C93: 0 | D93: 380.16 | E93: 0 | F93: 158.4 | G93: 158.4 | H93: 100 | I93: =VLOOKUP(A93,Methodology!A:D,4,FALSE) -> 227 | J93: 68.6
A94: 56142 | B94: Snow Removal Supplies | C94: 0 | D94: 1288.41 | E94: 2215.36 | F94: 1187.98 | G94: 1187.98 | H94: 100 | I94: =VLOOKUP(A94,Methodology!A:D,4,FALSE) -> 1539 | J94: 351.02
A95: 56143 | B95: Staff Training Supplies | C95: 0 | D95: 120.12 | E95: 382.78 | F95: 228.16 | G95: 228.16 | H95: 100 | I95: =VLOOKUP(A95,Methodology!A:D,4,FALSE) -> 183 | J95: -45.16
A96: 56160 | B96: Appliance Replacmnt Budget | C96: 0 | D96: 6050 | E96: 9208.15 | F96: 8820.59 | G96: 8820.59 | H96: 100 | I96: =VLOOKUP(A96,Methodology!A:D,4,FALSE) -> 9000 | J96: 179.41
A97: 56199 | B97: TOTAL SUPPLIES | C97: 0 | D97: 32054.41 | E97: 37645.55 | F97: 0 | G97: 0 | H97: N/A | I97: =VLOOKUP(A97,Methodology!A:D,4,FALSE) -> 
A98: 56200 | B98: REPAIRS | I98: =VLOOKUP(A98,Methodology!A:D,4,FALSE) -> 
A99: 56210 | B99: Appliance Repair Contractor | C99: 0 | D99: 1200 | E99: 1195.65 | F99: 894.59 | G99: 894.59 | H99: 100 | I99: =VLOOKUP(A99,Methodology!A:D,4,FALSE) -> 1200 | J99: 305.41
A100: 56213 | B100: Building Contractor | C100: 0 | D100: 548.31 | E100: 381.6 | F100: 610.08 | G100: 610.08 | H100: 100 | I100: =VLOOKUP(A100,Methodology!A:D,4,FALSE) -> 427 | J100: -183.08
A101: 56215 | B101: Carpeting/Flooring Contractor | C101: 0 | D101: 1237 | E101: 1107 | F101: 1622.44 | G101: 1622.44 | H101: 100 | I101: =VLOOKUP(A101,Methodology!A:D,4,FALSE) -> 1294 | J101: -328.44
A102: 56216 | B102: Custodial Contractor | C102: 0 | D102: 42791.4 | E102: 46624.66 | F102: 45534.87 | G102: 45534.87 | H102: 100 | I102: =VLOOKUP(A102,Methodology!A:D,4,FALSE) -> 44122 | J102: -1412.87
A103: 56217 | B103: Decorating Contractor | C103: 0 | D103: 0 | E103: 136.32 | F103: 0 | G103: 0 | H103: N/A | I103: =VLOOKUP(A103,Methodology!A:D,4,FALSE) -> 0.001 | J103: 0.001
A104: 56218 | B104: Doors Contractor | C104: 0 | D104: 133.33 | E104: 260 | F104: 260 | G104: 260 | H104: 100 | I104: =VLOOKUP(A104,Methodology!A:D,4,FALSE) -> 0.001 | J104: =I104-F104 -> -259.999
A105: 56219 | B105: Electrical Contractor | C105: 0 | D105: 3229.7 | E105: 2161.27 | F105: 2678.52 | G105: 2678.52 | H105: 100 | I105: =VLOOKUP(A105,Methodology!A:D,4,FALSE) -> 2109 | J105: -569.52
A106: 56221 | B106: Exterminating Contractor | C106: 0 | D106: 3543.08 | E106: 3350.16 | F106: 2720.42 | G106: 2720.42 | H106: 100 | I106: =VLOOKUP(A106,Methodology!A:D,4,FALSE) -> 3396 | J106: 675.58
A107: 56222 | B107: Fence Contractor | C107: 0 | D107: 78.33 | E107: 0 | F107: 0 | G107: 0 | H107: N/A | I107: =VLOOKUP(A107,Methodology!A:D,4,FALSE) -> 0.001 | J107: 0.001
A108: 56223 | B108: Fire System Contractor | C108: 0 | D108: 10000 | E108: 12775.06 | F108: 11263 | G108: 11263 | H108: 100 | I108: =VLOOKUP(A108,Methodology!A:D,4,FALSE) -> 5468 | J108: -5795
A109: 56224 | B109: Fire Alarm Monitoring | C109: 0 | D109: 8000 | E109: 360 | F109: 3333.31 | G109: 3333.31 | H109: 100 | I109: =VLOOKUP(A109,Methodology!A:D,4,FALSE) -> 7920 | J109: 4586.69
A110: 56228 | B110: HVAC Contractor | C110: 0 | D110: 2316 | E110: 740 | F110: 965 | G110: 965 | H110: 100 | I110: =VLOOKUP(A110,Methodology!A:D,4,FALSE) -> 1274 | J110: 309
A111: 56229 | B111: Keys & Locks Contractor | C111: 0 | D111: 20.01 | E111: 0 | F111: 0 | G111: 0 | H111: N/A | I111: =VLOOKUP(A111,Methodology!A:D,4,FALSE) -> 
A112: 56231 | B112: Landscaping Contractor | C112: 0 | D112: 19600 | E112: 32244.93 | F112: 30351.33 | G112: 30351.33 | H112: 100 | I112: =VLOOKUP(A112,Methodology!A:D,4,FALSE) -> 37630 | J112: 7278.67
A113: 56234 | B113: Painting Contractor | C113: 0 | D113: 3078.33 | E113: 550 | F113: 1832.62 | G113: 1832.62 | H113: 100 | I113: =VLOOKUP(A113,Methodology!A:D,4,FALSE) -> 1748 | J113: -84.62
A114: 56235 | B114: Pave&Concrete Contractor | C114: 0 | D114: 208.33 | E114: 0 | F114: 0 | G114: 0 | H114: N/A | I114: =VLOOKUP(A114,Methodology!A:D,4,FALSE) -> 
A115: 56236 | B115: Plumbing Contractror | C115: 0 | D115: 8000 | E115: 2684 | F115: 4880.31 | G115: 4880.31 | H115: 100 | I115: =VLOOKUP(A115,Methodology!A:D,4,FALSE) -> 4004 | J115: -876.31
A116: 56237 | B116: Pool Contractor | C116: 0 | D116: 20400 | E116: 20650.28 | F116: 23730.28 | G116: 23730.28 | H116: 100 | I116: =VLOOKUP(A116,Methodology!A:D,4,FALSE) -> 22314.28 | J116: -1416
A117: 56239 | B117: Roofing Contractor | C117: 0 | D117: 1495 | E117: 400 | F117: 1022.94 | G117: 1022.94 | H117: 100 | I117: =VLOOKUP(A117,Methodology!A:D,4,FALSE) -> 400 | J117: -622.94
A118: 56240 | B118: Security Contractor | C118: 0 | D118: 45717.95 | E118: 48190.32 | F118: 47718.26 | G118: 47718.26 | H118: 100 | I118: =VLOOKUP(A118,Methodology!A:D,4,FALSE) -> 55200 | J118: 7481.74
A119: 56241 | B119: Signs Contractor | C119: 0 | D119: 319 | E119: 0 | F119: 0 | G119: 0 | H119: N/A | I119: =VLOOKUP(A119,Methodology!A:D,4,FALSE) -> 0.001 | J119: 0.001
A120: 56242 | B120: Snow Removal Contractor | C120: 0 | D120: 22825 | E120: 19336 | F120: 27336 | G120: 27336 | H120: 100 | I120: =VLOOKUP(A120,Methodology!A:D,4,FALSE) -> 15174 | J120: -12162
A121: 56244 | B121: Trash Removal | C121: 0 | D121: 25776 | E121: 25013.61 | F121: 25847.12 | G121: 25847.12 | H121: 100 | I121: =VLOOKUP(A121,Methodology!A:D,4,FALSE) -> 25788 | J121: -59.12
A122: 56245 | B122: Windows and Glass Contractor | C122: 0 | D122: 78.33 | E122: 0 | F122: 0 | G122: 0 | H122: N/A | I122: =VLOOKUP(A122,Methodology!A:D,4,FALSE) -> 
A123: 56299 | B123: TOTAL REPAIRS | C123: 0 | D123: 220595.1 | E123: 218160.86 | F123: 0 | G123: 0 | H123: N/A | I123: =VLOOKUP(A123,Methodology!A:D,4,FALSE) -> 0 | J123: 0
A124: 56400 | B124: MAKE READY | I124: =VLOOKUP(A124,Methodology!A:D,4,FALSE) -> 
A125: 56402 | B125: Appliances Make Ready | C125: 0 | D125: 1383.8 | E125: 1375.92 | F125: 1753.69 | G125: 1753.69 | H125: 100 | I125: =VLOOKUP(A125,Methodology!A:D,4,FALSE) -> 1722.337963 | J125: -31.35203704
A126: 56405 | B126: Bath MR | C126: 0 | D126: 1085.96 | E126: 2174.65 | F126: 2091 | G126: 2091 | H126: 100 | I126: =VLOOKUP(A126,Methodology!A:D,4,FALSE) -> 5167.013889 | J126: 3076.013889
A127: 56410 | B127: Carpet MR | C127: 0 | D127: 35490.49 | E127: 51299.42 | F127: 50315.64 | G127: 50315.64 | H127: 100 | I127: =VLOOKUP(A127,Methodology!A:D,4,FALSE) -> 41578.79461 | J127: -8736.845391
A128: 56412 | B128: Cleaning Make Ready | C128: 0 | D128: 16701.62 | E128: 18238.96 | F128: 17819.75 | G128: 17819.75 | H128: 100 | I128: =VLOOKUP(A128,Methodology!A:D,4,FALSE) -> 14782.89563 | J128: -3036.85437
A129: 56415 | B129: Electrical MR | C129: 0 | D129: 1236.48 | E129: 2945.97 | F129: 1000.72 | G129: 1000.72 | H129: 100 | I129: =VLOOKUP(A129,Methodology!A:D,4,FALSE) -> 2387.743985 | J129: 1387.023985
A130: 56420 | B130: Flooring Other MR | C130: 0 | D130: 332.37 | E130: 109.77 | F130: 261.73 | G130: 261.73 | H130: 100 | I130: =VLOOKUP(A130,Methodology!A:D,4,FALSE) -> 0.06889351852 | J130: -261.6611065
A131: 56422 | B131: Kitchen Make Ready | C131: 0 | D131: 0 | E131: 108.76 | F131: 108.76 | G131: 108.76 | H131: 100 | I131: =VLOOKUP(A131,Methodology!A:D,4,FALSE) -> 0.06889351852 | J131: -108.6911065
A132: 56425 | B132: Labor MR | C132: 0 | D132: 1329.47 | E132: 0 | F132: 607.81 | G132: 607.81 | H132: 100 | I132: =VLOOKUP(A132,Methodology!A:D,4,FALSE) -> 0 | J132: -607.81
A133: 56430 | B133: Misc MR | C133: 0 | D133: 1275.86 | E133: 0 | F133: 583.3 | G133: 583.3 | H133: 100 | I133: =VLOOKUP(A133,Methodology!A:D,4,FALSE) -> 0 | J133: -583.3
A134: 56435 | B134: Paint MR | C134: 0 | D134: 56439.16 | E134: 48376.18 | F134: 53398.47 | G134: 53398.47 | H134: 100 | I134: =VLOOKUP(A134,Methodology!A:D,4,FALSE) -> 48225.46296 | J134: -5173.007037
A135: 56440 | B135: Plumbing MR | C135: 0 | D135: 1917.86 | E135: 4550.47 | F135: 3367.32 | G135: 3367.32 | H135: 100 | I135: =VLOOKUP(A135,Methodology!A:D,4,FALSE) -> 3688.210461 | J135: 320.8904613
A136: 56445 | B136: Vacant Electric Exp MR | C136: 0 | D136: 0 | E136: 426.55 | F136: 134.19 | G136: 134.19 | H136: 100 | I136: =VLOOKUP(A136,Methodology!A:D,4,FALSE) -> 0 | J136: =I136-F136 -> -134.19
A137: 56499 | B137: Total Make Ready | C137: 0 | D137: 117193.07 | E137: 129606.65 | F137: 0 | G137: 0 | H137: N/A | I137: =VLOOKUP(A137,Methodology!A:D,4,FALSE) -> 
A138: 57000 | B138: GENERAL & ADMINISTRATIVE | I138: =VLOOKUP(A138,Methodology!A:D,4,FALSE) -> 
A139: 50105 | B139: Cable | C139: 0 | D139: 729.03 | E139: 94.49 | F139: 345.82 | G139: 345.82 | H139: 100 | I139: =VLOOKUP(A139,Methodology!A:D,4,FALSE) -> 0.001 | J139: -345.819
A140: 57100 | B140: Accounting Fees | C140: 0 | D140: 15578.93 | E140: 9445.75 | F140: 9000 | G140: 9000 | H140: 100 | I140: =VLOOKUP(A140,Methodology!A:D,4,FALSE) -> 9446 | J140: 446
A141: 57110 | B141: Advertising | C141: 0 | D141: 43121.31 | E141: 36607.98 | F141: 39981.32 | G141: 39981.32 | H141: 100 | I141: =VLOOKUP(A141,Methodology!A:D,4,FALSE) -> 41000 | J141: 1018.68
A142: 57126 | B142: Answering Service | C142: 0 | D142: 508.8 | E142: 854.15 | F142: 747.86 | G142: 747.86 | H142: 100 | I142: =VLOOKUP(A142,Methodology!A:D,4,FALSE) -> 854 | J142: 106.14
A143: 57129 | B143: Architect/Engineer | C143: 0 | D143: 0 | E143: 9733.08 | F143: 9733.08 | G143: 9733.08 | H143: 100 | I143: =VLOOKUP(A143,Methodology!A:D,4,FALSE) -> 0.001 | J143: -9733.079
A144: 57130 | B144: Auto Expenses | I144: =VLOOKUP(A144,Methodology!A:D,4,FALSE) -> 0 | J144: 0
A145: 57131 | B145: Auto | C145: 0 | D145: 30.24 | E145: 0 | F145: 12.6 | G145: 12.6 | H145: 100 | I145: =VLOOKUP(A145,Methodology!A:D,4,FALSE) -> 0 | J145: -12.6
A146: 57142 | B146: Automobile-Gas | C146: 0 | D146: 320.4 | E146: 228.18 | F146: 287.05 | G146: 287.05 | H146: 100 | I146: =VLOOKUP(A146,Methodology!A:D,4,FALSE) -> 240 | J146: -47.05
A147: 57144 | B147: Automobile-Insurance | C147: 0 | D147: 2333.04 | E147: 2365.47 | F147: 2359.67 | G147: 2359.67 | H147: 100 | I147: =VLOOKUP(A147,Methodology!A:D,4,FALSE) -> 2496 | J147: 136.33
A148: 57147 | B148: Automobile-Mileage Reimb | C148: 0 | D148: 698.64 | E148: 1124.64 | F148: 970.9 | G148: 970.9 | H148: 100 | I148: =VLOOKUP(A148,Methodology!A:D,4,FALSE) -> 865 | J148: -105.9
A149: 57148 | B149: Automobile-Repairs | C149: 0 | D149: 3999.96 | E149: 528.43 | F149: 1666.65 | G149: 1666.65 | H149: 100 | I149: =VLOOKUP(A149,Methodology!A:D,4,FALSE) -> 750 | J149: -916.65
A150: 57150 | B150: Automobile-Parking and Tolls | C150: 0 | D150: 85.08 | E150: 0 | F150: 35.45 | G150: 35.45 | H150: 100 | I150: =VLOOKUP(A150,Methodology!A:D,4,FALSE) -> 8000 | J150: 7964.55
A151: 57164 | B151: Bank Charges | C151: 0 | D151: 4216.8 | E151: 3513.61 | F151: 3821.12 | G151: 3821.12 | H151: 100 | I151: =VLOOKUP(A151,Methodology!A:D,4,FALSE) -> 3514 | J151: -307.12
A152: 57167 | B152: Copier Expenses | C152: 0 | D152: 3262.56 | E152: 1872.72 | F152: 2295.76 | G152: 2295.76 | H152: 100 | I152: =VLOOKUP(A152,Methodology!A:D,4,FALSE) -> 1873 | J152: -422.76
A153: 57169 | B153: Computer Expenses | C153: 0 | D153: 462.48 | E153: 3305.31 | F153: 192.7 | G153: 192.7 | H153: 100 | I153: =VLOOKUP(A153,Methodology!A:D,4,FALSE) -> 3305 | J153: 3112.3
A154: 57170 | B154: Credit checks | C154: 0 | D154: 5864.52 | E154: 6598.48 | F154: 6586.59 | G154: 6586.59 | H154: 100 | I154: =VLOOKUP(A154,Methodology!A:D,4,FALSE) -> 6598 | J154: 11.41
A155: 57172 | B155: Credit Card Fees | C155: 0 | D155: 69.96 | E155: 0 | F155: 29.15 | G155: 29.15 | H155: 100 | I155: =VLOOKUP(A155,Methodology!A:D,4,FALSE) -> 0 | J155: -29.15
A156: 57176 | B156: Dues and Subscriptions | C156: 0 | D156: 597.84 | E156: 2132.69 | F156: 1410.95 | G156: 1410.95 | H156: 100 | I156: =VLOOKUP(A156,Methodology!A:D,4,FALSE) -> 2133 | J156: 722.05
A157: 57188 | B157: Equipment Repairs-Office | C157: 0 | D157: 294.96 | E157: 302.4 | F157: 425.3 | G157: 425.3 | H157: 100 | I157: =VLOOKUP(A157,Methodology!A:D,4,FALSE) -> 302 | J157: -123.3
A158: 57190 | B158: Eviction costs | C158: 0 | D158: 3487.32 | E158: 8182.05 | F158: 6827.75 | G158: 6827.75 | H158: 100 | I158: =VLOOKUP(A158,Methodology!A:D,4,FALSE) -> 4336 | J158: -2491.75
A159: 57192 | B159: Eviction costs-Legal | C159: 0 | D159: 6035.04 | E159: 11598.68 | F159: 8904.65 | G159: 8904.65 | H159: 100 | I159: =VLOOKUP(A159,Methodology!A:D,4,FALSE) -> 7533 | J159: =I159-F159 -> -1371.65
A160: 57199 | B160: Internet Expense | C160: 0 | D160: 4444.8 | E160: 4564 | F160: 4777.78 | G160: 4777.78 | H160: 100 | I160: =VLOOKUP(A160,Methodology!A:D,4,FALSE) -> 4564 | J160: -213.78
A161: 57210 | B161: Licenses and Fees | C161: 0 | D161: 12810 | E161: 14044.31 | F161: 12782.74 | G161: 12782.74 | H161: 100 | I161: =VLOOKUP(A161,Methodology!A:D,4,FALSE) -> 14044 | J161: 1261.26
A162: 57225 | B162: Marketing Expense | C162: 0 | D162: 12221.64 | E162: 7731.21 | F162: 9610.92 | G162: 9610.92 | H162: 100 | I162: =VLOOKUP(A162,Methodology!A:D,4,FALSE) -> 7731 | J162: -1879.92
A163: 57227 | B163: Meetings & Conferences | C163: 0 | D163: 660.6 | E163: 318.68 | F163: 543.93 | G163: 543.93 | H163: 100 | I163: =VLOOKUP(A163,Methodology!A:D,4,FALSE) -> 319 | J163: -224.93
A164: 57229 | B164: Food Service Program | C164: 0 | D164: 0 | E164: 137.69 | F164: 137.69 | G164: 137.69 | H164: 100 | I164: =VLOOKUP(A164,Methodology!A:D,4,FALSE) -> 0.001 | J164: -137.689
A165: 57230 | B165: Food/Coffee Service | C165: 0 | D165: 3080.52 | E165: 2256.72 | F165: 3182.01 | G165: 3182.01 | H165: 100 | I165: =VLOOKUP(A165,Methodology!A:D,4,FALSE) -> 3052 | J165: -130.01
A166: 57232 | B166: Miscellaneous Exp | C166: 0 | D166: 0 | E166: 18.61 | F166: 0 | G166: 0 | H166: N/A | I166: =VLOOKUP(A166,Methodology!A:D,4,FALSE) -> 0.001 | J166: 0.001
A167: 57240 | B167: Office expenses | C167: 0 | D167: 2454.84 | E167: 1947.75 | F167: 2300.29 | G167: 2300.29 | H167: 100 | I167: =VLOOKUP(A167,Methodology!A:D,4,FALSE) -> 2186 | J167: -114.29
A168: 57242 | B168: Paper and Forms Costs | C168: 0 | D168: 95.04 | E168: 0 | F168: 39.6 | G168: 39.6 | H168: 100 | I168: =VLOOKUP(A168,Methodology!A:D,4,FALSE) -> 0.001 | J168: -39.599
A169: 57246 | B169: PR Service Fees | C169: 0 | D169: 3936.48 | E169: 3472.56 | F169: 3588.15 | G169: 3588.15 | H169: 100 | I169: =VLOOKUP(A169,Methodology!A:D,4,FALSE) -> 3473 | J169: -115.15
A170: 57250 | B170: Postage | C170: 0 | D170: 978.36 | E170: 554.9 | F170: 781.03 | G170: 781.03 | H170: 100 | I170: =VLOOKUP(A170,Methodology!A:D,4,FALSE) -> 555 | J170: -226.03
A171: 57252 | B171: Printing Costs | C171: 0 | D171: 105.96 | E171: 0 | F171: 44.15 | G171: 44.15 | H171: 100 | I171: =VLOOKUP(A171,Methodology!A:D,4,FALSE) -> 0 | J171: -44.15
A172: 57280 | B172: Repairs and maintenance | C172: 0 | D172: 407.52 | E172: 135.5 | F172: 169.8 | G172: 169.8 | H172: 100 | I172: =VLOOKUP(A172,Methodology!A:D,4,FALSE) -> 0.001 | J172: -169.799
A173: 57290 | B173: Resident Activities | C173: 0 | D173: 9453.48 | E173: 3510.41 | F173: 6601.24 | G173: 6601.24 | H173: 100 | I173: =VLOOKUP(A173,Methodology!A:D,4,FALSE) -> 4672 | J173: -1929.24
A174: 57291 | B174: Retirement Plan 401k Admin Fees | C174: 0 | D174: 489.24 | E174: 541.68 | F174: 637.94 | G174: 637.94 | H174: 100 | I174: =VLOOKUP(A174,Methodology!A:D,4,FALSE) -> 542 | J174: -95.94
A175: 57295 | B175: Software & Software Services | C175: 0 | D175: 34283.4 | E175: 33148.37 | F175: 33678.24 | G175: 33678.24 | H175: 100 | I175: =VLOOKUP(A175,Methodology!A:D,4,FALSE) -> 33148 | J175: -530.24
A176: 57308 | B176: Training and Seminars | C176: 0 | D176: 1693.68 | E176: 1666.99 | F176: 1758.23 | G176: 1758.23 | H176: 100 | I176: =VLOOKUP(A176,Methodology!A:D,4,FALSE) -> 1667 | J176: -91.23
A177: 57325 | B177: Telecommunications | I177: =VLOOKUP(A177,Methodology!A:D,4,FALSE) -> 0 | J177: 0
A178: 57340 | B178: Telephone: Land Line | C178: 0 | D178: 11490 | E178: 10280.28 | F178: 11868.76 | G178: 11868.76 | H178: 100 | I178: =VLOOKUP(A178,Methodology!A:D,4,FALSE) -> 10280 | J178: -1588.76
A179: 57341 | B179: Telephone Maintenance | C179: 0 | D179: 324 | E179: 0 | F179: 135 | G179: 135 | H179: 100 | I179: =VLOOKUP(A179,Methodology!A:D,4,FALSE) -> 0 | J179: -135
A180: 57342 | B180: Telephone:Mobile | C180: 0 | D180: 2583 | E180: 1993.27 | F180: 1796.25 | G180: 1796.25 | H180: 100 | I180: =VLOOKUP(A180,Methodology!A:D,4,FALSE) -> 1200 | J180: -596.25
A181: 57350 | B181: Uniforms | C181: 0 | D181: 188.64 | E181: 673.47 | F181: 78.6 | G181: 78.6 | H181: 100 | I181: =VLOOKUP(A181,Methodology!A:D,4,FALSE) -> 673 | J181: 594.4
A182: 57355 | B182: Utility Mgmt & Billing Fees(YES) | C182: 0 | D182: 12271.8 | E182: 16314.82 | F182: 15314.1 | G182: 15314.1 | H182: 100 | I182: =VLOOKUP(A182,Methodology!A:D,4,FALSE) -> 16315 | J182: 1000.9
A183: 57999 | B183: TOTAL GENERAL & ADMINISTRATIVE | C183: 0 | D183: 205669.91 | E183: 201799.33 | F183: 0 | G183: 0 | H183: N/A | I183: =VLOOKUP(A183,Methodology!A:D,4,FALSE) -> 
A184: 58999 | B184: TOTAL OPERATING EXPENSES | C184: 0 | D184: 1602381.68 | E184: 1566639.08 | F184: 1618157.72 | G184: 1618157.72 | H184: 100 | I184: =VLOOKUP(A184,Methodology!A:D,4,FALSE) -> 
A185: 59999 | B185: NET OPERATING INCOME | C185: 0 | D185: 2973963.81 | E185: 2924626.54 | F185: 3068445.56 | G185: 3068445.56 | H185: 100 | I185: =VLOOKUP(A185,Methodology!A:D,4,FALSE) -> 
A186: 69999 | B186: NET INCOME AFTER UPGRADES | C186: 0 | D186: 2973963.81 | E186: 2924626.54 | F186: 3068445.56 | G186: 3068445.56 | H186: 100 | I186: =VLOOKUP(A186,Methodology!A:D,4,FALSE) -> 

Sheet Summary NOI Report Support (hidden)
A1: Gateway Enclave (129)
A2: Budget Season Report - Enter end of year date
A3: Period = Dec 2022
A4: Book = Accrual ; Tree = summary_noi
C5: 2023 Budget | D5: 2022 Budget | E5: T12 (Aug 21-Jul 22) Actual | F5: 2022 Est/Act | G5: Variance $ 2023 Bud vs 2022 Act/Bud | H5: Variance % 2023 Bud vs 2022 Act/Bud
A6: 39999 | B6: OPERATING INCOME
A7: 40001 | B7: Market Rent | C7: 0 | D7: 5633703.15 | E7: 5248387 | F7: 5581138.95 | G7: -5581138.95 | H7: -100
A8: 40003 | B8: Loss to Lease | C8: 0 | D8: -825026.73 | E8: -634788 | F8: -762114.27 | G8: 762114.27 | H8: -100
A9: 40004 | B9: Vacancy | C9: 0 | D9: -272061.01 | E9: -241762.36 | F9: -247019.64 | G9: 247019.64 | H9: -100
B10: Non-Inc Units | C10: 0 | D10: -6829.08 | E10: -4736.98 | F10: -7172.43 | G10: 7172.43 | H10: -100
B11: Concessions | C11: 0 | D11: -73647.96 | E11: -73585.39 | F11: -73918.4 | G11: 73918.4 | H11: -100
B12: Bad Debts | C12: 0 | D12: -78866.76 | E12: -13017.58 | F12: =-15611.34-25000 -> -40611.34 | G12: 15611.34 | H12: -100
B13: Misc Inc & Fees | C13: 0 | D13: 199073.88 | E13: 210768.93 | F13: 211300.41 | G13: -211300.41 | H13: -100
A14: 49999 | B14: TOTAL OP INCOME | C14: 0 | D14: 4576345.49 | E14: 4491265.62 | F14: =4686603.28-25000 -> 4661603.28 | G14: -4686603.28 | H14: -100
B15: OPERATING EXPENSES
A16: 50110 | B16: Electric Exp | C16: 0 | D16: 36523 | E16: 40945.52 | F16: 35176.56 | G16: 35176.56 | H16: 100
A17: 50111 | B17: Electric Inc | C17: 0 | D17: 0 | E17: -4154.16 | F17: -2659.74 | G17: -2659.74 | H17: -100
A18: 50120 | B18: Gas Exp | C18: 0 | D18: 10000 | E18: 15115.4 | F18: 14189.32 | G18: 14189.32 | H18: 100
A19: 50121 | B19: Gas Inc | C19: 0 | D19: 0 | E19: -8715 | F19: -7227.97 | G19: -7227.97 | H19: -100
A20: 50130 | B20: Water & Sewer | C20: 0 | D20: 68000 | E20: 61164.92 | F20: 64421.99 | G20: 64421.99 | H20: 100
A21: 50131 | B21: Water Usage Inc | C21: 0 | D21: -91940.39 | E21: -91097.37 | F21: -91214.41 | G21: -91214.41 | H21: -100
A22: 50140 | B22: Sewer Expense | C22: 0 | D22: 30000 | E22: 32974.16 | F22: 31370.33 | G22: 31370.33 | H22: 100
A23: 50141 | B23: Sewer Income | C23: 0 | D23: -27000 | E23: -33037.21 | F23: -30448.38 | G23: -30448.38 | H23: -100
B24: Payroll & Benefits | C24: 0 | D24: 278812.95 | E24: 257926.43 | F24: 275641.24 | G24: 275641.24 | H24: 100
A25: 55010 | B25: Real Estate Taxes | C25: 0 | D25: 456269.04 | E25: 456269.01 | F25: 456269.04 | G25: 456269.04 | H25: 100
A26: 55040 | B26: Insurance Exp | C26: 0 | D26: 126156.02 | E26: 113691.36 | F26: 126156.01 | G26: 126156.01 | H26: 100
A27: 55050 | B27: Mgmt Fees | C27: 0 | D27: 140048.57 | E27: 138343.63 | F27: 140252.5 | G27: 140252.5 | H27: 100
B28: Supplies | C28: 0 | D28: 32054.41 | E28: 37645.55 | F28: 36726.94 | G28: 36726.94 | H28: 100
B29: Repairs | C29: 0 | D29: 220595.1 | E29: 218160.86 | F29: 232601.09 | G29: 232601.09 | H29: 100
A30: 56400 | B30: Make Ready | C30: 0 | D30: 117193.07 | E30: 129180.1 | F30: 131308.19 | G30: 131308.19 | H30: 100
A31: 56445 | B31: Vacant Electric Exp MR | C31: 0 | D31: 0 | E31: 426.55 | F31: 134.19 | G31: 134.19 | H31: 100
B32: General & Admin | C32: 0 | D32: 205669.91 | E32: 201799.33 | F32: =205460.82-9000 -> 196460.82 | G32: 205460.82 | H32: 100
A33: 58999 | B33: TOTAL OP EXPENSE | C33: 0 | D33: 1602381.68 | E33: 1566639.08 | F33: =1618157.72-9000 -> 1609157.72 | G33: 1618157.72 | H33: 100
A34: 59999 | B34: NET OPERATING INC | C34: 0 | D34: 2973963.81 | E34: 2924626.54 | F34: =3068445.56-25000+9000 -> 3052445.56 | G34: 3068445.56 | H34: 100

Sheet Occupancy Budget
A1: ='Discussion Items'!A1 -> Gateway Enclaves
C2: IF YOU HAVE A QUESTION or DISAGREE WITH A GRAY CELL CALL STEPHEN or PRECIOUS
A3: Occupancy Budget 2023 | C3: YOU MUST INPUT ALL ORANGE HIGHLIGHTED CELLS!
A4: * Note: GPR is Market Rent minus Loss to Lease | C4: YOU CAN OVERWRITE ALL BLUE HIGHLIGHTED CELLS!
A5: * Note: Rental Income is Market Rent minus Loss to Lease minus Vacancy Loss | C5: YARDI IMPORT TEMPLATE - GREEN HIGHLIGHTED CELLS!
A6: Instructions | C6: Market Rent | D6: Avg Actual Rent including vacant at market rent | G6: Replacement rent % (Market rent vs Actual rent)
A7: Enter from weekly box score. This number should be updated every Monday when the box score comes out until your budget meeting with corporate | B7: Avg Rent (Market Rent/Units) | C7: 1937 | D7: 1908 | F7: In reference to new move-ins | G7: =(C7-D7)/D7 -> 0.01519916143
A8: Enter from Yardi income statement. This number should be updated every month after GPR is posted around the 12th | B8: GPR (Market Rent - Loss to Lease) | C8: 408794 | E8: 2023 GPR Growth
A9: Enter from weekly box score. This number should be updated every Monday when the box score comes out until your budget meeting with corporate | B9: Trend % (Occupancy % at 12/31/2022) | C9: 0.8703 | D9: Estimated evictions in Jan/Feb | E9: (2023 Dec GPR Budget vs 2022 Dec GPR Budget) | F9: (2023 Dec GPR Budget vs 2022's most recent closed month's GPR Actual)
B10: # units occupied | C10: =C11*C9 -> 187.9848 | D10: 4 | E10: =(N23-VLOOKUP(A1,'GPR Growth'!A:D,4,FALSE))/VLOOKUP(A1,'GPR Growth'!A:D,4,FALSE) -> 0.01080317874 | F10: =(N23-C8)/C8 -> 0.044019084
B11: Total # units | C11: =VLOOKUP(A1,'Renewal Rate-Moveouts'!B:C,2,FALSE) -> 216
C12: JAN | D12: FEB | E12: MAR | F12: APR | G12: MAY | H12: JUN | I12: JUL | J12: AUG | K12: SEP | L12: OCT | M12: NOV | N12: DEC | O12: Tot/Avg
A13: Enter the budgeted increase renewal % you plan to apply to each month - Look at the "Monthly Revenue Analysis Report" | B13: Renewal Increase % | C13: 0.02 | D13: 0.02 | E13: 0.02 | F13: 0.04 | G13: 0.04 | H13: 0.04 | I13: 0.04 | J13: 0.04 | K13: 0.04 | L13: 0.02 | M13: 0.02 | N13: 0.02 | O13: =AVERAGE(C13:N13) -> 0.03
A14: Avg Rent with the renewal increase % included | B14: Renewal Rents | C14: =(1+C13)*$D$7 -> 1946.16 | D14: =(1+D13)*$D$7 -> 1946.16 | E14: 1946.16 | F14: 1984.32 | G14: 1984.32 | H14: 1984.32 | I14: 1984.32 | J14: 1984.32 | K14: 1984.32 | L14: 1946.16 | M14: 1946.16 | N14: 1946.16 | O14: =AVERAGE(C14:N14) -> 1965.24
A15: Enter the budgeted increase new move in % you plan to apply to each month - Look at the "Monthly Revenue Analysis Report" | B15: Replacement Rent Increase % | C15: 0.035 | D15: 0.035 | E15: 0.035 | F15: 0.075 | G15: 0.075 | H15: 0.075 | I15: 0.075 | J15: 0.075 | K15: 0.075 | L15: 0.035 | M15: 0.035 | N15: 0.035 | O15: =AVERAGE(C15:N15) -> 0.055
A16: Avg Rent with the new move in % included | B16: Replacement Rents | C16: =(1+C15)*$D$7 -> 1974.78 | D16: =(1+D15)*$D$7 -> 1974.78 | E16: 1974.78 | F16: 2051.1 | G16: 2051.1 | H16: 2051.1 | I16: 2051.1 | J16: 2051.1 | K16: 2051.1 | L16: 1974.78 | M16: 1974.78 | N16: 1974.78 | O16: =AVERAGE(C16:N16) -> 2012.94
A17: Displays the property's 3 year avg occupancy by month | B17: Occupancy % | C17: 90 | D17: =92.5-1.8 -> 90.7 | E17: 93.5 | F17: 95 | G17: 95 | H17: 95 | I17: 95.5 | J17: 96 | K17: 96 | L17: 95 | M17: 95 | N17: 95 | O17: =AVERAGE(C17:N17) -> 94.30833333
A18: Displays the # of move ins you need to achieve the occupancy % you entered | B18: Move Ins | C18: =($C$11*(C17/100))-($C$10-C19) -> 10.76705185 | D18: =($C$11*(D17/100))-(($C$11*(C17/100))-D19) -> 5.501197531 | E18: 9.67454321 | F18: 11.21839506 | G18: 2.175925926 | H18: 7.25308642 | I18: 12.32228395 | J18: 13.77290123 | K18: 8.703703704 | L18: 2.191851852 | M18: 3.62654321 | N18: 2.901234568 | O18: =SUM(C18:N18) -> 90.10871852
A19: Displays the # of move outs you will have based lease expirations minus renewals | B19: Move Outs | C19: =C21-C20 -> 4.351851852 | D19: =D21-D20 -> 3.989197531 | E19: 3.62654321 | F19: 7.978395062 | G19: 2.175925926 | H19: 7.25308642 | I19: 11.24228395 | J19: 12.69290123 | K19: 8.703703704 | L19: 4.351851852 | M19: 3.62654321 | N19: 2.901234568 | O19: =SUM(C19:N19) -> 72.89351852
A20: Displays the # of renewals based on the renewal rate % & lease expirations | B20: Renewals | C20: =C21*C22 -> 7.648148148 | D20: =D21*D22 -> 7.010802469 | E20: 6.37345679 | F20: 14.02160494 | G20: 3.824074074 | H20: 12.74691358 | I20: 19.75771605 | J20: 22.30709877 | K20: 15.2962963 | L20: 7.648148148 | M20: 6.37345679 | N20: 5.098765432 | O20: 128.1064815
A21: Corporate manually entered the # of lease expirations from your 07/31/2022 rent roll | B21: Lease Expirations from Rent Roll | C21: =VLOOKUP($A$1,'Lease Expirations'!$B:$P,2,FALSE) -> 12 | D21: =VLOOKUP($A$1,'Lease Expirations'!$B:$P,3,FALSE) -> 11 | E21: =VLOOKUP($A$1,'Lease Expirations'!$B:$P,4,FALSE) -> 10 | F21: =VLOOKUP($A$1,'Lease Expirations'!$B:$P,5,FALSE) -> 22 | G21: =VLOOKUP($A$1,'Lease Expirations'!$B:$P,6,FALSE) -> 6 | H21: =VLOOKUP($A$1,'Lease Expirations'!$B:$P,7,FALSE) -> 20 | I21: =VLOOKUP($A$1,'Lease Expirations'!$B:$P,8,FALSE) -> 31 | J21: =VLOOKUP($A$1,'Lease Expirations'!$B:$P,9,FALSE) -> 35 | K21: =VLOOKUP($A$1,'Lease Expirations'!$B:$P,10,FALSE) -> 24 | L21: =VLOOKUP($A$1,'Lease Expirations'!$B:$P,11,FALSE) -> 12 | M21: =VLOOKUP($A$1,'Lease Expirations'!$B:$P,12,FALSE) -> 10 | N21: =VLOOKUP($A$1,'Lease Expirations'!$B:$P,13,FALSE) -> 8 | O21: 201
A22: Displays the T12 average renewal rate % | B22: Renewal % | C22: =VLOOKUP(A1,'Renewal Rate-Moveouts'!B:K,10,FALSE) -> 0.637345679 | D22: =C22 -> 0.637345679 | E22: =D22 -> 0.637345679 | F22: 0.637345679 | G22: 0.637345679 | H22: 0.637345679 | I22: 0.637345679 | J22: 0.637345679 | K22: 0.637345679 | L22: 0.637345679 | M22: 0.637345679 | N22: 0.637345679 | O22: =AVERAGE(C22:N22) -> 0.637345679
A23: Displays budgeted GPR | B23: GPR (Market Rent - Loss to Lease) | C23: =(C8-(C19*$D$7)-(C20*$D$7))+(C18*C16)+(C20*C14)+((C19-C18)*$C$7) -> 409618.8363 | D23: =(C23-(D19*$D$7)-(D20*$D$7))+(D18*D16)+(D20*D14)+((D19-D18)*$C$7) -> 410209.8904 | E23: 410923.7756 | F23: 413505.2968 | G23: 414108.5251 | H23: 416119.2862 | I23: 419359.1939 | J23: 423001.2539 | K23: 425414.1672 | L23: 425915.0324 | M23: 426400.4241 | N23: =(M23-(N19*$D$7)-(N20*$D$7))+(N18*N16)+(N20*N14)+((N19-N18)*$C$7) -> 426788.7374 | O23: =SUM(C23:N23) -> 5021364.419
A24: Displays the # of vacants units based on the inverse occupancy % | B24: Vacant Units | C24: =$C$11*(1-(C17/100)) -> 21.6 | D24: 20.088 | E24: 14.04 | F24: 10.8 | G24: 10.8 | H24: 10.8 | I24: 9.72 | J24: 8.64 | K24: 8.64 | L24: 10.8 | M24: 10.8 | N24: 10.8 | O24: 147.528
A25: Displays # of vacant units times Avg Rent from box score | B25: Vacancy | C25: =C24*$C$7 -> 41839.2 | D25: 38910.456 | E25: 27195.48 | F25: 20919.6 | G25: 20919.6 | H25: 20919.6 | I25: 18827.64 | J25: 16735.68 | K25: 16735.68 | L25: 20919.6 | M25: 20919.6 | N25: 20919.6 | O25: 285761.736
C28: NOTE: You have to copy and paste cell values only before importing into Yardi to get rid of the formulas
A29: 1 | B29: 2 | C29: 3 | D29: 4 | E29: 5 | F29: 6 | G29: 7 | H29: 8 | I29: 9 | J29: 10 | K29: 11 | L29: 12 | M29: 13 | N29: 14 | O29: 15 | P29: 16 | Q29: 17 | R29: 18
A30: Acct # | B30: Name | C30: D | D30: N | E30: Last Yr | F30: Totals | G30: Jan | H30: Feb | I30: Mar | J30: Apr | K30: May | L30: Jun | M30: Jul | N30: Aug | O30: Sep | P30: Oct | Q30: Nov | R30: Dec
A31: 40001 | B31: Market Rent | F31: =SUM(G31:R31) -> 5020704 | G31: =C7*C11 -> 418392 | H31: =G31 -> 418392 | I31: =H31 -> 418392 | J31: =I31 -> 418392 | K31: 418392 | L31: 418392 | M31: 418392 | N31: 418392 | O31: 418392 | P31: 418392 | Q31: 418392 | R31: 418392
A32: 40003 | B32: Loss to Lease | F32: =SUM(G32:R32) -> 660.4193653 | G32: =C23-G31 -> -8773.163744 | H32: -8182.109551 | I32: -7468.224444 | J32: -4886.703222 | K32: -4283.474888 | L32: -2272.713777 | M32: 967.1939449 | N32: 4609.253889 | O32: 7022.167223 | P32: 7523.032423 | Q32: 8008.424089 | R32: 8396.737423
A33: 40004 | B33: Vacancy | F33: =SUM(G33:R33) -> -285761.736 | G33: =-C25 -> -41839.2 | H33: -38910.456 | I33: -27195.48 | J33: -20919.6 | K33: -20919.6 | L33: -20919.6 | M33: -18827.64 | N33: -16735.68 | O33: -16735.68 | P33: -20919.6 | Q33: -20919.6 | R33: -20919.6

Sheet GPR Growth (hidden)
B1: Dec 2022 Budget
B2: Market Rent | C2: Loss to Lease | D2: GPR SUBTOTAL
A3: Elkins Park | B3: 46470.6 | C3: -4490.62 | D3: =B3+C3 -> 41979.98
A4: Bromley House | B4: 303767.5 | C4: -36889.91 | D4: =B4+C4 -> 266877.59
A5: 7400 Roosevelt | B5: 275723.67 | C5: -13943.16 | D5: 261780.51
A6: Eola Park | B6: 51092.94 | C6: -6992.91 | D6: 44100.03
A7: Warrington Crossings | B7: 383126 | C7: -43340.14 | D7: 339785.86
A8: Willow Bend | B8: 90885.18 | C8: -9717.72 | D8: 81167.46
A9: Sedgwick Gardens | B9: 94649.25 | C9: -7023.67 | D9: 87625.58
A10: Sedgwick Terrace | B10: 22208.88 | C10: -2073.52 | D10: 20135.36
A11: Gardens of Mt Airy | B11: 72480.69 | C11: -7734.83 | D11: 64745.86
A12: Gateway Enclaves | B12: 481049.19 | C12: -58821.85 | D12: 422227.34
A13: Haverford Court | B13: 230312.9 | C13: -14151.71 | D13: 216161.19
A14: Longwood Manor | B14: 156079.61 | C14: -28529.93 | D14: 127549.68
A15: Gateway Towers | B15: 570274.06 | C15: -18110.37 | D15: 552163.69
A16: Yorkhouse North | B16: 267346.8 | C16: -22826.29 | D16: 244520.51
A17: Yorkhouse South | B17: 266010.07 | C17: -7479.94 | D17: 258530.13
A18: Joshua House | B18: 428315.04 | C18: -38653.88 | D18: 389661.16
A19: Fountain Gardens | B19: 135667.89 | C19: -3311.53 | D19: 132356.36
A20: Academia Suites | B20: 127257.08 | C20: -18043.25 | D20: 109213.83
A21: Rosedale Court | B21: 113874.88 | C21: -12719.63 | D21: 101155.25
A22: Meadowbrook Apts | B22: 1166465.92 | C22: -163642.44 | D22: 1002823.48
A23: Mt Airy Arms | B23: 122682.48 | C23: -15517.64 | D23: 107164.84
A24: Overlook Hills | B24: 49707.41 | C24: -5579.92 | D24: 44127.49
A25: Wyncote Towers | B25: 2296256.52 | C25: -225488.61 | D25: 2070767.91
A26: 251 Dekalb | B26: 1106634 | C26: -28839.34 | D26: 1077794.66
A27: Stanbridge Apts | B27: 212609.66 | C27: -22316.97 | D27: 190292.69
A28: Regency House | B28: 111292.65 | C28: -12433.27 | D28: 98859.38
A29: 450 Green Apts | B29: 456356.74 | C29: -61100.12 | D29: 395256.62
A30: Westgate Arms | B30: 70022.58 | C30: -5428.57 | D30: 64594.01
A31: Park at Westminster | B31: 533356.87 | C31: -59059.49 | D31: 474297.38

Sheet Renewal Rate-Moveouts (hidden)
A1: ='Discussion Items'!A1 -> Gateway Enclaves
A4: Move Out History - January 2020 to August 2022
D7: 08/2021 - 07/2022 | F7: 2021 | H7: 2020 | J7: 2019 to Trailing 12
A8: Property | B8: Prop Name | C8: Units | D8: Moveouts | E8: Renewal Rate % | F8: Moveouts | G8: Renewal Rate % | H8: Moveouts | I8: Renewal Rate % | J8: Average Moveouts | K8: Average Renewal Rate %
A9: 107 | B9: Elkins Park | C9: 31 | D9: 5 | E9: 0.8387 | F9: 7 | G9: 0.7742 | H9: 8 | I9: 0.75 | J9: =(D9+F9+H9)/3 -> 6.666666667 | K9: =(C9-J9)/C9 -> 0.7849462366
A10: 113 | B10: Bromley House | C10: 210 | D10: 45 | E10: 0.7857 | F10: 41 | G10: 0.8048 | H10: 42 | I10: 0.8009 | J10: =(D10+F10+H10)/3 -> 42.66666667 | K10: 0.7968253968
A11: 114 | B11: 7400 Roosevelt | C11: 195 | D11: 52 | E11: 0.7333 | F11: 48 | G11: 0.7551 | H11: 48 | I11: 0.7588 | J11: 49.33333333 | K11: 0.747008547
A12: 116 | B12: Eola Park | C12: 43 | D12: 6 | E12: 0.8605 | F12: 8 | G12: 0.814 | H12: 10 | I12: 0.7674 | J12: 8 | K12: 0.8139534884
A13: 117 | B13: Warrington Crossings | C13: 229 | D13: 65 | E13: 0.7186 | F13: 69 | G13: 0.7 | H13: 59 | I13: 0.7435 | J13: 64.33333333 | K13: 0.7190684134
A14: 120 | B14: Willow Bend | C14: 66 | D14: 14 | E14: 0.7879 | F14: 12 | G14: 0.8209 | H14: 12 | I14: 0.8182 | J14: 12.66666667 | K14: 0.8080808081
A15: 122 | B15: Sedgwick Gardens | C15: 68 | D15: 11 | E15: 0.8429 | F15: 17 | G15: 0.7536 | H15: 10 | I15: 0.8529 | J15: 12.66666667 | K15: 0.8137254902
A16: 123 | B16: Sedgwick Terrace | C16: 18 | D16: 5 | E16: 0.7222 | F16: 8 | G16: 0.5556 | J16: 4.333333333 | K16: 0.7592592593
A17: 125 | B17: Gardens of Mt. Airy | C17: 61 | D17: 11 | E17: 0.8197 | F17: 13 | G17: 0.7869 | H17: 10 | I17: 0.8361 | J17: 11.33333333 | K17: 0.8142076503
A18: 129 | B18: Gateway Enclaves | C18: 216 | D18: 90 | E18: 0.5833 | F18: 71 | G18: 0.6743 | H18: 74 | I18: 0.659 | J18: 78.33333333 | K18: 0.637345679
A19: 131 | B19: Haverford Court | C19: 158 | D19: 26 | E19: 0.8354 | F19: 25 | G19: 0.8428 | H19: 33 | I19: 0.7911 | J19: 28 | K19: 0.8227848101
A20: 135 | B20: Longwood Manor | C20: 120 | D20: 12 | E20: 0.9 | F20: 13 | G20: 0.8917 | H20: 10 | I20: 0.9167 | J20: 11.66666667 | K20: 0.9027777778
A21: 136 | B21: Gateway Towers | C21: 399 | D21: 115 | E21: 0.7118 | F21: 112 | G21: 0.7193 | H21: 109 | I21: 0.7282 | J21: 112 | K21: 0.7192982456
A22: 141 | B22: Yorkhouse North | C22: 225 | D22: 83 | E22: 0.6327 | F22: 83 | G22: 0.6327 | H22: 94 | I22: 0.5841 | J22: 86.66666667 | K22: 0.6148148148
A23: 142 | B23: Yorkhouse South | C23: 216 | D23: 31 | E23: 0.8565 | F23: 22 | G23: 0.8986 | H23: 43 | I23: 0.8 | J23: 32 | K23: 0.8518518519
A24: 145 | B24: Joshua House | C24: 312 | D24: 86 | E24: 0.7261 | F24: 85 | G24: 0.731 | H24: 90 | I24: 0.7161 | J24: 87 | K24: 0.7211538462
A25: 147 | B25: Fountain Gardens | C25: 117 | D25: 22 | E25: 0.807 | F25: 29 | G25: 0.7478 | H25: 29 | I25: 0.75 | J25: 26.66666667 | K25: 0.7720797721
A26: 152 | B26: Academia Suites | C26: 112 | D26: 35 | E26: 0.6903 | F26: 26 | G26: 0.7699 | H26: 36 | I26: 0.6842 | J26: 32.33333333 | K26: 0.7113095238
A27: 155 | B27: Rosedale Court | C27: 77 | D27: 21 | E27: 0.7273 | F27: 15 | G27: 0.8052 | H27: 18 | I27: 0.7692 | J27: 18 | K27: 0.7662337662
A28: 157 | B28: Meadowbrook Apts | C28: 536 | D28: 148 | E28: 0.7259 | F28: 158 | G28: 0.7058 | H28: 164 | I28: 0.6946 | J28: 156.6666667 | K28: 0.7077114428
A29: 170 | B29: Mt. Airy Place | C29: 100 | D29: 16 | E29: 0.84 | F29: 13 | G29: 0.87 | H29: 22 | I29: 0.7822 | J29: 17 | K29: 0.83
A30: 173 | B30: Overlook Hills | C30: 38 | D30: 5 | E30: 0.8684 | F30: 11 | G30: 0.7105 | H30: 9 | I30: 0.7632 | J30: 8.333333333 | K30: 0.7807017544
A31: 175 | B31: Wyncote Towers | C31: 1112 | D31: 377 | E31: 0.6613 | F31: 317 | G31: 0.7152 | H31: 423 | I31: 0.6213 | J31: 372.3333333 | K31: 0.6651678657
A32: 185 | B32: 251 Dekalb | C32: 628 | D32: 89 | E32: 0.8605 | F32: 1 | G32: 0.9982 | J32: 30 | K32: 0.9522292994
A33: 188 | B33: Stanbridge Apts | C33: 150 | D33: 24 | E33: 0.8411 | F33: 26 | G33: 0.8278 | H33: 41 | I33: 0.732 | J33: 30.33333333 | K33: 0.7977777778
A34: 190 | B34: Regency House | C34: 92 | D34: 23 | E34: 0.75 | F34: 18 | G34: 0.8043 | H34: 24 | I34: 0.7419 | J34: 21.66666667 | K34: 0.7644927536
A35: 191 | B35: 450 Green Apts | C35: 305 | D35: 93 | E35: 0.691 | F35: 87 | G35: 0.7138 | H35: 92 | I35: 0.6984 | J35: 90.66666667 | K35: 0.7027322404
A36: 192 | B36: Westgate Arms | C36: 49 | D36: 9 | E36: 0.8163 | F36: 9 | G36: 0.8163 | H36: 16 | I36: 0.6667 | J36: 11.33333333 | K36: 0.768707483
A37: 193 | B37: Park at Westminster | C37: 270 | D37: 70 | E37: 0.7426 | F37: 60 | G37: 0.7778 | H37: 77 | I37: 0.7159 | J37: 69 | K37: 0.7444444444

Sheet Payroll
A1: ='[1]Payroll Main'!H8 -> 129
A3: YOU MUST INPUT ALL ORANGE HIGHLIGHTED CELLS!
A4: YARDI IMPORT TEMPLATE - GREEN HIGHLIGHTED CELLS!
D6: Pulled from Payroll Main Input Tab | L6: 3 Pays in 2023 | R6: 3 Pays in 2023
C7: Notes | D7: Monthly | E7: Yearly | F7: Proof | G7: Jan | H7: Feb | I7: Mar | J7: Apr | K7: May | L7: Jun | M7: Jul | N7: Aug | O7: Sep | P7: Oct | Q7: Nov | R7: Dec
A8: 51000 | B8: PAYROLL EXPENSE
A9: 51202 | B9: Community Managers | D9: ='[1]Payroll Main'!N9 -> 2119.34448 | E9: =+D9*12 -> 25432.13376 | F9: =SUM(G9:R9) -> 25432.13376 | G9: =+$E9/26*2 -> 1956.317982 | H9: 1956.317982 | I9: 1956.317982 | J9: 1956.317982 | K9: 1956.317982 | L9: =+$E9/26*3 -> 2934.476972 | M9: =+$E9/26*2 -> 1956.317982 | N9: =+$E9/26*2 -> 1956.317982 | O9: 1956.317982 | P9: 1956.317982 | Q9: 1956.317982 | R9: =+$E9/26*3 -> 2934.476972
A10: 51203 | B10: Office Payroll | D10: =SUM('[1]Payroll Main'!N10:N11) -> 0 | E10: =+D10*12 -> 0 | F10: =SUM(G10:R10) -> 0 | G10: 0 | H10: 0 | I10: 0 | J10: 0 | K10: 0 | L10: =+$E10/26*3 -> 0 | M10: =+$E10/26*2 -> 0 | N10: 0 | O10: 0 | P10: 0 | Q10: 0 | R10: 0
A11: 51204 | B11: Assistant Managers | D11: ='[1]Payroll Main'!N12 -> 1332.18997 | E11: 15986.27964 | F11: 15986.27964 | G11: 1229.713818 | H11: 1229.713818 | I11: 1229.713818 | J11: 1229.713818 | K11: 1229.713818 | L11: 1844.570727 | M11: 1229.713818 | N11: 1229.713818 | O11: 1229.713818 | P11: 1229.713818 | Q11: 1229.713818 | R11: 1844.570727
A12: 51205 | B12: Resident Services | D12: =SUM('[1]Payroll Main'!N13:N19) -> 2517.524352 | E12: 30210.29222 | F12: 30210.29222 | G12: 2323.868633 | H12: 2323.868633 | I12: 2323.868633 | J12: 2323.868633 | K12: 2323.868633 | L12: 3485.802949 | M12: 2323.868633 | N12: 2323.868633 | O12: 2323.868633 | P12: 2323.868633 | Q12: 2323.868633 | R12: 3485.802949
A13: 51206 | B13: Reception/Front Desk | D13: =SUM('[1]Payroll Main'!N20:N23) -> 1603.872806 | E13: 19246.47367 | F13: 19246.47367 | G13: 1480.497975 | H13: 1480.497975 | I13: 1480.497975 | J13: 1480.497975 | K13: 1480.497975 | L13: 2220.746962 | M13: 1480.497975 | N13: 1480.497975 | O13: 1480.497975 | P13: 1480.497975 | Q13: 1480.497975 | R13: 2220.746962
A14: 51209 | B14: Maint-Manager | D14: ='[1]Payroll Main'!N24 -> 0 | E14: 0 | F14: 0 | G14: 0 | H14: 0 | I14: 0 | J14: 0 | K14: 0 | L14: 0 | M14: 0 | N14: 0 | O14: 0 | P14: 0 | Q14: 0 | R14: 0
A15: 51210 | B15: Maint-Superintendant | D15: =SUM('[1]Payroll Main'!N25:N26) -> 1548.47728 | E15: 18581.72736 | F15: 18581.72736 | G15: 1429.363643 | H15: 1429.363643 | I15: 1429.363643 | J15: 1429.363643 | K15: 1429.363643 | L15: 2144.045465 | M15: 1429.363643 | N15: 1429.363643 | O15: 1429.363643 | P15: 1429.363643 | Q15: 1429.363643 | R15: 2144.045465
A16: 51211 | B16: Maint-Staff | D16: =SUM('[1]Payroll Main'!N27:N35) -> 7406.279416 | E16: 88875.35299 | F16: 88875.35299 | G16: 6836.565615 | H16: 6836.565615 | I16: 6836.565615 | J16: 6836.565615 | K16: 6836.565615 | L16: 10254.84842 | M16: 6836.565615 | N16: 6836.565615 | O16: 6836.565615 | P16: 6836.565615 | Q16: 6836.565615 | R16: 10254.84842
A17: 51213 | B17: Janitorial | D17: =SUM('[1]Payroll Main'!N36:N37) -> 0 | E17: =+D17*12 -> 0 | F17: =SUM(G17:R17) -> 0 | G17: 0 | H17: 0 | I17: 0 | J17: 0 | K17: 0 | L17: 0 | M17: 0 | N17: 0 | O17: 0 | P17: 0 | Q17: 0 | R17: 0
A18: 51215 | B18: Groundskeeping | D18: =SUM('[1]Payroll Main'!N38:N39) -> 0 | E18: 0 | F18: 0 | G18: 0 | H18: 0 | I18: 0 | J18: 0 | K18: 0 | L18: 0 | M18: 0 | N18: 0 | O18: 0 | P18: 0 | Q18: 0 | R18: 0
A19: 51270 | B19: Payroll Bonus | D19: =E19/12 -> 2368.33 | E19: =SUM(G19:R19) -> 28419.96 | F19: =SUM(G19:R19) -> 28419.96 | G19: 1108.33 | H19: 7156.33 | I19: 1108.33 | J19: 1108.33 | K19: 4132.33 | L19: 1108.33 | M19: 1108.33 | N19: 4132.33 | O19: 1108.33 | P19: 1108.33 | Q19: 4132.33 | R19: 1108.33
B20: Subtotal | D20: =SUM(D9:D19) -> 18896.0183 | E20: =SUM(E9:E19) -> 226752.2196 | F20: =SUM(F9:F19) -> 226752.2196 | G20: =SUM(G9:G19) -> 16364.65766 | H20: 22412.65766 | I20: 16364.65766 | J20: 16364.65766 | K20: 19388.65766 | L20: 23992.8215 | M20: 16364.65766 | N20: 19388.65766 | O20: 16364.65766 | P20: 16364.65766 | Q20: 19388.65766 | R20: 23992.8215
E21: 0 | F21: 0 | G21: =+$E21/26*2 -> 0 | H21: =+$E21/26*2 -> 0 | I21: =+$E21/26*3 -> 0 | J21: =+$E21/26*2 -> 0 | K21: =+$E21/26*2 -> 0 | L21: =+$E21/26*2 -> 0 | M21: =+$E21/26*2 -> 0 | N21: =+$E21/26*2 -> 0 | O21: =+$E21/26*3 -> 0 | P21: =+$E21/26*2 -> 0 | Q21: 0 | R21: 0
A22: 51530 | B22: Payroll Taxes-Employer - (10%) | C22: 0.1 | D22: =D20*C22 -> 1889.60183 | E22: =+D22*12 -> 22675.22196 | F22: =SUM(G22:R22) -> 22675.22196 | G22: =+$E22/26*2 -> 1744.247843 | H22: 1744.247843 | I22: 1744.247843 | J22: 1744.247843 | K22: 1744.247843 | L22: =+$E22/26*3 -> 2616.371765 | M22: =+$E22/26*2 -> 1744.247843 | N22: 1744.247843 | O22: 1744.247843 | P22: 1744.247843 | Q22: 1744.247843 | R22: =+$E22/26*3 -> 2616.371765
A23: 51531 | B23: 401k Match Co. Exp - (3%) | C23: 0.03 | D23: =D20*C23 -> 566.8805491 | E23: 6802.566589 | F23: 6802.566589 | G23: 523.274353 | H23: 523.274353 | I23: 523.274353 | J23: 523.274353 | K23: 523.274353 | L23: 784.9115295 | M23: 523.274353 | N23: 523.274353 | O23: 523.274353 | P23: 523.274353 | Q23: 523.274353 | R23: 784.9115295
A24: 51540 | B24: Workers Compensation Ins (By Dept) | D24: =(D9*0.001528)+(D10*0.001528)+(D11*0.003596)+(D12*0.003596)+(D13*0.019957)+(D14*0.06086)+(D15*0.06086)+(D16*0.06086)+(D17*0.06086)+(D18*0.06086)+(D19*0.0404) -> 689.7574452 | E24: 8277.089342 | F24: =SUM(G24:R24) -> 8277.089342 | G24: 636.6991802 | H24: 636.6991802 | I24: 636.6991802 | J24: 636.6991802 | K24: 636.6991802 | L24: 955.0487703 | M24: 636.6991802 | N24: 636.6991802 | O24: 636.6991802 | P24: 636.6991802 | Q24: 636.6991802 | R24: 955.0487703
A25: 51560 | B25: Health & Dental Ins Benefits (INPUT) | D25: 0 | E25: =+D25*12 -> 0 | F25: =SUM(G25:R25) -> 0 | G25: =+D25 -> 0 | H25: =+G25 -> 0 | I25: =+H25 -> 0 | J25: =+I25 -> 0 | K25: =+J25 -> 0 | L25: =+K25 -> 0 | M25: =+L25 -> 0 | N25: 0 | O25: 0 | P25: 0 | Q25: 0 | R25: 0
B26: Total | D26: =SUM(D20:D25) -> 22042.25813 | E26: 264507.0975 | F26: 264507.0975 | G26: 19268.87904 | H26: 25316.87904 | I26: 19268.87904 | J26: 19268.87904 | K26: 22292.87904 | L26: 28349.15356 | M26: 19268.87904 | N26: 22292.87904 | O26: 19268.87904 | P26: 19268.87904 | Q26: 22292.87904 | R26: 28349.15356
A29: 1 | B29: 2 | C29: 3 | D29: 4 | E29: 5 | F29: 6 | G29: 7 | H29: 8 | I29: 9 | J29: 10 | K29: 11 | L29: 12 | M29: 13 | N29: 14 | O29: 15 | P29: 16 | Q29: 17 | R29: 18
A30: Acct # | B30: Name | C30: D | D30: N | E30: Last Yr | F30: Totals | G30: Jan | H30: Feb | I30: Mar | J30: Apr | K30: May | L30: Jun | M30: Jul | N30: Aug | O30: Sep | P30: Oct | Q30: Nov | R30: Dec
A31: 51202 | B31: Community Managers | F31: =SUM(G31:R31) -> 25432.13376 | G31: =+G9 -> 1956.317982 | H31: =+H9 -> 1956.317982 | I31: 1956.317982 | J31: 1956.317982 | K31: 1956.317982 | L31: 2934.476972 | M31: 1956.317982 | N31: 1956.317982 | O31: 1956.317982 | P31: 1956.317982 | Q31: 1956.317982 | R31: 2934.476972
A32: 51203 | B32: Office Payroll | F32: =SUM(G32:R32) -> 0 | G32: =+G10 -> 0 | H32: 0 | I32: 0 | J32: 0 | K32: 0 | L32: 0 | M32: 0 | N32: 0 | O32: 0 | P32: 0 | Q32: 0 | R32: 0
A33: 51204 | B33: Assistant Managers | F33: 15986.27964 | G33: 1229.713818 | H33: 1229.713818 | I33: 1229.713818 | J33: 1229.713818 | K33: 1229.713818 | L33: 1844.570727 | M33: 1229.713818 | N33: 1229.713818 | O33: 1229.713818 | P33: 1229.713818 | Q33: 1229.713818 | R33: 1844.570727
A34: 51205 | B34: Resident Services | F34: 30210.29222 | G34: 2323.868633 | H34: 2323.868633 | I34: 2323.868633 | J34: 2323.868633 | K34: 2323.868633 | L34: 3485.802949 | M34: 2323.868633 | N34: 2323.868633 | O34: 2323.868633 | P34: 2323.868633 | Q34: 2323.868633 | R34: 3485.802949
A35: 51206 | B35: Reception/Front Desk | F35: 19246.47367 | G35: 1480.497975 | H35: 1480.497975 | I35: 1480.497975 | J35: 1480.497975 | K35: 1480.497975 | L35: 2220.746962 | M35: 1480.497975 | N35: 1480.497975 | O35: 1480.497975 | P35: 1480.497975 | Q35: 1480.497975 | R35: 2220.746962
A36: 51209 | B36: Maint-Manager | F36: 0 | G36: 0 | H36: 0 | I36: 0 | J36: 0 | K36: 0 | L36: 0 | M36: 0 | N36: 0 | O36: 0 | P36: 0 | Q36: 0 | R36: 0
A37: 51210 | B37: Maint-Superintendant | F37: 18581.72736 | G37: 1429.363643 | H37: 1429.363643 | I37: 1429.363643 | J37: 1429.363643 | K37: 1429.363643 | L37: 2144.045465 | M37: 1429.363643 | N37: 1429.363643 | O37: 1429.363643 | P37: 1429.363643 | Q37: 1429.363643 | R37: 2144.045465
A38: 51211 | B38: Maint-Staff | F38: 88875.35299 | G38: 6836.565615 | H38: 6836.565615 | I38: 6836.565615 | J38: 6836.565615 | K38: 6836.565615 | L38: 10254.84842 | M38: 6836.565615 | N38: 6836.565615 | O38: 6836.565615 | P38: 6836.565615 | Q38: 6836.565615 | R38: 10254.84842
A39: 51213 | B39: Janitorial | F39: 0 | G39: 0 | H39: 0 | I39: 0 | J39: 0 | K39: 0 | L39: 0 | M39: 0 | N39: 0 | O39: 0 | P39: 0 | Q39: 0 | R39: 0
A40: 51215 | B40: Groundskeeping | F40: 0 | G40: 0 | H40: 0 | I40: 0 | J40: 0 | K40: 0 | L40: 0 | M40: 0 | N40: 0 | O40: 0 | P40: 0 | Q40: 0 | R40: 0
A41: 51270 | B41: Payroll Bonuses | F41: =SUM(G41:R41) -> 28419.96 | G41: =+G19 -> 1108.33 | H41: 7156.33 | I41: 1108.33 | J41: 1108.33 | K41: 4132.33 | L41: 1108.33 | M41: 1108.33 | N41: 4132.33 | O41: 1108.33 | P41: 1108.33 | Q41: 4132.33 | R41: 1108.33
A42: 51530 | B42: Payroll Taxes-Employer | F42: =SUM(G42:R42) -> 22326.3724 | G42: =+G22*1.35 -> 2354.734589 | H42: =+H22*1.35 -> 2354.734589 | I42: =+I22*1.2 -> 2093.097412 | J42: =+J22*0.85 -> 1482.610667 | K42: =+K22*0.85 -> 1482.610667 | L42: =+L22*0.85 -> 2223.916 | M42: =+M22*0.85 -> 1482.610667 | N42: =+N22*0.9 -> 1569.823059 | O42: =+O22*0.9 -> 1569.823059 | P42: =+P22*0.9 -> 1569.823059 | Q42: =+Q22*0.95 -> 1657.035451 | R42: =+R22*0.95 -> 2485.553177
A43: 51531 | B43: 401k Match Co. Exp | F43: =SUM(G43:R43) -> 6802.566589 | G43: =+G23 -> 523.274353 | H43: =+H23 -> 523.274353 | I43: 523.274353 | J43: 523.274353 | K43: 523.274353 | L43: 784.9115295 | M43: 523.274353 | N43: 523.274353 | O43: 523.274353 | P43: 523.274353 | Q43: 523.274353 | R43: 784.9115295
A44: 51540 | B44: Workers Compensation Ins | F44: =SUM(G44:R44) -> 8277.089342 | G44: =+G24 -> 636.6991802 | H44: 636.6991802 | I44: 636.6991802 | J44: 636.6991802 | K44: 636.6991802 | L44: 955.0487703 | M44: 636.6991802 | N44: 636.6991802 | O44: 636.6991802 | P44: 636.6991802 | Q44: 636.6991802 | R44: 955.0487703
A45: 51560 | B45: Health & Dental Ins Benefits | F45: =SUM(G45:R45) -> 0 | G45: =+G25 -> 0 | H45: 0 | I45: 0 | J45: 0 | K45: 0 | L45: 0 | M45: 0 | N45: 0 | O45: 0 | P45: 0 | Q45: 0 | R45: 0
B49: Payroll Bonuses
B50: Leasing | C50: =86*50 -> 4300 | D50: 86 move-ins Robin Morrison and TBD
B51: Econ Occ | C51: =(75+75+100+100+100+100+100+100)*12 -> 9000 | D51: 94% econ occ for Robin Morrison, TBD (Resident Services) and George Daehling, John Montgomery, Vincent Nelson, Leroy Morgan, Isa Logan, Thoms Mason (Maint Techs)
B52: NOI | C52: =((216*6)+(216*4)+(216*4))*5 -> 15120 | D52: 100% NOI for Marva Brown, Lisa Shuler and Gregg Smith
B53: Total | C53: =SUM(C50:C52) -> 28420

Sheet Make Ready
A1: ='Discussion Items'!A1 -> Gateway Enclaves
A3: YOU MUST INPUT ALL ORANGE HIGHLIGHTED CELLS!
A4: YOU CAN OVERWRITE ALL BLUE HIGHLIGHTED CELLS!
A5: YARDI IMPORT TEMPLATE - GREEN HIGHLIGHTED CELLS!
A7: # of move outs budgeted in 2023 occupancy tab | D7: ='Occupancy Budget'!O19+'Occupancy Budget'!D10 -> 76.89351852 | K7: 1 | L7: 2 | M7: 3 | N7: 4 | O7: 5 | P7: 6 | Q7: 7 | R7: 8 | S7: 9 | T7: 10 | U7: 11 | V7: 12 | W7: 13 | X7: 14 | Y7: 15 | Z7: 16 | AA7: 17 | AB7: 18
A8: Budgeted renovations units in 2023 | D8: =P10 -> 8 | K8: Acct # | L8: Name | M8: D | N8: N | O8: Last Yr | P8: Totals | Q8: Jan | R8: Feb | S8: Mar | T8: Apr | U8: May | V8: Jun | W8: Jul | X8: Aug | Y8: Sep | Z8: Oct | AA8: Nov | AB8: Dec
A9: Budgeted make ready units in 2023 | D9: =D7-D8 -> 68.89351852 | L9: # of move outs from occupancy tab | P9: =SUM(Q9:AB9) -> 76.89351852 | Q9: ='Occupancy Budget'!C19 -> 4.351851852 | R9: ='Occupancy Budget'!D19+'Occupancy Budget'!D10 -> 7.989197531 | S9: ='Occupancy Budget'!E19 -> 3.62654321 | T9: ='Occupancy Budget'!F19 -> 7.978395062 | U9: ='Occupancy Budget'!G19 -> 2.175925926 | V9: ='Occupancy Budget'!H19 -> 7.25308642 | W9: ='Occupancy Budget'!I19 -> 11.24228395 | X9: ='Occupancy Budget'!J19 -> 12.69290123 | Y9: ='Occupancy Budget'!K19 -> 8.703703704 | Z9: ='Occupancy Budget'!L19 -> 4.351851852 | AA9: ='Occupancy Budget'!M19 -> 3.62654321 | AB9: ='Occupancy Budget'!N19 -> 2.901234568
A10: Actual renos during the period 08.2021-07.2022 | D10: 5 | L10: Budgeted renovations units in 2023 | P10: =SUM(Q10:AB10) -> 8 | U10: 1 | V10: 3 | W10: 4
A11: Account # | B11: Account Name | C11: Make Ready Spend 08.2021-07.2022 | D11: # Make Readies 08.2021-07.2022 | E11: Suggested Cost per unit | F11: Override Cost per unit | G11: Explanation (overrides in col F must be explained) | H11: Suggested Cost per Unit unless Override is entered | I11: # of Make Readies budgeted for 2023 | J11: Total Budgeted cost 2023 | L11: # of make readies per month | P11: =P9-P10 -> 68.89351852 | Q11: 4.351851852 | R11: 7.989197531 | S11: 3.62654321 | T11: 7.978395062 | U11: 1.175925926 | V11: 4.25308642 | W11: 7.242283951 | X11: 12.69290123 | Y11: 8.703703704 | Z11: 4.351851852 | AA11: 3.62654321 | AB11: 2.901234568
A12: 56402 | B12: Appliances | C12: =HLOOKUP($A$1,'Make Ready_Reno Data'!$5:$24,4,FALSE) -> 1375.92 | D12: =(VLOOKUP($A$1,'Renewal Rate-Moveouts'!$B:$E,3,FALSE))-D10 -> 85 | E12: =C12/D12 -> 16.18729412 | F12: 25 | G12: Timing in T12 | H12: =IF(F12=0,E12,F12) -> 25 | I12: =$D$7-$D$8 -> 68.89351852 | J12: =H12*I12 -> 1722.337963 | K12: =+A12 -> 56402 | L12: =+B12 -> Appliances | P12: =SUM(Q12:AB12) -> 1722.337963 | Q12: =$H12*Q$11 -> 108.7962963 | R12: =$H12*R$11 -> 199.7299383 | S12: 90.66358025 | T12: 199.4598765 | U12: 29.39814815 | V12: 106.3271605 | W12: 181.0570988 | X12: 317.3225309 | Y12: 217.5925926 | Z12: 108.7962963 | AA12: 90.66358025 | AB12: 72.5308642
A13: 56405 | B13: Bath MR | C13: =HLOOKUP($A$1,'Make Ready_Reno Data'!$5:$24,5,FALSE) -> 2174.65 | D13: =D12 -> 85 | E13: =C13/D13 -> 25.58411765 | F13: 75 | G13: Timing in T12 | H13: =IF(F13=0,E13,F13) -> 75 | I13: =$D$7-$D$8 -> 68.89351852 | J13: =H13*I13 -> 5167.013889 | K13: 56405 | L13: Bath MR | P13: =SUM(Q13:AB13) -> 5167.013889 | Q13: =$H13*Q$11 -> 326.3888889 | R13: 599.1898148 | S13: 271.9907407 | T13: 598.3796296 | U13: 88.19444444 | V13: 318.9814815 | W13: 543.1712963 | X13: 951.9675926 | Y13: 652.7777778 | Z13: 326.3888889 | AA13: 271.9907407 | AB13: 217.5925926
A14: 56410 | B14: Carpet MR | C14: =HLOOKUP($A$1,'Make Ready_Reno Data'!$5:$24,6,FALSE) -> 51299.42 | D14: =D13 -> 85 | E14: 603.5225882 | G14: =IF(ISBLANK(F14)," ",'Income Statement'!$Z$1) ->  | H14: 603.5225882 | I14: 68.89351852 | J14: 41578.79461 | K14: 56410 | L14: Carpet MR | P14: 41578.79461 | Q14: 2626.440893 | R14: 4821.661172 | S14: 2188.700744 | T14: 4815.141638 | U14: 709.6978584 | V14: 2566.833724 | W14: 4370.881955 | X14: 7660.452605 | Y14: 5252.881786 | Z14: 2626.440893 | AA14: 2188.700744 | AB14: 1750.960595
A15: 56412 | B15: Cleaning MR | C15: =HLOOKUP($A$1,'Make Ready_Reno Data'!$5:$24,7,FALSE) -> 18238.96 | D15: 85 | E15: 214.576 | G15: =IF(ISBLANK(F15)," ",'Income Statement'!$Z$1) ->  | H15: 214.576 | I15: 68.89351852 | J15: 14782.89563 | K15: 56412 | L15: Cleaning MR | P15: 14782.89563 | Q15: 933.802963 | R15: 1714.290049 | S15: 778.1691358 | T15: 1711.972099 | U15: 252.3254815 | V15: 912.6102716 | W15: 1554.020321 | X15: 2723.591975 | Y15: 1867.605926 | Z15: 933.802963 | AA15: 778.1691358 | AB15: 622.5353086
A16: 56413 | B16: Doors MR | C16: =HLOOKUP($A$1,'Make Ready_Reno Data'!$5:$24,8,FALSE) -> 0 | D16: 85 | E16: 0 | G16: =IF(ISBLANK(F16)," ",'Income Statement'!$Z$1) ->  | H16: 0 | I16: 68.89351852 | J16: 0 | K16: 56413 | L16: Doors MR | P16: 0 | Q16: 0 | R16: 0 | S16: 0 | T16: 0 | U16: =$H16*U$11 -> 0 | V16: =$H16*V$11 -> 0 | W16: 0 | X16: 0 | Y16: 0 | Z16: 0 | AA16: 0 | AB16: 0
A17: 56415 | B17: Electrical MR | C17: =HLOOKUP($A$1,'Make Ready_Reno Data'!$5:$24,9,FALSE) -> 2945.97 | D17: 85 | E17: 34.65847059 | G17: =IF(ISBLANK(F17)," ",'Income Statement'!$Z$1) ->  | H17: 34.65847059 | I17: 68.89351852 | J17: 2387.743985 | K17: 56415 | L17: Electrical MR | P17: 2387.743985 | Q17: 150.8285294 | R17: 276.8933676 | S17: 125.6904412 | T17: 276.5189706 | U17: 40.75579412 | V17: 147.4054706 | W17: 251.0064853 | X17: 439.9165441 | Y17: 301.6570588 | Z17: 150.8285294 | AA17: 125.6904412 | AB17: 100.5523529
A18: 56420 | B18: Flooring MR | C18: =HLOOKUP($A$1,'Make Ready_Reno Data'!$5:$24,10,FALSE) -> 109.77 | D18: 85 | E18: 1.291411765 | F18: 0.001 | G18: zero out | H18: 0.001 | I18: 68.89351852 | J18: 0.06889351852 | K18: 56420 | L18: Flooring MR | P18: 0.06889351852 | Q18: 0.004351851852 | R18: 0.007989197531 | S18: 0.00362654321 | T18: 0.007978395062 | U18: 0.001175925926 | V18: 0.00425308642 | W18: 0.007242283951 | X18: 0.01269290123 | Y18: 0.008703703704 | Z18: 0.004351851852 | AA18: 0.00362654321 | AB18: 0.002901234568
A19: 56422 | B19: Kitchen MR | C19: =HLOOKUP($A$1,'Make Ready_Reno Data'!$5:$24,11,FALSE) -> 108.76 | D19: 85 | E19: 1.279529412 | F19: 0.001 | G19: zero out | H19: 0.001 | I19: 68.89351852 | J19: 0.06889351852 | K19: 56422 | L19: Kitchen MR | P19: 0.06889351852 | Q19: 0.004351851852 | R19: 0.007989197531 | S19: 0.00362654321 | T19: 0.007978395062 | U19: 0.001175925926 | V19: 0.00425308642 | W19: 0.007242283951 | X19: 0.01269290123 | Y19: 0.008703703704 | Z19: 0.004351851852 | AA19: 0.00362654321 | AB19: 0.002901234568
A20: 56425 | B20: Labor MR | C20: =HLOOKUP($A$1,'Make Ready_Reno Data'!$5:$24,12,FALSE) -> 0 | D20: 85 | E20: 0 | G20: =IF(ISBLANK(F20)," ",'Income Statement'!$Z$1) ->  | H20: 0 | I20: 68.89351852 | J20: 0 | K20: 56425 | L20: Labor MR | P20: 0 | Q20: 0 | R20: 0 | S20: 0 | T20: 0 | U20: 0 | V20: 0 | W20: 0 | X20: 0 | Y20: 0 | Z20: 0 | AA20: 0 | AB20: 0
A21: 56430 | B21: Misc MR | C21: =HLOOKUP($A$1,'Make Ready_Reno Data'!$5:$24,13,FALSE) -> 0 | D21: 85 | E21: 0 | G21: =IF(ISBLANK(F21)," ",'Income Statement'!$Z$1) ->  | H21: 0 | I21: 68.89351852 | J21: 0 | K21: 56430 | L21: Misc MR | P21: 0 | Q21: 0 | R21: 0 | S21: 0 | T21: 0 | U21: 0 | V21: 0 | W21: 0 | X21: 0 | Y21: 0 | Z21: 0 | AA21: 0 | AB21: 0
A22: 56435 | B22: Paint MR | C22: =HLOOKUP($A$1,'Make Ready_Reno Data'!$5:$24,14,FALSE) -> 48376.18 | D22: 85 | E22: 569.1315294 | F22: 700 | G22: Timing in T12 | H22: 700 | I22: 68.89351852 | J22: 48225.46296 | K22: 56435 | L22: Paint MR | P22: =SUM(Q22:AB22) -> 48225.46296 | Q22: 3046.296296 | R22: 5592.438272 | S22: 2538.580247 | T22: 5584.876543 | U22: 823.1481481 | V22: 2977.160494 | W22: 5069.598765 | X22: 8885.030864 | Y22: 6092.592593 | Z22: 3046.296296 | AA22: 2538.580247 | AB22: 2030.864198
A23: 56440 | B23: Plumbing MR | C23: =HLOOKUP($A$1,'Make Ready_Reno Data'!$5:$24,15,FALSE) -> 4550.47 | D23: 85 | E23: 53.53494118 | G23: =IF(ISBLANK(F23)," ",'Income Statement'!$Z$1) ->  | H23: 53.53494118 | I23: 68.89351852 | J23: 3688.210461 | K23: 56440 | L23: Plumbing MR | P23: 3688.210461 | Q23: =$H23*Q$11 -> 232.9761329 | R23: 427.7012199 | S23: 194.1467774 | T23: 427.1229103 | U23: 62.95312527 | V23: 227.6887313 | W23: 387.7152453 | X23: 679.513721 | Y23: 465.9522658 | Z23: 232.9761329 | AA23: 194.1467774 | AB23: 155.3174219
B24: Total Make Ready | C24: =SUM(C12:C23) -> 129180.1 | E24: =SUM(E12:E23) -> 1519.765882 | H24: =SUM(H12:H23) -> 1706.294 | J24: =SUM(J12:J23) -> 117552.5973 | L24: Total Make Ready | P24: =SUM(P12:P23) -> 117552.5973 | Q24: =SUM(Q12:Q23) -> 7425.538704 | R24: =SUM(R12:R23) -> 13631.91981 | S24: 6187.94892 | T24: 13613.48762 | U24: 2006.475352 | V24: 7257.01584 | W24: 12357.46565 | X24: 21657.82122 | Y24: 14851.07741 | Z24: 7425.538704 | AA24: 6187.94892 | AB24: 4950.359136
C26: Make Ready Units with Capital Items
A27: Account # | B27: Account Name | C27: Budgeted Cost per Unit | D27: # of units budgeted for 2023 | E27: % of make ready units receiving item | F27: Total Cost | G27: Additional Amenity Charge | H27: Amenity Payback
A28: 60102 | B28: Make Ready Plank Flooring | C28: 1800 | D28: =('Make Ready'!D7-'Make Ready'!D8)*E28 -> 6.889351852 | E28: 0.1 | F28: =C28*D28 -> 12400.83333 | G28: 50 | H28: =(C28/G28)/12 -> 3 | K28: 60102 | L28: Make Ready Plank Flooring | P28: =SUM(Q28:AB28) -> 12400.83333 | Q28: =$F28/12 -> 1033.402778 | R28: =$F28/12 -> 1033.402778 | S28: 1033.402778 | T28: 1033.402778 | U28: 1033.402778 | V28: 1033.402778 | W28: 1033.402778 | X28: 1033.402778 | Y28: 1033.402778 | Z28: 1033.402778 | AA28: 1033.402778 | AB28: 1033.402778
A29: 60102 | B29: Make Ready Countertops | C29: 2100 | D29: =('Make Ready'!D7-'Make Ready'!D8)*E29 -> 20.66805556 | E29: 0.3 | F29: =C29*D29 -> 43402.91667 | G29: 25 | H29: =(C29/G29)/12 -> 7 | K29: 60102 | L29: Make Ready Countertops | P29: =SUM(Q29:AB29) -> 43402.91667 | Q29: =$F29/12 -> 3616.909722 | R29: 3616.909722 | S29: 3616.909722 | T29: 3616.909722 | U29: 3616.909722 | V29: 3616.909722 | W29: 3616.909722 | X29: 3616.909722 | Y29: 3616.909722 | Z29: 3616.909722 | AA29: 3616.909722 | AB29: 3616.909722
A30: 60102 | B30: Make Ready Appliance Package | C30: 0 | D30: =('Make Ready'!D7-'Make Ready'!D8)*E30 -> 0 | E30: 0 | F30: =C30*D30 -> 0 | G30: 0 | K30: 60102 | L30: Make Ready Appliance Package | P30: 0 | Q30: 0 | R30: 0 | S30: 0 | T30: 0 | U30: 0 | V30: 0 | W30: 0 | X30: 0 | Y30: 0 | Z30: 0 | AA30: 0 | AB30: 0
B31: Total | C31: =SUM(C28:C30) -> 3900 | F31: =SUM(F28:F30) -> 55803.75 | K31: 60102 | L31: MR Unit CapX Items | P31: =SUM(P28:P30) -> 55803.75 | Q31: =SUM(Q28:Q30) -> 4650.3125 | R31: 4650.3125 | S31: 4650.3125 | T31: 4650.3125 | U31: 4650.3125 | V31: 4650.3125 | W31: 4650.3125 | X31: 4650.3125 | Y31: 4650.3125 | Z31: 4650.3125 | AA31: 4650.3125 | AB31: 4650.3125

Sheet Renovations
A1: ='Discussion Items'!A1 -> Gateway Enclaves
A3: YOU MUST INPUT ALL ORANGE HIGHLIGHTED CELLS!
A4: YARDI IMPORT TEMPLATE - GREEN HIGHLIGHTED CELLS!
G5: 1 | H5: 2 | I5: 3 | J5: 4 | K5: 5 | L5: 6 | M5: 7 | N5: 8 | O5: 9 | P5: 10 | Q5: 11 | R5: 12 | S5: 13 | T5: 14 | U5: 15 | V5: 16 | W5: 17 | X5: 18
A6: # of move outs budgeted in 2023 occupancy tab | D6: ='Occupancy Budget'!O19 -> 72.89351852 | G6: Acct # | H6: Name | I6: D | J6: N | K6: Last Yr | L6: Totals | M6: Jan | N6: Feb | O6: Mar | P6: Apr | Q6: May | R6: Jun | S6: Jul | T6: Aug | U6: Sep | V6: Oct | W6: Nov | X6: Dec
A7: Budgeted renovations units in 2023 | D7: =L8 -> 8 | H7: # of move outs from occupancy tab | L7: =SUM(M7:X7) -> 72.89351852 | M7: ='Occupancy Budget'!C19 -> 4.351851852 | N7: ='Occupancy Budget'!D19 -> 3.989197531 | O7: ='Occupancy Budget'!E19 -> 3.62654321 | P7: ='Occupancy Budget'!F19 -> 7.978395062 | Q7: ='Occupancy Budget'!G19 -> 2.175925926 | R7: ='Occupancy Budget'!H19 -> 7.25308642 | S7: ='Occupancy Budget'!I19 -> 11.24228395 | T7: ='Occupancy Budget'!J19 -> 12.69290123 | U7: ='Occupancy Budget'!K19 -> 8.703703704 | V7: ='Occupancy Budget'!L19 -> 4.351851852 | W7: ='Occupancy Budget'!M19 -> 3.62654321 | X7: ='Occupancy Budget'!N19 -> 2.901234568
A8: Actual renos during the period 08.2021-07.2022 | D8: ='Make Ready'!D10 -> 5 | H8: Budgeted renovations units in 2023 | L8: =SUM(M8:X8) -> 8 | M8: ='Make Ready'!Q10 -> 0 | N8: ='Make Ready'!R10 -> 0 | O8: ='Make Ready'!S10 -> 0 | P8: ='Make Ready'!T10 -> 0 | Q8: ='Make Ready'!U10 -> 1 | R8: ='Make Ready'!V10 -> 3 | S8: ='Make Ready'!W10 -> 4 | T8: ='Make Ready'!X10 -> 0 | U8: ='Make Ready'!Y10 -> 0 | V8: ='Make Ready'!Z10 -> 0 | W8: ='Make Ready'!AA10 -> 0 | X8: ='Make Ready'!AB10 -> 0
A9: Account # | B9: Account Name | C9: Cost per unit T12 | D9: Cost per Unit Budget 2023 | E9: # of units budgeted for 2023 | F9: Total Cost
B10: Appliances | C10: N/A | D10: 3000 | E10: =$D$7 -> 8 | F10: =D10*E10 -> 24000 | H10: =+B10 -> Appliances | L10: =SUM(M10:X10) -> 24000 | M10: =$D10*M$8 -> 0 | N10: 0 | O10: 0 | P10: 0 | Q10: 3000 | R10: 9000 | S10: 12000 | T10: 0 | U10: 0 | V10: 0 | W10: 0 | X10: 0
B11: Bath | C11: N/A | D11: 1900 | E11: 8 | F11: 15200 | H11: Bath | L11: 15200 | M11: 0 | N11: 0 | O11: 0 | P11: 0 | Q11: 1900 | R11: 5700 | S11: 7600 | T11: 0 | U11: 0 | V11: 0 | W11: 0 | X11: 0
B12: Carpet | C12: N/A | D12: 600 | E12: 8 | F12: 4800 | H12: Carpet | L12: 4800 | M12: 0 | N12: 0 | O12: 0 | P12: 0 | Q12: 600 | R12: 1800 | S12: 2400 | T12: 0 | U12: 0 | V12: 0 | W12: 0 | X12: 0
B13: Cleaning | C13: N/A | D13: 200 | E13: 8 | F13: 1600 | H13: Cleaning | L13: 1600 | M13: 0 | N13: 0 | O13: 0 | P13: 0 | Q13: 200 | R13: 600 | S13: 800 | T13: 0 | U13: 0 | V13: 0 | W13: 0 | X13: 0
B14: Doors | C14: N/A | D14: 600 | E14: 8 | F14: 4800 | H14: Doors | L14: 4800 | M14: 0 | N14: 0 | O14: 0 | P14: 0 | Q14: 600 | R14: 1800 | S14: 2400 | T14: 0 | U14: 0 | V14: 0 | W14: 0 | X14: 0
B15: Electrical | C15: N/A | D15: 300 | E15: 8 | F15: 2400 | H15: Electrical | L15: 2400 | M15: 0 | N15: 0 | O15: 0 | P15: 0 | Q15: 300 | R15: 900 | S15: 1200 | T15: 0 | U15: 0 | V15: 0 | W15: 0 | X15: 0
B16: Flooring | C16: N/A | D16: 2500 | E16: 8 | F16: 20000 | H16: Flooring | L16: 20000 | M16: 0 | N16: 0 | O16: 0 | P16: 0 | Q16: 2500 | R16: 7500 | S16: 10000 | T16: 0 | U16: 0 | V16: 0 | W16: 0 | X16: 0
B17: Kitchen | C17: N/A | D17: 5000 | E17: 8 | F17: 40000 | H17: Kitchen | L17: 40000 | M17: 0 | N17: 0 | O17: 0 | P17: 0 | Q17: 5000 | R17: 15000 | S17: 20000 | T17: 0 | U17: 0 | V17: 0 | W17: 0 | X17: 0
B18: Labor | C18: N/A | D18: 6500 | E18: 8 | F18: 52000 | H18: Labor | L18: 52000 | M18: 0 | N18: 0 | O18: 0 | P18: 0 | Q18: 6500 | R18: 19500 | S18: 26000 | T18: 0 | U18: 0 | V18: 0 | W18: 0 | X18: 0
B19: Misc | C19: N/A | D19: 0 | E19: 8 | F19: 0 | H19: Misc | L19: 0 | M19: 0 | N19: 0 | O19: 0 | P19: 0 | Q19: 0 | R19: 0 | S19: 0 | T19: 0 | U19: 0 | V19: 0 | W19: 0 | X19: 0
B20: Paint | C20: N/A | D20: 750 | E20: 8 | F20: 6000 | H20: Paint | L20: 6000 | M20: 0 | N20: 0 | O20: 0 | P20: 0 | Q20: 750 | R20: 2250 | S20: 3000 | T20: 0 | U20: 0 | V20: 0 | W20: 0 | X20: 0
B21: Plumbing | C21: N/A | D21: 300 | E21: 8 | F21: 2400 | H21: Plumbing | L21: 2400 | M21: 0 | N21: 0 | O21: 0 | P21: 0 | Q21: 300 | R21: 900 | S21: 1200 | T21: 0 | U21: 0 | V21: 0 | W21: 0 | X21: 0
A22: 60147 | B22: Rehab of Apts - (All Costs) | C22: =HLOOKUP(A1,'Make Ready_Reno Data'!5:28,24,FALSE)/D8 -> 0 | D22: =SUM(D10:D21) -> 21650 | F22: =SUM(F10:F21) -> 173200 | G22: =+A22 -> 60147 | H22: Rehab of Apts - (All Costs) | L22: =SUM(L10:L21) -> 173200 | M22: =SUM(M10:M21) -> 0 | N22: 0 | O22: 0 | P22: 0 | Q22: 21650 | R22: 64950 | S22: 86600 | T22: 0 | U22: 0 | V22: 0 | W22: 0 | X22: 0
C23: Additional Amenity Charge | D23: 250
C24: Amenity Payback | D24: =(D22/D23)/12 -> 7.216666667

Sheet Make Ready_Reno Data (hidden)
A1: All Residential Properties (.allresd)
A2: Property Comparison
A3: Period = Aug 2021-Jul 2022
A4: Book = Accrual ; Tree = ysi_is
C5: Elkins Park | D5: Bromley House | E5: 7400 Roosevelt | F5: Eola Park | G5: Warrington Crossings | H5: Willow Bend | I5: Sedgwick Gardens | J5: Sedgwick Terrace | K5: Gardens of Mt Airy | L5: Gateway Enclaves | M5: Haverford Court | N5: Longwood Manor | O5: Gateway Towers | P5: Yorkhouse North | Q5: Yorkhouse South | R5: Joshua House | S5: Fountain Gardens | T5: Academia Suites | U5: Rosedale Court | V5: Meadowbrook Apts | W5: Mt Airy Arms | X5: Overlook Hills | Y5: Wyncote Towers | Z5: 251 Dekalb | AA5: Stanbridge Apts | AB5: Regency House | AC5: 450 Green Apts | AD5: Westgate Arms | AE5: Park at Westminster
C6: Actual | D6: Actual | E6: Actual | F6: Actual | G6: Actual | H6: Actual | I6: Actual | J6: Actual | K6: Actual | L6: Actual | M6: Actual | N6: Actual | O6: Actual | P6: Actual | Q6: Actual | R6: Actual | S6: Actual | T6: Actual | U6: Actual | V6: Actual | W6: Actual | X6: Actual | Y6: Actual | Z6: Actual | AA6: Actual | AB6: Actual | AC6: Actual | AD6: Actual | AE6: Actual
A7: 56400 | B7: MAKE READY
A8: 56402 | B8: Appliances MR | C8: 1594.24 | D8: 16569.05 | E8: 253.46 | F8: 0 | G8: 3924.53 | H8: 7245.75 | I8: 1711.8 | J8: 33.95 | K8: 1310.33 | L8: 1375.92 | M8: 1490.96 | N8: 0 | O8: 2408.16 | P8: 10063.44 | Q8: 13996.8 | R8: 0 | S8: 0 | T8: 2426.76 | U8: 2899.36 | V8: 5022.06 | W8: 7976.08 | X8: 0 | Y8: 24956.1 | Z8: 7428.48 | AA8: 0 | AB8: 3909.6 | AC8: 8702.83 | AD8: 0 | AE8: 1015.94
A9: 56405 | B9: Bath MR | C9: 1077.22 | D9: 7325.41 | E9: 7560.43 | F9: 202.88 | G9: 5364.1 | H9: 6115.11 | I9: 1995.85 | J9: 1302.95 | K9: 4210.59 | L9: 2174.65 | M9: 621.35 | N9: 446.87 | O9: 4507.3 | P9: 1914.66 | Q9: 3222.41 | R9: 13760.38 | S9: 813.65 | T9: 579 | U9: 4659.42 | V9: 14068.14 | W9: 5058.92 | X9: 234.95 | Y9: 34948.45 | Z9: 39016.47 | AA9: 4099.06 | AB9: 2138.15 | AC9: 16538.81 | AD9: 1563.65 | AE9: 4766.71
A10: 56410 | B10: Carpet MR | C10: 0 | D10: 10445.25 | E10: 2252.82 | F10: 1264 | G10: 4748 | H10: 5974.63 | I10: 0 | J10: 0 | K10: 3229.89 | L10: 51299.42 | M10: 353.6 | N10: 0 | O10: 41036.17 | P10: 0 | Q10: 0 | R10: 1882.88 | S10: 190 | T10: 0 | U10: 5086.25 | V10: 113717.25 | W10: 3253.85 | X10: 510 | Y10: 96365.1 | Z10: 3766.8 | AA10: 7297.35 | AB10: 2913 | AC10: 40413.95 | AD10: 2361.51 | AE10: 11229.39
A11: 56412 | B11: Cleaning MR | C11: 1348.85 | D11: 9671 | E11: 7593.09 | F11: 1003.12 | G11: 9376.2 | H11: 4025.84 | I11: 3725.6 | J11: 1262 | K11: 2254.32 | L11: 18238.96 | M11: 4160.36 | N11: 1315 | O11: 20826.4 | P11: 9995 | Q11: 5730.8 | R11: 12482.84 | S11: 3903.54 | T11: 5938.6 | U11: 3912.43 | V11: 24502 | W11: 3635.2 | X11: 916.2 | Y11: 50924.35 | Z11: 13441.53 | AA11: 3255.35 | AB11: 4221.28 | AC11: 17552.64 | AD11: 1847.7 | AE11: 11324.65
A12: 56413 | B12: Doors MR | C12: 637.62 | D12: 3193.71 | E12: 1597.54 | F12: 495.37 | G12: 0 | H12: 1577.26 | I12: 154.25 | J12: 966.25 | K12: 1598.03 | L12: 0 | M12: 1855.9 | N12: 0 | O12: 2848.13 | P12: 468.47 | Q12: 2590.9 | R12: 752.29 | S12: 0 | T12: 1450.36 | U12: 0 | V12: 1500.8 | W12: 573.55 | X12: 282.01 | Y12: 7678.14 | Z12: 2418.05 | AA12: 467.82 | AB12: 551.01 | AC12: 279.06 | AD12: 0 | AE12: 0
A13: 56415 | B13: Electrical MR | C13: 72.19 | D13: 3152.83 | E13: 2230.72 | F13: 554.67 | G13: 1440.24 | H13: 648.39 | I13: 657.61 | J13: 71.82 | K13: -108.61 | L13: 2945.97 | M13: 2395.69 | N13: 0 | O13: 4615.25 | P13: 1325.34 | Q13: 10135.26 | R13: 2031.57 | S13: -625.67 | T13: 1589.76 | U13: 793.45 | V13: 7319.83 | W13: 895.75 | X13: 131.2 | Y13: 4277.69 | Z13: 348.47 | AA13: 221.59 | AB13: 1474.41 | AC13: 775.45 | AD13: 556.53 | AE13: 873.27
A14: 56420 | B14: Flooring Other MR | C14: 0 | D14: 431.98 | E14: 632.14 | F14: 240.64 | G14: 319.9 | H14: 1595.09 | I14: 2028.74 | J14: 0 | K14: 222.18 | L14: 109.77 | M14: 0 | N14: 1011.05 | O14: 113.26 | P14: 825 | Q14: 0 | R14: 0 | S14: 0 | T14: 225 | U14: 0 | V14: 0 | W14: 1653.19 | X14: 0 | Y14: 32203.11 | Z14: 1372.65 | AA14: 214.62 | AB14: 99.55 | AC14: 2369.5 | AD14: 115 | AE14: 884.2
A15: 56422 | B15: Kitchen MR | C15: 0 | D15: 4355.32 | E15: 215.34 | F15: 0 | G15: 832.87 | H15: 1410 | I15: 244.76 | J15: 109.23 | K15: 725.83 | L15: 108.76 | M15: 522.11 | N15: 610 | O15: 1080.73 | P15: 64.16 | Q15: 3768.21 | R15: 746.44 | S15: 614.04 | T15: 0 | U15: 475.48 | V15: 0 | W15: 790.56 | X15: 0 | Y15: 27336.97 | Z15: 1280.02 | AA15: 787.18 | AB15: 302.38 | AC15: 1488.99 | AD15: 0 | AE15: 851.23
A16: 56425 | B16: Labor MR | C16: 0 | D16: 2100 | E16: 8825 | F16: 0 | G16: 887.6 | H16: 985.6 | I16: 0 | J16: 0 | K16: 0 | L16: 0 | M16: 120.78 | N16: 0 | O16: 0 | P16: 760 | Q16: 1300 | R16: 11460 | S16: 3570 | T16: 4475 | U16: 0 | V16: 3900 | W16: 0 | X16: 0 | Y16: 2700 | Z16: 3220 | AA16: 750 | AB16: 0 | AC16: 0 | AD16: 0 | AE16: 2230
A17: 56430 | B17: Misc MR | C17: 0 | D17: 0 | E17: 0 | F17: 0 | G17: 2584.69 | H17: 3939.13 | I17: 2090.68 | J17: 1560.79 | K17: 2285.14 | L17: 0 | M17: 839.8 | N17: 658.35 | O17: 452.56 | P17: 6297.47 | Q17: 1210.45 | R17: 0 | S17: 601.63 | T17: 1678.07 | U17: 1650.21 | V17: 0 | W17: 3272.31 | X17: 894.21 | Y17: 8483.26 | Z17: 5510 | AA17: 1512.13 | AB17: 0 | AC17: 4683.77 | AD17: 0 | AE17: 1880.93
A18: 56435 | B18: Paint MR | C18: 7802.19 | D18: 33860.71 | E18: 47860.4 | F18: 5679.79 | G18: 41422.44 | H18: 10720.14 | I18: 9220.73 | J18: 3284.72 | K18: 8257.68 | L18: 48376.18 | M18: 16744.41 | N18: 5367.62 | O18: 50860.89 | P18: 31083.94 | Q18: 16111.21 | R18: 71336.72 | S18: 19341.27 | T18: 13886.57 | U18: 21007.63 | V18: 78505.69 | W18: 11871.41 | X18: 4432.02 | Y18: 244807.67 | Z18: 59097.79 | AA18: 11551.19 | AB18: 14081.69 | AC18: 71372.95 | AD18: 6184.54 | AE18: 49606.63
A19: 56440 | B19: Plumbing MR | C19: 1206.82 | D19: 1674.98 | E19: 1820.63 | F19: 115.82 | G19: 2734.54 | H19: 568.15 | I19: 455.32 | J19: 87.47 | K19: 158.35 | L19: 4550.47 | M19: 2490.78 | N19: 17.28 | O19: 3144.45 | P19: 2287.1 | Q19: 4487.15 | R19: 3323.36 | S19: 3017.79 | T19: 2457.05 | U19: 3466.45 | V19: 8829.83 | W19: 1215.93 | X19: 275.47 | Y19: 3133.2 | Z19: 0 | AA19: 134.95 | AB19: 230.11 | AC19: 933.23 | AD19: 110.61 | AE19: 2425.31
A20: 56445 | B20: Vacant Electric Exp MR | C20: 0 | D20: 0 | E20: 0 | F20: 0 | G20: 0 | H20: 0 | I20: 0 | J20: 0 | K20: 0 | L20: 426.55 | M20: 0 | N20: 0 | O20: 1040 | P20: 0 | Q20: 0 | R20: 0 | S20: 0 | T20: 0 | U20: 0 | V20: 0 | W20: 0 | X20: 0 | Y20: 0 | Z20: 0 | AA20: 0 | AB20: 0 | AC20: 0 | AD20: 0 | AE20: 0
A21: 56499 | B21: TOTAL MAKE READY COSTS | C21: =SUM(C8:C20) -> 13739.13 | D21: =SUM(D8:D20) -> 92780.24 | E21: 80841.57 | F21: 9556.29 | G21: 73635.11 | H21: 44805.09 | I21: 22285.34 | J21: 8679.18 | K21: 24143.73 | L21: 129606.65 | M21: 31595.74 | N21: 9426.17 | O21: 132933.3 | P21: 65084.58 | Q21: 62553.19 | R21: 117776.48 | S21: 31426.25 | T21: 34706.17 | U21: 43950.68 | V21: 257365.6 | W21: 40196.75 | X21: 7676.06 | Y21: 537814.04 | Z21: 136900.26 | AA21: 30291.24 | AB21: 29921.18 | AC21: 165111.18 | AD21: 12739.54 | AE21: 87088.26
C23: Actual | D23: Actual | E23: Actual | F23: Actual | G23: Actual | H23: Actual | I23: Actual | J23: Actual | K23: Actual | L23: Actual | M23: Actual | N23: Actual | O23: Actual | P23: Actual | Q23: Actual | R23: Actual | S23: Actual | T23: Actual | U23: Actual | V23: Actual | W23: Actual | X23: Actual | Y23: Actual | Z23: Actual | AA23: Actual | AB23: Actual | AC23: Actual | AD23: Actual | AE23: Actual
A24: 60100 | B24: Bathroom Renovation | C24: 0 | D24: 0 | E24: 650 | F24: 0 | G24: 0 | H24: 0 | I24: 0 | J24: 0 | K24: 0 | L24: 3200 | M24: 0 | N24: 0 | O24: 2059.38 | P24: 0 | Q24: 1313.55 | R24: 2570.72 | S24: 0 | T24: 0 | U24: 0 | V24: 1250 | W24: 0 | X24: 0 | Y24: 0 | Z24: 1326.95 | AA24: 0 | AB24: 0 | AC24: 0 | AD24: 0 | AE24: 0
A25: 60101 | B25: Occ Unit CapX Items | C25: 3586.35 | D25: 4976.91 | E25: 0 | F25: 6455.2 | G25: 1484.85 | H25: 0 | I25: 1400 | J25: 0 | K25: 2570.95 | L25: 33683.48 | M25: 13205.87 | N25: 4600.8 | O25: 44147.56 | P25: 2689.23 | Q25: 10583.41 | R25: 11056.46 | S25: 8485.74 | T25: 429 | U25: 5068.53 | V25: 39544.79 | W25: 0 | X25: 1468.7 | Y25: 52013.74 | Z25: 0 | AA25: 10323.4 | AB25: 5844.3 | AC25: 1886 | AD25: 1719.32 | AE25: 10590.11
A26: 60102 | B26: MR Unit CapX Items | C26: 11794.3 | D26: 90952.3 | E26: 163008.8 | F26: 4317.27 | G26: 69661.22 | H26: 28786.33 | I26: 11398.96 | J26: 0 | K26: 23862.27 | L26: 52157.26 | M26: 80962.04 | N26: 14568.87 | O26: 138536.5 | P26: 132162.74 | Q26: 100372.04 | R26: 324630.76 | S26: 77981.87 | T26: 56272.98 | U26: 19168.73 | V26: 29452.47 | W26: 32378.79 | X26: 6417.35 | Y26: 461936.63 | Z26: 98652.52 | AA26: 793.4 | AB26: 18747.37 | AC26: 148724.66 | AD26: 23255.07 | AE26: 111397.45
A27: 60103 | B27: Full Bath Reno | C27: 0 | D27: 62291.12 | E27: 618.35 | F27: 2766.06 | G27: 3003.77 | H27: 16040.08 | I27: 0 | J27: 0 | K27: 3812.61 | L27: 8179.41 | M27: 0 | N27: 0 | O27: 8119.03 | P27: 0 | Q27: 0 | R27: 1540.41 | S27: 0 | T27: 0 | U27: 2425.4 | V27: 0 | W27: 5923.08 | X27: 2494.04 | Y27: 0 | Z27: 0 | AA27: 0 | AB27: 316.2 | AC27: 0 | AD27: 0 | AE27: 2877.92
A28: 60104 | B28: Full Kitchen Reno | C28: 0 | D28: 4689.28 | E28: 892.07 | F28: 0 | G28: 0 | H28: 20786.26 | I28: 0 | J28: 0 | K28: 10152.64 | L28: 0 | M28: 0 | N28: 0 | O28: 980.01 | P28: 0 | Q28: 1560.94 | R28: 14567.47 | S28: 4673.23 | T28: 0 | U28: 5993.16 | V28: 0 | W28: 3008.74 | X28: 0 | Y28: 4095.38 | Z28: 2361.2 | AA28: 0 | AB28: 3661.82 | AC28: 0 | AD28: 0 | AE28: 0
A29: 60147 | B29: Rehab of Apts - (All Costs) | C29: 0 | D29: 25362.65 | E29: 128739.22 | F29: 21484.25 | G29: 167764.46 | H29: 11170.88 | I29: 964.58 | J29: 0 | K29: 21154.39 | L29: 2954.85 | M29: 43006.54 | N29: -937 | O29: 132375.77 | P29: 349893.41 | Q29: 6854.46 | R29: 46639.32 | S29: 66872.73 | T29: 58507.21 | U29: 58818.6 | V29: 292059.45 | W29: 20044.76 | X29: 13121.31 | Y29: 290003.77 | Z29: 376577.65 | AA29: 75702.23 | AB29: 39778.64 | AC29: 33952.8 | AD29: 18253.95 | AE29: 185108.8
C30: =SUM(C24:C29) -> 15380.65 | D30: =SUM(D24:D29) -> 188272.26 | E30: 293908.44 | F30: 35022.78 | G30: 241914.3 | H30: 76783.55 | I30: 13763.54 | J30: 0 | K30: 61552.86 | L30: 100175 | M30: 137174.45 | N30: 18232.67 | O30: 326218.25 | P30: 484745.38 | Q30: 120684.4 | R30: 401005.14 | S30: 158013.57 | T30: 115209.19 | U30: 91474.42 | V30: 362306.71 | W30: 61355.37 | X30: 23501.4 | Y30: 808049.52 | Z30: 478918.32 | AA30: 86819.03 | AB30: 68348.33 | AC30: 184563.46 | AD30: 43228.34 | AE30: 309974.28

Sheet Income Statement
A1: Gateway Enclave (129) | S1: 3 yr avg | T1: Methodology Formula | V1: YOU MUST INPUT ALL ORANGE HIGHLIGHTED CELLS! | Z1: MUST ENTER NOTE-OVERRIDE WAS ENTERED
A2: Income Statement Analysis Report by Property | S2: T12 | T2: Methodology Formula | V2: YOU CAN OVERWRITE ALL BLUE HIGHLIGHTED CELLS! | Z2: MUST ENTER CONTRACT AMOUNT
A3: Period = Jul 2022 | S3: 3% Increase | T3: Methodology Formula | U3: 5% Increase | V3: YARDI IMPORT TEMPLATE - GREEN HIGHLIGHTED CELLS!
A4: Book = Accrual ; Tree = mgr_is | S4: Schedule/Contract | T4: Methodology Formula | U4: When zeroing out an account use .001 and not 0
C5: 08/2021 | D5: 09/2021 | E5: 10/2021 | F5: 11/2021 | G5: 12/2021 | H5: 01/2022 | I5: 02/2022 | J5: 03/2022 | K5: 04/2022 | L5: 05/2022 | M5: 06/2022 | N5: 07/2022 | O5: 12 Mo. Trailing Tot | P5: 36 Mo. Trailing Avg/Yr | Q5: 2021 Actual | R5: 2020 Actual | S5: Methodology | T5: 2023 Suggested Budget | U5: 2023 Mgr Override Budget | V5: 2023 Suggested Budget vs 2023 Mgr Override Budget Variance | W5: 2023 Suggested Budget vs 2023 Mgr Override Budget Variance % | X5: Explanation (overrides in col U must be explained) | Y5: Suggested Budget unless Mgr Override is used
A6: 39999 | B6: INCOME | S6: =VLOOKUP(A6,Methodology!A:F,6,FALSE) ->  | T6: =IF($S6=$S$1,$P6,IF($S6=$S$2,$O6,IF($S6=$S$3,($O6*1.03),0))) ->  | Y6: =IF(ISERROR(IF(U6=0,T6,U6)),"",(IF(U6=0,T6,U6))) -> 
A7: 40001 | B7: Market Rent | C7: 386722 | D7: 387227 | E7: 387327 | F7: 455609 | G7: 455609 | H7: 455609 | I7: 455609 | J7: 455609 | K7: 455609 | L7: 451169 | M7: 451144 | N7: 451144 | O7: 5248387 | P7: 4776304 | Q7: 4754933 | R7: 4526887 | S7: =VLOOKUP(A7,Methodology!A:F,6,FALSE) -> Schedule | T7: 0 | V7: =IF(U7=0,0,U7-T7) -> 0 | W7: =(V7/T7) ->  | X7: =IF(U7=""," ",$Z$1) ->  | Y7: =IF(ISERROR(IF(U7=0,T7,U7)),"",(IF(U7=0,T7,U7))) -> 0
A8: 40002 | B8: Rental Income | C8: 0 | D8: 0 | E8: 0 | F8: 0 | G8: 0 | H8: 0 | I8: 0 | J8: 0 | K8: 0 | L8: 0 | M8: 0 | N8: 0 | O8: 0 | P8: -3 | Q8: -9 | R8: 0 | S8: =VLOOKUP(A8,Methodology!A:F,6,FALSE) -> DNU | T8: 0 | V8: =IF(U8=0,0,U8-T8) -> 0 | W8: =(V8/T8) ->  | X8: =IF(U8=""," ",$Z$1) ->  | Y8: =IF(ISERROR(IF(U8=0,T8,U8)),"",(IF(U8=0,T8,U8))) -> 0
A9: 40003 | B9: Loss to Lease | C9: -17177 | D9: -14764 | E9: -13733 | F9: -76313 | G9: -72957 | H9: -73292 | I9: -71700 | J9: -68273 | K9: -63006 | L9: -58574 | M9: -54934 | N9: -50065 | O9: -634788 | P9: -342295 | Q9: -325080 | R9: -180877 | S9: =VLOOKUP(A9,Methodology!A:F,6,FALSE) -> Schedule | T9: 0 | V9: 0 | Y9: =IF(ISERROR(IF(U9=0,T9,U9)),"",(IF(U9=0,T9,U9))) -> 0
A10: 40004 | B10: Vacancy | C10: -6994 | D10: -12534 | E10: -19498 | F10: -24658 | G10: -21745 | H10: -18031 | I10: -14323 | J10: -15330 | K10: -23829 | L10: -28132 | M10: -25822 | N10: -30865 | O10: -241762 | P10: -206300 | Q10: -150796 | R10: -191582 | S10: =VLOOKUP(A10,Methodology!A:F,6,FALSE) -> Schedule | T10: 0 | V10: 0 | Y10: 0
A11: 40005 | B11: Late charge income | C11: 0 | D11: 0 | E11: 1850 | F11: 1400 | G11: 1800 | H11: 2000 | I11: 1950 | J11: 1850 | K11: 1800 | L11: 2200 | M11: 2050 | N11: 1900 | O11: 18800 | P11: 9617 | Q11: 5050 | R11: 2950 | S11: =VLOOKUP(A11,Methodology!A:F,6,FALSE) -> 3 yr avg | T11: 9617 | U11: 18800 | V11: 9183 | W11: 0.9548715816 | X11: used T12 - 3 yr avg during covid | Y11: 18800
A12: 40006 | B12: Check fee income | C12: 175 | D12: 0 | E12: 0 | F12: 35 | G12: 0 | H12: 35 | I12: 0 | J12: 35 | K12: 35 | L12: 35 | M12: 70 | N12: 0 | O12: 420 | P12: 548 | Q12: 490 | R12: 735 | S12: =VLOOKUP(A12,Methodology!A:F,6,FALSE) -> 3 yr avg | T12: 548 | V12: 0 | W12: 0 | Y12: 548
A13: 40008 | B13: Court cost fee income | C13: 0 | D13: 472 | E13: 1150 | F13: -86 | G13: 140 | H13: 690 | I13: 122 | J13: 460 | K13: 588 | L13: 439 | M13: 2440 | N13: 127 | O13: 6542 | P13: 4847 | Q13: 1930 | R13: 3494 | S13: =VLOOKUP(A13,Methodology!A:F,6,FALSE) -> 3 yr avg | T13: 4847 | V13: 0 | W13: 0 | Y13: 4847
A14: 40010 | B14: Damage incomes | C14: 550 | D14: 1005 | E14: 3892 | F14: 875 | G14: 1685 | H14: 300 | I14: 1559 | J14: 550 | K14: 2991 | L14: 2917 | M14: 335 | N14: 3280 | O14: 19939 | P14: 15647 | Q14: 15937 | R14: 10979 | S14: =VLOOKUP(A14,Methodology!A:F,6,FALSE) -> 3 yr avg | T14: 15647 | V14: 0 | W14: 0 | Y14: 15647
A15: 40014 | B15: Miscellaneous rental income | C15: 4500 | D15: 4500 | E15: 4500 | F15: 4500 | G15: 4500 | H15: 4500 | I15: 4500 | J15: 4500 | K15: 4500 | L15: 4500 | M15: 4500 | N15: 4500 | O15: 54000 | P15: 54000 | Q15: 54000 | R15: 54000 | S15: =VLOOKUP(A15,Methodology!A:F,6,FALSE) -> 3 yr avg | T15: 54000 | V15: 0 | W15: 0 | Y15: 54000
A16: 40020 | B16: Pet fee income | C16: 1415 | D16: 2150 | E16: 1383 | F16: 1390 | G16: 1350 | H16: 1672 | I16: 1597 | J16: 2443 | K16: 1352 | L16: 1563 | M16: 1088 | N16: 1786 | O16: 19187 | P16: 18142 | Q16: 19927 | R16: 17419 | S16: =VLOOKUP(A16,Methodology!A:F,6,FALSE) -> T12 | T16: 19187 | V16: 0 | W16: 0 | Y16: 19187
A17: 40021 | B17: Early Lease Termination fees | C17: 7989 | D17: 9982 | E17: 4024 | F17: 1823 | G17: 7095 | H17: 1975 | I17: 1912 | J17: 9315 | K17: 3227 | L17: 9592 | M17: 5263 | N17: 15513 | O17: 77712 | P17: 65256 | Q17: 59299 | R17: 59698 | S17: =VLOOKUP(A17,Methodology!A:F,6,FALSE) -> 3 yr avg | T17: 65256 | V17: 0 | W17: 0 | Y17: 65256
A18: 40022 | B18: short-term/mm fee | C18: 489 | D18: 0 | E18: 0 | F18: 0 | G18: 0 | H18: 0 | I18: 0 | J18: 0 | K18: 0 | L18: 0 | M18: 0 | N18: 0 | O18: 489 | P18: 213 | Q18: 489 | R18: 0 | S18: =VLOOKUP(A18,Methodology!A:F,6,FALSE) -> T12 | T18: 489 | U18: 0.001 | V18: -488.999 | W18: -0.999997955 | X18: LRO should be zero | Y18: 0.001
A19: 40024 | B19: Application fee income | C19: 450 | D19: 700 | E19: 400 | F19: 500 | G19: 200 | H19: 1400 | I19: 600 | J19: 750 | K19: 650 | L19: 1850 | M19: 1050 | N19: 1400 | O19: 9950 | P19: 9795 | Q19: 7900 | R19: 10610 | S19: =VLOOKUP(A19,Methodology!A:F,6,FALSE) -> T12 | T19: 9950 | V19: 0 | W19: 0 | Y19: 9950
A20: 40050 | B20: Garage fee and parking income | C20: 50 | D20: 45 | E20: 95 | F20: 80 | G20: 125 | H20: 325 | I20: 290 | J20: 165 | K20: 155 | L20: 170 | M20: 135 | N20: 30 | O20: 1665 | P20: 627 | Q20: 395 | R20: 216 | S20: =VLOOKUP(A20,Methodology!A:F,6,FALSE) -> T12 | T20: 1665 | V20: 0 | W20: 0 | Y20: 1665
A21: 40051 | B21: Storage income | C21: 0 | D21: 0 | E21: 0 | F21: 0 | G21: 0 | H21: 0 | I21: 0 | J21: 0 | K21: 0 | L21: 0 | M21: 0 | N21: 0 | O21: 0 | P21: 216 | Q21: 0 | R21: 0 | S21: =VLOOKUP(A21,Methodology!A:F,6,FALSE) -> T12 | T21: 0 | V21: 0 | Y21: 0
A22: 40056 | B22: Telecom marketing income | C22: 1175 | D22: 0 | E22: 0 | F22: 1188 | G22: 0 | H22: 0 | I22: 1101 | J22: 0 | K22: 0 | L22: 1047 | M22: 0 | N22: 0 | O22: 4510 | P22: 6772 | Q22: 4215 | R22: 5627 | S22: =VLOOKUP(A22,Methodology!A:F,6,FALSE) -> T12 | T22: 4510 | V22: 0 | W22: 0 | Y22: 4510
A23: 40058 | B23: Pool Income | C23: 0 | D23: 0 | E23: 0 | F23: 0 | G23: 0 | H23: 0 | I23: 0 | J23: 0 | K23: 0 | L23: 0 | M23: 0 | N23: 0 | O23: 0 | P23: 3 | Q23: 0 | R23: 0 | S23: =VLOOKUP(A23,Methodology!A:F,6,FALSE) -> T12 | T23: 0 | V23: 0 | Y23: 0
A24: 40110 | B24: Community Room non-income unit | C24: 0 | D24: 0 | E24: 0 | F24: 0 | G24: 0 | H24: 0 | I24: 0 | J24: 0 | K24: 0 | L24: 0 | M24: 0 | N24: 0 | O24: 0 | P24: 17 | Q24: 0 | R24: 0 | S24: =VLOOKUP(A24,Methodology!A:F,6,FALSE) -> 3 yr avg | T24: 17 | U24: 0.001 | V24: -16.999 | W24: -0.9999411765 | X24: zero out | Y24: 0.001
A25: 40130 | B25: Employee non income unit | C25: 1038 | D25: -335 | E25: -371 | F25: -371 | G25: -371 | H25: -371 | I25: -1832 | J25: 1088 | K25: -385 | L25: -1772 | M25: -560 | N25: -495 | O25: -4737 | P25: -7446 | Q25: -4064 | R25: -10338 | S25: =VLOOKUP(A25,Methodology!A:F,6,FALSE) -> T12 | T25: -4737 | U25: =(-525*12)+(-125*12) -> -7800 | V25: -3063 | W25: 0.6466117796 | X25: updated monthly amount plus Greg Smith at International city | Y25: -7800
A26: 40204 | B26: Discounts-Military | C26: -401 | D26: -401 | E26: -401 | F26: -356 | G26: -316 | H26: -230 | I26: -230 | J26: -230 | K26: -230 | L26: -230 | M26: -158 | N26: -158 | O26: -3342 | P26: -6761 | Q26: -5257 | R26: -9540 | S26: =VLOOKUP(A26,Methodology!A:F,6,FALSE) -> T12 | T26: -3342 | U26: =-158*12 -> -1896 | V26: 1446 | W26: -0.4326750449 | X26: updated monthly amount | Y26: -1896
A27: 40206 | B27: Discounts-Government | C27: -89 | D27: -91 | E27: -92 | F27: -92 | G27: -92 | H27: -92 | I27: -92 | J27: -92 | K27: -92 | L27: -92 | M27: -92 | N27: -92 | O27: -1100 | P27: -1970 | Q27: -1079 | R27: -2177 | S27: =VLOOKUP(A27,Methodology!A:F,6,FALSE) -> T12 | T27: -1100 | V27: 0 | W27: 0 | Y27: -1100
A28: 40207 | B28: Discounts-Local Employer | C28: -5711 | D28: -5446 | E28: -5384 | F28: -5344 | G28: -5542 | H28: -5494 | I28: -5570 | J28: -5541 | K28: -5605 | L28: -5357 | M28: -6048 | N28: -5219 | O28: -66260 | P28: -72693 | Q28: -69197 | R28: -81713 | S28: =VLOOKUP(A28,Methodology!A:F,6,FALSE) -> T12 | T28: -66260 | V28: 0 | W28: 0 | Y28: -66260
A29: 40208 | B29: Discounts-Students | C29: -47 | D29: -47 | E29: -47 | F29: -52 | G29: -52 | H29: -52 | I29: -52 | J29: -52 | K29: -52 | L29: -52 | M29: -52 | N29: -52 | O29: -609 | P29: -579 | Q29: -574 | R29: -564 | S29: =VLOOKUP(A29,Methodology!A:F,6,FALSE) -> T12 | T29: -609 | V29: 0 | W29: 0 | Y29: -609
A30: 40210 | B30: Concessions-Marketing | C30: 0 | D30: 0 | E30: 0 | F30: 0 | G30: -150 | H30: 0 | I30: 0 | J30: 0 | K30: 0 | L30: -600 | M30: 0 | N30: 0 | O30: -750 | P30: -3673 | Q30: -525 | R30: -7375 | S30: =VLOOKUP(A30,Methodology!A:F,6,FALSE) -> T12 | T30: -750 | V30: 0 | W30: 0 | Y30: -750
A31: 40214 | B31: Concession-Inconvenience | C31: 0 | D31: 0 | E31: -200 | F31: 0 | G31: 0 | H31: -974 | I31: -100 | J31: 0 | K31: 0 | L31: 0 | M31: 0 | N31: -250 | O31: -1524 | P31: -1417 | Q31: -1551 | R31: -419 | S31: =VLOOKUP(A31,Methodology!A:F,6,FALSE) -> T12 | T31: -1524 | U31: 0.001 | V31: 1524.001 | W31: -1.000000656 | X31: zero out | Y31: 0.001
A32: 40215 | B32: Balance Forgiveness Credit | C32: 0 | D32: 0 | E32: 0 | F32: 0 | G32: 0 | H32: 0 | I32: 0 | J32: 0 | K32: 0 | L32: 0 | M32: 0 | N32: 0 | O32: 0 | P32: -974 | Q32: 0 | R32: -2923 | S32: =VLOOKUP(A32,Methodology!A:F,6,FALSE) ->  | V32: 0
A33: 40301 | B33: Misc Income | C33: 0 | D33: 0 | E33: 0 | F33: 0 | G33: 0 | H33: 0 | I33: 0 | J33: 0 | K33: 0 | L33: 500 | M33: 0 | N33: 0 | O33: 500 | P33: 228 | Q33: 184 | R33: 0 | S33: =VLOOKUP(A33,Methodology!A:F,6,FALSE) -> DNU | T33: 0 | V33: 0 | Y33: 0
A34: 40302 | B34: Renters Ins Income | C34: -71 | D34: 229 | E34: 123 | F34: 135 | G34: 243 | H34: 241 | I34: 405 | J34: 198 | K34: 577 | L34: 571 | M34: 246 | N34: -1268 | O34: 1630 | P34: 1963 | Q34: 2101 | R34: 1136 | S34: =VLOOKUP(A34,Methodology!A:F,6,FALSE) -> T12 | T34: 1630 | U34: 0.001 | V34: -1629.999 | W34: -0.9999993865 | X34: zero out | Y34: 0.001
A35: 40303 | B35: Forfeit Sec Deposit Inc | C35: 0 | D35: 0 | E35: 0 | F35: 0 | G35: 0 | H35: 0 | I35: 235 | J35: 0 | K35: 0 | L35: 50 | M35: -1000 | N35: -500 | O35: -1215 | P35: 4935 | Q35: 9863 | R35: 3184 | S35: =VLOOKUP(A35,Methodology!A:F,6,FALSE) -> T12 | T35: -1215 | U35: 0.001 | V35: 1215.001 | W35: -1.000000823 | X35: zero out | Y35: 0.001
A36: 40347 | B36: Allowance for Doubtful Accounts | C36: -3806 | D36: -4942 | E36: 161 | F36: -21280 | G36: 3955 | H36: 8857 | I36: -9406 | J36: 16167 | K36: -20914 | L36: 5672 | M36: -10535 | N36: 40020 | O36: 3949 | P36: -7460 | Q36: -30993 | R36: -21250 | S36: =VLOOKUP(A36,Methodology!A:F,6,FALSE) ->  | V36: 0
A37: 40350 | B37: Bad Debts-Rent & Utils | C37: 0 | D37: -1736 | E37: 0 | F37: -2180 | G37: 0 | H37: -249 | I37: 0 | J37: -8540 | K37: -9244 | L37: -96 | M37: -2404 | N37: 0 | O37: -24450 | P37: -28292 | Q37: -34643 | R37: -11886 | S37: =VLOOKUP(A37,Methodology!A:F,6,FALSE) -> 3 yr avg | T37: -28292 | U37: =-46457.87-25000 -> -71457.87 | V37: -43165.87 | W37: 1.525727061 | X37: 1.6% of total billings | Y37: -71457.87
A38: 40351 | B38: Recovery Bad Debt | C38: 0 | D38: 0 | E38: 3500 | F38: 4950 | G38: 1000 | H38: 1030 | I38: 1250 | J38: 552 | K38: 302 | L38: 5935 | M38: 1343 | N38: 6945 | O38: 26808 | P38: 16086 | Q38: 11222 | R38: 15520 | S38: =VLOOKUP(A38,Methodology!A:F,6,FALSE) -> 3 yr avg | T38: 16086 | U38: 17900 | V38: 1814 | W38: 0.1127688673 | X38: see above | Y38: 17900
A39: 40352 | B39: Bad Debts-Termination Fee | C39: -852 | D39: -1940 | E39: 0 | F39: -7097 | G39: 0 | H39: -3213 | I39: 0 | J39: -1670 | K39: 0 | L39: -4271 | M39: -282 | N39: 0 | O39: -19324 | P39: -19105 | Q39: -23547 | R39: -15364 | S39: =VLOOKUP(A39,Methodology!A:F,6,FALSE) -> 3 yr avg | T39: -19105 | U39: -19500 | V39: -395 | W39: 0.02067521591 | X39: see above | Y39: -19500
A40: 40398 | B40: Rent Adjustment | C40: -526 | D40: -1176 | E40: 1872 | F40: 0 | G40: 46 | H40: 0 | I40: 0 | J40: 63 | K40: 63 | L40: 0 | M40: -2073 | N40: -1629 | O40: -3361 | P40: -893 | Q40: 175 | R40: 1991 | S40: =VLOOKUP(A40,Methodology!A:F,6,FALSE) -> DNU | T40: 0 | V40: 0 | Y40: 0
A41: 49999 | B41: TOTAL INCOME | C41: 368878 | D41: 362897 | E41: 370551 | F41: 334657 | G41: 376523 | H41: 376635 | I41: 367822 | J41: 394018 | K41: 348493 | L41: 389035 | M41: 365705 | N41: 436053 | O41: 4491266 | P41: 4285355 | Q41: 4300795 | R41: 4178434 | S41: =VLOOKUP(A41,Methodology!A:F,6,FALSE) ->  | V41: 0
A42: 50001 | B42: OPERATING EXPENSES | S42: =VLOOKUP(A42,Methodology!A:F,6,FALSE) ->  | V42: 0
A43: 50100 | B43: UTILITIES | S43: =VLOOKUP(A43,Methodology!A:F,6,FALSE) ->  | V43: 0
A44: 50110 | B44: Electric Expense | C44: 3483 | D44: 3365 | E44: 2782 | F44: 3297 | G44: 3951 | H44: 3877 | I44: 5132 | J44: 3388 | K44: 2895 | L44: 2057 | M44: 2996 | N44: 3721 | O44: 40946 | P44: 35195 | Q44: 42292 | R44: 27960 | S44: =VLOOKUP(A44,Methodology!A:F,6,FALSE) -> T12 | T44: 40946 | U44: 36000 | V44: -4946 | W44: -0.1207932399 | X44: used T12 - zeroing out the inc | Y44: 36000
A45: 50111 | B45: Electric Income | C45: -55 | D45: -279 | E45: -354 | F45: -341 | G45: -465 | H45: -374 | I45: -296 | J45: -308 | K45: -216 | L45: -213 | M45: -648 | N45: -605 | O45: -4154 | P45: -1688 | Q45: -2404 | R45: 0 | S45: =VLOOKUP(A45,Methodology!A:F,6,FALSE) -> T12 | T45: -4154 | U45: 0.001 | V45: 4154.001 | W45: -1.000000241 | X45: zero out - offset with exp | Y45: 0.001
A46: 50120 | B46: Gas Expense | C46: 403 | D46: 545 | E46: 415 | F46: 591 | G46: 1022 | H46: 1765 | I46: 2764 | J46: 2959 | K46: 1663 | L46: 1689 | M46: 1263 | N46: 36 | O46: 15115 | P46: 12113 | Q46: 12748 | R46: 7966 | S46: =VLOOKUP(A46,Methodology!A:F,6,FALSE) -> T12 | T46: 15115 | U46: =75*12 -> 900 | V46: -14215 | W46: -0.9404565002 | X46: Gas for clubhouse only - the rest is VCR | Y46: 900
A47: 50121 | B47: Gas Income | C47: -100 | D47: -445 | E47: 0 | F47: -688 | G47: -255 | H47: -914 | I47: -1136 | J47: -1665 | K47: -699 | L47: -738 | M47: -1177 | N47: -901 | O47: -8715 | P47: -3337 | Q47: -2784 | R47: 0 | S47: =VLOOKUP(A47,Methodology!A:F,6,FALSE) -> T12 | T47: -8715 | U47: 0.001 | V47: 8715.001 | W47: -1.000000115 | X47: zero out - this is VCR charges | Y47: 0.001
A48: 50130 | B48: Water Expense (some incl sewer) | C48: 4203 | D48: 4661 | E48: 6076 | F48: 4963 | G48: 5175 | H48: 4462 | I48: 4337 | J48: 5564 | K48: 5070 | L48: 5154 | M48: 6173 | N48: 5328 | O48: 61165 | P48: 75362 | Q48: 72664 | R48: 77186 | S48: =VLOOKUP(A48,Methodology!A:F,6,FALSE) -> T12 | T48: 61165 | V48: 0 | W48: 0 | Y48: 61165
A49: 50131 | B49: Water Usage Income | C49: -7988 | D49: -7675 | E49: -7567 | F49: -7557 | G49: -7404 | H49: -7431 | I49: -7557 | J49: -7387 | K49: -7905 | L49: -7348 | M49: -7659 | N49: -7618 | O49: -91097 | P49: -98590 | Q49: -91217 | R49: -95244 | S49: =VLOOKUP(A49,Methodology!A:F,6,FALSE) -> T12 | T49: -91097 | V49: 0 | W49: 0 | Y49: -91097
A50: 50140 | B50: Sewer Expense | C50: 2602 | D50: 3066 | E50: 2149 | F50: 3155 | G50: 3132 | H50: 2273 | I50: 2417 | J50: 3412 | K50: 2686 | L50: 2536 | M50: 2907 | N50: 2640 | O50: 32974 | P50: 24896 | Q50: 37711 | R50: 18106 | S50: =VLOOKUP(A50,Methodology!A:F,6,FALSE) -> T12 | T50: 32974 | V50: 0 | W50: 0 | Y50: 32974
A51: 50141 | B51: Sewer Income | C51: -2837 | D51: -2739 | E51: -2772 | F51: -2760 | G51: -2731 | H51: -2731 | I51: -2770 | J51: -2776 | K51: -2762 | L51: -2684 | M51: -2779 | N51: -2696 | O51: -33037 | P51: -27522 | Q51: -34556 | R51: -28811 | S51: =VLOOKUP(A51,Methodology!A:F,6,FALSE) -> T12 | T51: -33037 | V51: 0 | W51: 0 | Y51: -33037
A52: 50150 | B52: TOTAL UTILITIES | C52: -288 | D52: 497 | E52: 729 | F52: 661 | G52: 2425 | H52: 927 | I52: 2890 | J52: 3187 | K52: 733 | L52: 454 | M52: 1077 | N52: -95 | O52: 13196 | P52: 16428 | Q52: 34454 | R52: 7162 | S52: =VLOOKUP(A52,Methodology!A:F,6,FALSE) ->  | V52: 0
A53: 51000 | B53: PAYROLL EXPENSE | S53: =VLOOKUP(A53,Methodology!A:F,6,FALSE) ->  | V53: 0
A54: 51201 | B54: Executive Management | C54: 0 | D54: 0 | E54: 0 | F54: 0 | G54: 0 | H54: 0 | I54: 0 | J54: 48 | K54: 96 | L54: 96 | M54: 96 | N54: 0 | O54: 336 | P54: 112 | Q54: 0 | R54: 0 | S54: =VLOOKUP(A54,Methodology!A:F,6,FALSE) -> DNU | T54: 0 | V54: 0 | Y54: 0
A55: 51202 | B55: Community Managers | C55: 1585 | D55: 1585 | E55: 1585 | F55: 3994 | G55: 3249 | H55: 1805 | I55: 1816 | J55: 1816 | K55: 1816 | L55: 1901 | M55: 1904 | N55: 2852 | O55: 25909 | P55: 23238 | Q55: 23887 | R55: 18895 | S55: =VLOOKUP(A55,Methodology!A:F,6,FALSE) -> Schedule | T55: 0 | V55: 0 | Y55: 0
A56: 51203 | B56: Office Payroll | C56: 93 | D56: 92 | E56: 92 | F56: 93 | G56: 140 | H56: 96 | I56: 96 | J56: 48 | K56: 0 | L56: 0 | M56: 0 | N56: 0 | O56: 749 | P56: 1053 | Q56: 1418 | R56: 1300 | S56: =VLOOKUP(A56,Methodology!A:F,6,FALSE) -> Schedule | T56: 0 | V56: 0 | Y56: 0
A57: 51204 | B57: Assistant Managers | C57: 1235 | D57: 1226 | E57: 1214 | F57: 1573 | G57: 0 | H57: 608 | I57: 1232 | J57: 1140 | K57: 1234 | L57: 1243 | M57: 1238 | N57: 1862 | O57: 13805 | P57: 18984 | Q57: 15694 | R57: 21192 | S57: =VLOOKUP(A57,Methodology!A:F,6,FALSE) -> Schedule | T57: =IF($S57=$S$1,$P57,IF($S57=$S$2,$O57,IF($S57=$S$3,($O57*1.03),0))) -> 0 | V57: 0 | Y57: 0
A58: 51205 | B58: Resident Services | C58: 2952 | D58: 2983 | E58: 2990 | F58: 3190 | G58: 3841 | H58: 3025 | I58: 3044 | J58: 3075 | K58: 3067 | L58: 2760 | M58: 2233 | N58: 1429 | O58: 34588 | P58: 34854 | Q58: 37616 | R58: 37332 | S58: =VLOOKUP(A58,Methodology!A:F,6,FALSE) -> Schedule | T58: =IF($S58=$S$1,$P58,IF($S58=$S$2,$O58,IF($S58=$S$3,($O58*1.03),0))) -> 0 | V58: 0 | Y58: 0
A59: 51206 | B59: Reception/Front Desk | C59: 1767 | D59: 1753 | E59: 1780 | F59: 1869 | G59: 2590 | H59: 1078 | I59: 1432 | J59: 1108 | K59: 1110 | L59: 1087 | M59: 1117 | N59: 1680 | O59: 18373 | P59: 17444 | Q59: 20643 | R59: 13344 | S59: =VLOOKUP(A59,Methodology!A:F,6,FALSE) -> Schedule | T59: =IF($S59=$S$1,$P59,IF($S59=$S$2,$O59,IF($S59=$S$3,($O59*1.03),IF(S59=U3,(O59*1.05),0)))) -> 0 | V59: 0 | Y59: 0
A60: 51209 | B60: Maint Manager | C60: 366 | D60: 557 | E60: 706 | F60: 798 | G60: 769 | H60: 308 | I60: 788 | J60: 557 | K60: 779 | L60: 519 | M60: 1168 | N60: 2034 | O60: 9349 | P60: 9116 | Q60: 13885 | R60: 6300 | S60: =VLOOKUP(A60,Methodology!A:F,6,FALSE) -> Schedule | T60: 0 | V60: 0 | Y60: 0
A61: 51210 | B61: Maintenance-super | C61: 0 | D61: 0 | E61: 0 | F61: 0 | G61: 0 | H61: 0 | I61: 1373 | J61: 1373 | K61: 1373 | L61: 1637 | M61: 1652 | N61: 2504 | O61: 9912 | P61: 9624 | Q61: 3943 | R61: 13187 | S61: =VLOOKUP(A61,Methodology!A:F,6,FALSE) -> Schedule | T61: 0 | V61: 0 | Y61: 0
A62: 51211 | B62: Maintenance-staff | C62: 4111 | D62: 4099 | E62: 4018 | F62: 4991 | G62: 6303 | H62: 5081 | I62: 4477 | J62: 6499 | K62: 6727 | L62: 7444 | M62: 7242 | N62: 10638 | O62: 71630 | P62: 61195 | Q62: 56003 | R62: 51019 | S62: =VLOOKUP(A62,Methodology!A:F,6,FALSE) -> Schedule | T62: 0 | V62: 0 | Y62: 0
A63: 51213 | B63: Janitorial | C63: 0 | D63: 0 | E63: 0 | F63: 0 | G63: 0 | H63: 0 | I63: 0 | J63: 0 | K63: 0 | L63: 0 | M63: 0 | N63: 0 | O63: 0 | P63: 997 | Q63: 0 | R63: 0 | S63: =VLOOKUP(A63,Methodology!A:F,6,FALSE) -> Schedule | T63: 0 | V63: 0 | Y63: 0
A64: 51250 | B64: Activities-Director | C64: 0 | D64: 0 | E64: 0 | F64: 0 | G64: 0 | H64: 0 | I64: 0 | J64: 0 | K64: 0 | L64: 0 | M64: 0 | N64: 0 | O64: 0 | P64: 295 | Q64: 0 | R64: 0 | S64: =VLOOKUP(A64,Methodology!A:F,6,FALSE) -> Schedule | T64: 0 | V64: 0 | Y64: 0
A65: 51251 | B65: Activities-staff | C65: 0 | D65: 0 | E65: 0 | F65: 0 | G65: 0 | H65: 0 | I65: 0 | J65: 0 | K65: 0 | L65: 0 | M65: 0 | N65: 0 | O65: 0 | P65: 10 | Q65: 0 | R65: 0 | S65: =VLOOKUP(A65,Methodology!A:F,6,FALSE) -> DNU | T65: 0 | V65: 0 | Y65: 0
A66: 51270 | B66: Payroll Bonuses | C66: 635 | D66: 1150 | E66: 3210 | F66: -1235 | G66: 2771 | H66: 825 | I66: 4222 | J66: 875 | K66: 1225 | L66: 3749 | M66: 650 | N66: 725 | O66: 18802 | P66: 27237 | Q66: 24451 | R66: 28844 | S66: =VLOOKUP(A66,Methodology!A:F,6,FALSE) -> Schedule | T66: 0 | V66: 0 | Y66: 0
A67: 51450 | B67: Temp Help | C67: 0 | D67: 0 | E67: 0 | F67: 0 | G67: 0 | H67: 545 | I67: 0 | J67: 0 | K67: 0 | L67: 0 | M67: 0 | N67: 0 | O67: 545 | P67: 3126 | Q67: 0 | R67: 4088 | S67: =VLOOKUP(A67,Methodology!A:F,6,FALSE) -> Schedule | T67: 0 | V67: 0 | Y67: 0
A68: 51530 | B68: Payroll Taxes-Employer | C68: 981 | D68: 1027 | E68: 1034 | F68: 1337 | G68: 1777 | H68: 2063 | I68: 2594 | J68: 1912 | K68: 1563 | L68: 1685 | M68: 1327 | N68: 1866 | O68: 19165 | P68: 18951 | Q68: 20223 | R68: 17542 | S68: =VLOOKUP(A68,Methodology!A:F,6,FALSE) -> Schedule | T68: 0 | V68: 0 | Y68: 0
A69: 51531 | B69: 401k Match Co. Exp | C69: 525 | D69: 490 | E69: 482 | F69: 657 | G69: 952 | H69: 502 | I69: 544 | J69: 491 | K69: 512 | L69: 644 | M69: 558 | N69: 0 | O69: 6358 | P69: 6722 | Q69: 7222 | R69: 7059 | S69: =VLOOKUP(A69,Methodology!A:F,6,FALSE) -> Schedule | T69: 0 | V69: 0 | Y69: 0
A70: 51540 | B70: Workers Compensation Ins | C70: 353 | D70: 389 | E70: 393 | F70: 472 | G70: 639 | H70: 455 | I70: 519 | J70: 574 | K70: 608 | L70: 695 | M70: 639 | N70: 993 | O70: 6729 | P70: 6827 | Q70: 6596 | R70: 5847 | S70: =VLOOKUP(A70,Methodology!A:F,6,FALSE) -> Schedule | T70: 0 | V70: 0 | Y70: 0
A71: 51560 | B71: Health & Dental Ins Benefits | C71: 1566 | D71: 1601 | E71: 1651 | F71: 1769 | G71: 1608 | H71: 1667 | I71: 1923 | J71: 2110 | K71: 2132 | L71: 2080 | M71: 1924 | N71: 1647 | O71: 21677 | P71: 20067 | Q71: 19658 | R71: 19018 | S71: =VLOOKUP(A71,Methodology!A:F,6,FALSE) -> T12 | T71: 21677 | U71: =T71*1.09 -> 23627.93 | V71: 1950.93 | W71: 0.09 | X71: 9% Increase | Y71: 23627.93
A72: 51999 | B72: TOTAL PAYROLL EXPENSE | C72: 16169 | D72: 16953 | E72: 19157 | F72: 19508 | G72: 24638 | H72: 18058 | I72: 24058 | J72: 21626 | K72: 22243 | L72: 25540 | M72: 21748 | N72: 28230 | O72: 257926 | P72: 259851 | Q72: 251238 | R72: 244967 | S72: =VLOOKUP(A72,Methodology!A:F,6,FALSE) ->  | V72: =IF(U72=0,0,U72-T72) -> 0 | W72: =(V72/T72) ->  | X72: =IF(U72=""," ",$Z$1) ->  | Y72: =IF(ISERROR(IF(U72=0,T72,U72)),"",(IF(U72=0,T72,U72))) -> 
A73: 55000 | B73: FIXED EXPENSES | S73: =VLOOKUP(A73,Methodology!A:F,6,FALSE) ->  | V73: 0
A74: 55010 | B74: Real estate taxes | C74: 38022 | D74: 38022 | E74: 38022 | F74: 38022 | G74: 38022 | H74: 38022 | I74: 38022 | J74: 38022 | K74: 38022 | L74: 38022 | M74: 38022 | N74: 38022 | O74: 456269 | P74: 453660 | Q74: 456269 | R74: 451706 | S74: =VLOOKUP(A74,Methodology!A:F,6,FALSE) -> 3% Increase | T74: 469957.07 | U74: 484000 | V74: 14042.93 | W74: 0.02988130384 | X74: 6% increase | Y74: 484000
A75: 55040 | B75: Ins-Bldg/Fire-Liab-Boiler-Machinery | C75: 9156 | D75: 9156 | E75: 9156 | F75: 9156 | G75: 9156 | H75: 9156 | I75: 9156 | J75: 9156 | K75: 9156 | L75: 9156 | M75: 10485 | N75: 11649 | O75: 113691 | P75: 90797 | Q75: 97571 | R75: 76951 | S75: =VLOOKUP(A75,Methodology!A:F,6,FALSE) -> 5% Increase | T75: =IF($S75=$S$1,$P75,IF($S75=$S$2,$O75,IF($S75=$S$3,($O75*1.03),0))) -> 0 | U75: =(N75*6)+((N75*1.1)*6) -> 146777.4 | V75: 146777.4 | X75: 10% increase | Y75: 146777.4
A76: 55050 | B76: Management fees | C76: 11357 | D76: 11292 | E76: 11201 | F76: 11119 | G76: 11475 | H76: 11443 | I76: 11696 | J76: 11749 | K76: 11627 | L76: 11788 | M76: 11622 | N76: 11974 | O76: 138344 | P76: 132759 | Q76: 133972 | R76: 129982 | S76: =VLOOKUP(A76,Methodology!A:F,6,FALSE) -> Formula | T76: 0 | V76: 0 | Y76: 0
A77: 55999 | B77: TOTAL FIXED EXPENSES | C77: 58536 | D77: 58470 | E77: 58379 | F77: 58297 | G77: 58653 | H77: 58621 | I77: 58874 | J77: 58927 | K77: 58805 | L77: 58966 | M77: 60129 | N77: 61645 | O77: 708304 | P77: 677217 | Q77: 687812 | R77: 658639 | S77: =VLOOKUP(A77,Methodology!A:F,6,FALSE) ->  | V77: 0
A78: 56000 | B78: SUPPLIES | S78: =VLOOKUP(A78,Methodology!A:F,6,FALSE) ->  | V78: 0
A79: 56110 | B79: Appliance Repair Supplies | C79: 211 | D79: 605 | E79: 0 | F79: 698 | G79: 143 | H79: 791 | I79: 706 | J79: 749 | K79: 312 | L79: 353 | M79: 223 | N79: 537 | O79: 5327 | P79: 2188 | Q79: 2425 | R79: 468 | S79: =VLOOKUP(A79,Methodology!A:F,6,FALSE) -> 3 yr avg | T79: 2188 | V79: 0 | W79: 0 | Y79: 2188
A80: 56112 | B80: Blinds Supplies | C80: 0 | D80: 0 | E80: 0 | F80: 0 | G80: 0 | H80: 0 | I80: 0 | J80: 570 | K80: 911 | L80: 0 | M80: 0 | N80: 0 | O80: 1482 | P80: 843 | Q80: 529 | R80: 0 | S80: =VLOOKUP(A80,Methodology!A:F,6,FALSE) -> 3 yr avg | T80: 843 | U80: 1500 | V80: 657 | W80: 0.7793594306 | X80: used T12 - 3 yr avg during covid | Y80: 1500
A81: 56113 | B81: Building Supplies | C81: 0 | D81: 0 | E81: 0 | F81: 0 | G81: 0 | H81: 0 | I81: 0 | J81: 0 | K81: 0 | L81: 0 | M81: 0 | N81: 0 | O81: 0 | P81: 549 | Q81: 1426 | R81: 220 | S81: =VLOOKUP(A81,Methodology!A:F,6,FALSE) -> 3 yr avg | T81: 549 | V81: 0 | W81: 0 | Y81: 549
A82: 56114 | B82: Carpentry Supplies | C82: 0 | D82: 0 | E82: 0 | F82: 0 | G82: 0 | H82: 0 | I82: 0 | J82: 0 | K82: 0 | L82: 0 | M82: 0 | N82: 0 | O82: 0 | P82: 76 | Q82: 228 | R82: 0 | S82: =VLOOKUP(A82,Methodology!A:F,6,FALSE) -> 3 yr avg | T82: 76 | U82: 0.001 | V82: -75.999 | W82: -0.9999868421 | X82: zero out | Y82: 0.001
A83: 56116 | B83: Custodial Supplies | C83: 180 | D83: 854 | E83: 154 | F83: 154 | G83: 282 | H83: 407 | I83: 513 | J83: 448 | K83: 359 | L83: 154 | M83: 154 | N83: 154 | O83: 3812 | P83: 3770 | Q83: 3649 | R83: 4390 | S83: =VLOOKUP(A83,Methodology!A:F,6,FALSE) -> 3 yr avg | T83: 3770 | V83: 0 | W83: 0 | Y83: 3770
A84: 56117 | B84: Decorating Supplies | C84: 305 | D84: 305 | E84: 434 | F84: 846 | G84: 414 | H84: 260 | I84: 260 | J84: 0 | K84: 584 | L84: 345 | M84: 0 | N84: 0 | O84: 3754 | P84: 3678 | Q84: 4282 | R84: 1574 | S84: =VLOOKUP(A84,Methodology!A:F,6,FALSE) -> 3 yr avg | T84: 3678 | V84: 0 | W84: 0 | Y84: 3678
A85: 56118 | B85: Doors Supplies | C85: 0 | D85: 0 | E85: 0 | F85: 0 | G85: 0 | H85: 58 | I85: 0 | J85: 0 | K85: 432 | L85: 294 | M85: 0 | N85: 0 | O85: 784 | P85: 413 | Q85: 125 | R85: 217 | S85: =VLOOKUP(A85,Methodology!A:F,6,FALSE) -> 3 yr avg | T85: 413 | V85: 0 | W85: 0 | Y85: 413
A86: 56119 | B86: Electrical Supplies | C86: 0 | D86: 0 | E86: 524 | F86: 0 | G86: 0 | H86: 0 | I86: 0 | J86: 0 | K86: 831 | L86: 302 | M86: 0 | N86: 32 | O86: 1688 | P86: 954 | Q86: 973 | R86: 0 | S86: =VLOOKUP(A86,Methodology!A:F,6,FALSE) -> 3 yr avg | T86: 954 | U86: 1700 | V86: 746 | W86: 0.7819706499 | X86: used T12 - 3 yr avg during covid | Y86: 1700
A87: 56121 | B87: Exterminating Supplies | C87: 0 | D87: 0 | E87: 0 | F87: 0 | G87: 0 | H87: 0 | I87: 0 | J87: 103 | K87: 0 | L87: 0 | M87: 0 | N87: 0 | O87: 103 | P87: 104 | Q87: 157 | R87: 54 | S87: =VLOOKUP(A87,Methodology!A:F,6,FALSE) -> 3 yr avg | T87: 104 | V87: 0 | W87: 0 | Y87: 104
A88: 56122 | B88: Fence & Gate Supplies | C88: 0 | D88: 0 | E88: 0 | F88: 0 | G88: 0 | H88: 0 | I88: 0 | J88: 0 | K88: 0 | L88: 0 | M88: 0 | N88: 0 | O88: 0 | P88: 24 | Q88: 0 | R88: 0 | S88: =VLOOKUP(A88,Methodology!A:F,6,FALSE) -> 3 yr avg | T88: 24 | U88: 0.001 | V88: -23.999 | W88: -0.9999583333 | X88: zero out | Y88: 0.001
A89: 56123 | B89: Fire Protection Supplies | C89: 0 | D89: 0 | E89: 0 | F89: 94 | G89: 0 | H89: 0 | I89: 0 | J89: 0 | K89: 0 | L89: 282 | M89: 191 | N89: 0 | O89: 567 | P89: 659 | Q89: 522 | R89: 430 | S89: =VLOOKUP(A89,Methodology!A:F,6,FALSE) -> 3 yr avg | T89: =O89 -> 567 | V89: 0 | W89: 0 | Y89: 567
A90: 56126 | B90: Hardware Supplies | C90: 432 | D90: 0 | E90: 0 | F90: 418 | G90: 0 | H90: 193 | I90: 0 | J90: 0 | K90: 0 | L90: 0 | M90: 39 | N90: 0 | O90: 1081 | P90: 1182 | Q90: 2992 | R90: 261 | S90: =VLOOKUP(A90,Methodology!A:F,6,FALSE) -> 3 yr avg | T90: 1182 | V90: 0 | W90: 0 | Y90: 1182
A91: 56127 | B91: Hospitality Supplies | C91: 0 | D91: 0 | E91: 72 | F91: 0 | G91: 0 | H91: 0 | I91: 0 | J91: 0 | K91: 0 | L91: 42 | M91: 0 | N91: 0 | O91: 115 | P91: 115 | Q91: 303 | R91: 0 | S91: =VLOOKUP(A91,Methodology!A:F,6,FALSE) -> 3 yr avg | T91: 115 | V91: 0 | W91: 0 | Y91: 115
A92: 56128 | B92: HVAC Supplies | C92: 0 | D92: 207 | E92: 0 | F92: 1020 | G92: 0 | H92: 0 | I92: 0 | J92: 339 | K92: 0 | L92: 320 | M92: 0 | N92: 0 | O92: 1886 | P92: 2457 | Q92: 2758 | R92: 2392 | S92: =VLOOKUP(A92,Methodology!A:F,6,FALSE) -> 3 yr avg | T92: 2457 | V92: 0 | W92: 0 | Y92: 2457
A93: 56129 | B93: Keys & Locks Supplies | C93: 0 | D93: 0 | E93: 0 | F93: 0 | G93: 0 | H93: 0 | I93: 0 | J93: 0 | K93: 0 | L93: 0 | M93: 305 | N93: 0 | O93: 305 | P93: 298 | Q93: 130 | R93: 63 | S93: =VLOOKUP(A93,Methodology!A:F,6,FALSE) -> 3 yr avg | T93: 298 | V93: 0 | W93: 0 | Y93: 298
A94: 56131 | B94: Landscaping Supplies | C94: 0 | D94: 0 | E94: 0 | F94: 0 | G94: 0 | H94: 0 | I94: 0 | J94: 0 | K94: 0 | L94: 11 | M94: 201 | N94: 0 | O94: 211 | P94: 253 | Q94: 207 | R94: 340 | S94: =VLOOKUP(A94,Methodology!A:F,6,FALSE) -> 3 yr avg | T94: 253 | V94: 0 | W94: 0 | Y94: 253
A95: 56133 | B95: Misc Supplies | C95: 416 | D95: 0 | E95: 0 | F95: 0 | G95: 0 | H95: 0 | I95: 0 | J95: 214 | K95: 0 | L95: 104 | M95: 0 | N95: 0 | O95: 734 | P95: 349 | Q95: 728 | R95: 0 | S95: =VLOOKUP(A95,Methodology!A:F,6,FALSE) -> 3 yr avg | T95: 349 | V95: 0 | W95: 0 | Y95: 349
A96: 56134 | B96: Painting Supplies | C96: 0 | D96: 24 | E96: 0 | F96: 0 | G96: 0 | H96: 0 | I96: 0 | J96: 110 | K96: 0 | L96: 0 | M96: 54 | N96: 383 | O96: 571 | P96: 243 | Q96: 153 | R96: 31 | S96: =VLOOKUP(A96,Methodology!A:F,6,FALSE) -> 3 yr avg | T96: 243 | V96: 0 | W96: 0 | Y96: 243
A97: 56135 | B97: Pave&Concrete Supplies | C97: 0 | D97: 0 | E97: 0 | F97: 0 | G97: 0 | H97: 0 | I97: 0 | J97: 0 | K97: 125 | L97: -63 | M97: 0 | N97: 0 | O97: 63 | P97: 25 | Q97: 14 | R97: 0 | S97: =VLOOKUP(A97,Methodology!A:F,6,FALSE) -> 3 yr avg | T97: 25 | U97: 0.001 | V97: -24.999 | W97: -0.99996 | X97: zero out | Y97: 0.001
A98: 56136 | B98: Plumbing Supplies | C98: 0 | D98: 0 | E98: 0 | F98: 0 | G98: 322 | H98: 73 | I98: 0 | J98: 602 | K98: 1602 | L98: -91 | M98: 429 | N98: 129 | O98: 3065 | P98: 2810 | Q98: 1494 | R98: 2336 | S98: =VLOOKUP(A98,Methodology!A:F,6,FALSE) -> 3 yr avg | T98: 2810 | V98: 0 | W98: 0 | Y98: 2810
A99: 56137 | B99: Pool Supplies | C99: 0 | D99: 0 | E99: 0 | F99: 0 | G99: 0 | H99: 0 | I99: 0 | J99: 0 | K99: 38 | L99: 117 | M99: 47 | N99: 0 | O99: 202 | P99: 320 | Q99: 551 | R99: 207 | S99: =VLOOKUP(A99,Methodology!A:F,6,FALSE) -> 3 yr avg | T99: 320 | V99: 0 | W99: 0 | Y99: 320
A100: 56140 | B100: Security Supplies | C100: 0 | D100: 0 | E100: 0 | F100: 0 | G100: 0 | H100: 0 | I100: 0 | J100: 0 | K100: 0 | L100: 19 | M100: 0 | N100: 69 | O100: 88 | P100: 36 | Q100: 20 | R100: 0 | S100: =VLOOKUP(A100,Methodology!A:F,6,FALSE) -> 3 yr avg | T100: 36 | U100: 0.001 | V100: -35.999 | W100: -0.9999722222 | X100: zero out | Y100: 0.001
A101: 56141 | B101: Signs Supplies | C101: 0 | D101: 0 | E101: 0 | F101: 0 | G101: 0 | H101: 0 | I101: 0 | J101: 0 | K101: 0 | L101: 0 | M101: 0 | N101: 0 | O101: 0 | P101: 227 | Q101: 127 | R101: 185 | S101: =VLOOKUP(A101,Methodology!A:F,6,FALSE) -> 3 yr avg | T101: 227 | V101: 0 | W101: 0 | Y101: 227
A102: 56142 | B102: Snow Removal Supplies | C102: 0 | D102: 0 | E102: 2027 | F102: 0 | G102: 0 | H102: 188 | I102: 0 | J102: 0 | K102: 0 | L102: 0 | M102: 0 | N102: 0 | O102: 2215 | P102: 1539 | Q102: 2449 | R102: 145 | S102: =VLOOKUP(A102,Methodology!A:F,6,FALSE) -> 3 yr avg | T102: 1539 | V102: 0 | W102: 0 | Y102: 1539
A103: 56143 | B103: Staff Training Supplies | C103: 0 | D103: 95 | E103: 8 | F103: 0 | G103: 101 | H103: 0 | I103: 80 | J103: 0 | K103: 0 | L103: 0 | M103: 76 | N103: 22 | O103: 383 | P103: 183 | Q103: 369 | R103: 0 | S103: =VLOOKUP(A103,Methodology!A:F,6,FALSE) -> 3 yr avg | T103: 183 | V103: 0 | W103: 0 | Y103: 183
A104: 56144 | B104: Undocumented CC Receipts | C104: 0 | D104: 0 | E104: 0 | F104: 0 | G104: 0 | H104: 0 | I104: 0 | J104: 0 | K104: 0 | L104: 0 | M104: 0 | N104: 0 | O104: 0 | P104: 8 | Q104: 0 | R104: 0 | S104: =VLOOKUP(A104,Methodology!A:F,6,FALSE) -> DNU | T104: 0 | V104: 0 | Y104: 0
A105: 56145 | B105: Windows & Glass Supplies | C105: 0 | D105: 0 | E105: 0 | F105: 0 | G105: 0 | H105: 0 | I105: 0 | J105: 0 | K105: 0 | L105: 0 | M105: 0 | N105: 0 | O105: 0 | P105: 8 | Q105: 0 | R105: 24 | S105: =VLOOKUP(A105,Methodology!A:F,6,FALSE) -> 3 yr avg | T105: 8 | U105: 0.001 | V105: -7.999 | W105: -0.999875 | X105: zero out | Y105: 0.001
A106: 56152 | B106: Garbage disposals | C106: 0 | D106: 0 | E106: 0 | F106: 0 | G106: 0 | H106: 0 | I106: 0 | J106: 0 | K106: 0 | L106: 0 | M106: 0 | N106: 0 | O106: 0 | P106: 226 | Q106: 0 | R106: 677 | S106: =VLOOKUP(A106,Methodology!A:F,6,FALSE) -> 3 yr avg | T106: 226 | V106: 0 | W106: 0 | Y106: 226
A107: 56153 | B107: Microwaves | C107: 0 | D107: 0 | E107: 0 | F107: 0 | G107: 0 | H107: 0 | I107: 0 | J107: 0 | K107: 0 | L107: 0 | M107: 0 | N107: 0 | O107: 0 | P107: 87 | Q107: 0 | R107: 262 | S107: =VLOOKUP(A107,Methodology!A:F,6,FALSE) -> 3 yr avg | T107: 87 | V107: 0 | W107: 0 | Y107: 87
A108: 56154 | B108: Ranges/ovens | C108: 0 | D108: 0 | E108: 0 | F108: 0 | G108: 0 | H108: 0 | I108: 0 | J108: 0 | K108: 0 | L108: 0 | M108: 0 | N108: 0 | O108: 0 | P108: 18 | Q108: 55 | R108: 0 | S108: =VLOOKUP(A108,Methodology!A:F,6,FALSE) -> 3 yr avg | T108: 18 | U108: 0.001 | V108: -17.999 | W108: -0.9999444444 | X108: zero out | Y108: 0.001
A109: 56160 | B109: Appliance Replacmnt Budget | C109: 0 | D109: 255 | E109: 0 | F109: 2090 | G109: 563 | H109: 802 | I109: 764 | J109: 772 | K109: 3881 | L109: 484 | M109: -1064 | N109: 661 | O109: 9208 | P109: 6337 | Q109: 6753 | R109: 5348 | S109: =VLOOKUP(A109,Methodology!A:F,6,FALSE) -> 3 yr avg | T109: 6337 | U109: 9000 | V109: 2663 | W109: 0.4202303929 | X109: Used T12 - appliances are breaking | Y109: 9000
A110: 56199 | B110: TOTAL SUPPLIES | C110: 1544 | D110: 2345 | E110: 3220 | F110: 5320 | G110: 1825 | H110: 2771 | I110: 2322 | J110: 3907 | K110: 9076 | L110: 2672 | M110: 656 | N110: 1987 | O110: 37646 | P110: 29980 | Q110: 33419 | R110: 19627 | S110: =VLOOKUP(A110,Methodology!A:F,6,FALSE) ->  | V110: 0
A111: 56200 | B111: REPAIRS | S111: =VLOOKUP(A111,Methodology!A:F,6,FALSE) ->  | V111: 0
A112: 56210 | B112: Appliance Repair Contractor | C112: 0 | D112: 0 | E112: 434 | F112: 221 | G112: 146 | H112: 0 | I112: 0 | J112: 0 | K112: 0 | L112: 395 | M112: 0 | N112: 0 | O112: 1196 | P112: 735 | Q112: 1251 | R112: 560 | S112: =VLOOKUP(A112,Methodology!A:F,6,FALSE) -> 3 yr avg | T112: 735 | U112: 1200 | V112: 465 | W112: 0.6326530612 | X112: used T12 - 3 yr avg during covid | Y112: 1200
A113: 56213 | B113: Building Contractor | C113: 0 | D113: 0 | E113: 0 | F113: 0 | G113: 0 | H113: 0 | I113: 0 | J113: 382 | K113: 0 | L113: 0 | M113: 0 | N113: 0 | O113: 382 | P113: 427 | Q113: 331 | R113: 183 | S113: =VLOOKUP(A113,Methodology!A:F,6,FALSE) -> 3 yr avg | T113: 427 | V113: 0 | W113: 0 | Y113: 427
A114: 56215 | B114: Carpeting/Flooring Contractor | C114: 0 | D114: 0 | E114: 0 | F114: 0 | G114: 0 | H114: 0 | I114: 882 | J114: 0 | K114: 125 | L114: 0 | M114: 100 | N114: 0 | O114: 1107 | P114: 1294 | Q114: 1164 | R114: 514 | S114: =VLOOKUP(A114,Methodology!A:F,6,FALSE) -> 3 yr avg | T114: 1294 | V114: 0 | W114: 0 | Y114: 1294
A115: 56216 | B115: Custodial Contractor | C115: 3858 | D115: 3550 | E115: 3847 | F115: 3430 | G115: 4235 | H115: 3685 | I115: 4257 | J115: 3032 | K115: 4831 | L115: 4650 | M115: 3625 | N115: 3625 | O115: 46625 | P115: 42651 | Q115: 44789 | R115: 38935 | S115: =VLOOKUP(A115,Methodology!A:F,6,FALSE) -> Contract | T115: 0 | U115: 44122 | V115: 44122 | X115: contract + extractions | Y115: 44122
A116: 56217 | B116: Decorating Contractor | C116: 76 | D116: 0 | E116: 60 | F116: 0 | G116: 0 | H116: 0 | I116: 0 | J116: 0 | K116: 0 | L116: 0 | M116: 0 | N116: 0 | O116: 136 | P116: 45 | Q116: 136 | R116: 0 | S116: =VLOOKUP(A116,Methodology!A:F,6,FALSE) -> 3 yr avg | T116: 45 | U116: 0.001 | V116: -44.999 | W116: -0.9999777778 | X116: zero out | Y116: 0.001
A117: 56218 | B117: Doors Contractor | C117: 0 | D117: 0 | E117: 0 | F117: 0 | G117: 0 | H117: 0 | I117: 0 | J117: 0 | K117: 0 | L117: 260 | M117: 0 | N117: 0 | O117: 260 | P117: 95 | Q117: 0 | R117: 0 | S117: =VLOOKUP(A117,Methodology!A:F,6,FALSE) -> 3 yr avg | T117: 95 | U117: 0.001 | V117: -94.999 | W117: -0.9999894737 | X117: zero out | Y117: 0.001
A118: 56219 | B118: Electrical Contractor | C118: 0 | D118: 345 | E118: 0 | F118: 0 | G118: 483 | H118: 0 | I118: 0 | J118: 0 | K118: 53 | L118: 191 | M118: 899 | N118: 190 | O118: 2161 | P118: 2109 | Q118: 2455 | R118: 2262 | S118: =VLOOKUP(A118,Methodology!A:F,6,FALSE) -> 3 yr avg | T118: 2109 | V118: 0 | W118: 0 | Y118: 2109
A119: 56221 | B119: Exterminating Contractor | C119: 205 | D119: 1285 | E119: 205 | F119: 205 | G119: 205 | H119: 205 | I119: 205 | J119: 103 | K119: 205 | L119: 205 | M119: 218 | N119: 103 | O119: 3350 | P119: 3071 | Q119: 4736 | R119: 1909 | S119: =VLOOKUP(A119,Methodology!A:F,6,FALSE) -> Contract | T119: 0 | U119: 3396 | V119: 3396 | X119: contract + treatments | Y119: 3396
A120: 56222 | B120: Fence Contractor | C120: 0 | D120: 0 | E120: 0 | F120: 0 | G120: 0 | H120: 0 | I120: 0 | J120: 0 | K120: 0 | L120: 0 | M120: 0 | N120: 0 | O120: 0 | P120: 78 | Q120: 0 | R120: 195 | S120: =VLOOKUP(A120,Methodology!A:F,6,FALSE) -> 3 yr avg | T120: 78 | U120: 0.001 | V120: -77.999 | W120: -0.9999871795 | X120: zero out | Y120: 0.001
A121: 56223 | B121: Fire System Contractor | C121: -1686 | D121: 0 | E121: 595 | F121: 1372 | G121: 4564 | H121: 3612 | I121: 124 | J121: 0 | K121: 1890 | L121: 0 | M121: 0 | N121: 2303 | O121: 12775 | P121: 11241 | Q121: 11051 | R121: 14742 | S121: =VLOOKUP(A121,Methodology!A:F,6,FALSE) -> Contract | T121: 0 | U121: 5468 | V121: 5468 | X121: contract - reclass between fire contractor & monitoring | Y121: 5468
A122: 56224 | B122: Fire Alarm Monitoring | C122: 0 | D122: 360 | E122: 0 | F122: 0 | G122: 0 | H122: 0 | I122: 0 | J122: 0 | K122: 0 | L122: 0 | M122: 0 | N122: 0 | O122: 360 | P122: 3366 | Q122: 4140 | R122: 3780 | S122: =VLOOKUP(A122,Methodology!A:F,6,FALSE) -> Contract | T122: =IF($S122=$S$1,$P122,IF($S122=$S$2,$O122,IF($S122=$S$3,($O122*1.03),0))) -> 0 | U122: 7920 | V122: 7920 | X122: contract - reclass between fire contractor & monitoring | Y122: 7920
A123: 56225 | B123: Flooring-Tile Contractor | C123: 0 | D123: 0 | E123: 0 | F123: 0 | G123: 0 | H123: 0 | I123: 0 | J123: 0 | K123: 0 | L123: 0 | M123: 0 | N123: 0 | O123: 0 | P123: 27 | Q123: 0 | R123: 0 | S123: =VLOOKUP(A123,Methodology!A:F,6,FALSE) -> 3 yr avg | T123: 27 | U123: 0.001 | V123: -26.999 | W123: -0.999962963 | X123: zero out | Y123: 0.001
A124: 56228 | B124: HVAC Contractor | C124: 0 | D124: 740 | E124: 0 | F124: 0 | G124: 0 | H124: 0 | I124: 0 | J124: 0 | K124: 0 | L124: 0 | M124: 0 | N124: 0 | O124: 740 | P124: 1274 | Q124: 1724 | R124: 1676 | S124: =VLOOKUP(A124,Methodology!A:F,6,FALSE) -> 3 yr avg | T124: 1274 | V124: 0 | W124: 0 | Y124: 1274
A125: 56231 | B125: Landscaping Contractor | C125: 2115 | D125: 3033 | E125: 2700 | F125: 2115 | G125: 1731 | H125: 0 | I125: 0 | J125: 300 | K125: 5921 | L125: 4076 | M125: 6777 | N125: 3478 | O125: 32245 | P125: 23669 | Q125: 22121 | R125: 20189 | S125: =VLOOKUP(A125,Methodology!A:F,6,FALSE) -> Contract | T125: 0 | U125: 37630 | V125: 37630 | X125: contract | Y125: 37630
A126: 56234 | B126: Painting Contractor | C126: 0 | D126: 0 | E126: 0 | F126: 0 | G126: 0 | H126: 0 | I126: 0 | J126: 0 | K126: 550 | L126: 0 | M126: 0 | N126: 0 | O126: 550 | P126: 1748 | Q126: 2050 | R126: 2095 | S126: =VLOOKUP(A126,Methodology!A:F,6,FALSE) -> 3 yr avg | T126: 1748 | V126: 0 | W126: 0 | Y126: 1748
A127: 56236 | B127: Plumbing Contractror | C127: 338 | D127: 799 | E127: 0 | F127: 0 | G127: 0 | H127: 428 | I127: 0 | J127: 175 | K127: 269 | L127: 0 | M127: 500 | N127: 175 | O127: 2684 | P127: 4004 | Q127: 3820 | R127: 3483 | S127: =VLOOKUP(A127,Methodology!A:F,6,FALSE) -> 3 yr avg | T127: 4004 | V127: 0 | W127: 0 | Y127: 4004
A128: 56237 | B128: Pool Contractor | C128: 0 | D128: 5080 | E128: 2040 | F128: 0 | G128: 0 | H128: 0 | I128: 0 | J128: 0 | K128: 140 | L128: 4466 | M128: 4462 | N128: 4462 | O128: 20650 | P128: 20033 | Q128: 19360 | R128: 19548 | S128: =VLOOKUP(A128,Methodology!A:F,6,FALSE) -> Contract | T128: 0 | U128: 22314.28 | V128: 22314.28 | X128: contract | Y128: 22314.28
A129: 56239 | B129: Roofing Contractor | C129: 0 | D129: 0 | E129: 0 | F129: 0 | G129: 0 | H129: 400 | I129: 0 | J129: 0 | K129: 0 | L129: 0 | M129: 0 | N129: 0 | O129: 400 | P129: 882 | Q129: 1495 | R129: 750 | S129: =VLOOKUP(A129,Methodology!A:F,6,FALSE) -> T12 | T129: 400 | V129: 0 | W129: 0 | Y129: 400
A130: 56240 | B130: Security Contractor | C130: 4784 | D130: 3231 | E130: 3240 | F130: 3227 | G130: 5038 | H130: 3087 | I130: 3039 | J130: 4444 | K130: 5467 | L130: 4000 | M130: 3420 | N130: 5212 | O130: 48190 | P130: 45499 | Q130: 47865 | R130: 45718 | S130: =VLOOKUP(A130,Methodology!A:F,6,FALSE) -> Contract | T130: 0 | U130: =4600*12 -> 55200 | V130: 55200 | X130: contract | Y130: 55200
A131: 56241 | B131: Signs Contractor | C131: 0 | D131: 0 | E131: 0 | F131: 0 | G131: 0 | H131: 0 | I131: 0 | J131: 0 | K131: 0 | L131: 0 | M131: 0 | N131: 0 | O131: 0 | P131: 88 | Q131: 0 | R131: 264 | S131: =VLOOKUP(A131,Methodology!A:F,6,FALSE) -> 3 yr avg | T131: 88 | U131: 0.001 | V131: -87.999 | W131: -0.9999886364 | X131: zero out | Y131: 0.001
A132: 56242 | B132: Snow Removal Contractor | C132: 0 | D132: 0 | E132: 0 | F132: 0 | G132: 0 | H132: 7684 | I132: 9020 | J132: 2632 | K132: 0 | L132: 0 | M132: 0 | N132: 0 | O132: 19336 | P132: 15174 | Q132: 22825 | R132: 3360 | S132: =VLOOKUP(A132,Methodology!A:F,6,FALSE) -> 3 yr avg | T132: 15174 | V132: 0 | W132: 0 | Y132: 15174
A133: 56244 | B133: Trash Removal | C133: 1899 | D133: 649 | E133: 3061 | F133: 2149 | G133: 2149 | H133: 2149 | I133: 2149 | J133: 2149 | K133: 2149 | L133: 2149 | M133: 2149 | N133: 2213 | O133: 25014 | P133: 24925 | Q133: 24688 | R133: 25239 | S133: =VLOOKUP(A133,Methodology!A:F,6,FALSE) -> Contract | T133: 0 | U133: 25788 | V133: 25788 | X133: contract | Y133: 25788
A134: 56299 | B134: TOTAL REPAIRS | C134: 11589 | D134: 19073 | E134: 16182 | F134: 12720 | G134: 18552 | H134: 21250 | I134: 19677 | J134: 13217 | K134: 21599 | L134: 20392 | M134: 22149 | N134: 21761 | O134: 218161 | P134: 202436 | Q134: 216001 | R134: 185404 | S134: =VLOOKUP(A134,Methodology!A:F,6,FALSE) -> TOTAL REPAIRS | T134: 0 | V134: 0 | Y134: 0
A135: 56400 | B135: MAKE READY | S135: =VLOOKUP(A135,Methodology!A:F,6,FALSE) ->  | V135: 0
A136: 56402 | B136: Appliances Make Ready | C136: 0 | D136: 0 | E136: 0 | F136: 0 | G136: 255 | H136: 0 | I136: 0 | J136: 0 | K136: 0 | L136: 0 | M136: 842 | N136: 279 | O136: 1376 | P136: 2474 | Q136: 868 | R136: 2659 | S136: =VLOOKUP(A136,Methodology!A:F,6,FALSE) -> Schedule | T136: 0 | V136: =IF(U136=0,0,U136-T136) -> 0 | W136: =(V136/T136) ->  | X136: =IF(U136=""," ",$Z$1) ->  | Y136: =IF(ISERROR(IF(U136=0,T136,U136)),"",(IF(U136=0,T136,U136))) -> 0
A137: 56405 | B137: Bath MR | C137: 0 | D137: 0 | E137: 0 | F137: 580 | G137: 0 | H137: 102 | I137: 141 | J137: 0 | K137: 0 | L137: 0 | M137: 1351 | N137: 0 | O137: 2175 | P137: 1841 | Q137: 755 | R137: 1017 | S137: =VLOOKUP(A137,Methodology!A:F,6,FALSE) -> Schedule | T137: 0 | V137: 0 | Y137: 0
A138: 56410 | B138: Carpet MR | C138: 95 | D138: 5588 | E138: 2219 | F138: 2809 | G138: 6498 | H138: 2593 | I138: 2652 | J138: 711 | K138: 1887 | L138: 9232 | M138: 5843 | N138: 11173 | O138: 51299 | P138: 39980 | Q138: 29446 | R138: 32254 | S138: =VLOOKUP(A138,Methodology!A:F,6,FALSE) -> Schedule | T138: 0 | V138: 0 | Y138: 0
A139: 56412 | B139: Cleaning Make Ready | C139: 587 | D139: 1207 | E139: 2985 | F139: 1891 | G139: 1385 | H139: 831 | I139: 624 | J139: 730 | K139: 2147 | L139: 1503 | M139: 1954 | N139: 2395 | O139: 18239 | P139: 15992 | Q139: 16652 | R139: 12830 | S139: =VLOOKUP(A139,Methodology!A:F,6,FALSE) -> Schedule | T139: 0 | V139: 0 | Y139: 0
A140: 56415 | B140: Electrical MR | C140: 0 | D140: 0 | E140: 2314 | F140: 0 | G140: 196 | H140: 0 | I140: 0 | J140: 238 | K140: 0 | L140: 0 | M140: 0 | N140: 198 | O140: 2946 | P140: 1643 | Q140: 3273 | R140: 1220 | S140: =VLOOKUP(A140,Methodology!A:F,6,FALSE) -> Schedule | T140: 0 | V140: 0 | Y140: 0
A141: 56420 | B141: Flooring Other MR | C141: 0 | D141: 0 | E141: 0 | F141: 0 | G141: 0 | H141: 110 | I141: 0 | J141: 0 | K141: 0 | L141: 0 | M141: 0 | N141: 0 | O141: 110 | P141: 301 | Q141: 0 | R141: 794 | S141: =VLOOKUP(A141,Methodology!A:F,6,FALSE) -> Schedule | T141: 0 | V141: 0 | Y141: 0
A142: 56422 | B142: Kitchen Make Ready | C142: 0 | D142: 0 | E142: 0 | F142: 0 | G142: 0 | H142: 0 | I142: 109 | J142: 0 | K142: 0 | L142: 0 | M142: 0 | N142: 0 | O142: 109 | P142: 136 | Q142: 0 | R142: 0 | S142: =VLOOKUP(A142,Methodology!A:F,6,FALSE) -> Schedule | T142: 0 | V142: 0 | Y142: 0
A143: 56425 | B143: Labor MR | C143: 0 | D143: 0 | E143: 0 | F143: 0 | G143: 0 | H143: 0 | I143: 0 | J143: 0 | K143: 0 | L143: 0 | M143: 0 | N143: 0 | O143: 0 | P143: 467 | Q143: 0 | R143: 1400 | S143: =VLOOKUP(A143,Methodology!A:F,6,FALSE) -> Schedule | T143: 0 | V143: 0 | Y143: 0
A144: 56430 | B144: Misc MR | C144: 0 | D144: 0 | E144: 0 | F144: 0 | G144: 0 | H144: 0 | I144: 0 | J144: 0 | K144: 0 | L144: 0 | M144: 0 | N144: 0 | O144: 0 | P144: 790 | Q144: 1152 | R144: 0 | S144: =VLOOKUP(A144,Methodology!A:F,6,FALSE) -> Schedule | T144: 0 | V144: 0 | Y144: 0
A145: 56435 | B145: Paint MR | C145: 991 | D145: 1580 | E145: 8115 | F145: 5588 | G145: 4506 | H145: 3522 | I145: 2301 | J145: 0 | K145: 4400 | L145: 11050 | M145: 6600 | N145: -278 | O145: 48376 | P145: 51202 | Q145: 47229 | R145: 43352 | S145: =VLOOKUP(A145,Methodology!A:F,6,FALSE) -> Schedule | T145: 0 | V145: 0 | Y145: 0
A146: 56440 | B146: Plumbing MR | C146: 421 | D146: 270 | E146: 585 | F146: 539 | G146: 245 | H146: 733 | I146: 0 | J146: 171 | K146: 58 | L146: 1528 | M146: 0 | N146: 0 | O146: 4550 | P146: 2884 | Q146: 3354 | R146: 2554 | S146: =VLOOKUP(A146,Methodology!A:F,6,FALSE) -> Schedule | T146: 0 | V146: 0 | Y146: 0
A147: 56445 | B147: Vacant Electric Exp MR | C147: 0 | D147: 0 | E147: 0 | F147: 292 | G147: 0 | H147: 0 | I147: 0 | J147: 81 | K147: 0 | L147: 0 | M147: 54 | N147: 0 | O147: 427 | P147: 492 | Q147: 1341 | R147: 0 | S147: =VLOOKUP(A147,Methodology!A:F,6,FALSE) -> DNU | T147: 0 | V147: 0 | Y147: 0
A148: 56499 | B148: Total Make Ready | C148: 2094 | D148: 8645 | E148: 16219 | F148: 11699 | G148: 13085 | H148: 7892 | I148: 5827 | J148: 1931 | K148: 8492 | L148: 23313 | M148: 16644 | N148: 13766 | O148: 129607 | P148: 118204 | Q148: 104069 | R148: 98079 | S148: =VLOOKUP(A148,Methodology!A:F,6,FALSE) ->  | V148: 0
A149: 57000 | B149: GENERAL & ADMINISTRATIVE | S149: =VLOOKUP(A149,Methodology!A:F,6,FALSE) ->  | V149: 0
A150: 50105 | B150: Cable | C150: 10 | D150: 10 | E150: 10 | F150: 10 | G150: 10 | H150: 11 | I150: 11 | J150: 11 | K150: 11 | L150: 0 | M150: 0 | N150: 0 | O150: 94 | P150: 1189 | Q150: 226 | R150: 2329 | S150: =VLOOKUP(A150,Methodology!A:F,6,FALSE) -> T12 | T150: 94 | U150: 0.001 | V150: -93.999 | W150: -0.9999893617 | X150: zero out | Y150: 0.001
A151: 57100 | B151: Accounting Fees | C151: 0 | D151: 0 | E151: 446 | F151: 0 | G151: 0 | H151: 0 | I151: 9000 | J151: 0 | K151: 0 | L151: 0 | M151: 0 | N151: 0 | O151: 9446 | P151: 13414 | Q151: 15546 | R151: 15179 | S151: =VLOOKUP(A151,Methodology!A:F,6,FALSE) -> T12 | T151: 9446 | V151: 0 | W151: 0 | Y151: 9446
A152: 57110 | B152: Advertising | C152: 2884 | D152: 3198 | E152: 2913 | F152: 2759 | G152: 2840 | H152: 2765 | I152: 3343 | J152: 2843 | K152: 3106 | L152: 3093 | M152: 3118 | N152: 3746 | O152: 36608 | P152: 41018 | Q152: 38670 | R152: 46269 | S152: =VLOOKUP(A152,Methodology!A:F,6,FALSE) -> T12 | T152: 36608 | U152: 41000 | V152: 4392 | W152: 0.1199737762 | X152: 3 yr avg | Y152: 41000
A153: 57126 | B153: Answering Service | C153: 42 | D153: 42 | E153: 78 | F153: 78 | G153: 78 | H153: 79 | I153: 79 | J153: 79 | K153: 79 | L153: 80 | M153: 71 | N153: 71 | O153: 854 | P153: 638 | Q153: 615 | R153: 551 | S153: =VLOOKUP(A153,Methodology!A:F,6,FALSE) -> T12 | T153: 854 | V153: 0 | W153: 0 | Y153: 854
A154: 57129 | B154: Architect/Engineer | C154: 0 | D154: 0 | E154: 0 | F154: 0 | G154: 0 | H154: 0 | I154: -19767 | J154: 0 | K154: 0 | L154: 0 | M154: 29500 | N154: 0 | O154: 9733 | P154: 3244 | Q154: 0 | R154: 0 | S154: =VLOOKUP(A154,Methodology!A:F,6,FALSE) -> T12 | T154: 9733 | U154: 0.001 | V154: -9732.999 | W154: -0.9999998973 | X154: zero out - capital exp | Y154: 0.001
A155: 57130 | B155: Auto Expenses | S155: =VLOOKUP(A155,Methodology!A:F,6,FALSE) -> Auto Expenses | T155: 0 | V155: 0 | Y155: 0
A156: 57131 | B156: Auto | C156: 0 | D156: 0 | E156: 0 | F156: 0 | G156: 0 | H156: 0 | I156: 0 | J156: 0 | K156: 0 | L156: 0 | M156: 0 | N156: 0 | O156: 0 | P156: 47 | Q156: 30 | R156: 12 | S156: =VLOOKUP(A156,Methodology!A:F,6,FALSE) -> T12 | T156: 0 | V156: 0 | Y156: 0
A157: 57142 | B157: Automobile-Gas | C157: 0 | D157: 28 | E157: 47 | F157: 0 | G157: 0 | H157: 68 | I157: 0 | J157: 0 | K157: 44 | L157: 0 | M157: 0 | N157: 42 | O157: 228 | P157: 240 | Q157: 171 | R157: 198 | S157: =VLOOKUP(A157,Methodology!A:F,6,FALSE) -> 3 yr avg | T157: 240 | V157: 0 | W157: 0 | Y157: 240
A158: 57144 | B158: Automobile-Insurance | C158: 196 | D158: 196 | E158: 196 | F158: 196 | G158: 196 | H158: 196 | I158: 196 | J158: 196 | K158: 196 | L158: 196 | M158: 202 | N158: 208 | O158: 2365 | P158: 2307 | Q158: 2340 | R158: 2272 | S158: =VLOOKUP(A158,Methodology!A:F,6,FALSE) -> T12 | T158: 2365 | U158: =208*12 -> 2496 | V158: 131 | W158: 0.05539112051 | X158: updated insurance | Y158: 2496
A159: 57147 | B159: Automobile-Mileage Reimb | C159: 177 | D159: 67 | E159: 45 | F159: 88 | G159: 68 | H159: 97 | I159: 69 | J159: 0 | K159: 196 | L159: 149 | M159: 85 | N159: 85 | O159: 1125 | P159: 865 | Q159: 973 | R159: 647 | S159: =VLOOKUP(A159,Methodology!A:F,6,FALSE) -> 3 yr avg | T159: 865 | V159: 0 | W159: 0 | Y159: 865
A160: 57148 | B160: Automobile-Repairs | C160: 331 | D160: 0 | E160: 198 | F160: 0 | G160: 0 | H160: 0 | I160: 0 | J160: 0 | K160: 0 | L160: 0 | M160: 0 | N160: 0 | O160: 528 | P160: 14169 | Q160: 1094 | R160: 14425 | S160: =VLOOKUP(A160,Methodology!A:F,6,FALSE) -> 3 yr avg | T160: 14169 | U160: 750 | V160: -13419 | W160: -0.9470675418 | X160: 2 yr avg | Y160: 750
A161: 57150 | B161: Automobile-Parking and Tolls | C161: 0 | D161: 0 | E161: 0 | F161: 0 | G161: 0 | H161: 0 | I161: 0 | J161: 0 | K161: 0 | L161: 0 | M161: 0 | N161: 0 | O161: 0 | P161: 85 | Q161: 0 | R161: 239 | S161: =VLOOKUP(A161,Methodology!A:F,6,FALSE) -> 3 yr avg | T161: 85 | U161: 8000 | V161: 7915 | W161: 93.11764706 | X161: Reliant Parking | Y161: 8000
A162: 57164 | B162: Bank Charges | C162: 407 | D162: 304 | E162: -74 | F162: 300 | G162: 513 | H162: 268 | I162: 270 | J162: 297 | K162: 378 | L162: 330 | M162: 214 | N162: 307 | O162: 3514 | P162: 3823 | Q162: 3971 | R162: 3941 | S162: =VLOOKUP(A162,Methodology!A:F,6,FALSE) -> T12 | T162: 3514 | V162: 0 | W162: 0 | Y162: 3514
A163: 57167 | B163: Copier Expenses | C163: 312 | D163: 0 | E163: 312 | F163: 0 | G163: 312 | H163: 312 | I163: 0 | J163: 0 | K163: 0 | L163: 312 | M163: 312 | N163: 0 | O163: 1873 | P163: 4190 | Q163: 2333 | R163: 6369 | S163: =VLOOKUP(A163,Methodology!A:F,6,FALSE) -> T12 | T163: 1873 | V163: 0 | W163: 0 | Y163: 1873
A164: 57169 | B164: Computer Expenses | C164: 0 | D164: 3305 | E164: 0 | F164: 0 | G164: 0 | H164: 0 | I164: 0 | J164: 0 | K164: 0 | L164: 0 | M164: 0 | N164: 0 | O164: 3305 | P164: 1866 | Q164: 3737 | R164: 1863 | S164: =VLOOKUP(A164,Methodology!A:F,6,FALSE) -> T12 | T164: 3305 | V164: 0 | W164: 0 | Y164: 3305
A165: 57170 | B165: Credit checks | C165: 226 | D165: 600 | E165: 226 | F165: 226 | G165: 1178 | H165: 294 | I165: 228 | J165: 425 | K165: 905 | L165: 557 | M165: 974 | N165: 758 | O165: 6598 | P165: 5399 | Q165: 6466 | R165: 4055 | S165: =VLOOKUP(A165,Methodology!A:F,6,FALSE) -> T12 | T165: 6598 | V165: 0 | W165: 0 | Y165: 6598
A166: 57172 | B166: Credit Card Fees | C166: 0 | D166: 0 | E166: 0 | F166: 0 | G166: 0 | H166: 0 | I166: 0 | J166: 0 | K166: 0 | L166: 0 | M166: 0 | N166: 0 | O166: 0 | P166: 23 | Q166: 70 | R166: 0 | S166: =VLOOKUP(A166,Methodology!A:F,6,FALSE) -> T12 | T166: 0 | V166: 0 | Y166: 0
A167: 57176 | B167: Dues and Subscriptions | C167: 0 | D167: 0 | E167: 0 | F167: 0 | G167: 971 | H167: 0 | I167: 460 | J167: 0 | K167: 0 | L167: 625 | M167: 77 | N167: 0 | O167: 2133 | P167: 1113 | Q167: 1040 | R167: 626 | S167: =VLOOKUP(A167,Methodology!A:F,6,FALSE) -> T12 | T167: 2133 | V167: 0 | W167: 0 | Y167: 2133
A168: 57188 | B168: Equipment Repairs-Office | C168: 0 | D168: 0 | E168: 0 | F168: 0 | G168: 0 | H168: 0 | I168: 0 | J168: 0 | K168: 0 | L168: 0 | M168: 302 | N168: 0 | O168: 302 | P168: 199 | Q168: 295 | R168: 0 | S168: =VLOOKUP(A168,Methodology!A:F,6,FALSE) -> T12 | T168: 302 | V168: 0 | W168: 0 | Y168: 302
A169: 57190 | B169: Eviction costs | C169: 0 | D169: 0 | E169: 275 | F169: 2532 | G169: 0 | H169: 376 | I169: 125 | J169: 125 | K169: 0 | L169: 2866 | M169: 296 | N169: 1586 | O169: 8182 | P169: 4336 | Q169: 3155 | R169: 3477 | S169: =VLOOKUP(A169,Methodology!A:F,6,FALSE) -> 3 yr avg | T169: 4336 | V169: 0 | W169: 0 | Y169: 4336
A170: 57192 | B170: Eviction costs-Legal | C170: 378 | D170: 3657 | E170: 374 | F170: 600 | G170: 200 | H170: 1412 | I170: 307 | J170: 1678 | K170: 619 | L170: 919 | M170: 1007 | N170: 449 | O170: 11599 | P170: 7533 | Q170: 8222 | R170: 4911 | S170: =VLOOKUP(A170,Methodology!A:F,6,FALSE) -> 3 yr avg | T170: 7533 | V170: 0 | W170: 0 | Y170: 7533
A171: 57198 | B171: Gifts | C171: 0 | D171: 0 | E171: 0 | F171: 0 | G171: 0 | H171: 0 | I171: 0 | J171: 0 | K171: 0 | L171: 0 | M171: 0 | N171: 0 | O171: 0 | P171: 82 | Q171: 0 | R171: 247 | S171: =VLOOKUP(A171,Methodology!A:F,6,FALSE) -> T12 | T171: 0 | V171: 0 | Y171: 0
A172: 57199 | B172: Internet Expense | C172: 405 | D172: 278 | E172: 413 | F172: 405 | G172: 137 | H172: 440 | I172: 456 | J172: 451 | K172: 323 | L172: 320 | M172: 464 | N172: 473 | O172: 4564 | P172: 3965 | Q172: 4457 | R172: 3340 | S172: =VLOOKUP(A172,Methodology!A:F,6,FALSE) -> T12 | T172: 4564 | V172: 0 | W172: 0 | Y172: 4564
A173: 57210 | B173: Licenses and Fees | C173: 0 | D173: 0 | E173: 0 | F173: 1100 | G173: 162 | H173: 0 | I173: 12096 | J173: 0 | K173: 103 | L173: 584 | M173: 0 | N173: 0 | O173: 14044 | P173: 13379 | Q173: 13759 | R173: 12458 | S173: =VLOOKUP(A173,Methodology!A:F,6,FALSE) -> T12 | T173: 14044 | V173: 0 | W173: 0 | Y173: 14044
A174: 57225 | B174: Marketing Expense | C174: 456 | D174: 531 | E174: 1259 | F174: 489 | G174: 477 | H174: 1091 | I174: 645 | J174: 497 | K174: 555 | L174: 395 | M174: 945 | N174: 392 | O174: 7731 | P174: 8474 | Q174: 12879 | R174: 5637 | S174: =VLOOKUP(A174,Methodology!A:F,6,FALSE) -> T12 | T174: 7731 | V174: 0 | W174: 0 | Y174: 7731
A175: 57227 | B175: Meetings & Conferences | C175: 0 | D175: 50 | E175: 0 | F175: 0 | G175: 0 | H175: 0 | I175: 0 | J175: 269 | K175: 0 | L175: 0 | M175: 0 | N175: 0 | O175: 319 | P175: 636 | Q175: 711 | R175: 587 | S175: =VLOOKUP(A175,Methodology!A:F,6,FALSE) -> T12 | T175: 319 | V175: 0 | W175: 0 | Y175: 319
A176: 57229 | B176: Food Service Program | C176: 0 | D176: 0 | E176: 0 | F176: 0 | G176: 0 | H176: 138 | I176: 0 | J176: 0 | K176: 0 | L176: 0 | M176: 0 | N176: 0 | O176: 138 | P176: 46 | Q176: 0 | R176: 0 | S176: =VLOOKUP(A176,Methodology!A:F,6,FALSE) -> T12 | T176: 138 | U176: 0.001 | V176: -137.999 | W176: -0.9999927536 | X176: zero out | Y176: 0.001
A177: 57230 | B177: Food/Coffee Service | C177: 31 | D177: 38 | E177: 84 | F177: 198 | G177: 8 | H177: 0 | I177: 94 | J177: 474 | K177: 150 | L177: 95 | M177: 1035 | N177: 50 | O177: 2257 | P177: 3052 | Q177: 2768 | R177: 2475 | S177: =VLOOKUP(A177,Methodology!A:F,6,FALSE) -> 3 yr avg | T177: 3052 | V177: 0 | W177: 0 | Y177: 3052
A178: 57232 | B178: Miscellaneous Exp | C178: 19 | D178: 0 | E178: 0 | F178: 0 | G178: 0 | H178: 0 | I178: 0 | J178: 0 | K178: 0 | L178: 0 | M178: 0 | N178: 0 | O178: 19 | P178: 13 | Q178: 19 | R178: 0 | S178: =VLOOKUP(A178,Methodology!A:F,6,FALSE) -> T12 | T178: 19 | U178: 0.001 | V178: -18.999 | W178: -0.9999473684 | X178: zero out | Y178: 0.001
A179: 57233 | B179: Moving Expense | C179: 0 | D179: 0 | E179: 0 | F179: 0 | G179: 0 | H179: 0 | I179: 0 | J179: 0 | K179: 0 | L179: 0 | M179: 0 | N179: 0 | O179: 0 | P179: 254 | Q179: 0 | R179: -421 | S179: =VLOOKUP(A179,Methodology!A:F,6,FALSE) -> T12 | T179: 0 | V179: 0 | Y179: 0
A180: 57240 | B180: Office expenses | C180: 96 | D180: 39 | E180: 72 | F180: 121 | G180: 342 | H180: 219 | I180: 88 | J180: 31 | K180: 267 | L180: 490 | M180: 82 | N180: 100 | O180: 1948 | P180: 2186 | Q180: 1891 | R180: 2536 | S180: =VLOOKUP(A180,Methodology!A:F,6,FALSE) -> 3 yr avg | T180: 2186 | V180: 0 | W180: 0 | Y180: 2186
A181: 57242 | B181: Paper and Forms Costs | C181: 0 | D181: 0 | E181: 0 | F181: 0 | G181: 0 | H181: 0 | I181: 0 | J181: 0 | K181: 0 | L181: 0 | M181: 0 | N181: 0 | O181: 0 | P181: 44 | Q181: 0 | R181: 132 | S181: =VLOOKUP(A181,Methodology!A:F,6,FALSE) -> 3 yr avg | T181: 44 | U181: 0.001 | V181: -43.999 | W181: -0.9999772727 | X181: zero out | Y181: 0.001
A182: 57246 | B182: PR Service Fees | C182: 234 | D182: 297 | E182: 321 | F182: 292 | G182: 381 | H182: 448 | I182: 276 | J182: 311 | K182: 323 | L182: 331 | M182: 262 | N182: -3 | O182: 3473 | P182: 4043 | Q182: 3779 | R182: 4565 | S182: =VLOOKUP(A182,Methodology!A:F,6,FALSE) -> T12 | T182: 3473 | V182: 0 | W182: 0 | Y182: 3473
A183: 57250 | B183: Postage | C183: 0 | D183: 82 | E183: 75 | F183: 0 | G183: 25 | H183: 150 | I183: 148 | J183: 0 | K183: 0 | L183: 75 | M183: 0 | N183: 0 | O183: 555 | P183: 725 | Q183: 596 | R183: 1082 | S183: =VLOOKUP(A183,Methodology!A:F,6,FALSE) -> T12 | T183: 555 | V183: 0 | W183: 0 | Y183: 555
A184: 57252 | B184: Printing Costs | C184: 0 | D184: 0 | E184: 0 | F184: 0 | G184: 0 | H184: 0 | I184: 0 | J184: 0 | K184: 0 | L184: 0 | M184: 0 | N184: 0 | O184: 0 | P184: 35 | Q184: 0 | R184: 106 | S184: =VLOOKUP(A184,Methodology!A:F,6,FALSE) -> T12 | T184: 0 | V184: 0 | Y184: 0
A185: 57257 | B185: Pentalties/Late Fees | C185: 0 | D185: 0 | E185: 0 | F185: 0 | G185: 0 | H185: 0 | I185: 0 | J185: 0 | K185: 0 | L185: 0 | M185: 0 | N185: 0 | O185: 0 | P185: 12 | Q185: 0 | R185: 37 | S185: =VLOOKUP(A185,Methodology!A:F,6,FALSE) -> T12 | T185: 0 | V185: 0 | Y185: 0
A186: 57280 | B186: Repairs and maintenance | C186: 0 | D186: 0 | E186: 0 | F186: 136 | G186: 0 | H186: 0 | I186: 0 | J186: 0 | K186: 0 | L186: 0 | M186: 0 | N186: 0 | O186: 136 | P186: 181 | Q186: 136 | R186: 407 | S186: =VLOOKUP(A186,Methodology!A:F,6,FALSE) -> T12 | T186: =IF($S186=$S$1,$P186,IF($S186=$S$2,$O186,IF($S186=$S$3,($O186*1.03),0))) -> 136 | U186: 0.001 | V186: -135.999 | W186: -0.9999926471 | X186: zero out | Y186: 0.001
A187: 57290 | B187: Resident Activities | C187: 290 | D187: 70 | E187: 180 | F187: 136 | G187: 171 | H187: 70 | I187: 0 | J187: 70 | K187: 1045 | L187: 70 | M187: 0 | N187: 1406 | O187: 3510 | P187: 4672 | Q187: 1448 | R187: 4198 | S187: =VLOOKUP(A187,Methodology!A:F,6,FALSE) -> 3 yr avg | T187: 4672 | V187: 0 | W187: 0 | Y187: 4672
A188: 57291 | B188: Retirement Plan 401k Admin Fees | C188: 0 | D188: 0 | E188: 108 | F188: 0 | G188: 0 | H188: 113 | I188: 0 | J188: 0 | K188: 113 | L188: 0 | M188: 208 | N188: 0 | O188: 542 | P188: 542 | Q188: 482 | R188: 453 | S188: =VLOOKUP(A188,Methodology!A:F,6,FALSE) -> T12 | T188: 542 | V188: 0 | W188: 0 | Y188: 542
A189: 57295 | B189: Software & Software Services | C189: 2083 | D189: 3208 | E189: 4182 | F189: 2101 | G189: 2180 | H189: 4500 | I189: 3055 | J189: 1979 | K189: 2407 | L189: 2023 | M189: 3061 | N189: 2367 | O189: 33148 | P189: 32367 | Q189: 34347 | R189: 30317 | S189: =VLOOKUP(A189,Methodology!A:F,6,FALSE) -> T12 | T189: 33148 | V189: 0 | W189: 0 | Y189: 33148
A190: 57308 | B190: Training and Seminars | C190: 120 | D190: 120 | E190: 0 | F190: 0 | G190: 374 | H190: 239 | I190: 125 | J190: 142 | K190: 173 | L190: 125 | M190: 125 | N190: 125 | O190: 1667 | P190: 1858 | Q190: 1455 | R190: 1986 | S190: =VLOOKUP(A190,Methodology!A:F,6,FALSE) -> T12 | T190: 1667 | V190: 0 | W190: 0 | Y190: 1667
A191: 57325 | B191: Telecommunications | S191: =VLOOKUP(A191,Methodology!A:F,6,FALSE) -> T12 | T191: 0 | V191: 0 | Y191: 0
A192: 57340 | B192: Telephone: Land Line | C192: 969 | D192: 924 | E192: 2457 | F192: 152 | G192: -1303 | H192: 894 | I192: 898 | J192: 894 | K192: 1694 | L192: 888 | M192: 888 | N192: 925 | O192: 10280 | P192: 11446 | Q192: 9958 | R192: 11152 | S192: =VLOOKUP(A192,Methodology!A:F,6,FALSE) -> T12 | T192: 10280 | V192: 0 | W192: 0 | Y192: 10280
A193: 57341 | B193: Telephone Maintenance | C193: 0 | D193: 0 | E193: 0 | F193: 0 | G193: 0 | H193: 0 | I193: 0 | J193: 0 | K193: 0 | L193: 0 | M193: 0 | N193: 0 | O193: 0 | P193: 151 | Q193: 324 | R193: 128 | S193: =VLOOKUP(A193,Methodology!A:F,6,FALSE) -> T12 | T193: 0 | V193: 0 | Y193: 0
A194: 57342 | B194: Telephone:Mobile | C194: 427 | D194: 255 | E194: 277 | F194: 161 | G194: 154 | H194: 243 | I194: 201 | J194: 95 | K194: 0 | L194: -23 | M194: 119 | N194: 85 | O194: 1993 | P194: 2345 | Q194: 2803 | R194: 2778 | S194: =VLOOKUP(A194,Methodology!A:F,6,FALSE) -> T12 | T194: 1993 | U194: =100*12 -> 1200 | V194: -793 | W194: -0.3978926242 | X194: updated tmobile contract | Y194: 1200
A195: 57350 | B195: Uniforms | C195: 0 | D195: 0 | E195: 490 | F195: 118 | G195: 65 | H195: 0 | I195: 0 | J195: 0 | K195: 0 | L195: 0 | M195: 0 | N195: 0 | O195: 673 | P195: 224 | Q195: 673 | R195: 0 | S195: =VLOOKUP(A195,Methodology!A:F,6,FALSE) -> T12 | T195: 673 | V195: 0 | W195: 0 | Y195: 673
A196: 57355 | B196: Utility Mgmt & Billing Fees(YES) | C196: 1022 | D196: 1431 | E196: 1007 | F196: 1357 | G196: 1297 | H196: 1400 | I196: 1481 | J196: 1614 | K196: 1316 | L196: 1231 | M196: 1653 | N196: 1505 | O196: 16315 | P196: 13103 | Q196: 13337 | R196: 12200 | S196: =VLOOKUP(A196,Methodology!A:F,6,FALSE) -> T12 | T196: 16315 | V196: 0 | W196: 0 | Y196: 16315
A197: 57999 | B197: TOTAL GENERAL & ADMINISTRATIVE | C197: 11115 | D197: 18730 | E197: 15969 | F197: 13556 | G197: 10835 | H197: 15822 | I197: 13882 | J197: 12481 | K197: 14002 | L197: 15731 | M197: 44998 | N197: 14677 | O197: 201799 | P197: 209531 | Q197: 194774 | R197: 203765 | S197: =VLOOKUP(A197,Methodology!A:F,6,FALSE) ->  | V197: 0
A198: 58999 | B198: TOTAL OPERATING EXPENSES | C198: 100759 | D198: 124714 | E198: 129854 | F198: 121761 | G198: 130013 | H198: 125341 | I198: 127531 | J198: 115276 | K198: 134950 | L198: 147067 | M198: 167402 | N198: 141972 | O198: 1566639 | P198: 1513645 | Q198: 1521767 | R198: 1417642 | S198: =VLOOKUP(A198,Methodology!A:F,6,FALSE) ->  | V198: 0
A199: 59999 | B199: NET OPERATING INCOME | C199: 268119 | D199: 238183 | E199: 240696 | F199: 212896 | G199: 246510 | H199: 251294 | I199: 240291 | J199: 278742 | K199: 213542 | L199: 241969 | M199: 198303 | N199: 294081 | O199: 2924627 | P199: 2771709 | Q199: 2779028 | R199: 2760792 | S199: =VLOOKUP(A199,Methodology!A:F,6,FALSE) ->  | V199: 0
A200: 60000 | B200: UPGRADES & NON-RECURRING EXP. | S200: =VLOOKUP(A200,Methodology!A:F,6,FALSE) ->  | V200: =IF(U200=0,0,U200-T200) -> 0 | W200: =(V200/T200) ->  | X200: =IF(U200=""," ",$Z$1) ->  | Y200: =IF(ISERROR(IF(U200=0,T200,U200)),"",(IF(U200=0,T200,U200))) -> 
... 100 more rows

Sheet Methodology (hidden)
A2: Acc # | B2: Account Name | D2: Budgeted Amount with Override | E2: T12 (Aug 19 to Jul 20) | F2: METHODOLOGY | G2: PERIOD/TERM | H2: Acc # | I2: Headers & Footers | J2: Acct
A3: 40340 | B3: Down Units | C3: 1 | D3: =IF(ISERROR(VLOOKUP(A3,'Income Statement'!A:Y,25,FALSE)),"",(VLOOKUP(A3,'Income Statement'!A:Y,25,FALSE))) ->  | F3: T12 | G3: Straight Line
A4: 40001 | B4: Market Rent | C4: 192 | D4: =VLOOKUP(A4,'Occupancy Budget'!$A$31:$F$33,6,FALSE) -> 5020704 | E4: =VLOOKUP(B4,'Occupancy Budget'!$A$31:$F$33,6,FALSE) ->  | F4: Schedule | G4: Schedule | H4: 39999 | I4: INCOME | J4: Head
A5: 40002 | B5: Rental Income | C5: 255 | D5: =IF(ISERROR(VLOOKUP(A5,'Income Statement'!A:Y,25,FALSE)),"",(VLOOKUP(A5,'Income Statement'!A:Y,25,FALSE))) -> 0 | E5: =IF(ISERROR(VLOOKUP(A5,'Income Statement'!A:Y,15,FALSE)),"",(VLOOKUP(A5,'Income Statement'!A:Y,15,FALSE))) -> 0 | F5: DNU | G5: DNU | H5: 40000 | I5: RENTAL INCOME | J5: Head
A6: 55010 | B6: Real estate taxes | C6: 24704 | D6: =IF(ISERROR(VLOOKUP(A6,'Income Statement'!A:Y,25,FALSE)),"",(VLOOKUP(A6,'Income Statement'!A:Y,25,FALSE))) -> 484000 | E6: =IF(ISERROR(VLOOKUP(A6,'Income Statement'!A:Y,15,FALSE)),"",(VLOOKUP(A6,'Income Statement'!A:Y,15,FALSE))) -> 456269 | F6: 3% Increase | G6: Straight Line
A7: 51201 | B7: Executive Management | C7: 36799 | D7: =IF(ISERROR(VLOOKUP(A7,Payroll!A:F,6,FALSE)),"",(VLOOKUP(A7,Payroll!A:F,6,FALSE))) ->  | E7: =IF(ISERROR(VLOOKUP(A7,'Income Statement'!A:Y,15,FALSE)),"",(VLOOKUP(A7,'Income Statement'!A:Y,15,FALSE))) -> 336 | F7: DNU | G7: DNU
A8: 51202 | B8: Community Managers | C8: 36799 | D8: =IF(ISERROR(VLOOKUP(A8,Payroll!A:F,6,FALSE)),"",(VLOOKUP(A8,Payroll!A:F,6,FALSE))) -> 25432.13376 | E8: =IF(ISERROR(VLOOKUP(A8,'Income Statement'!A:Y,15,FALSE)),"",(VLOOKUP(A8,'Income Statement'!A:Y,15,FALSE))) -> 25909 | F8: Schedule | G8: Schedule
A9: 51203 | B9: Office Payroll | C9: 36799 | D9: =IF(ISERROR(VLOOKUP(A9,Payroll!A:F,6,FALSE)),"",(VLOOKUP(A9,Payroll!A:F,6,FALSE))) -> 0 | E9: =IF(ISERROR(VLOOKUP(A9,'Income Statement'!A:Y,15,FALSE)),"",(VLOOKUP(A9,'Income Statement'!A:Y,15,FALSE))) -> 749 | F9: Schedule | G9: Schedule
A10: 51204 | B10: Assistant Managers | C10: 36799 | D10: =IF(ISERROR(VLOOKUP(A10,Payroll!A:F,6,FALSE)),"",(VLOOKUP(A10,Payroll!A:F,6,FALSE))) -> 15986.27964 | E10: =IF(ISERROR(VLOOKUP(A10,'Income Statement'!A:Y,15,FALSE)),"",(VLOOKUP(A10,'Income Statement'!A:Y,15,FALSE))) -> 13805 | F10: Schedule | G10: Schedule
A11: 51205 | B11: Resident Services | C11: 36799 | D11: =IF(ISERROR(VLOOKUP(A11,Payroll!A:F,6,FALSE)),"",(VLOOKUP(A11,Payroll!A:F,6,FALSE))) -> 30210.29222 | E11: =IF(ISERROR(VLOOKUP(A11,'Income Statement'!A:Y,15,FALSE)),"",(VLOOKUP(A11,'Income Statement'!A:Y,15,FALSE))) -> 34588 | F11: Schedule | G11: Schedule
A12: 51206 | B12: Reception/Front Desk | C12: 36799 | D12: =IF(ISERROR(VLOOKUP(A12,Payroll!A:F,6,FALSE)),"",(VLOOKUP(A12,Payroll!A:F,6,FALSE))) -> 19246.47367 | E12: =IF(ISERROR(VLOOKUP(A12,'Income Statement'!A:Y,15,FALSE)),"",(VLOOKUP(A12,'Income Statement'!A:Y,15,FALSE))) -> 18373 | F12: Schedule | G12: Schedule
A13: 51207 | B13: Doorman | C13: 36799 | D13: =IF(ISERROR(VLOOKUP(A13,Payroll!A:F,6,FALSE)),"",(VLOOKUP(A13,Payroll!A:F,6,FALSE))) ->  | E13: =IF(ISERROR(VLOOKUP(A13,'Income Statement'!A:Y,15,FALSE)),"",(VLOOKUP(A13,'Income Statement'!A:Y,15,FALSE))) ->  | F13: Schedule | G13: Schedule
A14: 51208 | B14: Regional Manager | C14: 36799 | D14: =IF(ISERROR(VLOOKUP(A14,Payroll!A:F,6,FALSE)),"",(VLOOKUP(A14,Payroll!A:F,6,FALSE))) ->  | E14: =IF(ISERROR(VLOOKUP(A14,'Income Statement'!A:Y,15,FALSE)),"",(VLOOKUP(A14,'Income Statement'!A:Y,15,FALSE))) ->  | F14: Schedule | G14: Schedule
A15: 51209 | B15: Maint-Manager | C15: 36799 | D15: =IF(ISERROR(VLOOKUP(A15,Payroll!A:F,6,FALSE)),"",(VLOOKUP(A15,Payroll!A:F,6,FALSE))) -> 0 | E15: =IF(ISERROR(VLOOKUP(A15,'Income Statement'!A:Y,15,FALSE)),"",(VLOOKUP(A15,'Income Statement'!A:Y,15,FALSE))) -> 9349 | F15: Schedule | G15: Schedule
A16: 51210 | B16: Maint-Superintendant | C16: 36799 | D16: =IF(ISERROR(VLOOKUP(A16,Payroll!A:F,6,FALSE)),"",(VLOOKUP(A16,Payroll!A:F,6,FALSE))) -> 18581.72736 | E16: =IF(ISERROR(VLOOKUP(A16,'Income Statement'!A:Y,15,FALSE)),"",(VLOOKUP(A16,'Income Statement'!A:Y,15,FALSE))) -> 9912 | F16: Schedule | G16: Schedule
A17: 51211 | B17: Maint-Staff | C17: 36799 | D17: =IF(ISERROR(VLOOKUP(A17,Payroll!A:F,6,FALSE)),"",(VLOOKUP(A17,Payroll!A:F,6,FALSE))) -> 88875.35299 | E17: =IF(ISERROR(VLOOKUP(A17,'Income Statement'!A:Y,15,FALSE)),"",(VLOOKUP(A17,'Income Statement'!A:Y,15,FALSE))) -> 71630 | F17: Schedule | G17: Schedule
A18: 51212 | B18: Maintenance Technician | C18: 36799 | D18: =IF(ISERROR(VLOOKUP(A18,Payroll!A:F,6,FALSE)),"",(VLOOKUP(A18,Payroll!A:F,6,FALSE))) ->  | E18: =IF(ISERROR(VLOOKUP(A18,'Income Statement'!A:Y,15,FALSE)),"",(VLOOKUP(A18,'Income Statement'!A:Y,15,FALSE))) ->  | F18: DNU | G18: DNU
A19: 51213 | B19: Janitorial | C19: 36799 | D19: =IF(ISERROR(VLOOKUP(A19,Payroll!A:F,6,FALSE)),"",(VLOOKUP(A19,Payroll!A:F,6,FALSE))) -> 0 | E19: =IF(ISERROR(VLOOKUP(A19,'Income Statement'!A:Y,15,FALSE)),"",(VLOOKUP(A19,'Income Statement'!A:Y,15,FALSE))) -> 0 | F19: Schedule | G19: Schedule
A20: 51214 | B20: Housekeeping | C20: 36799 | D20: =IF(ISERROR(VLOOKUP(A20,Payroll!A:F,6,FALSE)),"",(VLOOKUP(A20,Payroll!A:F,6,FALSE))) ->  | E20: =IF(ISERROR(VLOOKUP(A20,'Income Statement'!A:Y,15,FALSE)),"",(VLOOKUP(A20,'Income Statement'!A:Y,15,FALSE))) ->  | F20: Schedule | G20: Schedule
A21: 51215 | B21: Groundskeeping | C21: 36799 | D21: =IF(ISERROR(VLOOKUP(A21,Payroll!A:F,6,FALSE)),"",(VLOOKUP(A21,Payroll!A:F,6,FALSE))) -> 0 | E21: =IF(ISERROR(VLOOKUP(A21,'Income Statement'!A:Y,15,FALSE)),"",(VLOOKUP(A21,'Income Statement'!A:Y,15,FALSE))) ->  | F21: Schedule | G21: Schedule
A22: 51216 | B22: Labor/Mover | C22: 36799 | D22: =IF(ISERROR(VLOOKUP(A22,Payroll!A:F,6,FALSE)),"",(VLOOKUP(A22,Payroll!A:F,6,FALSE))) ->  | E22: =IF(ISERROR(VLOOKUP(A22,'Income Statement'!A:Y,15,FALSE)),"",(VLOOKUP(A22,'Income Statement'!A:Y,15,FALSE))) ->  | F22: DNU | G22: DNU
A23: 51217 | B23: Club Attendant | C23: 36799 | D23: =IF(ISERROR(VLOOKUP(A23,Payroll!A:F,6,FALSE)),"",(VLOOKUP(A23,Payroll!A:F,6,FALSE))) ->  | E23: =IF(ISERROR(VLOOKUP(A23,'Income Statement'!A:Y,15,FALSE)),"",(VLOOKUP(A23,'Income Statement'!A:Y,15,FALSE))) ->  | F23: DNU | G23: DNU
A24: 51218 | B24: Golf Course - Supt | C24: 36799 | D24: =IF(ISERROR(VLOOKUP(A24,Payroll!A:F,6,FALSE)),"",(VLOOKUP(A24,Payroll!A:F,6,FALSE))) ->  | E24: =IF(ISERROR(VLOOKUP(A24,'Income Statement'!A:Y,15,FALSE)),"",(VLOOKUP(A24,'Income Statement'!A:Y,15,FALSE))) ->  | F24: DNU | G24: DNU
A25: 51219 | B25: Golf Course-Grndskp | C25: 36799 | D25: =IF(ISERROR(VLOOKUP(A25,Payroll!A:F,6,FALSE)),"",(VLOOKUP(A25,Payroll!A:F,6,FALSE))) ->  | E25: =IF(ISERROR(VLOOKUP(A25,'Income Statement'!A:Y,15,FALSE)),"",(VLOOKUP(A25,'Income Statement'!A:Y,15,FALSE))) ->  | F25: DNU | G25: DNU
A26: 51220 | B26: Golf Course-Sporting Club Manager | C26: 36799 | D26: =IF(ISERROR(VLOOKUP(A26,Payroll!A:F,6,FALSE)),"",(VLOOKUP(A26,Payroll!A:F,6,FALSE))) ->  | E26: =IF(ISERROR(VLOOKUP(A26,'Income Statement'!A:Y,15,FALSE)),"",(VLOOKUP(A26,'Income Statement'!A:Y,15,FALSE))) ->  | F26: DNU | G26: DNU
A27: 51228 | B27: Fire | C27: 36799 | D27: =IF(ISERROR(VLOOKUP(A27,Payroll!A:F,6,FALSE)),"",(VLOOKUP(A27,Payroll!A:F,6,FALSE))) ->  | E27: =IF(ISERROR(VLOOKUP(A27,'Income Statement'!A:Y,15,FALSE)),"",(VLOOKUP(A27,'Income Statement'!A:Y,15,FALSE))) ->  | F27: DNU | G27: DNU
A28: 51233 | B28: Food & Beverage Servers | C28: 36799 | D28: =IF(ISERROR(VLOOKUP(A28,Payroll!A:F,6,FALSE)),"",(VLOOKUP(A28,Payroll!A:F,6,FALSE))) ->  | E28: =IF(ISERROR(VLOOKUP(A28,'Income Statement'!A:Y,15,FALSE)),"",(VLOOKUP(A28,'Income Statement'!A:Y,15,FALSE))) ->  | F28: DNU | G28: DNU
A29: 51250 | B29: Activities-Supervisor | C29: 36799 | D29: =IF(ISERROR(VLOOKUP(A29,Payroll!A:F,6,FALSE)),"",(VLOOKUP(A29,Payroll!A:F,6,FALSE))) ->  | E29: =IF(ISERROR(VLOOKUP(A29,'Income Statement'!A:Y,15,FALSE)),"",(VLOOKUP(A29,'Income Statement'!A:Y,15,FALSE))) -> 0 | F29: Schedule | G29: Schedule
A30: 51251 | B30: Activities-staff | C30: 36799 | D30: =IF(ISERROR(VLOOKUP(A30,Payroll!A:F,6,FALSE)),"",(VLOOKUP(A30,Payroll!A:F,6,FALSE))) ->  | E30: =IF(ISERROR(VLOOKUP(A30,'Income Statement'!A:Y,15,FALSE)),"",(VLOOKUP(A30,'Income Statement'!A:Y,15,FALSE))) -> 0 | F30: DNU | G30: DNU
A31: 51260 | B31: Driver/Porter | C31: 36799 | D31: =IF(ISERROR(VLOOKUP(A31,Payroll!A:F,6,FALSE)),"",(VLOOKUP(A31,Payroll!A:F,6,FALSE))) ->  | E31: =IF(ISERROR(VLOOKUP(A31,'Income Statement'!A:Y,15,FALSE)),"",(VLOOKUP(A31,'Income Statement'!A:Y,15,FALSE))) ->  | F31: Schedule | G31: Schedule
A32: 51270 | B32: Payroll Bonuses | C32: 36799 | D32: =IF(ISERROR(VLOOKUP(A32,Payroll!A:F,6,FALSE)),"",(VLOOKUP(A32,Payroll!A:F,6,FALSE))) -> 28419.96 | E32: =IF(ISERROR(VLOOKUP(A32,'Income Statement'!A:Y,15,FALSE)),"",(VLOOKUP(A32,'Income Statement'!A:Y,15,FALSE))) -> 18802 | F32: Schedule | G32: Schedule
A33: 51406 | B33: Contractor Reception/FrontDesk | C33: 36799 | D33: =IF(ISERROR(VLOOKUP(A33,Payroll!A:F,6,FALSE)),"",(VLOOKUP(A33,Payroll!A:F,6,FALSE))) ->  | E33: =IF(ISERROR(VLOOKUP(A33,'Income Statement'!A:Y,15,FALSE)),"",(VLOOKUP(A33,'Income Statement'!A:Y,15,FALSE))) ->  | F33: Schedule | G33: Schedule
A34: 51450 | B34: Temp Help | C34: 36799 | D34: =IF(ISERROR(VLOOKUP(A34,Payroll!A:F,6,FALSE)),"",(VLOOKUP(A34,Payroll!A:F,6,FALSE))) ->  | E34: =IF(ISERROR(VLOOKUP(A34,'Income Statement'!A:Y,15,FALSE)),"",(VLOOKUP(A34,'Income Statement'!A:Y,15,FALSE))) -> 545 | F34: Schedule | G34: Schedule
A35: 51525 | B35: Payroll (Other Enities) | C35: 36799 | D35: =IF(ISERROR(VLOOKUP(A35,Payroll!A:F,6,FALSE)),"",(VLOOKUP(A35,Payroll!A:F,6,FALSE))) ->  | E35: =IF(ISERROR(VLOOKUP(A35,'Income Statement'!A:Y,15,FALSE)),"",(VLOOKUP(A35,'Income Statement'!A:Y,15,FALSE))) ->  | F35: Schedule | G35: Schedule
A36: 51530 | B36: Payroll Taxes-Employer | C36: 36799 | D36: =IF(ISERROR(VLOOKUP(A36,Payroll!A:F,6,FALSE)),"",(VLOOKUP(A36,Payroll!A:F,6,FALSE))) -> 22326.3724 | E36: =IF(ISERROR(VLOOKUP(A36,'Income Statement'!A:Y,15,FALSE)),"",(VLOOKUP(A36,'Income Statement'!A:Y,15,FALSE))) -> 19165 | F36: Schedule | G36: Schedule
A37: 51531 | B37: 401k Match Co. Exp | C37: 36799 | D37: =IF(ISERROR(VLOOKUP(A37,Payroll!A:F,6,FALSE)),"",(VLOOKUP(A37,Payroll!A:F,6,FALSE))) -> 6802.566589 | E37: =IF(ISERROR(VLOOKUP(A37,'Income Statement'!A:Y,15,FALSE)),"",(VLOOKUP(A37,'Income Statement'!A:Y,15,FALSE))) -> 6358 | F37: Schedule | G37: Schedule
A38: 51538 | B38: W/C (Subcontractors) | C38: 36799 | D38: =IF(ISERROR(VLOOKUP(A38,Payroll!A:F,6,FALSE)),"",(VLOOKUP(A38,Payroll!A:F,6,FALSE))) ->  | E38: =IF(ISERROR(VLOOKUP(A38,'Income Statement'!A:Y,15,FALSE)),"",(VLOOKUP(A38,'Income Statement'!A:Y,15,FALSE))) ->  | F38: Schedule | G38: Schedule
A39: 51540 | B39: Workers Compensation Ins | C39: 36799 | D39: =IF(ISERROR(VLOOKUP(A39,Payroll!A:F,6,FALSE)),"",(VLOOKUP(A39,Payroll!A:F,6,FALSE))) -> 8277.089342 | E39: =IF(ISERROR(VLOOKUP(A39,'Income Statement'!A:Y,15,FALSE)),"",(VLOOKUP(A39,'Income Statement'!A:Y,15,FALSE))) -> 6729 | F39: Schedule | G39: Schedule
A40: 51550 | B40: UnEmployment Expense | C40: 36799 | D40: =IF(ISERROR(VLOOKUP(A40,Payroll!A:F,6,FALSE)),"",(VLOOKUP(A40,Payroll!A:F,6,FALSE))) ->  | E40: =IF(ISERROR(VLOOKUP(A40,'Income Statement'!A:Y,15,FALSE)),"",(VLOOKUP(A40,'Income Statement'!A:Y,15,FALSE))) ->  | F40: Schedule | G40: Schedule
A41: 51560 | B41: Health & Dental Ins Benefits | C41: 36799 | D41: =IF(ISERROR(VLOOKUP(A41,'Income Statement'!A:Y,25,FALSE)),"",(VLOOKUP(A41,'Income Statement'!A:Y,25,FALSE))) -> 23627.93 | E41: =IF(ISERROR(VLOOKUP(A41,'Income Statement'!A:Y,15,FALSE)),"",(VLOOKUP(A41,'Income Statement'!A:Y,15,FALSE))) -> 21677 | F41: T12 | G41: Based on T-12
A42: 51561 | B42: Health Ins-COBRA | C42: 36799 | D42: =IF(ISERROR(VLOOKUP(A42,'Income Statement'!A:Y,25,FALSE)),"",(VLOOKUP(A42,'Income Statement'!A:Y,25,FALSE))) ->  | E42: =IF(ISERROR(VLOOKUP(A42,'Income Statement'!A:Y,15,FALSE)),"",(VLOOKUP(A42,'Income Statement'!A:Y,15,FALSE))) ->  | F42: Schedule | G42: Schedule
A43: 51562 | B43: Disability Insurance Benefits | C43: 36799 | D43: =IF(ISERROR(VLOOKUP(A43,'Income Statement'!A:Y,25,FALSE)),"",(VLOOKUP(A43,'Income Statement'!A:Y,25,FALSE))) ->  | E43: =IF(ISERROR(VLOOKUP(A43,'Income Statement'!A:Y,15,FALSE)),"",(VLOOKUP(A43,'Income Statement'!A:Y,15,FALSE))) ->  | F43: Schedule | G43: Schedule
A44: 51564 | B44: Life Insurance Benefits | C44: 36799 | D44: =IF(ISERROR(VLOOKUP(A44,'Income Statement'!A:Y,25,FALSE)),"",(VLOOKUP(A44,'Income Statement'!A:Y,25,FALSE))) ->  | E44: =IF(ISERROR(VLOOKUP(A44,'Income Statement'!A:Y,15,FALSE)),"",(VLOOKUP(A44,'Income Statement'!A:Y,15,FALSE))) ->  | F44: Schedule | G44: Schedule
A45: 51566 | B45: Other Benefits-Employee | C45: 36799 | D45: =IF(ISERROR(VLOOKUP(A45,'Income Statement'!A:Y,25,FALSE)),"",(VLOOKUP(A45,'Income Statement'!A:Y,25,FALSE))) ->  | E45: =IF(ISERROR(VLOOKUP(A45,'Income Statement'!A:Y,15,FALSE)),"",(VLOOKUP(A45,'Income Statement'!A:Y,15,FALSE))) ->  | F45: Schedule | G45: Schedule
A46: 51568 | B46: Wellness Health Reimb | C46: 36799 | D46: =IF(ISERROR(VLOOKUP(A46,'Income Statement'!A:Y,25,FALSE)),"",(VLOOKUP(A46,'Income Statement'!A:Y,25,FALSE))) ->  | E46: =IF(ISERROR(VLOOKUP(A46,'Income Statement'!A:Y,15,FALSE)),"",(VLOOKUP(A46,'Income Statement'!A:Y,15,FALSE))) ->  | F46: Schedule | G46: Schedule
A47: 51570 | B47: Health Ins Reimburse | C47: 36799 | D47: =IF(ISERROR(VLOOKUP(A47,'Income Statement'!A:Y,25,FALSE)),"",(VLOOKUP(A47,'Income Statement'!A:Y,25,FALSE))) ->  | E47: =IF(ISERROR(VLOOKUP(A47,'Income Statement'!A:Y,15,FALSE)),"",(VLOOKUP(A47,'Income Statement'!A:Y,15,FALSE))) ->  | F47: Schedule | G47: Schedule
A48: 51575 | B48: Payroll Reimbursements | C48: 36799 | D48: =IF(ISERROR(VLOOKUP(A48,'Income Statement'!A:Y,25,FALSE)),"",(VLOOKUP(A48,'Income Statement'!A:Y,25,FALSE))) ->  | E48: =IF(ISERROR(VLOOKUP(A48,'Income Statement'!A:Y,15,FALSE)),"",(VLOOKUP(A48,'Income Statement'!A:Y,15,FALSE))) ->  | F48: Schedule | G48: Schedule
A49: 51581 | B49: Union Health & Welfare | C49: 36799 | D49: =IF(ISERROR(VLOOKUP(A49,'Income Statement'!A:Y,25,FALSE)),"",(VLOOKUP(A49,'Income Statement'!A:Y,25,FALSE))) ->  | E49: =IF(ISERROR(VLOOKUP(A49,'Income Statement'!A:Y,15,FALSE)),"",(VLOOKUP(A49,'Income Statement'!A:Y,15,FALSE))) ->  | F49: Schedule | G49: Schedule
A50: 51582 | B50: Union Severance Fund | C50: 36799 | D50: =IF(ISERROR(VLOOKUP(A50,'Income Statement'!A:Y,25,FALSE)),"",(VLOOKUP(A50,'Income Statement'!A:Y,25,FALSE))) ->  | E50: =IF(ISERROR(VLOOKUP(A50,'Income Statement'!A:Y,15,FALSE)),"",(VLOOKUP(A50,'Income Statement'!A:Y,15,FALSE))) ->  | F50: Schedule | G50: Schedule
A51: 40003 | B51: Loss to Lease | C51: 49407 | D51: =VLOOKUP(A51,'Occupancy Budget'!$A$31:$F$33,6,FALSE) -> 660.4193653 | E51: =IF(ISERROR(VLOOKUP(A51,'Income Statement'!A:Y,15,FALSE)),"",(VLOOKUP(A51,'Income Statement'!A:Y,15,FALSE))) -> -634788 | F51: Schedule | G51: Schedule | H51: 40400 | I51: OUT-OF-STATE INCOME | J51: Head
A52: 40004 | B52: Vacancy | C52: 65535 | D52: =VLOOKUP(A52,'Occupancy Budget'!$A$31:$F$33,6,FALSE) -> -285761.736 | E52: =IF(ISERROR(VLOOKUP(A52,'Income Statement'!A:Y,15,FALSE)),"",(VLOOKUP(A52,'Income Statement'!A:Y,15,FALSE))) -> -241762 | F52: Schedule | G52: Schedule | H52: 40500 | I52: CONDO SALE INCOME | J52: Head
A53: 56402 | B53: Appliances MR | C53: 801923 | D53: =VLOOKUP(A53,'Make Ready'!$K$12:$P$23,6,FALSE) -> 1722.337963 | E53: =IF(ISERROR(VLOOKUP(A53,'Income Statement'!A:Y,15,FALSE)),"",(VLOOKUP(A53,'Income Statement'!A:Y,15,FALSE))) -> 1376 | F53: Schedule | G53: Schedule
A54: 56405 | B54: Bath MR | C54: 801923 | D54: =VLOOKUP(A54,'Make Ready'!$K$12:$P$23,6,FALSE) -> 5167.013889 | E54: =IF(ISERROR(VLOOKUP(A54,'Income Statement'!A:Y,15,FALSE)),"",(VLOOKUP(A54,'Income Statement'!A:Y,15,FALSE))) -> 2175 | F54: Schedule | G54: Schedule
A55: 56410 | B55: Carpet MR | C55: 801923 | D55: =VLOOKUP(A55,'Make Ready'!$K$12:$P$23,6,FALSE) -> 41578.79461 | E55: =IF(ISERROR(VLOOKUP(A55,'Income Statement'!A:Y,15,FALSE)),"",(VLOOKUP(A55,'Income Statement'!A:Y,15,FALSE))) -> 51299 | F55: Schedule | G55: Schedule
A56: 56412 | B56: Cleaning MR | C56: 801923 | D56: =VLOOKUP(A56,'Make Ready'!$K$12:$P$23,6,FALSE) -> 14782.89563 | E56: =IF(ISERROR(VLOOKUP(A56,'Income Statement'!A:Y,15,FALSE)),"",(VLOOKUP(A56,'Income Statement'!A:Y,15,FALSE))) -> 18239 | F56: Schedule | G56: Schedule
A57: 56413 | B57: Doors MR | C57: 801923 | D57: =VLOOKUP(A57,'Make Ready'!$K$12:$P$23,6,FALSE) -> 0 | E57: =IF(ISERROR(VLOOKUP(A57,'Income Statement'!A:Y,15,FALSE)),"",(VLOOKUP(A57,'Income Statement'!A:Y,15,FALSE))) ->  | F57: Schedule | G57: Schedule
A58: 56415 | B58: Electrical MR | C58: 801923 | D58: =VLOOKUP(A58,'Make Ready'!$K$12:$P$23,6,FALSE) -> 2387.743985 | E58: =IF(ISERROR(VLOOKUP(A58,'Income Statement'!A:Y,15,FALSE)),"",(VLOOKUP(A58,'Income Statement'!A:Y,15,FALSE))) -> 2946 | F58: Schedule | G58: Schedule
A59: 56420 | B59: Flooring Other MR | C59: 801923 | D59: =VLOOKUP(A59,'Make Ready'!$K$12:$P$23,6,FALSE) -> 0.06889351852 | E59: =IF(ISERROR(VLOOKUP(A59,'Income Statement'!A:Y,15,FALSE)),"",(VLOOKUP(A59,'Income Statement'!A:Y,15,FALSE))) -> 110 | F59: Schedule | G59: Schedule
A60: 56422 | B60: Kitchen MR | C60: 801923 | D60: =VLOOKUP(A60,'Make Ready'!$K$12:$P$23,6,FALSE) -> 0.06889351852 | E60: =IF(ISERROR(VLOOKUP(A60,'Income Statement'!A:Y,15,FALSE)),"",(VLOOKUP(A60,'Income Statement'!A:Y,15,FALSE))) -> 109 | F60: Schedule | G60: Schedule
A61: 56425 | B61: Labor MR | C61: 801923 | D61: =VLOOKUP(A61,'Make Ready'!$K$12:$P$23,6,FALSE) -> 0 | E61: =IF(ISERROR(VLOOKUP(A61,'Income Statement'!A:Y,15,FALSE)),"",(VLOOKUP(A61,'Income Statement'!A:Y,15,FALSE))) -> 0 | F61: Schedule | G61: Schedule
A62: 56430 | B62: Misc MR | C62: 801923 | D62: =VLOOKUP(A62,'Make Ready'!$K$12:$P$23,6,FALSE) -> 0 | E62: =IF(ISERROR(VLOOKUP(A62,'Income Statement'!A:Y,15,FALSE)),"",(VLOOKUP(A62,'Income Statement'!A:Y,15,FALSE))) -> 0 | F62: Schedule | G62: Schedule
A63: 56435 | B63: Paint MR | C63: 801923 | D63: =VLOOKUP(A63,'Make Ready'!$K$12:$P$23,6,FALSE) -> 48225.46296 | E63: =IF(ISERROR(VLOOKUP(A63,'Income Statement'!A:Y,15,FALSE)),"",(VLOOKUP(A63,'Income Statement'!A:Y,15,FALSE))) -> 48376 | F63: Schedule | G63: Schedule
A64: 56440 | B64: Plumbing MR | C64: 801923 | D64: =VLOOKUP(A64,'Make Ready'!$K$12:$P$23,6,FALSE) -> 3688.210461 | E64: =IF(ISERROR(VLOOKUP(A64,'Income Statement'!A:Y,15,FALSE)),"",(VLOOKUP(A64,'Income Statement'!A:Y,15,FALSE))) -> 4550 | F64: Schedule | G64: Schedule
A65: 56445 | B65: Vacant Electric Exp MR | C65: 801923 | D65: =IF(ISERROR(VLOOKUP(A65,'Income Statement'!A:Y,25,FALSE)),"",(VLOOKUP(A65,'Income Statement'!A:Y,25,FALSE))) -> 0 | E65: =IF(ISERROR(VLOOKUP(A65,'Income Statement'!A:Y,15,FALSE)),"",(VLOOKUP(A65,'Income Statement'!A:Y,15,FALSE))) -> 427 | F65: DNU | G65: DNU
A66: 56210 | B66: Appliance Repair Contractor | C66: 1137094 | D66: =IF(ISERROR(VLOOKUP(A66,'Income Statement'!A:Y,25,FALSE)),"",(VLOOKUP(A66,'Income Statement'!A:Y,25,FALSE))) -> 1200 | E66: =IF(ISERROR(VLOOKUP(A66,'Income Statement'!A:Y,15,FALSE)),"",(VLOOKUP(A66,'Income Statement'!A:Y,15,FALSE))) -> 1196 | F66: 3 yr avg | G66: Straight Line
A67: 56212 | B67: Blinds Contractor | C67: 1137094 | D67: =IF(ISERROR(VLOOKUP(A67,'Income Statement'!A:Y,25,FALSE)),"",(VLOOKUP(A67,'Income Statement'!A:Y,25,FALSE))) ->  | E67: =IF(ISERROR(VLOOKUP(A67,'Income Statement'!A:Y,15,FALSE)),"",(VLOOKUP(A67,'Income Statement'!A:Y,15,FALSE))) ->  | F67: 3 yr avg | G67: Straight Line
A68: 56213 | B68: Building Contractor | C68: 1137094 | D68: =IF(ISERROR(VLOOKUP(A68,'Income Statement'!A:Y,25,FALSE)),"",(VLOOKUP(A68,'Income Statement'!A:Y,25,FALSE))) -> 427 | E68: =IF(ISERROR(VLOOKUP(A68,'Income Statement'!A:Y,15,FALSE)),"",(VLOOKUP(A68,'Income Statement'!A:Y,15,FALSE))) -> 382 | F68: 3 yr avg | G68: Straight Line
A69: 56214 | B69: Carpentry Contractor | C69: 1137094 | D69: =IF(ISERROR(VLOOKUP(A69,'Income Statement'!A:Y,25,FALSE)),"",(VLOOKUP(A69,'Income Statement'!A:Y,25,FALSE))) ->  | E69: =IF(ISERROR(VLOOKUP(A69,'Income Statement'!A:Y,15,FALSE)),"",(VLOOKUP(A69,'Income Statement'!A:Y,15,FALSE))) ->  | F69: 3 yr avg | G69: Straight Line
A70: 56215 | B70: Carpeting/Flooring Contractor | C70: 1137094 | D70: =IF(ISERROR(VLOOKUP(A70,'Income Statement'!A:Y,25,FALSE)),"",(VLOOKUP(A70,'Income Statement'!A:Y,25,FALSE))) -> 1294 | E70: =IF(ISERROR(VLOOKUP(A70,'Income Statement'!A:Y,15,FALSE)),"",(VLOOKUP(A70,'Income Statement'!A:Y,15,FALSE))) -> 1107 | F70: 3 yr avg | G70: Straight Line
A71: 56216 | B71: Custodial Contractor | C71: 1137094 | D71: =IF(ISERROR(VLOOKUP(A71,'Income Statement'!A:Y,25,FALSE)),"",(VLOOKUP(A71,'Income Statement'!A:Y,25,FALSE))) -> 44122 | E71: =IF(ISERROR(VLOOKUP(A71,'Income Statement'!A:Y,15,FALSE)),"",(VLOOKUP(A71,'Income Statement'!A:Y,15,FALSE))) -> 46625 | F71: Contract | G71: Straight Line
A72: 56217 | B72: Decorating Contractor | C72: 1137094 | D72: =IF(ISERROR(VLOOKUP(A72,'Income Statement'!A:Y,25,FALSE)),"",(VLOOKUP(A72,'Income Statement'!A:Y,25,FALSE))) -> 0.001 | E72: =IF(ISERROR(VLOOKUP(A72,'Income Statement'!A:Y,15,FALSE)),"",(VLOOKUP(A72,'Income Statement'!A:Y,15,FALSE))) -> 136 | F72: 3 yr avg | G72: Straight Line
A73: 56218 | B73: Doors Contractor | C73: 1137094 | D73: =IF(ISERROR(VLOOKUP(A73,'Income Statement'!A:Y,25,FALSE)),"",(VLOOKUP(A73,'Income Statement'!A:Y,25,FALSE))) -> 0.001 | E73: =IF(ISERROR(VLOOKUP(A73,'Income Statement'!A:Y,15,FALSE)),"",(VLOOKUP(A73,'Income Statement'!A:Y,15,FALSE))) -> 260 | F73: 3 yr avg | G73: Straight Line
A74: 56219 | B74: Electrical Contractor | C74: 1137094 | D74: =IF(ISERROR(VLOOKUP(A74,'Income Statement'!A:Y,25,FALSE)),"",(VLOOKUP(A74,'Income Statement'!A:Y,25,FALSE))) -> 2109 | E74: =IF(ISERROR(VLOOKUP(A74,'Income Statement'!A:Y,15,FALSE)),"",(VLOOKUP(A74,'Income Statement'!A:Y,15,FALSE))) -> 2161 | F74: 3 yr avg | G74: Straight Line
A75: 56220 | B75: Elevator Contractor | C75: 1137094 | D75: =IF(ISERROR(VLOOKUP(A75,'Income Statement'!A:Y,25,FALSE)),"",(VLOOKUP(A75,'Income Statement'!A:Y,25,FALSE))) ->  | E75: =IF(ISERROR(VLOOKUP(A75,'Income Statement'!A:Y,15,FALSE)),"",(VLOOKUP(A75,'Income Statement'!A:Y,15,FALSE))) ->  | F75: Contract | G75: Straight Line
A76: 56221 | B76: Exterminating Contractor | C76: 1137094 | D76: =IF(ISERROR(VLOOKUP(A76,'Income Statement'!A:Y,25,FALSE)),"",(VLOOKUP(A76,'Income Statement'!A:Y,25,FALSE))) -> 3396 | E76: =IF(ISERROR(VLOOKUP(A76,'Income Statement'!A:Y,15,FALSE)),"",(VLOOKUP(A76,'Income Statement'!A:Y,15,FALSE))) -> 3350 | F76: Contract | G76: Straight Line
A77: 56222 | B77: Fence Contractor | C77: 1137094 | D77: =IF(ISERROR(VLOOKUP(A77,'Income Statement'!A:Y,25,FALSE)),"",(VLOOKUP(A77,'Income Statement'!A:Y,25,FALSE))) -> 0.001 | E77: =IF(ISERROR(VLOOKUP(A77,'Income Statement'!A:Y,15,FALSE)),"",(VLOOKUP(A77,'Income Statement'!A:Y,15,FALSE))) -> 0 | F77: 3 yr avg | G77: Straight Line
A78: 56223 | B78: Fire System Contractor | C78: 1137094 | D78: =IF(ISERROR(VLOOKUP(A78,'Income Statement'!A:Y,25,FALSE)),"",(VLOOKUP(A78,'Income Statement'!A:Y,25,FALSE))) -> 5468 | E78: =IF(ISERROR(VLOOKUP(A78,'Income Statement'!A:Y,15,FALSE)),"",(VLOOKUP(A78,'Income Statement'!A:Y,15,FALSE))) -> 12775 | F78: Contract | G78: Straight Line
A79: 56224 | B79: Fire Alarm Monitoring | C79: 1137094 | D79: =IF(ISERROR(VLOOKUP(A79,'Income Statement'!A:Y,25,FALSE)),"",(VLOOKUP(A79,'Income Statement'!A:Y,25,FALSE))) -> 7920 | E79: =IF(ISERROR(VLOOKUP(A79,'Income Statement'!A:Y,15,FALSE)),"",(VLOOKUP(A79,'Income Statement'!A:Y,15,FALSE))) -> 360 | F79: Contract | G79: Straight Line
A80: 56225 | B80: Flooring-Tile Contractor | C80: 1137094 | D80: =IF(ISERROR(VLOOKUP(A80,'Income Statement'!A:Y,25,FALSE)),"",(VLOOKUP(A80,'Income Statement'!A:Y,25,FALSE))) -> 0.001 | E80: =IF(ISERROR(VLOOKUP(A80,'Income Statement'!A:Y,15,FALSE)),"",(VLOOKUP(A80,'Income Statement'!A:Y,15,FALSE))) -> 0 | F80: 3 yr avg | G80: Straight Line
A81: 56226 | B81: Hardware Contractor | C81: 1137094 | D81: =IF(ISERROR(VLOOKUP(A81,'Income Statement'!A:Y,25,FALSE)),"",(VLOOKUP(A81,'Income Statement'!A:Y,25,FALSE))) ->  | E81: =IF(ISERROR(VLOOKUP(A81,'Income Statement'!A:Y,15,FALSE)),"",(VLOOKUP(A81,'Income Statement'!A:Y,15,FALSE))) ->  | F81: 3 yr avg | G81: Straight Line
A82: 56227 | B82: Hospitality Contractor | C82: 1137094 | D82: =IF(ISERROR(VLOOKUP(A82,'Income Statement'!A:Y,25,FALSE)),"",(VLOOKUP(A82,'Income Statement'!A:Y,25,FALSE))) ->  | E82: =IF(ISERROR(VLOOKUP(A82,'Income Statement'!A:Y,15,FALSE)),"",(VLOOKUP(A82,'Income Statement'!A:Y,15,FALSE))) ->  | F82: 3 yr avg | G82: Straight Line
A83: 56228 | B83: HVAC Contractor | C83: 1137094 | D83: =IF(ISERROR(VLOOKUP(A83,'Income Statement'!A:Y,25,FALSE)),"",(VLOOKUP(A83,'Income Statement'!A:Y,25,FALSE))) -> 1274 | E83: =IF(ISERROR(VLOOKUP(A83,'Income Statement'!A:Y,15,FALSE)),"",(VLOOKUP(A83,'Income Statement'!A:Y,15,FALSE))) -> 740 | F83: 3 yr avg | G83: Straight Line
A84: 56229 | B84: Keys & Locks Contractor | C84: 1137094 | D84: =IF(ISERROR(VLOOKUP(A84,'Income Statement'!A:Y,25,FALSE)),"",(VLOOKUP(A84,'Income Statement'!A:Y,25,FALSE))) ->  | E84: =IF(ISERROR(VLOOKUP(A84,'Income Statement'!A:Y,15,FALSE)),"",(VLOOKUP(A84,'Income Statement'!A:Y,15,FALSE))) ->  | F84: 3 yr avg | G84: Straight Line
A85: 56231 | B85: Landscaping Contractor | C85: 1137094 | D85: =IF(ISERROR(VLOOKUP(A85,'Income Statement'!A:Y,25,FALSE)),"",(VLOOKUP(A85,'Income Statement'!A:Y,25,FALSE))) -> 37630 | E85: =IF(ISERROR(VLOOKUP(A85,'Income Statement'!A:Y,15,FALSE)),"",(VLOOKUP(A85,'Income Statement'!A:Y,15,FALSE))) -> 32245 | F85: Contract | G85: Seasonal
A86: 56232 | B86: Linen Rental | C86: 1137094 | D86: =IF(ISERROR(VLOOKUP(A86,'Income Statement'!A:Y,25,FALSE)),"",(VLOOKUP(A86,'Income Statement'!A:Y,25,FALSE))) ->  | E86: =IF(ISERROR(VLOOKUP(A86,'Income Statement'!A:Y,15,FALSE)),"",(VLOOKUP(A86,'Income Statement'!A:Y,15,FALSE))) ->  | F86: 3 yr avg | G86: Straight Line
A87: 56233 | B87: Misc Contractor | C87: 1137094 | D87: =IF(ISERROR(VLOOKUP(A87,'Income Statement'!A:Y,25,FALSE)),"",(VLOOKUP(A87,'Income Statement'!A:Y,25,FALSE))) ->  | E87: =IF(ISERROR(VLOOKUP(A87,'Income Statement'!A:Y,15,FALSE)),"",(VLOOKUP(A87,'Income Statement'!A:Y,15,FALSE))) ->  | F87: 3 yr avg | G87: Straight Line
A88: 56234 | B88: Painting Contractor | C88: 1137094 | D88: =IF(ISERROR(VLOOKUP(A88,'Income Statement'!A:Y,25,FALSE)),"",(VLOOKUP(A88,'Income Statement'!A:Y,25,FALSE))) -> 1748 | E88: =IF(ISERROR(VLOOKUP(A88,'Income Statement'!A:Y,15,FALSE)),"",(VLOOKUP(A88,'Income Statement'!A:Y,15,FALSE))) -> 550 | F88: 3 yr avg | G88: Straight Line
A89: 56235 | B89: Pave&Concrete Contractor | C89: 1137094 | D89: =IF(ISERROR(VLOOKUP(A89,'Income Statement'!A:Y,25,FALSE)),"",(VLOOKUP(A89,'Income Statement'!A:Y,25,FALSE))) ->  | E89: =IF(ISERROR(VLOOKUP(A89,'Income Statement'!A:Y,15,FALSE)),"",(VLOOKUP(A89,'Income Statement'!A:Y,15,FALSE))) ->  | F89: 3 yr avg | G89: Straight Line
A90: 56236 | B90: Plumbing Contractror | C90: 1137094 | D90: =IF(ISERROR(VLOOKUP(A90,'Income Statement'!A:Y,25,FALSE)),"",(VLOOKUP(A90,'Income Statement'!A:Y,25,FALSE))) -> 4004 | E90: =IF(ISERROR(VLOOKUP(A90,'Income Statement'!A:Y,15,FALSE)),"",(VLOOKUP(A90,'Income Statement'!A:Y,15,FALSE))) -> 2684 | F90: 3 yr avg | G90: Straight Line
A91: 56237 | B91: Pool Contractor | C91: 1137094 | D91: =IF(ISERROR(VLOOKUP(A91,'Income Statement'!A:Y,25,FALSE)),"",(VLOOKUP(A91,'Income Statement'!A:Y,25,FALSE))) -> 22314.28 | E91: =IF(ISERROR(VLOOKUP(A91,'Income Statement'!A:Y,15,FALSE)),"",(VLOOKUP(A91,'Income Statement'!A:Y,15,FALSE))) -> 20650 | F91: Contract | G91: Seasonal
A92: 56238 | B92: DNU-Rehab of Apts Contractors (Turns) | C92: 1137094 | D92: =IF(ISERROR(VLOOKUP(A92,'Income Statement'!A:Y,25,FALSE)),"",(VLOOKUP(A92,'Income Statement'!A:Y,25,FALSE))) ->  | E92: =IF(ISERROR(VLOOKUP(A92,'Income Statement'!A:Y,15,FALSE)),"",(VLOOKUP(A92,'Income Statement'!A:Y,15,FALSE))) ->  | F92: DNU | G92: DNU
A93: 56239 | B93: Roofing Contractor | C93: 1137094 | D93: =IF(ISERROR(VLOOKUP(A93,'Income Statement'!A:Y,25,FALSE)),"",(VLOOKUP(A93,'Income Statement'!A:Y,25,FALSE))) -> 400 | E93: =IF(ISERROR(VLOOKUP(A93,'Income Statement'!A:Y,15,FALSE)),"",(VLOOKUP(A93,'Income Statement'!A:Y,15,FALSE))) -> 400 | F93: T12 | G93: Straight Line
A94: 56240 | B94: Security Contractor | C94: 1137094 | D94: =IF(ISERROR(VLOOKUP(A94,'Income Statement'!A:Y,25,FALSE)),"",(VLOOKUP(A94,'Income Statement'!A:Y,25,FALSE))) -> 55200 | E94: =IF(ISERROR(VLOOKUP(A94,'Income Statement'!A:Y,15,FALSE)),"",(VLOOKUP(A94,'Income Statement'!A:Y,15,FALSE))) -> 48190 | F94: Contract | G94: Straight Line
A95: 56241 | B95: Signs Contractor | C95: 1137094 | D95: =IF(ISERROR(VLOOKUP(A95,'Income Statement'!A:Y,25,FALSE)),"",(VLOOKUP(A95,'Income Statement'!A:Y,25,FALSE))) -> 0.001 | E95: =IF(ISERROR(VLOOKUP(A95,'Income Statement'!A:Y,15,FALSE)),"",(VLOOKUP(A95,'Income Statement'!A:Y,15,FALSE))) -> 0 | F95: 3 yr avg | G95: Straight Line
A96: 56242 | B96: Snow Removal Contractor | C96: 1137094 | D96: =IF(ISERROR(VLOOKUP(A96,'Income Statement'!A:Y,25,FALSE)),"",(VLOOKUP(A96,'Income Statement'!A:Y,25,FALSE))) -> 15174 | E96: =IF(ISERROR(VLOOKUP(A96,'Income Statement'!A:Y,15,FALSE)),"",(VLOOKUP(A96,'Income Statement'!A:Y,15,FALSE))) -> 19336 | F96: 3 yr avg | G96: Seasonal
A97: 56243 | B97: Staff Training Contractor | C97: 1137094 | D97: =IF(ISERROR(VLOOKUP(A97,'Income Statement'!A:Y,25,FALSE)),"",(VLOOKUP(A97,'Income Statement'!A:Y,25,FALSE))) ->  | E97: =IF(ISERROR(VLOOKUP(A97,'Income Statement'!A:Y,15,FALSE)),"",(VLOOKUP(A97,'Income Statement'!A:Y,15,FALSE))) ->  | F97: 3 yr avg | G97: Straight Line
A98: 56244 | B98: Trash Removal | C98: 1137094 | D98: =IF(ISERROR(VLOOKUP(A98,'Income Statement'!A:Y,25,FALSE)),"",(VLOOKUP(A98,'Income Statement'!A:Y,25,FALSE))) -> 25788 | E98: =IF(ISERROR(VLOOKUP(A98,'Income Statement'!A:Y,15,FALSE)),"",(VLOOKUP(A98,'Income Statement'!A:Y,15,FALSE))) -> 25014 | F98: Contract | G98: Straight Line
A99: 56245 | B99: Windows and Glass Contractor | C99: 1137094 | D99: =IF(ISERROR(VLOOKUP(A99,'Income Statement'!A:Y,25,FALSE)),"",(VLOOKUP(A99,'Income Statement'!A:Y,25,FALSE))) ->  | E99: =IF(ISERROR(VLOOKUP(A99,'Income Statement'!A:Y,15,FALSE)),"",(VLOOKUP(A99,'Income Statement'!A:Y,15,FALSE))) ->  | F99: 3 yr avg | G99: Straight Line
A100: 56246 | B100: Uptown Expenses | C100: 1137094 | D100: =IF(ISERROR(VLOOKUP(A100,'Income Statement'!A:Y,25,FALSE)),"",(VLOOKUP(A100,'Income Statement'!A:Y,25,FALSE))) ->  | E100: =IF(ISERROR(VLOOKUP(A100,'Income Statement'!A:Y,15,FALSE)),"",(VLOOKUP(A100,'Income Statement'!A:Y,15,FALSE))) ->  | F100: 3 yr avg | G100: Straight Line
A101: 56298 | B101: Repairs Other Budget | C101: 1137094 | D101: =IF(ISERROR(VLOOKUP(A101,'Income Statement'!A:Y,25,FALSE)),"",(VLOOKUP(A101,'Income Statement'!A:Y,25,FALSE))) ->  | E101: =IF(ISERROR(VLOOKUP(A101,'Income Statement'!A:Y,15,FALSE)),"",(VLOOKUP(A101,'Income Statement'!A:Y,15,FALSE))) ->  | F101: 3 yr avg | G101: Straight Line
A102: 56300 | B102: GOLF COURSE EXPS | C102: 1137094 | D102: =IF(ISERROR(VLOOKUP(A102,'Income Statement'!A:Y,25,FALSE)),"",(VLOOKUP(A102,'Income Statement'!A:Y,25,FALSE))) ->  | E102: =IF(ISERROR(VLOOKUP(A102,'Income Statement'!A:Y,15,FALSE)),"",(VLOOKUP(A102,'Income Statement'!A:Y,15,FALSE))) ->  | F102: DNU | G102: DNU
A103: 56305 | B103: Golf Course Exp - Fuel | C103: 1137094 | D103: =IF(ISERROR(VLOOKUP(A103,'Income Statement'!A:Y,25,FALSE)),"",(VLOOKUP(A103,'Income Statement'!A:Y,25,FALSE))) ->  | E103: =IF(ISERROR(VLOOKUP(A103,'Income Statement'!A:Y,15,FALSE)),"",(VLOOKUP(A103,'Income Statement'!A:Y,15,FALSE))) ->  | F103: DNU | G103: DNU
A104: 56310 | B104: Golf Course Exp - Repairs | C104: 1137094 | D104: =IF(ISERROR(VLOOKUP(A104,'Income Statement'!A:Y,25,FALSE)),"",(VLOOKUP(A104,'Income Statement'!A:Y,25,FALSE))) ->  | E104: =IF(ISERROR(VLOOKUP(A104,'Income Statement'!A:Y,15,FALSE)),"",(VLOOKUP(A104,'Income Statement'!A:Y,15,FALSE))) ->  | F104: DNU | G104: DNU
A105: 56315 | B105: Golf Course Exp - Supplies | C105: 1137094 | D105: =IF(ISERROR(VLOOKUP(A105,'Income Statement'!A:Y,25,FALSE)),"",(VLOOKUP(A105,'Income Statement'!A:Y,25,FALSE))) ->  | E105: =IF(ISERROR(VLOOKUP(A105,'Income Statement'!A:Y,15,FALSE)),"",(VLOOKUP(A105,'Income Statement'!A:Y,15,FALSE))) ->  | F105: DNU | G105: DNU
A106: 56320 | B106: Golf Course Exp - Advertising | C106: 1137094 | D106: =IF(ISERROR(VLOOKUP(A106,'Income Statement'!A:Y,25,FALSE)),"",(VLOOKUP(A106,'Income Statement'!A:Y,25,FALSE))) ->  | E106: =IF(ISERROR(VLOOKUP(A106,'Income Statement'!A:Y,15,FALSE)),"",(VLOOKUP(A106,'Income Statement'!A:Y,15,FALSE))) ->  | F106: DNU | G106: DNU
A107: 56330 | B107: Golf Course Exp - Other | C107: 1137094 | D107: =IF(ISERROR(VLOOKUP(A107,'Income Statement'!A:Y,25,FALSE)),"",(VLOOKUP(A107,'Income Statement'!A:Y,25,FALSE))) ->  | E107: =IF(ISERROR(VLOOKUP(A107,'Income Statement'!A:Y,15,FALSE)),"",(VLOOKUP(A107,'Income Statement'!A:Y,15,FALSE))) ->  | F107: DNU | G107: DNU
A108: 56335 | B108: Lounge Exp | C108: 1137094 | D108: =IF(ISERROR(VLOOKUP(A108,'Income Statement'!A:Y,25,FALSE)),"",(VLOOKUP(A108,'Income Statement'!A:Y,25,FALSE))) ->  | E108: =IF(ISERROR(VLOOKUP(A108,'Income Statement'!A:Y,15,FALSE)),"",(VLOOKUP(A108,'Income Statement'!A:Y,15,FALSE))) ->  | F108: DNU | G108: DNU
A109: 56336 | B109: Proshop Exp | C109: 1137094 | D109: =IF(ISERROR(VLOOKUP(A109,'Income Statement'!A:Y,25,FALSE)),"",(VLOOKUP(A109,'Income Statement'!A:Y,25,FALSE))) ->  | E109: =IF(ISERROR(VLOOKUP(A109,'Income Statement'!A:Y,15,FALSE)),"",(VLOOKUP(A109,'Income Statement'!A:Y,15,FALSE))) ->  | F109: DNU | G109: DNU
A110: 56340 | B110: ProShop Expense | C110: 1137094 | D110: =IF(ISERROR(VLOOKUP(A110,'Income Statement'!A:Y,25,FALSE)),"",(VLOOKUP(A110,'Income Statement'!A:Y,25,FALSE))) ->  | E110: =IF(ISERROR(VLOOKUP(A110,'Income Statement'!A:Y,15,FALSE)),"",(VLOOKUP(A110,'Income Statement'!A:Y,15,FALSE))) ->  | F110: DNU | G110: DNU
A111: 50105 | B111: Cable | C111: 2500134 | D111: =IF(ISERROR(VLOOKUP(A111,'Income Statement'!A:Y,25,FALSE)),"",(VLOOKUP(A111,'Income Statement'!A:Y,25,FALSE))) -> 0.001 | E111: =IF(ISERROR(VLOOKUP(A111,'Income Statement'!A:Y,15,FALSE)),"",(VLOOKUP(A111,'Income Statement'!A:Y,15,FALSE))) -> 94 | F111: T12 | G111: Based on T-12
A112: 57100 | B112: Accounting Fees | C112: 2500134 | D112: =IF(ISERROR(VLOOKUP(A112,'Income Statement'!A:Y,25,FALSE)),"",(VLOOKUP(A112,'Income Statement'!A:Y,25,FALSE))) -> 9446 | E112: =IF(ISERROR(VLOOKUP(A112,'Income Statement'!A:Y,15,FALSE)),"",(VLOOKUP(A112,'Income Statement'!A:Y,15,FALSE))) -> 9446 | F112: T12 | G112: Seasonal
A113: 57110 | B113: Advertising | C113: 2500134 | D113: =IF(ISERROR(VLOOKUP(A113,'Income Statement'!A:Y,25,FALSE)),"",(VLOOKUP(A113,'Income Statement'!A:Y,25,FALSE))) -> 41000 | E113: =IF(ISERROR(VLOOKUP(A113,'Income Statement'!A:Y,15,FALSE)),"",(VLOOKUP(A113,'Income Statement'!A:Y,15,FALSE))) -> 36608 | F113: T12 | G113: Straight Line
A114: 57126 | B114: Answering Service | C114: 2500134 | D114: =IF(ISERROR(VLOOKUP(A114,'Income Statement'!A:Y,25,FALSE)),"",(VLOOKUP(A114,'Income Statement'!A:Y,25,FALSE))) -> 854 | E114: =IF(ISERROR(VLOOKUP(A114,'Income Statement'!A:Y,15,FALSE)),"",(VLOOKUP(A114,'Income Statement'!A:Y,15,FALSE))) -> 854 | F114: T12 | G114: Straight Line
A115: 57129 | B115: Architect/Engineer | C115: 2500134 | D115: =IF(ISERROR(VLOOKUP(A115,'Income Statement'!A:Y,25,FALSE)),"",(VLOOKUP(A115,'Income Statement'!A:Y,25,FALSE))) -> 0.001 | E115: =IF(ISERROR(VLOOKUP(A115,'Income Statement'!A:Y,15,FALSE)),"",(VLOOKUP(A115,'Income Statement'!A:Y,15,FALSE))) -> 9733 | F115: T12 | G115: Straight Line
A116: 57130 | B116: Auto Expenses | C116: 2500134 | D116: =IF(ISERROR(VLOOKUP(A116,'Income Statement'!A:Y,25,FALSE)),"",(VLOOKUP(A116,'Income Statement'!A:Y,25,FALSE))) -> 0 | E116: =IF(ISERROR(VLOOKUP(A116,'Income Statement'!A:Y,15,FALSE)),"",(VLOOKUP(A116,'Income Statement'!A:Y,15,FALSE))) -> 0 | F116: Auto Expenses
A117: 57131 | B117: Auto | C117: 2500134 | D117: =IF(ISERROR(VLOOKUP(A117,'Income Statement'!A:Y,25,FALSE)),"",(VLOOKUP(A117,'Income Statement'!A:Y,25,FALSE))) -> 0 | E117: =IF(ISERROR(VLOOKUP(A117,'Income Statement'!A:Y,15,FALSE)),"",(VLOOKUP(A117,'Income Statement'!A:Y,15,FALSE))) -> 0 | F117: T12 | G117: Straight Line
A118: 57140 | B118: Automobile-Garage | C118: 2500134 | D118: =IF(ISERROR(VLOOKUP(A118,'Income Statement'!A:Y,25,FALSE)),"",(VLOOKUP(A118,'Income Statement'!A:Y,25,FALSE))) ->  | E118: =IF(ISERROR(VLOOKUP(A118,'Income Statement'!A:Y,15,FALSE)),"",(VLOOKUP(A118,'Income Statement'!A:Y,15,FALSE))) ->  | F118: T12 | G118: Straight Line
A119: 57142 | B119: Automobile-Gas | C119: 2500134 | D119: =IF(ISERROR(VLOOKUP(A119,'Income Statement'!A:Y,25,FALSE)),"",(VLOOKUP(A119,'Income Statement'!A:Y,25,FALSE))) -> 240 | E119: =IF(ISERROR(VLOOKUP(A119,'Income Statement'!A:Y,15,FALSE)),"",(VLOOKUP(A119,'Income Statement'!A:Y,15,FALSE))) -> 228 | F119: 3 yr avg | G119: Straight Line
A120: 57144 | B120: Automobile-Insurance | C120: 2500134 | D120: =IF(ISERROR(VLOOKUP(A120,'Income Statement'!A:Y,25,FALSE)),"",(VLOOKUP(A120,'Income Statement'!A:Y,25,FALSE))) -> 2496 | E120: =IF(ISERROR(VLOOKUP(A120,'Income Statement'!A:Y,15,FALSE)),"",(VLOOKUP(A120,'Income Statement'!A:Y,15,FALSE))) -> 2365 | F120: T12 | G120: Straight Line
A121: 57147 | B121: Automobile-Mileage Reimb | C121: 2500134 | D121: =IF(ISERROR(VLOOKUP(A121,'Income Statement'!A:Y,25,FALSE)),"",(VLOOKUP(A121,'Income Statement'!A:Y,25,FALSE))) -> 865 | E121: =IF(ISERROR(VLOOKUP(A121,'Income Statement'!A:Y,15,FALSE)),"",(VLOOKUP(A121,'Income Statement'!A:Y,15,FALSE))) -> 1125 | F121: 3 yr avg | G121: Straight Line
A122: 57148 | B122: Automobile-Repairs/LIMO | C122: 2500134 | D122: =IF(ISERROR(VLOOKUP(A122,'Income Statement'!A:Y,25,FALSE)),"",(VLOOKUP(A122,'Income Statement'!A:Y,25,FALSE))) -> 750 | E122: =IF(ISERROR(VLOOKUP(A122,'Income Statement'!A:Y,15,FALSE)),"",(VLOOKUP(A122,'Income Statement'!A:Y,15,FALSE))) -> 528 | F122: 3 yr avg | G122: Straight Line
A123: 57149 | B123: Automobile-Rental | C123: 2500134 | D123: =IF(ISERROR(VLOOKUP(A123,'Income Statement'!A:Y,25,FALSE)),"",(VLOOKUP(A123,'Income Statement'!A:Y,25,FALSE))) ->  | E123: =IF(ISERROR(VLOOKUP(A123,'Income Statement'!A:Y,15,FALSE)),"",(VLOOKUP(A123,'Income Statement'!A:Y,15,FALSE))) ->  | F123: 3 yr avg | G123: Straight Line
A124: 57150 | B124: Automobile-Parking and Tolls | C124: 2500134 | D124: =IF(ISERROR(VLOOKUP(A124,'Income Statement'!A:Y,25,FALSE)),"",(VLOOKUP(A124,'Income Statement'!A:Y,25,FALSE))) -> 8000 | E124: =IF(ISERROR(VLOOKUP(A124,'Income Statement'!A:Y,15,FALSE)),"",(VLOOKUP(A124,'Income Statement'!A:Y,15,FALSE))) -> 0 | F124: 3 yr avg | G124: Straight Line
A125: 57155 | B125: Total Auto Expenses | C125: 2500134 | D125: =IF(ISERROR(VLOOKUP(A125,'Income Statement'!A:Y,25,FALSE)),"",(VLOOKUP(A125,'Income Statement'!A:Y,25,FALSE))) ->  | E125: =IF(ISERROR(VLOOKUP(A125,'Income Statement'!A:Y,15,FALSE)),"",(VLOOKUP(A125,'Income Statement'!A:Y,15,FALSE))) ->  | F125: T12 | G125: Straight Line
A126: 57164 | B126: Bank Charges | C126: 2500134 | D126: =IF(ISERROR(VLOOKUP(A126,'Income Statement'!A:Y,25,FALSE)),"",(VLOOKUP(A126,'Income Statement'!A:Y,25,FALSE))) -> 3514 | E126: =IF(ISERROR(VLOOKUP(A126,'Income Statement'!A:Y,15,FALSE)),"",(VLOOKUP(A126,'Income Statement'!A:Y,15,FALSE))) -> 3514 | F126: T12 | G126: Straight Line
A127: 57165 | B127: Corporate Suites | C127: 2500134 | D127: =IF(ISERROR(VLOOKUP(A127,'Income Statement'!A:Y,25,FALSE)),"",(VLOOKUP(A127,'Income Statement'!A:Y,25,FALSE))) ->  | E127: =IF(ISERROR(VLOOKUP(A127,'Income Statement'!A:Y,15,FALSE)),"",(VLOOKUP(A127,'Income Statement'!A:Y,15,FALSE))) ->  | F127: T12 | G127: Straight Line
A128: 57166 | B128: Beepers | C128: 2500134 | D128: =IF(ISERROR(VLOOKUP(A128,'Income Statement'!A:Y,25,FALSE)),"",(VLOOKUP(A128,'Income Statement'!A:Y,25,FALSE))) ->  | E128: =IF(ISERROR(VLOOKUP(A128,'Income Statement'!A:Y,15,FALSE)),"",(VLOOKUP(A128,'Income Statement'!A:Y,15,FALSE))) ->  | F128: T12 | G128: Straight Line
A129: 57167 | B129: Copier Expenses | C129: 2500134 | D129: =IF(ISERROR(VLOOKUP(A129,'Income Statement'!A:Y,25,FALSE)),"",(VLOOKUP(A129,'Income Statement'!A:Y,25,FALSE))) -> 1873 | E129: =IF(ISERROR(VLOOKUP(A129,'Income Statement'!A:Y,15,FALSE)),"",(VLOOKUP(A129,'Income Statement'!A:Y,15,FALSE))) -> 1873 | F129: T12 | G129: Straight Line
A130: 57169 | B130: Computer Expenses | C130: 2500134 | D130: =IF(ISERROR(VLOOKUP(A130,'Income Statement'!A:Y,25,FALSE)),"",(VLOOKUP(A130,'Income Statement'!A:Y,25,FALSE))) -> 3305 | E130: =IF(ISERROR(VLOOKUP(A130,'Income Statement'!A:Y,15,FALSE)),"",(VLOOKUP(A130,'Income Statement'!A:Y,15,FALSE))) -> 3305 | F130: T12 | G130: Straight Line
A131: 57170 | B131: Credit checks | C131: 2500134 | D131: =IF(ISERROR(VLOOKUP(A131,'Income Statement'!A:Y,25,FALSE)),"",(VLOOKUP(A131,'Income Statement'!A:Y,25,FALSE))) -> 6598 | E131: =IF(ISERROR(VLOOKUP(A131,'Income Statement'!A:Y,15,FALSE)),"",(VLOOKUP(A131,'Income Statement'!A:Y,15,FALSE))) -> 6598 | F131: T12 | G131: Straight Line
A132: 57172 | B132: Credit Card Fees | C132: 2500134 | D132: =IF(ISERROR(VLOOKUP(A132,'Income Statement'!A:Y,25,FALSE)),"",(VLOOKUP(A132,'Income Statement'!A:Y,25,FALSE))) -> 0 | E132: =IF(ISERROR(VLOOKUP(A132,'Income Statement'!A:Y,15,FALSE)),"",(VLOOKUP(A132,'Income Statement'!A:Y,15,FALSE))) -> 0 | F132: T12 | G132: Straight Line
A133: 57173 | B133: Cr Card Fees Reimb by Properties | C133: 2500134 | D133: =IF(ISERROR(VLOOKUP(A133,'Income Statement'!A:Y,25,FALSE)),"",(VLOOKUP(A133,'Income Statement'!A:Y,25,FALSE))) ->  | E133: =IF(ISERROR(VLOOKUP(A133,'Income Statement'!A:Y,15,FALSE)),"",(VLOOKUP(A133,'Income Statement'!A:Y,15,FALSE))) ->  | F133: T12 | G133: Straight Line
A134: 57176 | B134: Dues and Subscriptions | C134: 2500134 | D134: =IF(ISERROR(VLOOKUP(A134,'Income Statement'!A:Y,25,FALSE)),"",(VLOOKUP(A134,'Income Statement'!A:Y,25,FALSE))) -> 2133 | E134: =IF(ISERROR(VLOOKUP(A134,'Income Statement'!A:Y,15,FALSE)),"",(VLOOKUP(A134,'Income Statement'!A:Y,15,FALSE))) -> 2133 | F134: T12 | G134: Straight Line
A135: 57180 | B135: Entertainment | C135: 2500134 | D135: =IF(ISERROR(VLOOKUP(A135,'Income Statement'!A:Y,25,FALSE)),"",(VLOOKUP(A135,'Income Statement'!A:Y,25,FALSE))) ->  | E135: =IF(ISERROR(VLOOKUP(A135,'Income Statement'!A:Y,15,FALSE)),"",(VLOOKUP(A135,'Income Statement'!A:Y,15,FALSE))) ->  | F135: T12 | G135: Straight Line
A136: 57186 | B136: Equipment Rental | C136: 2500134 | D136: =IF(ISERROR(VLOOKUP(A136,'Income Statement'!A:Y,25,FALSE)),"",(VLOOKUP(A136,'Income Statement'!A:Y,25,FALSE))) ->  | E136: =IF(ISERROR(VLOOKUP(A136,'Income Statement'!A:Y,15,FALSE)),"",(VLOOKUP(A136,'Income Statement'!A:Y,15,FALSE))) ->  | F136: T12 | G136: Straight Line
A137: 57188 | B137: Equipment Repairs-Office | C137: 2500134 | D137: =IF(ISERROR(VLOOKUP(A137,'Income Statement'!A:Y,25,FALSE)),"",(VLOOKUP(A137,'Income Statement'!A:Y,25,FALSE))) -> 302 | E137: =IF(ISERROR(VLOOKUP(A137,'Income Statement'!A:Y,15,FALSE)),"",(VLOOKUP(A137,'Income Statement'!A:Y,15,FALSE))) -> 302 | F137: T12 | G137: Straight Line
A138: 57190 | B138: Collection Eviction costs | C138: 2500134 | D138: =IF(ISERROR(VLOOKUP(A138,'Income Statement'!A:Y,25,FALSE)),"",(VLOOKUP(A138,'Income Statement'!A:Y,25,FALSE))) -> 4336 | E138: =IF(ISERROR(VLOOKUP(A138,'Income Statement'!A:Y,15,FALSE)),"",(VLOOKUP(A138,'Income Statement'!A:Y,15,FALSE))) -> 8182 | F138: 3 yr avg | G138: Straight Line
A139: 57192 | B139: Eviction cost-Legal | C139: 2500134 | D139: =IF(ISERROR(VLOOKUP(A139,'Income Statement'!A:Y,25,FALSE)),"",(VLOOKUP(A139,'Income Statement'!A:Y,25,FALSE))) -> 7533 | E139: =IF(ISERROR(VLOOKUP(A139,'Income Statement'!A:Y,15,FALSE)),"",(VLOOKUP(A139,'Income Statement'!A:Y,15,FALSE))) -> 11599 | F139: 3 yr avg | G139: Straight Line
A140: 57193 | B140: Expense Reimb | C140: 2500134 | D140: =IF(ISERROR(VLOOKUP(A140,'Income Statement'!A:Y,25,FALSE)),"",(VLOOKUP(A140,'Income Statement'!A:Y,25,FALSE))) ->  | E140: =IF(ISERROR(VLOOKUP(A140,'Income Statement'!A:Y,15,FALSE)),"",(VLOOKUP(A140,'Income Statement'!A:Y,15,FALSE))) ->  | F140: T12 | G140: Straight Line
A141: 57196 | B141: Furniture Rental | C141: 2500134 | D141: =IF(ISERROR(VLOOKUP(A141,'Income Statement'!A:Y,25,FALSE)),"",(VLOOKUP(A141,'Income Statement'!A:Y,25,FALSE))) ->  | E141: =IF(ISERROR(VLOOKUP(A141,'Income Statement'!A:Y,15,FALSE)),"",(VLOOKUP(A141,'Income Statement'!A:Y,15,FALSE))) ->  | F141: T12 | G141: Straight Line
A142: 57198 | B142: Gifts | C142: 2500134 | D142: =IF(ISERROR(VLOOKUP(A142,'Income Statement'!A:Y,25,FALSE)),"",(VLOOKUP(A142,'Income Statement'!A:Y,25,FALSE))) -> 0 | E142: =IF(ISERROR(VLOOKUP(A142,'Income Statement'!A:Y,15,FALSE)),"",(VLOOKUP(A142,'Income Statement'!A:Y,15,FALSE))) -> 0 | F142: T12 | G142: Straight Line
A143: 57199 | B143: Internet Expense | C143: 2500134 | D143: =IF(ISERROR(VLOOKUP(A143,'Income Statement'!A:Y,25,FALSE)),"",(VLOOKUP(A143,'Income Statement'!A:Y,25,FALSE))) -> 4564 | E143: =IF(ISERROR(VLOOKUP(A143,'Income Statement'!A:Y,15,FALSE)),"",(VLOOKUP(A143,'Income Statement'!A:Y,15,FALSE))) -> 4564 | F143: T12 | G143: Straight Line
A144: 57200 | B144: Legal & Closing costs | C144: 2500134 | D144: =IF(ISERROR(VLOOKUP(A144,'Income Statement'!A:Y,25,FALSE)),"",(VLOOKUP(A144,'Income Statement'!A:Y,25,FALSE))) ->  | E144: =IF(ISERROR(VLOOKUP(A144,'Income Statement'!A:Y,15,FALSE)),"",(VLOOKUP(A144,'Income Statement'!A:Y,15,FALSE))) ->  | F144: 3 yr avg | G144: Straight Line
A145: 57210 | B145: Licenses and Fees | C145: 2500134 | D145: =IF(ISERROR(VLOOKUP(A145,'Income Statement'!A:Y,25,FALSE)),"",(VLOOKUP(A145,'Income Statement'!A:Y,25,FALSE))) -> 14044 | E145: =IF(ISERROR(VLOOKUP(A145,'Income Statement'!A:Y,15,FALSE)),"",(VLOOKUP(A145,'Income Statement'!A:Y,15,FALSE))) -> 14044 | F145: T12 | G145: Straight Line
A146: 57225 | B146: Marketing Expense | C146: 2500134 | D146: =IF(ISERROR(VLOOKUP(A146,'Income Statement'!A:Y,25,FALSE)),"",(VLOOKUP(A146,'Income Statement'!A:Y,25,FALSE))) -> 7731 | E146: =IF(ISERROR(VLOOKUP(A146,'Income Statement'!A:Y,15,FALSE)),"",(VLOOKUP(A146,'Income Statement'!A:Y,15,FALSE))) -> 7731 | F146: T12 | G146: Straight Line
A147: 57226 | B147: Investment Meetings Subject 2% | C147: 2500134 | D147: =IF(ISERROR(VLOOKUP(A147,'Income Statement'!A:Y,25,FALSE)),"",(VLOOKUP(A147,'Income Statement'!A:Y,25,FALSE))) ->  | E147: =IF(ISERROR(VLOOKUP(A147,'Income Statement'!A:Y,15,FALSE)),"",(VLOOKUP(A147,'Income Statement'!A:Y,15,FALSE))) ->  | F147: T12 | G147: Straight Line
A148: 57227 | B148: Meetings & Conferences | C148: 2500134 | D148: =IF(ISERROR(VLOOKUP(A148,'Income Statement'!A:Y,25,FALSE)),"",(VLOOKUP(A148,'Income Statement'!A:Y,25,FALSE))) -> 319 | E148: =IF(ISERROR(VLOOKUP(A148,'Income Statement'!A:Y,15,FALSE)),"",(VLOOKUP(A148,'Income Statement'!A:Y,15,FALSE))) -> 319 | F148: T12 | G148: Straight Line
A149: 57229 | B149: Food Service Program | C149: 2500134 | D149: =IF(ISERROR(VLOOKUP(A149,'Income Statement'!A:Y,25,FALSE)),"",(VLOOKUP(A149,'Income Statement'!A:Y,25,FALSE))) -> 0.001 | E149: =IF(ISERROR(VLOOKUP(A149,'Income Statement'!A:Y,15,FALSE)),"",(VLOOKUP(A149,'Income Statement'!A:Y,15,FALSE))) -> 138 | F149: T12 | G149: Straight Line
A150: 57230 | B150: Food/Coffee Service | C150: 2500134 | D150: =IF(ISERROR(VLOOKUP(A150,'Income Statement'!A:Y,25,FALSE)),"",(VLOOKUP(A150,'Income Statement'!A:Y,25,FALSE))) -> 3052 | E150: =IF(ISERROR(VLOOKUP(A150,'Income Statement'!A:Y,15,FALSE)),"",(VLOOKUP(A150,'Income Statement'!A:Y,15,FALSE))) -> 2257 | F150: 3 yr avg | G150: Straight Line
A151: 57231 | B151: Resident Meal Service | C151: 2500134 | D151: =IF(ISERROR(VLOOKUP(A151,'Income Statement'!A:Y,25,FALSE)),"",(VLOOKUP(A151,'Income Statement'!A:Y,25,FALSE))) ->  | E151: =IF(ISERROR(VLOOKUP(A151,'Income Statement'!A:Y,15,FALSE)),"",(VLOOKUP(A151,'Income Statement'!A:Y,15,FALSE))) ->  | F151: T12 | G151: Straight Line
A152: 57232 | B152: Miscellaneous Exp | C152: 2500134 | D152: =IF(ISERROR(VLOOKUP(A152,'Income Statement'!A:Y,25,FALSE)),"",(VLOOKUP(A152,'Income Statement'!A:Y,25,FALSE))) -> 0.001 | E152: =IF(ISERROR(VLOOKUP(A152,'Income Statement'!A:Y,15,FALSE)),"",(VLOOKUP(A152,'Income Statement'!A:Y,15,FALSE))) -> 19 | F152: T12 | G152: Straight Line
A153: 57233 | B153: Moving Expense | C153: 2500134 | D153: =IF(ISERROR(VLOOKUP(A153,'Income Statement'!A:Y,25,FALSE)),"",(VLOOKUP(A153,'Income Statement'!A:Y,25,FALSE))) -> 0 | E153: =IF(ISERROR(VLOOKUP(A153,'Income Statement'!A:Y,15,FALSE)),"",(VLOOKUP(A153,'Income Statement'!A:Y,15,FALSE))) -> 0 | F153: T12 | G153: Straight Line
A154: 57240 | B154: Office expenses | C154: 2500134 | D154: =IF(ISERROR(VLOOKUP(A154,'Income Statement'!A:Y,25,FALSE)),"",(VLOOKUP(A154,'Income Statement'!A:Y,25,FALSE))) -> 2186 | E154: =IF(ISERROR(VLOOKUP(A154,'Income Statement'!A:Y,15,FALSE)),"",(VLOOKUP(A154,'Income Statement'!A:Y,15,FALSE))) -> 1948 | F154: 3 yr avg | G154: Straight Line
A155: 57242 | B155: Paper and Forms Costs | C155: 2500134 | D155: =IF(ISERROR(VLOOKUP(A155,'Income Statement'!A:Y,25,FALSE)),"",(VLOOKUP(A155,'Income Statement'!A:Y,25,FALSE))) -> 0.001 | E155: =IF(ISERROR(VLOOKUP(A155,'Income Statement'!A:Y,15,FALSE)),"",(VLOOKUP(A155,'Income Statement'!A:Y,15,FALSE))) -> 0 | F155: 3 yr avg | G155: Straight Line
A156: 57246 | B156: PR Processing Fees | C156: 2500134 | D156: =IF(ISERROR(VLOOKUP(A156,'Income Statement'!A:Y,25,FALSE)),"",(VLOOKUP(A156,'Income Statement'!A:Y,25,FALSE))) -> 3473 | E156: =IF(ISERROR(VLOOKUP(A156,'Income Statement'!A:Y,15,FALSE)),"",(VLOOKUP(A156,'Income Statement'!A:Y,15,FALSE))) -> 3473 | F156: T12 | G156: Straight Line
A157: 57247 | B157: Photo Id's | C157: 2500134 | D157: =IF(ISERROR(VLOOKUP(A157,'Income Statement'!A:Y,25,FALSE)),"",(VLOOKUP(A157,'Income Statement'!A:Y,25,FALSE))) ->  | E157: =IF(ISERROR(VLOOKUP(A157,'Income Statement'!A:Y,15,FALSE)),"",(VLOOKUP(A157,'Income Statement'!A:Y,15,FALSE))) ->  | F157: T12 | G157: Straight Line
A158: 57249 | B158: Delivery/Freight Chgs | C158: 2500134 | D158: =IF(ISERROR(VLOOKUP(A158,'Income Statement'!A:Y,25,FALSE)),"",(VLOOKUP(A158,'Income Statement'!A:Y,25,FALSE))) ->  | E158: =IF(ISERROR(VLOOKUP(A158,'Income Statement'!A:Y,15,FALSE)),"",(VLOOKUP(A158,'Income Statement'!A:Y,15,FALSE))) ->  | F158: T12 | G158: Straight Line
A159: 57250 | B159: Postage | C159: 2500134 | D159: =IF(ISERROR(VLOOKUP(A159,'Income Statement'!A:Y,25,FALSE)),"",(VLOOKUP(A159,'Income Statement'!A:Y,25,FALSE))) -> 555 | E159: =IF(ISERROR(VLOOKUP(A159,'Income Statement'!A:Y,15,FALSE)),"",(VLOOKUP(A159,'Income Statement'!A:Y,15,FALSE))) -> 555 | F159: T12 | G159: Straight Line
A160: 57251 | B160: Postage Rental | C160: 2500134 | D160: =IF(ISERROR(VLOOKUP(A160,'Income Statement'!A:Y,25,FALSE)),"",(VLOOKUP(A160,'Income Statement'!A:Y,25,FALSE))) ->  | E160: =IF(ISERROR(VLOOKUP(A160,'Income Statement'!A:Y,15,FALSE)),"",(VLOOKUP(A160,'Income Statement'!A:Y,15,FALSE))) ->  | F160: T12 | G160: Straight Line
A161: 57252 | B161: Printing Costs | C161: 2500134 | D161: =IF(ISERROR(VLOOKUP(A161,'Income Statement'!A:Y,25,FALSE)),"",(VLOOKUP(A161,'Income Statement'!A:Y,25,FALSE))) -> 0 | E161: =IF(ISERROR(VLOOKUP(A161,'Income Statement'!A:Y,15,FALSE)),"",(VLOOKUP(A161,'Income Statement'!A:Y,15,FALSE))) -> 0 | F161: T12 | G161: Straight Line
A162: 57257 | B162: Pentalties/Late Fees | C162: 2500134 | D162: =IF(ISERROR(VLOOKUP(A162,'Income Statement'!A:Y,25,FALSE)),"",(VLOOKUP(A162,'Income Statement'!A:Y,25,FALSE))) -> 0 | E162: =IF(ISERROR(VLOOKUP(A162,'Income Statement'!A:Y,15,FALSE)),"",(VLOOKUP(A162,'Income Statement'!A:Y,15,FALSE))) -> 0 | F162: T12 | G162: Straight Line
A163: 57260 | B163: Real Estate Commissions | C163: 2500134 | D163: =IF(ISERROR(VLOOKUP(A163,'Income Statement'!A:Y,25,FALSE)),"",(VLOOKUP(A163,'Income Statement'!A:Y,25,FALSE))) ->  | E163: =IF(ISERROR(VLOOKUP(A163,'Income Statement'!A:Y,15,FALSE)),"",(VLOOKUP(A163,'Income Statement'!A:Y,15,FALSE))) ->  | F163: T12 | G163: Straight Line
A164: 57262 | B164: Rental Bonus | C164: 2500134 | D164: =IF(ISERROR(VLOOKUP(A164,'Income Statement'!A:Y,25,FALSE)),"",(VLOOKUP(A164,'Income Statement'!A:Y,25,FALSE))) ->  | E164: =IF(ISERROR(VLOOKUP(A164,'Income Statement'!A:Y,15,FALSE)),"",(VLOOKUP(A164,'Income Statement'!A:Y,15,FALSE))) ->  | F164: T12 | G164: Straight Line
A165: 57265 | B165: Rent Subsidy | C165: 2500134 | D165: =IF(ISERROR(VLOOKUP(A165,'Income Statement'!A:Y,25,FALSE)),"",(VLOOKUP(A165,'Income Statement'!A:Y,25,FALSE))) ->  | E165: =IF(ISERROR(VLOOKUP(A165,'Income Statement'!A:Y,15,FALSE)),"",(VLOOKUP(A165,'Income Statement'!A:Y,15,FALSE))) ->  | F165: T12 | G165: Straight Line
A166: 57270 | B166: Rent | C166: 2500134 | D166: =IF(ISERROR(VLOOKUP(A166,'Income Statement'!A:Y,25,FALSE)),"",(VLOOKUP(A166,'Income Statement'!A:Y,25,FALSE))) ->  | E166: =IF(ISERROR(VLOOKUP(A166,'Income Statement'!A:Y,15,FALSE)),"",(VLOOKUP(A166,'Income Statement'!A:Y,15,FALSE))) ->  | F166: T12 | G166: Straight Line
A167: 57280 | B167: Repairs and maintenance | C167: 2500134 | D167: =IF(ISERROR(VLOOKUP(A167,'Income Statement'!A:Y,25,FALSE)),"",(VLOOKUP(A167,'Income Statement'!A:Y,25,FALSE))) -> 0.001 | E167: =IF(ISERROR(VLOOKUP(A167,'Income Statement'!A:Y,15,FALSE)),"",(VLOOKUP(A167,'Income Statement'!A:Y,15,FALSE))) -> 136 | F167: T12 | G167: Straight Line
A168: 57290 | B168: Resident Activities | C168: 2500134 | D168: =IF(ISERROR(VLOOKUP(A168,'Income Statement'!A:Y,25,FALSE)),"",(VLOOKUP(A168,'Income Statement'!A:Y,25,FALSE))) -> 4672 | E168: =IF(ISERROR(VLOOKUP(A168,'Income Statement'!A:Y,15,FALSE)),"",(VLOOKUP(A168,'Income Statement'!A:Y,15,FALSE))) -> 3510 | F168: 3 yr avg | G168: Straight Line
A169: 57291 | B169: Retirement Plan 401k Admin Fees | C169: 2500134 | D169: =IF(ISERROR(VLOOKUP(A169,'Income Statement'!A:Y,25,FALSE)),"",(VLOOKUP(A169,'Income Statement'!A:Y,25,FALSE))) -> 542 | E169: =IF(ISERROR(VLOOKUP(A169,'Income Statement'!A:Y,15,FALSE)),"",(VLOOKUP(A169,'Income Statement'!A:Y,15,FALSE))) -> 542 | F169: T12 | G169: Straight Line
A170: 57295 | B170: Software & Software Services | C170: 2500134 | D170: =IF(ISERROR(VLOOKUP(A170,'Income Statement'!A:Y,25,FALSE)),"",(VLOOKUP(A170,'Income Statement'!A:Y,25,FALSE))) -> 33148 | E170: =IF(ISERROR(VLOOKUP(A170,'Income Statement'!A:Y,15,FALSE)),"",(VLOOKUP(A170,'Income Statement'!A:Y,15,FALSE))) -> 33148 | F170: T12 | G170: Straight Line
A171: 57308 | B171: Training and Seminars | C171: 2500134 | D171: =IF(ISERROR(VLOOKUP(A171,'Income Statement'!A:Y,25,FALSE)),"",(VLOOKUP(A171,'Income Statement'!A:Y,25,FALSE))) -> 1667 | E171: =IF(ISERROR(VLOOKUP(A171,'Income Statement'!A:Y,15,FALSE)),"",(VLOOKUP(A171,'Income Statement'!A:Y,15,FALSE))) -> 1667 | F171: T12 | G171: Straight Line
A172: 57320 | B172: Travel | C172: 2500134 | D172: =IF(ISERROR(VLOOKUP(A172,'Income Statement'!A:Y,25,FALSE)),"",(VLOOKUP(A172,'Income Statement'!A:Y,25,FALSE))) ->  | E172: =IF(ISERROR(VLOOKUP(A172,'Income Statement'!A:Y,15,FALSE)),"",(VLOOKUP(A172,'Income Statement'!A:Y,15,FALSE))) ->  | F172: T12 | G172: Straight Line
A173: 57325 | B173: Telecommunications | C173: 2500134 | D173: =IF(ISERROR(VLOOKUP(A173,'Income Statement'!A:Y,25,FALSE)),"",(VLOOKUP(A173,'Income Statement'!A:Y,25,FALSE))) -> 0 | E173: =IF(ISERROR(VLOOKUP(A173,'Income Statement'!A:Y,15,FALSE)),"",(VLOOKUP(A173,'Income Statement'!A:Y,15,FALSE))) -> 0 | F173: T12 | G173: Straight Line
A174: 57340 | B174: Telephone: Land Line | C174: 2500134 | D174: =IF(ISERROR(VLOOKUP(A174,'Income Statement'!A:Y,25,FALSE)),"",(VLOOKUP(A174,'Income Statement'!A:Y,25,FALSE))) -> 10280 | E174: =IF(ISERROR(VLOOKUP(A174,'Income Statement'!A:Y,15,FALSE)),"",(VLOOKUP(A174,'Income Statement'!A:Y,15,FALSE))) -> 10280 | F174: T12 | G174: Straight Line
A175: 57341 | B175: Telephone Maintenance | C175: 2500134 | D175: =IF(ISERROR(VLOOKUP(A175,'Income Statement'!A:Y,25,FALSE)),"",(VLOOKUP(A175,'Income Statement'!A:Y,25,FALSE))) -> 0 | E175: =IF(ISERROR(VLOOKUP(A175,'Income Statement'!A:Y,15,FALSE)),"",(VLOOKUP(A175,'Income Statement'!A:Y,15,FALSE))) -> 0 | F175: T12 | G175: Straight Line
A176: 57342 | B176: Telephone:Mobile | C176: 2500134 | D176: =IF(ISERROR(VLOOKUP(A176,'Income Statement'!A:Y,25,FALSE)),"",(VLOOKUP(A176,'Income Statement'!A:Y,25,FALSE))) -> 1200 | E176: =IF(ISERROR(VLOOKUP(A176,'Income Statement'!A:Y,15,FALSE)),"",(VLOOKUP(A176,'Income Statement'!A:Y,15,FALSE))) -> 1993 | F176: T12 | G176: Straight Line
A177: 57344 | B177: Total Telecommunications | C177: 2500134 | D177: =IF(ISERROR(VLOOKUP(A177,'Income Statement'!A:Y,25,FALSE)),"",(VLOOKUP(A177,'Income Statement'!A:Y,25,FALSE))) ->  | E177: =IF(ISERROR(VLOOKUP(A177,'Income Statement'!A:Y,15,FALSE)),"",(VLOOKUP(A177,'Income Statement'!A:Y,15,FALSE))) ->  | F177: T12 | G177: Straight Line
A178: 57345 | B178: Temp Help (<=2015) | C178: 2500134 | D178: =IF(ISERROR(VLOOKUP(A178,'Income Statement'!A:Y,25,FALSE)),"",(VLOOKUP(A178,'Income Statement'!A:Y,25,FALSE))) ->  | E178: =IF(ISERROR(VLOOKUP(A178,'Income Statement'!A:Y,15,FALSE)),"",(VLOOKUP(A178,'Income Statement'!A:Y,15,FALSE))) ->  | F178: DNU | G178: DNU
A179: 57350 | B179: Uniforms | C179: 2500134 | D179: =IF(ISERROR(VLOOKUP(A179,'Income Statement'!A:Y,25,FALSE)),"",(VLOOKUP(A179,'Income Statement'!A:Y,25,FALSE))) -> 673 | E179: =IF(ISERROR(VLOOKUP(A179,'Income Statement'!A:Y,15,FALSE)),"",(VLOOKUP(A179,'Income Statement'!A:Y,15,FALSE))) -> 673 | F179: T12 | G179: Straight Line
A180: 57355 | B180: Utility Mgmt & Billing Fees (YES) | C180: 2500134 | D180: =IF(ISERROR(VLOOKUP(A180,'Income Statement'!A:Y,25,FALSE)),"",(VLOOKUP(A180,'Income Statement'!A:Y,25,FALSE))) -> 16315 | E180: =IF(ISERROR(VLOOKUP(A180,'Income Statement'!A:Y,15,FALSE)),"",(VLOOKUP(A180,'Income Statement'!A:Y,15,FALSE))) -> 16315 | F180: T12 | G180: Straight Line
A181: 57620 | B181: Condominium fee | C181: 2500134 | D181: =IF(ISERROR(VLOOKUP(A181,'Income Statement'!A:Y,25,FALSE)),"",(VLOOKUP(A181,'Income Statement'!A:Y,25,FALSE))) ->  | E181: =IF(ISERROR(VLOOKUP(A181,'Income Statement'!A:Y,15,FALSE)),"",(VLOOKUP(A181,'Income Statement'!A:Y,15,FALSE))) ->  | F181: T12 | G181: Straight Line
A182: 57998 | B182: General&Admin Other Budget | C182: 2500134 | D182: =IF(ISERROR(VLOOKUP(A182,'Income Statement'!A:Y,25,FALSE)),"",(VLOOKUP(A182,'Income Statement'!A:Y,25,FALSE))) ->  | E182: =IF(ISERROR(VLOOKUP(A182,'Income Statement'!A:Y,15,FALSE)),"",(VLOOKUP(A182,'Income Statement'!A:Y,15,FALSE))) ->  | F182: T12 | G182: Straight Line
A183: 40009 | B183: Roof Rental Income | C183: 5287936 | D183: =IF(ISERROR(VLOOKUP(A183,'Income Statement'!A:Y,25,FALSE)),"",(VLOOKUP(A183,'Income Statement'!A:Y,25,FALSE))) ->  | E183: =IF(ISERROR(VLOOKUP(A183,'Income Statement'!A:Y,15,FALSE)),"",(VLOOKUP(A183,'Income Statement'!A:Y,15,FALSE))) ->  | F183: T12 | G183: Straight Line | H183: 50155 | I183: CORP SUITES | J183: Head
A184: 40007 | B184: Commercial Space Income | C184: 5296274 | D184: =IF(ISERROR(VLOOKUP(A184,'Income Statement'!A:Y,25,FALSE)),"",(VLOOKUP(A184,'Income Statement'!A:Y,25,FALSE))) ->  | E184: =IF(ISERROR(VLOOKUP(A184,'Income Statement'!A:Y,15,FALSE)),"",(VLOOKUP(A184,'Income Statement'!A:Y,15,FALSE))) ->  | F184: T12 | G184: Straight Line | H184: 50001 | I184: OPERATING EXPENSES | J184: Head
A185: 40110 | B185: Community Room non-income unit | C185: 6299648 | D185: =IF(ISERROR(VLOOKUP(A185,'Income Statement'!A:Y,25,FALSE)),"",(VLOOKUP(A185,'Income Statement'!A:Y,25,FALSE))) -> 0.001 | E185: =IF(ISERROR(VLOOKUP(A185,'Income Statement'!A:Y,15,FALSE)),"",(VLOOKUP(A185,'Income Statement'!A:Y,15,FALSE))) -> 0 | F185: 3 yr avg | G185: Straight Line | H185: 56199 | I185: TOTAL SUPPLIES | J185: Tot
A186: 40130 | B186: Employee non income unit | C186: 6299648 | D186: =IF(ISERROR(VLOOKUP(A186,'Income Statement'!A:Y,25,FALSE)),"",(VLOOKUP(A186,'Income Statement'!A:Y,25,FALSE))) -> -7800 | E186: =IF(ISERROR(VLOOKUP(A186,'Income Statement'!A:Y,15,FALSE)),"",(VLOOKUP(A186,'Income Statement'!A:Y,15,FALSE))) -> -4737 | F186: T12 | G186: Straight Line | H186: 56299 | I186: TOTAL REPAIRS | J186: Tot
A187: 40132 | B187: Non-employee non income unit | C187: 6299648 | D187: =IF(ISERROR(VLOOKUP(A187,'Income Statement'!A:Y,25,FALSE)),"",(VLOOKUP(A187,'Income Statement'!A:Y,25,FALSE))) ->  | E187: =IF(ISERROR(VLOOKUP(A187,'Income Statement'!A:Y,15,FALSE)),"",(VLOOKUP(A187,'Income Statement'!A:Y,15,FALSE))) ->  | F187: 3 yr avg | G187: Straight Line | H187: 56350 | I187: TOTAL GOLF COURSE EXP | J187: Tot
A188: 40136 | B188: Exercise room non-income unit | C188: 6299648 | D188: =IF(ISERROR(VLOOKUP(A188,'Income Statement'!A:Y,25,FALSE)),"",(VLOOKUP(A188,'Income Statement'!A:Y,25,FALSE))) ->  | E188: =IF(ISERROR(VLOOKUP(A188,'Income Statement'!A:Y,15,FALSE)),"",(VLOOKUP(A188,'Income Statement'!A:Y,15,FALSE))) ->  | F188: T12 | G188: Straight Line | H188: 56499 | I188: TOTAL MAKE READY COSTS | J188: Tot
A189: 40140 | B189: Miscellaneous non income unit | C189: 6299648 | D189: =IF(ISERROR(VLOOKUP(A189,'Income Statement'!A:Y,25,FALSE)),"",(VLOOKUP(A189,'Income Statement'!A:Y,25,FALSE))) ->  | E189: =IF(ISERROR(VLOOKUP(A189,'Income Statement'!A:Y,15,FALSE)),"",(VLOOKUP(A189,'Income Statement'!A:Y,15,FALSE))) ->  | F189: T12 | G189: Straight Line | H189: 57155 | I189: Total Auto Expenses | J189: Tot
A190: 40150 | B190: Office non-income unit | C190: 6299648 | D190: =IF(ISERROR(VLOOKUP(A190,'Income Statement'!A:Y,25,FALSE)),"",(VLOOKUP(A190,'Income Statement'!A:Y,25,FALSE))) ->  | E190: =IF(ISERROR(VLOOKUP(A190,'Income Statement'!A:Y,15,FALSE)),"",(VLOOKUP(A190,'Income Statement'!A:Y,15,FALSE))) ->  | F190: T12 | G190: Straight Line | H190: 57344 | I190: Total Telecommunications | J190: Tot
A191: 40160 | B191: Sample non-income unit | C191: 6299648 | D191: =IF(ISERROR(VLOOKUP(A191,'Income Statement'!A:Y,25,FALSE)),"",(VLOOKUP(A191,'Income Statement'!A:Y,25,FALSE))) ->  | E191: =IF(ISERROR(VLOOKUP(A191,'Income Statement'!A:Y,15,FALSE)),"",(VLOOKUP(A191,'Income Statement'!A:Y,15,FALSE))) ->  | F191: T12 | G191: Straight Line | H191: 57999 | I191: TOTAL GENERAL & ADMINISTRATIVE | J191: Tot
A192: 40164 | B192: Shop non-income unit | C192: 6299648 | D192: =IF(ISERROR(VLOOKUP(A192,'Income Statement'!A:Y,25,FALSE)),"",(VLOOKUP(A192,'Income Statement'!A:Y,25,FALSE))) ->  | E192: =IF(ISERROR(VLOOKUP(A192,'Income Statement'!A:Y,15,FALSE)),"",(VLOOKUP(A192,'Income Statement'!A:Y,15,FALSE))) ->  | F192: T12 | G192: Straight Line | H192: 58999 | I192: TOTAL OPERATING EXPENSES | J192: Tot
A193: 40168 | B193: Storage non-income unit | C193: 6299648 | D193: =IF(ISERROR(VLOOKUP(A193,'Income Statement'!A:Y,25,FALSE)),"",(VLOOKUP(A193,'Income Statement'!A:Y,25,FALSE))) ->  | E193: =IF(ISERROR(VLOOKUP(A193,'Income Statement'!A:Y,15,FALSE)),"",(VLOOKUP(A193,'Income Statement'!A:Y,15,FALSE))) ->  | F193: T12 | G193: Straight Line | H193: 59999 | I193: NET OPERATING INCOME | J193: Tot
A194: 50160 | B194: Furniture Rental - Corp Suites | C194: 6740479 | D194: =IF(ISERROR(VLOOKUP(A194,'Income Statement'!A:Y,25,FALSE)),"",(VLOOKUP(A194,'Income Statement'!A:Y,25,FALSE))) ->  | E194: =IF(ISERROR(VLOOKUP(A194,'Income Statement'!A:Y,15,FALSE)),"",(VLOOKUP(A194,'Income Statement'!A:Y,15,FALSE))) ->  | F194: T12 | G194: Straight Line
A195: 50165 | B195: Cable Exp - Corp Suites | C195: 6740479 | D195: =IF(ISERROR(VLOOKUP(A195,'Income Statement'!A:Y,25,FALSE)),"",(VLOOKUP(A195,'Income Statement'!A:Y,25,FALSE))) ->  | E195: =IF(ISERROR(VLOOKUP(A195,'Income Statement'!A:Y,15,FALSE)),"",(VLOOKUP(A195,'Income Statement'!A:Y,15,FALSE))) ->  | F195: T12 | G195: Straight Line
A196: 50170 | B196: Telephone Exp - Corp Suites | C196: 6740479 | D196: =IF(ISERROR(VLOOKUP(A196,'Income Statement'!A:Y,25,FALSE)),"",(VLOOKUP(A196,'Income Statement'!A:Y,25,FALSE))) ->  | E196: =IF(ISERROR(VLOOKUP(A196,'Income Statement'!A:Y,15,FALSE)),"",(VLOOKUP(A196,'Income Statement'!A:Y,15,FALSE))) ->  | F196: T12 | G196: Straight Line
A197: 50175 | B197: Electric - Corp Suites | C197: 6740479 | D197: =IF(ISERROR(VLOOKUP(A197,'Income Statement'!A:Y,25,FALSE)),"",(VLOOKUP(A197,'Income Statement'!A:Y,25,FALSE))) ->  | E197: =IF(ISERROR(VLOOKUP(A197,'Income Statement'!A:Y,15,FALSE)),"",(VLOOKUP(A197,'Income Statement'!A:Y,15,FALSE))) ->  | F197: T12 | G197: Straight Line
A198: 50190 | B198: Other Exp - Corp Suites | C198: 6740479 | D198: =IF(ISERROR(VLOOKUP(A198,'Income Statement'!A:Y,25,FALSE)),"",(VLOOKUP(A198,'Income Statement'!A:Y,25,FALSE))) ->  | E198: =IF(ISERROR(VLOOKUP(A198,'Income Statement'!A:Y,15,FALSE)),"",(VLOOKUP(A198,'Income Statement'!A:Y,15,FALSE))) ->  | F198: T12 | G198: Straight Line
A199: 50130 | B199: Water Expense (some incl sewer) | C199: 7884319 | D199: =IF(ISERROR(VLOOKUP(A199,'Income Statement'!A:Y,25,FALSE)),"",(VLOOKUP(A199,'Income Statement'!A:Y,25,FALSE))) -> 61165 | E199: =IF(ISERROR(VLOOKUP(A199,'Income Statement'!A:Y,15,FALSE)),"",(VLOOKUP(A199,'Income Statement'!A:Y,15,FALSE))) -> 61165 | F199: T12 | G199: Based on T-12
A200: 56110 | B200: Appliance Repair Supplies | C200: 8696052 | D200: =IF(ISERROR(VLOOKUP(A200,'Income Statement'!A:Y,25,FALSE)),"",(VLOOKUP(A200,'Income Statement'!A:Y,25,FALSE))) -> 2188 | E200: =IF(ISERROR(VLOOKUP(A200,'Income Statement'!A:Y,15,FALSE)),"",(VLOOKUP(A200,'Income Statement'!A:Y,15,FALSE))) -> 5327 | F200: 3 yr avg | G200: Straight Line
A201: 56112 | B201: Blinds Supplies | C201: 8696052 | D201: =IF(ISERROR(VLOOKUP(A201,'Income Statement'!A:Y,25,FALSE)),"",(VLOOKUP(A201,'Income Statement'!A:Y,25,FALSE))) -> 1500 | E201: =IF(ISERROR(VLOOKUP(A201,'Income Statement'!A:Y,15,FALSE)),"",(VLOOKUP(A201,'Income Statement'!A:Y,15,FALSE))) -> 1482 | F201: 3 yr avg | G201: Straight Line
... 160 more rows

Sheet Overrides (hidden)
A1: Overrides from the Income Statement Tab
A3: G/L Account | B3: Account Name | C3: Methodology | D3: Suggested Amount | E3: Override Amount | F3: Variance $ | G3: Variance % | H3: Override Notes
A4: =IF('Income Statement'!U6>0,'Income Statement'!A6,0) -> 0 | B4: =IF('Income Statement'!U6>0,'Income Statement'!B6,0) -> 0 | C4: =IF('Income Statement'!U6>0,'Income Statement'!S6,0) -> 0 | D4: =IF('Income Statement'!U6>0,'Income Statement'!T6,0) -> 0 | E4: =IF('Income Statement'!U6>0,'Income Statement'!U6,0) -> 0 | F4: =IF(LEFT(A4,1)="4",E4-D4,D4-E4) -> 0 | G4: =F4/D4 ->  | H4: =IF('Income Statement'!U6>0,'Income Statement'!X6,0) -> 0
A5: =IF('Income Statement'!U7>0,'Income Statement'!A7,0) -> 0 | B5: =IF('Income Statement'!U7>0,'Income Statement'!B7,0) -> 0 | C5: =IF('Income Statement'!U7>0,'Income Statement'!S7,0) -> 0 | D5: =IF('Income Statement'!U7>0,'Income Statement'!T7,0) -> 0 | E5: =IF('Income Statement'!U7>0,'Income Statement'!U7,0) -> 0 | F5: 0 | G5: =F5/D5 ->  | H5: =IF('Income Statement'!U7>0,'Income Statement'!X7,0) -> 0
A6: =IF('Income Statement'!U8>0,'Income Statement'!A8,0) -> 0 | B6: =IF('Income Statement'!U8>0,'Income Statement'!B8,0) -> 0 | C6: =IF('Income Statement'!U8>0,'Income Statement'!S8,0) -> 0 | D6: =IF('Income Statement'!U8>0,'Income Statement'!T8,0) -> 0 | E6: =IF('Income Statement'!U8>0,'Income Statement'!U8,0) -> 0 | F6: 0 | G6: =F6/D6 ->  | H6: =IF('Income Statement'!U8>0,'Income Statement'!X8,0) -> 0
A7: =IF('Income Statement'!U9>0,'Income Statement'!A9,0) -> 0 | B7: =IF('Income Statement'!U9>0,'Income Statement'!B9,0) -> 0 | C7: =IF('Income Statement'!U9>0,'Income Statement'!S9,0) -> 0 | D7: =IF('Income Statement'!U9>0,'Income Statement'!T9,0) -> 0 | E7: =IF('Income Statement'!U9>0,'Income Statement'!U9,0) -> 0 | F7: 0 | H7: =IF('Income Statement'!U9>0,'Income Statement'!X9,0) -> 0
A8: =IF('Income Statement'!U10>0,'Income Statement'!A10,0) -> 0 | B8: =IF('Income Statement'!U10>0,'Income Statement'!B10,0) -> 0 | C8: =IF('Income Statement'!U10>0,'Income Statement'!S10,0) -> 0 | D8: =IF('Income Statement'!U10>0,'Income Statement'!T10,0) -> 0 | E8: =IF('Income Statement'!U10>0,'Income Statement'!U10,0) -> 0 | F8: 0 | H8: =IF('Income Statement'!U10>0,'Income Statement'!X10,0) -> 0
A9: =IF('Income Statement'!U11>0,'Income Statement'!A11,0) -> 40005 | B9: =IF('Income Statement'!U11>0,'Income Statement'!B11,0) -> Late charge income | C9: =IF('Income Statement'!U11>0,'Income Statement'!S11,0) -> 3 yr avg | D9: =IF('Income Statement'!U11>0,'Income Statement'!T11,0) -> 9617 | E9: =IF('Income Statement'!U11>0,'Income Statement'!U11,0) -> 18800 | F9: 9183 | G9: 0.9548715816 | H9: =IF('Income Statement'!U11>0,'Income Statement'!X11,0) -> used T12 - 3 yr avg during covid
A10: =IF('Income Statement'!U12>0,'Income Statement'!A12,0) -> 0 | B10: =IF('Income Statement'!U12>0,'Income Statement'!B12,0) -> 0 | C10: =IF('Income Statement'!U12>0,'Income Statement'!S12,0) -> 0 | D10: =IF('Income Statement'!U12>0,'Income Statement'!T12,0) -> 0 | E10: =IF('Income Statement'!U12>0,'Income Statement'!U12,0) -> 0 | F10: =IF(LEFT(A10,1)="4",E10-D10,D10-E10) -> 0 | H10: =IF('Income Statement'!U12>0,'Income Statement'!X12,0) -> 0
A11: =IF('Income Statement'!U13>0,'Income Statement'!A13,0) -> 0 | B11: =IF('Income Statement'!U13>0,'Income Statement'!B13,0) -> 0 | C11: =IF('Income Statement'!U13>0,'Income Statement'!S13,0) -> 0 | D11: =IF('Income Statement'!U13>0,'Income Statement'!T13,0) -> 0 | E11: =IF('Income Statement'!U13>0,'Income Statement'!U13,0) -> 0 | F11: =IF(LEFT(A11,1)="4",E11-D11,D11-E11) -> 0 | H11: =IF('Income Statement'!U13>0,'Income Statement'!X13,0) -> 0
A12: =IF('Income Statement'!U14>0,'Income Statement'!A14,0) -> 0 | B12: =IF('Income Statement'!U14>0,'Income Statement'!B14,0) -> 0 | C12: =IF('Income Statement'!U14>0,'Income Statement'!S14,0) -> 0 | D12: =IF('Income Statement'!U14>0,'Income Statement'!T14,0) -> 0 | E12: =IF('Income Statement'!U14>0,'Income Statement'!U14,0) -> 0 | F12: 0 | H12: =IF('Income Statement'!U14>0,'Income Statement'!X14,0) -> 0
A13: =IF('Income Statement'!U15>0,'Income Statement'!A15,0) -> 0 | B13: =IF('Income Statement'!U15>0,'Income Statement'!B15,0) -> 0 | C13: =IF('Income Statement'!U15>0,'Income Statement'!S15,0) -> 0 | D13: =IF('Income Statement'!U15>0,'Income Statement'!T15,0) -> 0 | E13: =IF('Income Statement'!U15>0,'Income Statement'!U15,0) -> 0 | F13: 0 | H13: =IF('Income Statement'!U15>0,'Income Statement'!X15,0) -> 0
A14: =IF('Income Statement'!U16>0,'Income Statement'!A16,0) -> 0 | B14: =IF('Income Statement'!U16>0,'Income Statement'!B16,0) -> 0 | C14: =IF('Income Statement'!U16>0,'Income Statement'!S16,0) -> 0 | D14: =IF('Income Statement'!U16>0,'Income Statement'!T16,0) -> 0 | E14: =IF('Income Statement'!U16>0,'Income Statement'!U16,0) -> 0 | F14: 0 | H14: =IF('Income Statement'!U16>0,'Income Statement'!X16,0) -> 0
A15: =IF('Income Statement'!U17>0,'Income Statement'!A17,0) -> 0 | B15: =IF('Income Statement'!U17>0,'Income Statement'!B17,0) -> 0 | C15: =IF('Income Statement'!U17>0,'Income Statement'!S17,0) -> 0 | D15: =IF('Income Statement'!U17>0,'Income Statement'!T17,0) -> 0 | E15: =IF('Income Statement'!U17>0,'Income Statement'!U17,0) -> 0 | F15: 0 | H15: =IF('Income Statement'!U17>0,'Income Statement'!X17,0) -> 0
A16: =IF('Income Statement'!U18>0,'Income Statement'!A18,0) -> 40022 | B16: =IF('Income Statement'!U18>0,'Income Statement'!B18,0) -> short-term/mm fee | C16: =IF('Income Statement'!U18>0,'Income Statement'!S18,0) -> T12 | D16: =IF('Income Statement'!U18>0,'Income Statement'!T18,0) -> 489 | E16: =IF('Income Statement'!U18>0,'Income Statement'!U18,0) -> 0.001 | F16: -488.999 | G16: -0.999997955 | H16: =IF('Income Statement'!U18>0,'Income Statement'!X18,0) -> LRO should be zero
A17: =IF('Income Statement'!U19>0,'Income Statement'!A19,0) -> 0 | B17: =IF('Income Statement'!U19>0,'Income Statement'!B19,0) -> 0 | C17: =IF('Income Statement'!U19>0,'Income Statement'!S19,0) -> 0 | D17: =IF('Income Statement'!U19>0,'Income Statement'!T19,0) -> 0 | E17: =IF('Income Statement'!U19>0,'Income Statement'!U19,0) -> 0 | F17: 0 | H17: =IF('Income Statement'!U19>0,'Income Statement'!X19,0) -> 0
A18: =IF('Income Statement'!U20>0,'Income Statement'!A20,0) -> 0 | B18: =IF('Income Statement'!U20>0,'Income Statement'!B20,0) -> 0 | C18: =IF('Income Statement'!U20>0,'Income Statement'!S20,0) -> 0 | D18: =IF('Income Statement'!U20>0,'Income Statement'!T20,0) -> 0 | E18: =IF('Income Statement'!U20>0,'Income Statement'!U20,0) -> 0 | F18: 0 | H18: =IF('Income Statement'!U20>0,'Income Statement'!X20,0) -> 0
A19: =IF('Income Statement'!U21>0,'Income Statement'!A21,0) -> 0 | B19: =IF('Income Statement'!U21>0,'Income Statement'!B21,0) -> 0 | C19: =IF('Income Statement'!U21>0,'Income Statement'!S21,0) -> 0 | D19: =IF('Income Statement'!U21>0,'Income Statement'!T21,0) -> 0 | E19: =IF('Income Statement'!U21>0,'Income Statement'!U21,0) -> 0 | F19: 0 | H19: =IF('Income Statement'!U21>0,'Income Statement'!X21,0) -> 0
A20: =IF('Income Statement'!U22>0,'Income Statement'!A22,0) -> 0 | B20: =IF('Income Statement'!U22>0,'Income Statement'!B22,0) -> 0 | C20: =IF('Income Statement'!U22>0,'Income Statement'!S22,0) -> 0 | D20: =IF('Income Statement'!U22>0,'Income Statement'!T22,0) -> 0 | E20: =IF('Income Statement'!U22>0,'Income Statement'!U22,0) -> 0 | F20: 0 | H20: =IF('Income Statement'!U22>0,'Income Statement'!X22,0) -> 0
A21: =IF('Income Statement'!U23>0,'Income Statement'!A23,0) -> 0 | B21: =IF('Income Statement'!U23>0,'Income Statement'!B23,0) -> 0 | C21: =IF('Income Statement'!U23>0,'Income Statement'!S23,0) -> 0 | D21: =IF('Income Statement'!U23>0,'Income Statement'!T23,0) -> 0 | E21: =IF('Income Statement'!U23>0,'Income Statement'!U23,0) -> 0 | F21: 0 | H21: =IF('Income Statement'!U23>0,'Income Statement'!X23,0) -> 0
A22: =IF('Income Statement'!U24>0,'Income Statement'!A24,0) -> 40110 | B22: =IF('Income Statement'!U24>0,'Income Statement'!B24,0) -> Community Room non-income unit | C22: =IF('Income Statement'!U24>0,'Income Statement'!S24,0) -> 3 yr avg | D22: =IF('Income Statement'!U24>0,'Income Statement'!T24,0) -> 17 | E22: =IF('Income Statement'!U24>0,'Income Statement'!U24,0) -> 0.001 | F22: -16.999 | G22: -0.9999411765 | H22: =IF('Income Statement'!U24>0,'Income Statement'!X24,0) -> zero out
A23: =IF('Income Statement'!U25>0,'Income Statement'!A25,0) -> 0 | B23: =IF('Income Statement'!U25>0,'Income Statement'!B25,0) -> 0 | C23: =IF('Income Statement'!U25>0,'Income Statement'!S25,0) -> 0 | D23: =IF('Income Statement'!U25>0,'Income Statement'!T25,0) -> 0 | E23: =IF('Income Statement'!U25>0,'Income Statement'!U25,0) -> 0 | F23: 0 | H23: =IF('Income Statement'!U25>0,'Income Statement'!X25,0) -> 0
A24: =IF('Income Statement'!U26>0,'Income Statement'!A26,0) -> 0 | B24: =IF('Income Statement'!U26>0,'Income Statement'!B26,0) -> 0 | C24: =IF('Income Statement'!U26>0,'Income Statement'!S26,0) -> 0 | D24: =IF('Income Statement'!U26>0,'Income Statement'!T26,0) -> 0 | E24: =IF('Income Statement'!U26>0,'Income Statement'!U26,0) -> 0 | F24: 0 | H24: =IF('Income Statement'!U26>0,'Income Statement'!X26,0) -> 0
A25: =IF('Income Statement'!U27>0,'Income Statement'!A27,0) -> 0 | B25: =IF('Income Statement'!U27>0,'Income Statement'!B27,0) -> 0 | C25: =IF('Income Statement'!U27>0,'Income Statement'!S27,0) -> 0 | D25: =IF('Income Statement'!U27>0,'Income Statement'!T27,0) -> 0 | E25: =IF('Income Statement'!U27>0,'Income Statement'!U27,0) -> 0 | F25: 0 | H25: =IF('Income Statement'!U27>0,'Income Statement'!X27,0) -> 0
A26: =IF('Income Statement'!U28>0,'Income Statement'!A28,0) -> 0 | B26: =IF('Income Statement'!U28>0,'Income Statement'!B28,0) -> 0 | C26: =IF('Income Statement'!U28>0,'Income Statement'!S28,0) -> 0 | D26: =IF('Income Statement'!U28>0,'Income Statement'!T28,0) -> 0 | E26: =IF('Income Statement'!U28>0,'Income Statement'!U28,0) -> 0 | F26: 0 | H26: =IF('Income Statement'!U28>0,'Income Statement'!X28,0) -> 0
A27: =IF('Income Statement'!U29>0,'Income Statement'!A29,0) -> 0 | B27: =IF('Income Statement'!U29>0,'Income Statement'!B29,0) -> 0 | C27: =IF('Income Statement'!U29>0,'Income Statement'!S29,0) -> 0 | D27: =IF('Income Statement'!U29>0,'Income Statement'!T29,0) -> 0 | E27: =IF('Income Statement'!U29>0,'Income Statement'!U29,0) -> 0 | F27: 0 | H27: =IF('Income Statement'!U29>0,'Income Statement'!X29,0) -> 0
A28: =IF('Income Statement'!U30>0,'Income Statement'!A30,0) -> 0 | B28: =IF('Income Statement'!U30>0,'Income Statement'!B30,0) -> 0 | C28: =IF('Income Statement'!U30>0,'Income Statement'!S30,0) -> 0 | D28: =IF('Income Statement'!U30>0,'Income Statement'!T30,0) -> 0 | E28: =IF('Income Statement'!U30>0,'Income Statement'!U30,0) -> 0 | F28: 0 | H28: =IF('Income Statement'!U30>0,'Income Statement'!X30,0) -> 0
A29: =IF('Income Statement'!U31>0,'Income Statement'!A31,0) -> 40214 | B29: =IF('Income Statement'!U31>0,'Income Statement'!B31,0) -> Concession-Inconvenience | C29: =IF('Income Statement'!U31>0,'Income Statement'!S31,0) -> T12 | D29: =IF('Income Statement'!U31>0,'Income Statement'!T31,0) -> -1524 | E29: =IF('Income Statement'!U31>0,'Income Statement'!U31,0) -> 0.001 | F29: 1524.001 | G29: -1.000000656 | H29: =IF('Income Statement'!U31>0,'Income Statement'!X31,0) -> zero out
A30: =IF('Income Statement'!U32>0,'Income Statement'!A32,0) -> 0 | B30: =IF('Income Statement'!U32>0,'Income Statement'!B32,0) -> 0 | C30: =IF('Income Statement'!U32>0,'Income Statement'!S32,0) -> 0 | D30: =IF('Income Statement'!U32>0,'Income Statement'!T32,0) -> 0 | E30: =IF('Income Statement'!U32>0,'Income Statement'!U32,0) -> 0 | F30: 0 | H30: =IF('Income Statement'!U32>0,'Income Statement'!X32,0) -> 0
A31: =IF('Income Statement'!U33>0,'Income Statement'!A33,0) -> 0 | B31: =IF('Income Statement'!U33>0,'Income Statement'!B33,0) -> 0 | C31: =IF('Income Statement'!U33>0,'Income Statement'!S33,0) -> 0 | D31: =IF('Income Statement'!U33>0,'Income Statement'!T33,0) -> 0 | E31: =IF('Income Statement'!U33>0,'Income Statement'!U33,0) -> 0 | F31: 0 | H31: =IF('Income Statement'!U33>0,'Income Statement'!X33,0) -> 0
A32: =IF('Income Statement'!U34>0,'Income Statement'!A34,0) -> 40302 | B32: =IF('Income Statement'!U34>0,'Income Statement'!B34,0) -> Renters Ins Income | C32: =IF('Income Statement'!U34>0,'Income Statement'!S34,0) -> T12 | D32: =IF('Income Statement'!U34>0,'Income Statement'!T34,0) -> 1630 | E32: =IF('Income Statement'!U34>0,'Income Statement'!U34,0) -> 0.001 | F32: -1629.999 | G32: -0.9999993865 | H32: =IF('Income Statement'!U34>0,'Income Statement'!X34,0) -> zero out
A33: =IF('Income Statement'!U35>0,'Income Statement'!A35,0) -> 40303 | B33: =IF('Income Statement'!U35>0,'Income Statement'!B35,0) -> Forfeit Sec Deposit Inc | C33: =IF('Income Statement'!U35>0,'Income Statement'!S35,0) -> T12 | D33: =IF('Income Statement'!U35>0,'Income Statement'!T35,0) -> -1215 | E33: =IF('Income Statement'!U35>0,'Income Statement'!U35,0) -> 0.001 | F33: 1215.001 | G33: -1.000000823 | H33: =IF('Income Statement'!U35>0,'Income Statement'!X35,0) -> zero out
A34: =IF('Income Statement'!U36>0,'Income Statement'!A36,0) -> 0 | B34: =IF('Income Statement'!U36>0,'Income Statement'!B36,0) -> 0 | C34: =IF('Income Statement'!U36>0,'Income Statement'!S36,0) -> 0 | D34: =IF('Income Statement'!U36>0,'Income Statement'!T36,0) -> 0 | E34: =IF('Income Statement'!U36>0,'Income Statement'!U36,0) -> 0 | F34: 0 | H34: =IF('Income Statement'!U36>0,'Income Statement'!X36,0) -> 0
A35: =IF('Income Statement'!U37>0,'Income Statement'!A37,0) -> 0 | B35: =IF('Income Statement'!U37>0,'Income Statement'!B37,0) -> 0 | C35: =IF('Income Statement'!U37>0,'Income Statement'!S37,0) -> 0 | D35: =IF('Income Statement'!U37>0,'Income Statement'!T37,0) -> 0 | E35: =IF('Income Statement'!U37>0,'Income Statement'!U37,0) -> 0 | F35: 0 | H35: =IF('Income Statement'!U37>0,'Income Statement'!X37,0) -> 0
A36: =IF('Income Statement'!U38>0,'Income Statement'!A38,0) -> 40351 | B36: =IF('Income Statement'!U38>0,'Income Statement'!B38,0) -> Recovery Bad Debt | C36: =IF('Income Statement'!U38>0,'Income Statement'!S38,0) -> 3 yr avg | D36: =IF('Income Statement'!U38>0,'Income Statement'!T38,0) -> 16086 | E36: =IF('Income Statement'!U38>0,'Income Statement'!U38,0) -> 17900 | F36: 1814 | G36: 0.1127688673 | H36: =IF('Income Statement'!U38>0,'Income Statement'!X38,0) -> see above
A37: =IF('Income Statement'!U39>0,'Income Statement'!A39,0) -> 0 | B37: =IF('Income Statement'!U39>0,'Income Statement'!B39,0) -> 0 | C37: =IF('Income Statement'!U39>0,'Income Statement'!S39,0) -> 0 | D37: =IF('Income Statement'!U39>0,'Income Statement'!T39,0) -> 0 | E37: =IF('Income Statement'!U39>0,'Income Statement'!U39,0) -> 0 | F37: 0 | H37: =IF('Income Statement'!U39>0,'Income Statement'!X39,0) -> 0
A38: =IF('Income Statement'!U40>0,'Income Statement'!A40,0) -> 0 | B38: =IF('Income Statement'!U40>0,'Income Statement'!B40,0) -> 0 | C38: =IF('Income Statement'!U40>0,'Income Statement'!S40,0) -> 0 | D38: =IF('Income Statement'!U40>0,'Income Statement'!T40,0) -> 0 | E38: =IF('Income Statement'!U40>0,'Income Statement'!U40,0) -> 0 | F38: 0 | H38: =IF('Income Statement'!U40>0,'Income Statement'!X40,0) -> 0
A39: =IF('Income Statement'!U41>0,'Income Statement'!A41,0) -> 0 | B39: =IF('Income Statement'!U41>0,'Income Statement'!B41,0) -> 0 | C39: =IF('Income Statement'!U41>0,'Income Statement'!S41,0) -> 0 | D39: =IF('Income Statement'!U41>0,'Income Statement'!T41,0) -> 0 | E39: =IF('Income Statement'!U41>0,'Income Statement'!U41,0) -> 0 | F39: 0 | H39: =IF('Income Statement'!U41>0,'Income Statement'!X41,0) -> 0
A40: =IF('Income Statement'!U42>0,'Income Statement'!A42,0) -> 0 | B40: =IF('Income Statement'!U42>0,'Income Statement'!B42,0) -> 0 | C40: =IF('Income Statement'!U42>0,'Income Statement'!S42,0) -> 0 | D40: =IF('Income Statement'!U42>0,'Income Statement'!T42,0) -> 0 | E40: =IF('Income Statement'!U42>0,'Income Statement'!U42,0) -> 0 | F40: 0 | H40: =IF('Income Statement'!U42>0,'Income Statement'!X42,0) -> 0
A41: =IF('Income Statement'!U43>0,'Income Statement'!A43,0) -> 0 | B41: =IF('Income Statement'!U43>0,'Income Statement'!B43,0) -> 0 | C41: =IF('Income Statement'!U43>0,'Income Statement'!S43,0) -> 0 | D41: =IF('Income Statement'!U43>0,'Income Statement'!T43,0) -> 0 | E41: =IF('Income Statement'!U43>0,'Income Statement'!U43,0) -> 0 | F41: 0 | H41: =IF('Income Statement'!U43>0,'Income Statement'!X43,0) -> 0
A42: =IF('Income Statement'!U44>0,'Income Statement'!A44,0) -> 50110 | B42: =IF('Income Statement'!U44>0,'Income Statement'!B44,0) -> Electric Expense | C42: =IF('Income Statement'!U44>0,'Income Statement'!S44,0) -> T12 | D42: =IF('Income Statement'!U44>0,'Income Statement'!T44,0) -> 40946 | E42: =IF('Income Statement'!U44>0,'Income Statement'!U44,0) -> 36000 | F42: 4946 | G42: 0.1207932399 | H42: =IF('Income Statement'!U44>0,'Income Statement'!X44,0) -> used T12 - zeroing out the inc
A43: =IF('Income Statement'!U45>0,'Income Statement'!A45,0) -> 50111 | B43: =IF('Income Statement'!U45>0,'Income Statement'!B45,0) -> Electric Income | C43: =IF('Income Statement'!U45>0,'Income Statement'!S45,0) -> T12 | D43: =IF('Income Statement'!U45>0,'Income Statement'!T45,0) -> -4154 | E43: =IF('Income Statement'!U45>0,'Income Statement'!U45,0) -> 0.001 | F43: -4154.001 | G43: 1.000000241 | H43: =IF('Income Statement'!U45>0,'Income Statement'!X45,0) -> zero out - offset with exp
A44: =IF('Income Statement'!U46>0,'Income Statement'!A46,0) -> 50120 | B44: =IF('Income Statement'!U46>0,'Income Statement'!B46,0) -> Gas Expense | C44: =IF('Income Statement'!U46>0,'Income Statement'!S46,0) -> T12 | D44: =IF('Income Statement'!U46>0,'Income Statement'!T46,0) -> 15115 | E44: =IF('Income Statement'!U46>0,'Income Statement'!U46,0) -> 900 | F44: 14215 | G44: 0.9404565002 | H44: =IF('Income Statement'!U46>0,'Income Statement'!X46,0) -> Gas for clubhouse only - the rest is VCR
A45: =IF('Income Statement'!U47>0,'Income Statement'!A47,0) -> 50121 | B45: =IF('Income Statement'!U47>0,'Income Statement'!B47,0) -> Gas Income | C45: =IF('Income Statement'!U47>0,'Income Statement'!S47,0) -> T12 | D45: =IF('Income Statement'!U47>0,'Income Statement'!T47,0) -> -8715 | E45: =IF('Income Statement'!U47>0,'Income Statement'!U47,0) -> 0.001 | F45: -8715.001 | G45: 1.000000115 | H45: =IF('Income Statement'!U47>0,'Income Statement'!X47,0) -> zero out - this is VCR charges
A46: =IF('Income Statement'!U48>0,'Income Statement'!A48,0) -> 0 | B46: =IF('Income Statement'!U48>0,'Income Statement'!B48,0) -> 0 | C46: =IF('Income Statement'!U48>0,'Income Statement'!S48,0) -> 0 | D46: =IF('Income Statement'!U48>0,'Income Statement'!T48,0) -> 0 | E46: =IF('Income Statement'!U48>0,'Income Statement'!U48,0) -> 0 | F46: 0 | H46: =IF('Income Statement'!U48>0,'Income Statement'!X48,0) -> 0
A47: =IF('Income Statement'!U49>0,'Income Statement'!A49,0) -> 0 | B47: =IF('Income Statement'!U49>0,'Income Statement'!B49,0) -> 0 | C47: =IF('Income Statement'!U49>0,'Income Statement'!S49,0) -> 0 | D47: =IF('Income Statement'!U49>0,'Income Statement'!T49,0) -> 0 | E47: =IF('Income Statement'!U49>0,'Income Statement'!U49,0) -> 0 | F47: 0 | H47: =IF('Income Statement'!U49>0,'Income Statement'!X49,0) -> 0
A48: =IF('Income Statement'!U50>0,'Income Statement'!A50,0) -> 0 | B48: =IF('Income Statement'!U50>0,'Income Statement'!B50,0) -> 0 | C48: =IF('Income Statement'!U50>0,'Income Statement'!S50,0) -> 0 | D48: =IF('Income Statement'!U50>0,'Income Statement'!T50,0) -> 0 | E48: =IF('Income Statement'!U50>0,'Income Statement'!U50,0) -> 0 | F48: 0 | H48: =IF('Income Statement'!U50>0,'Income Statement'!X50,0) -> 0
A49: =IF('Income Statement'!U51>0,'Income Statement'!A51,0) -> 0 | B49: =IF('Income Statement'!U51>0,'Income Statement'!B51,0) -> 0 | C49: =IF('Income Statement'!U51>0,'Income Statement'!S51,0) -> 0 | D49: =IF('Income Statement'!U51>0,'Income Statement'!T51,0) -> 0 | E49: =IF('Income Statement'!U51>0,'Income Statement'!U51,0) -> 0 | F49: 0 | H49: =IF('Income Statement'!U51>0,'Income Statement'!X51,0) -> 0
A50: =IF('Income Statement'!U52>0,'Income Statement'!A52,0) -> 0 | B50: =IF('Income Statement'!U52>0,'Income Statement'!B52,0) -> 0 | C50: =IF('Income Statement'!U52>0,'Income Statement'!S52,0) -> 0 | D50: =IF('Income Statement'!U52>0,'Income Statement'!T52,0) -> 0 | E50: =IF('Income Statement'!U52>0,'Income Statement'!U52,0) -> 0 | F50: 0 | H50: =IF('Income Statement'!U52>0,'Income Statement'!X52,0) -> 0
A51: =IF('Income Statement'!U53>0,'Income Statement'!A53,0) -> 0 | B51: =IF('Income Statement'!U53>0,'Income Statement'!B53,0) -> 0 | C51: =IF('Income Statement'!U53>0,'Income Statement'!S53,0) -> 0 | D51: =IF('Income Statement'!U53>0,'Income Statement'!T53,0) -> 0 | E51: =IF('Income Statement'!U53>0,'Income Statement'!U53,0) -> 0 | F51: 0 | H51: =IF('Income Statement'!U53>0,'Income Statement'!X53,0) -> 0
A52: =IF('Income Statement'!U54>0,'Income Statement'!A54,0) -> 0 | B52: =IF('Income Statement'!U54>0,'Income Statement'!B54,0) -> 0 | C52: =IF('Income Statement'!U54>0,'Income Statement'!S54,0) -> 0 | D52: =IF('Income Statement'!U54>0,'Income Statement'!T54,0) -> 0 | E52: =IF('Income Statement'!U54>0,'Income Statement'!U54,0) -> 0 | F52: 0 | H52: =IF('Income Statement'!U54>0,'Income Statement'!X54,0) -> 0
A53: =IF('Income Statement'!U55>0,'Income Statement'!A55,0) -> 0 | B53: =IF('Income Statement'!U55>0,'Income Statement'!B55,0) -> 0 | C53: =IF('Income Statement'!U55>0,'Income Statement'!S55,0) -> 0 | D53: =IF('Income Statement'!U55>0,'Income Statement'!T55,0) -> 0 | E53: =IF('Income Statement'!U55>0,'Income Statement'!U55,0) -> 0 | F53: 0 | H53: =IF('Income Statement'!U55>0,'Income Statement'!X55,0) -> 0
A54: =IF('Income Statement'!U56>0,'Income Statement'!A56,0) -> 0 | B54: =IF('Income Statement'!U56>0,'Income Statement'!B56,0) -> 0 | C54: =IF('Income Statement'!U56>0,'Income Statement'!S56,0) -> 0 | D54: =IF('Income Statement'!U56>0,'Income Statement'!T56,0) -> 0 | E54: =IF('Income Statement'!U56>0,'Income Statement'!U56,0) -> 0 | F54: 0 | H54: =IF('Income Statement'!U56>0,'Income Statement'!X56,0) -> 0
A55: =IF('Income Statement'!U57>0,'Income Statement'!A57,0) -> 0 | B55: =IF('Income Statement'!U57>0,'Income Statement'!B57,0) -> 0 | C55: =IF('Income Statement'!U57>0,'Income Statement'!S57,0) -> 0 | D55: =IF('Income Statement'!U57>0,'Income Statement'!T57,0) -> 0 | E55: =IF('Income Statement'!U57>0,'Income Statement'!U57,0) -> 0 | F55: 0 | H55: =IF('Income Statement'!U57>0,'Income Statement'!X57,0) -> 0
A56: =IF('Income Statement'!U58>0,'Income Statement'!A58,0) -> 0 | B56: =IF('Income Statement'!U58>0,'Income Statement'!B58,0) -> 0 | C56: =IF('Income Statement'!U58>0,'Income Statement'!S58,0) -> 0 | D56: =IF('Income Statement'!U58>0,'Income Statement'!T58,0) -> 0 | E56: =IF('Income Statement'!U58>0,'Income Statement'!U58,0) -> 0 | F56: 0 | H56: =IF('Income Statement'!U58>0,'Income Statement'!X58,0) -> 0
A57: =IF('Income Statement'!U59>0,'Income Statement'!A59,0) -> 0 | B57: =IF('Income Statement'!U59>0,'Income Statement'!B59,0) -> 0 | C57: =IF('Income Statement'!U59>0,'Income Statement'!S59,0) -> 0 | D57: =IF('Income Statement'!U59>0,'Income Statement'!T59,0) -> 0 | E57: =IF('Income Statement'!U59>0,'Income Statement'!U59,0) -> 0 | F57: 0 | H57: =IF('Income Statement'!U59>0,'Income Statement'!X59,0) -> 0
A58: =IF('Income Statement'!U60>0,'Income Statement'!A60,0) -> 0 | B58: =IF('Income Statement'!U60>0,'Income Statement'!B60,0) -> 0 | C58: =IF('Income Statement'!U60>0,'Income Statement'!S60,0) -> 0 | D58: =IF('Income Statement'!U60>0,'Income Statement'!T60,0) -> 0 | E58: =IF('Income Statement'!U60>0,'Income Statement'!U60,0) -> 0 | F58: 0 | H58: =IF('Income Statement'!U60>0,'Income Statement'!X60,0) -> 0
A59: =IF('Income Statement'!U61>0,'Income Statement'!A61,0) -> 0 | B59: =IF('Income Statement'!U61>0,'Income Statement'!B61,0) -> 0 | C59: =IF('Income Statement'!U61>0,'Income Statement'!S61,0) -> 0 | D59: =IF('Income Statement'!U61>0,'Income Statement'!T61,0) -> 0 | E59: =IF('Income Statement'!U61>0,'Income Statement'!U61,0) -> 0 | F59: 0 | H59: =IF('Income Statement'!U61>0,'Income Statement'!X61,0) -> 0
A60: =IF('Income Statement'!U62>0,'Income Statement'!A62,0) -> 0 | B60: =IF('Income Statement'!U62>0,'Income Statement'!B62,0) -> 0 | C60: =IF('Income Statement'!U62>0,'Income Statement'!S62,0) -> 0 | D60: =IF('Income Statement'!U62>0,'Income Statement'!T62,0) -> 0 | E60: =IF('Income Statement'!U62>0,'Income Statement'!U62,0) -> 0 | F60: 0 | H60: =IF('Income Statement'!U62>0,'Income Statement'!X62,0) -> 0
A61: =IF('Income Statement'!U63>0,'Income Statement'!A63,0) -> 0 | B61: =IF('Income Statement'!U63>0,'Income Statement'!B63,0) -> 0 | C61: =IF('Income Statement'!U63>0,'Income Statement'!S63,0) -> 0 | D61: =IF('Income Statement'!U63>0,'Income Statement'!T63,0) -> 0 | E61: =IF('Income Statement'!U63>0,'Income Statement'!U63,0) -> 0 | F61: 0 | H61: =IF('Income Statement'!U63>0,'Income Statement'!X63,0) -> 0
A62: =IF('Income Statement'!U64>0,'Income Statement'!A64,0) -> 0 | B62: =IF('Income Statement'!U64>0,'Income Statement'!B64,0) -> 0 | C62: =IF('Income Statement'!U64>0,'Income Statement'!S64,0) -> 0 | D62: =IF('Income Statement'!U64>0,'Income Statement'!T64,0) -> 0 | E62: =IF('Income Statement'!U64>0,'Income Statement'!U64,0) -> 0 | F62: 0 | H62: =IF('Income Statement'!U64>0,'Income Statement'!X64,0) -> 0
A63: =IF('Income Statement'!U65>0,'Income Statement'!A65,0) -> 0 | B63: =IF('Income Statement'!U65>0,'Income Statement'!B65,0) -> 0 | C63: =IF('Income Statement'!U65>0,'Income Statement'!S65,0) -> 0 | D63: =IF('Income Statement'!U65>0,'Income Statement'!T65,0) -> 0 | E63: =IF('Income Statement'!U65>0,'Income Statement'!U65,0) -> 0 | F63: 0 | H63: =IF('Income Statement'!U65>0,'Income Statement'!X65,0) -> 0
A64: =IF('Income Statement'!U66>0,'Income Statement'!A66,0) -> 0 | B64: =IF('Income Statement'!U66>0,'Income Statement'!B66,0) -> 0 | C64: =IF('Income Statement'!U66>0,'Income Statement'!S66,0) -> 0 | D64: =IF('Income Statement'!U66>0,'Income Statement'!T66,0) -> 0 | E64: =IF('Income Statement'!U66>0,'Income Statement'!U66,0) -> 0 | F64: 0 | H64: =IF('Income Statement'!U66>0,'Income Statement'!X66,0) -> 0
A65: =IF('Income Statement'!U67>0,'Income Statement'!A67,0) -> 0 | B65: =IF('Income Statement'!U67>0,'Income Statement'!B67,0) -> 0 | C65: =IF('Income Statement'!U67>0,'Income Statement'!S67,0) -> 0 | D65: =IF('Income Statement'!U67>0,'Income Statement'!T67,0) -> 0 | E65: =IF('Income Statement'!U67>0,'Income Statement'!U67,0) -> 0 | F65: 0 | H65: =IF('Income Statement'!U67>0,'Income Statement'!X67,0) -> 0
A66: =IF('Income Statement'!U68>0,'Income Statement'!A68,0) -> 0 | B66: =IF('Income Statement'!U68>0,'Income Statement'!B68,0) -> 0 | C66: =IF('Income Statement'!U68>0,'Income Statement'!S68,0) -> 0 | D66: =IF('Income Statement'!U68>0,'Income Statement'!T68,0) -> 0 | E66: =IF('Income Statement'!U68>0,'Income Statement'!U68,0) -> 0 | F66: 0 | H66: =IF('Income Statement'!U68>0,'Income Statement'!X68,0) -> 0
A67: =IF('Income Statement'!U69>0,'Income Statement'!A69,0) -> 0 | B67: =IF('Income Statement'!U69>0,'Income Statement'!B69,0) -> 0 | C67: =IF('Income Statement'!U69>0,'Income Statement'!S69,0) -> 0 | D67: =IF('Income Statement'!U69>0,'Income Statement'!T69,0) -> 0 | E67: =IF('Income Statement'!U69>0,'Income Statement'!U69,0) -> 0 | F67: 0 | H67: =IF('Income Statement'!U69>0,'Income Statement'!X69,0) -> 0
A68: =IF('Income Statement'!U70>0,'Income Statement'!A70,0) -> 0 | B68: =IF('Income Statement'!U70>0,'Income Statement'!B70,0) -> 0 | C68: =IF('Income Statement'!U70>0,'Income Statement'!S70,0) -> 0 | D68: =IF('Income Statement'!U70>0,'Income Statement'!T70,0) -> 0 | E68: =IF('Income Statement'!U70>0,'Income Statement'!U70,0) -> 0 | F68: 0 | H68: =IF('Income Statement'!U70>0,'Income Statement'!X70,0) -> 0
A69: =IF('Income Statement'!U71>0,'Income Statement'!A71,0) -> 51560 | B69: =IF('Income Statement'!U71>0,'Income Statement'!B71,0) -> Health & Dental Ins Benefits | C69: =IF('Income Statement'!U71>0,'Income Statement'!S71,0) -> T12 | D69: =IF('Income Statement'!U71>0,'Income Statement'!T71,0) -> 21677 | E69: =IF('Income Statement'!U71>0,'Income Statement'!U71,0) -> 23627.93 | F69: -1950.93 | G69: -0.09 | H69: =IF('Income Statement'!U71>0,'Income Statement'!X71,0) -> 9% Increase
A70: =IF('Income Statement'!U72>0,'Income Statement'!A72,0) -> 0 | B70: =IF('Income Statement'!U72>0,'Income Statement'!B72,0) -> 0 | C70: =IF('Income Statement'!U72>0,'Income Statement'!S72,0) -> 0 | D70: =IF('Income Statement'!U72>0,'Income Statement'!T72,0) -> 0 | E70: =IF('Income Statement'!U72>0,'Income Statement'!U72,0) -> 0 | F70: 0 | G70: =F70/D70 ->  | H70: =IF('Income Statement'!U72>0,'Income Statement'!X72,0) -> 0
A71: =IF('Income Statement'!U73>0,'Income Statement'!A73,0) -> 0 | B71: =IF('Income Statement'!U73>0,'Income Statement'!B73,0) -> 0 | C71: =IF('Income Statement'!U73>0,'Income Statement'!S73,0) -> 0 | D71: =IF('Income Statement'!U73>0,'Income Statement'!T73,0) -> 0 | E71: =IF('Income Statement'!U73>0,'Income Statement'!U73,0) -> 0 | F71: 0 | H71: =IF('Income Statement'!U73>0,'Income Statement'!X73,0) -> 0
A72: =IF('Income Statement'!U74>0,'Income Statement'!A74,0) -> 55010 | B72: =IF('Income Statement'!U74>0,'Income Statement'!B74,0) -> Real estate taxes | C72: =IF('Income Statement'!U74>0,'Income Statement'!S74,0) -> 3% Increase | D72: =IF('Income Statement'!U74>0,'Income Statement'!T74,0) -> 469957.07 | E72: =IF('Income Statement'!U74>0,'Income Statement'!U74,0) -> 484000 | F72: -14042.93 | G72: -0.02988130384 | H72: =IF('Income Statement'!U74>0,'Income Statement'!X74,0) -> 6% increase
A73: =IF('Income Statement'!U75>0,'Income Statement'!A75,0) -> 55040 | B73: =IF('Income Statement'!U75>0,'Income Statement'!B75,0) -> Ins-Bldg/Fire-Liab-Boiler-Machinery | C73: =IF('Income Statement'!U75>0,'Income Statement'!S75,0) -> 5% Increase | D73: =IF('Income Statement'!U75>0,'Income Statement'!T75,0) -> 0 | E73: =IF('Income Statement'!U75>0,'Income Statement'!U75,0) -> 146777.4 | F73: -146777.4 | H73: =IF('Income Statement'!U75>0,'Income Statement'!X75,0) -> 10% increase
A74: =IF('Income Statement'!U76>0,'Income Statement'!A76,0) -> 0 | B74: =IF('Income Statement'!U76>0,'Income Statement'!B76,0) -> 0 | C74: =IF('Income Statement'!U76>0,'Income Statement'!S76,0) -> 0 | D74: =IF('Income Statement'!U76>0,'Income Statement'!T76,0) -> 0 | E74: =IF('Income Statement'!U76>0,'Income Statement'!U76,0) -> 0 | F74: 0 | H74: =IF('Income Statement'!U76>0,'Income Statement'!X76,0) -> 0
A75: =IF('Income Statement'!U77>0,'Income Statement'!A77,0) -> 0 | B75: =IF('Income Statement'!U77>0,'Income Statement'!B77,0) -> 0 | C75: =IF('Income Statement'!U77>0,'Income Statement'!S77,0) -> 0 | D75: =IF('Income Statement'!U77>0,'Income Statement'!T77,0) -> 0 | E75: =IF('Income Statement'!U77>0,'Income Statement'!U77,0) -> 0 | F75: =IF(LEFT(A75,1)="4",E75-D75,D75-E75) -> 0 | H75: =IF('Income Statement'!U77>0,'Income Statement'!X77,0) -> 0
A76: =IF('Income Statement'!U78>0,'Income Statement'!A78,0) -> 0 | B76: =IF('Income Statement'!U78>0,'Income Statement'!B78,0) -> 0 | C76: =IF('Income Statement'!U78>0,'Income Statement'!S78,0) -> 0 | D76: =IF('Income Statement'!U78>0,'Income Statement'!T78,0) -> 0 | E76: =IF('Income Statement'!U78>0,'Income Statement'!U78,0) -> 0 | F76: 0 | H76: =IF('Income Statement'!U78>0,'Income Statement'!X78,0) -> 0
A77: =IF('Income Statement'!U79>0,'Income Statement'!A79,0) -> 0 | B77: =IF('Income Statement'!U79>0,'Income Statement'!B79,0) -> 0 | C77: =IF('Income Statement'!U79>0,'Income Statement'!S79,0) -> 0 | D77: =IF('Income Statement'!U79>0,'Income Statement'!T79,0) -> 0 | E77: =IF('Income Statement'!U79>0,'Income Statement'!U79,0) -> 0 | F77: 0 | H77: =IF('Income Statement'!U79>0,'Income Statement'!X79,0) -> 0
A78: =IF('Income Statement'!U80>0,'Income Statement'!A80,0) -> 56112 | B78: =IF('Income Statement'!U80>0,'Income Statement'!B80,0) -> Blinds Supplies | C78: =IF('Income Statement'!U80>0,'Income Statement'!S80,0) -> 3 yr avg | D78: =IF('Income Statement'!U80>0,'Income Statement'!T80,0) -> 843 | E78: =IF('Income Statement'!U80>0,'Income Statement'!U80,0) -> 1500 | F78: -657 | G78: -0.7793594306 | H78: =IF('Income Statement'!U80>0,'Income Statement'!X80,0) -> used T12 - 3 yr avg during covid
A79: =IF('Income Statement'!U81>0,'Income Statement'!A81,0) -> 0 | B79: =IF('Income Statement'!U81>0,'Income Statement'!B81,0) -> 0 | C79: =IF('Income Statement'!U81>0,'Income Statement'!S81,0) -> 0 | D79: =IF('Income Statement'!U81>0,'Income Statement'!T81,0) -> 0 | E79: =IF('Income Statement'!U81>0,'Income Statement'!U81,0) -> 0 | F79: 0 | H79: =IF('Income Statement'!U81>0,'Income Statement'!X81,0) -> 0
A80: =IF('Income Statement'!U82>0,'Income Statement'!A82,0) -> 56114 | B80: =IF('Income Statement'!U82>0,'Income Statement'!B82,0) -> Carpentry Supplies | C80: =IF('Income Statement'!U82>0,'Income Statement'!S82,0) -> 3 yr avg | D80: =IF('Income Statement'!U82>0,'Income Statement'!T82,0) -> 76 | E80: =IF('Income Statement'!U82>0,'Income Statement'!U82,0) -> 0.001 | F80: 75.999 | G80: 0.9999868421 | H80: =IF('Income Statement'!U82>0,'Income Statement'!X82,0) -> zero out
A81: =IF('Income Statement'!U83>0,'Income Statement'!A83,0) -> 0 | B81: =IF('Income Statement'!U83>0,'Income Statement'!B83,0) -> 0 | C81: =IF('Income Statement'!U83>0,'Income Statement'!S83,0) -> 0 | D81: =IF('Income Statement'!U83>0,'Income Statement'!T83,0) -> 0 | E81: =IF('Income Statement'!U83>0,'Income Statement'!U83,0) -> 0 | F81: 0 | H81: =IF('Income Statement'!U83>0,'Income Statement'!X83,0) -> 0
A82: =IF('Income Statement'!U84>0,'Income Statement'!A84,0) -> 0 | B82: =IF('Income Statement'!U84>0,'Income Statement'!B84,0) -> 0 | C82: =IF('Income Statement'!U84>0,'Income Statement'!S84,0) -> 0 | D82: =IF('Income Statement'!U84>0,'Income Statement'!T84,0) -> 0 | E82: =IF('Income Statement'!U84>0,'Income Statement'!U84,0) -> 0 | F82: 0 | H82: =IF('Income Statement'!U84>0,'Income Statement'!X84,0) -> 0
A83: =IF('Income Statement'!U85>0,'Income Statement'!A85,0) -> 0 | B83: =IF('Income Statement'!U85>0,'Income Statement'!B85,0) -> 0 | C83: =IF('Income Statement'!U85>0,'Income Statement'!S85,0) -> 0 | D83: =IF('Income Statement'!U85>0,'Income Statement'!T85,0) -> 0 | E83: =IF('Income Statement'!U85>0,'Income Statement'!U85,0) -> 0 | F83: 0 | H83: =IF('Income Statement'!U85>0,'Income Statement'!X85,0) -> 0
A84: =IF('Income Statement'!U86>0,'Income Statement'!A86,0) -> 56119 | B84: =IF('Income Statement'!U86>0,'Income Statement'!B86,0) -> Electrical Supplies | C84: =IF('Income Statement'!U86>0,'Income Statement'!S86,0) -> 3 yr avg | D84: =IF('Income Statement'!U86>0,'Income Statement'!T86,0) -> 954 | E84: =IF('Income Statement'!U86>0,'Income Statement'!U86,0) -> 1700 | F84: -746 | G84: -0.7819706499 | H84: =IF('Income Statement'!U86>0,'Income Statement'!X86,0) -> used T12 - 3 yr avg during covid
A85: =IF('Income Statement'!U87>0,'Income Statement'!A87,0) -> 0 | B85: =IF('Income Statement'!U87>0,'Income Statement'!B87,0) -> 0 | C85: =IF('Income Statement'!U87>0,'Income Statement'!S87,0) -> 0 | D85: =IF('Income Statement'!U87>0,'Income Statement'!T87,0) -> 0 | E85: =IF('Income Statement'!U87>0,'Income Statement'!U87,0) -> 0 | F85: 0 | H85: =IF('Income Statement'!U87>0,'Income Statement'!X87,0) -> 0
A86: =IF('Income Statement'!U88>0,'Income Statement'!A88,0) -> 56122 | B86: =IF('Income Statement'!U88>0,'Income Statement'!B88,0) -> Fence & Gate Supplies | C86: =IF('Income Statement'!U88>0,'Income Statement'!S88,0) -> 3 yr avg | D86: =IF('Income Statement'!U88>0,'Income Statement'!T88,0) -> 24 | E86: =IF('Income Statement'!U88>0,'Income Statement'!U88,0) -> 0.001 | F86: 23.999 | G86: 0.9999583333 | H86: =IF('Income Statement'!U88>0,'Income Statement'!X88,0) -> zero out
A87: =IF('Income Statement'!U89>0,'Income Statement'!A89,0) -> 0 | B87: =IF('Income Statement'!U89>0,'Income Statement'!B89,0) -> 0 | C87: =IF('Income Statement'!U89>0,'Income Statement'!S89,0) -> 0 | D87: =IF('Income Statement'!U89>0,'Income Statement'!T89,0) -> 0 | E87: =IF('Income Statement'!U89>0,'Income Statement'!U89,0) -> 0 | F87: 0 | H87: =IF('Income Statement'!U89>0,'Income Statement'!X89,0) -> 0
A88: =IF('Income Statement'!U90>0,'Income Statement'!A90,0) -> 0 | B88: =IF('Income Statement'!U90>0,'Income Statement'!B90,0) -> 0 | C88: =IF('Income Statement'!U90>0,'Income Statement'!S90,0) -> 0 | D88: =IF('Income Statement'!U90>0,'Income Statement'!T90,0) -> 0 | E88: =IF('Income Statement'!U90>0,'Income Statement'!U90,0) -> 0 | F88: 0 | H88: =IF('Income Statement'!U90>0,'Income Statement'!X90,0) -> 0
A89: =IF('Income Statement'!U91>0,'Income Statement'!A91,0) -> 0 | B89: =IF('Income Statement'!U91>0,'Income Statement'!B91,0) -> 0 | C89: =IF('Income Statement'!U91>0,'Income Statement'!S91,0) -> 0 | D89: =IF('Income Statement'!U91>0,'Income Statement'!T91,0) -> 0 | E89: =IF('Income Statement'!U91>0,'Income Statement'!U91,0) -> 0 | F89: 0 | H89: =IF('Income Statement'!U91>0,'Income Statement'!X91,0) -> 0
A90: =IF('Income Statement'!U92>0,'Income Statement'!A92,0) -> 0 | B90: =IF('Income Statement'!U92>0,'Income Statement'!B92,0) -> 0 | C90: =IF('Income Statement'!U92>0,'Income Statement'!S92,0) -> 0 | D90: =IF('Income Statement'!U92>0,'Income Statement'!T92,0) -> 0 | E90: =IF('Income Statement'!U92>0,'Income Statement'!U92,0) -> 0 | F90: 0 | H90: =IF('Income Statement'!U92>0,'Income Statement'!X92,0) -> 0
A91: =IF('Income Statement'!U93>0,'Income Statement'!A93,0) -> 0 | B91: =IF('Income Statement'!U93>0,'Income Statement'!B93,0) -> 0 | C91: =IF('Income Statement'!U93>0,'Income Statement'!S93,0) -> 0 | D91: =IF('Income Statement'!U93>0,'Income Statement'!T93,0) -> 0 | E91: =IF('Income Statement'!U93>0,'Income Statement'!U93,0) -> 0 | F91: 0 | H91: =IF('Income Statement'!U93>0,'Income Statement'!X93,0) -> 0
A92: =IF('Income Statement'!U94>0,'Income Statement'!A94,0) -> 0 | B92: =IF('Income Statement'!U94>0,'Income Statement'!B94,0) -> 0 | C92: =IF('Income Statement'!U94>0,'Income Statement'!S94,0) -> 0 | D92: =IF('Income Statement'!U94>0,'Income Statement'!T94,0) -> 0 | E92: =IF('Income Statement'!U94>0,'Income Statement'!U94,0) -> 0 | F92: 0 | H92: =IF('Income Statement'!U94>0,'Income Statement'!X94,0) -> 0
A93: =IF('Income Statement'!U95>0,'Income Statement'!A95,0) -> 0 | B93: =IF('Income Statement'!U95>0,'Income Statement'!B95,0) -> 0 | C93: =IF('Income Statement'!U95>0,'Income Statement'!S95,0) -> 0 | D93: =IF('Income Statement'!U95>0,'Income Statement'!T95,0) -> 0 | E93: =IF('Income Statement'!U95>0,'Income Statement'!U95,0) -> 0 | F93: 0 | H93: =IF('Income Statement'!U95>0,'Income Statement'!X95,0) -> 0
A94: =IF('Income Statement'!U96>0,'Income Statement'!A96,0) -> 0 | B94: =IF('Income Statement'!U96>0,'Income Statement'!B96,0) -> 0 | C94: =IF('Income Statement'!U96>0,'Income Statement'!S96,0) -> 0 | D94: =IF('Income Statement'!U96>0,'Income Statement'!T96,0) -> 0 | E94: =IF('Income Statement'!U96>0,'Income Statement'!U96,0) -> 0 | F94: 0 | H94: =IF('Income Statement'!U96>0,'Income Statement'!X96,0) -> 0
A95: =IF('Income Statement'!U97>0,'Income Statement'!A97,0) -> 56135 | B95: =IF('Income Statement'!U97>0,'Income Statement'!B97,0) -> Pave&Concrete Supplies | C95: =IF('Income Statement'!U97>0,'Income Statement'!S97,0) -> 3 yr avg | D95: =IF('Income Statement'!U97>0,'Income Statement'!T97,0) -> 25 | E95: =IF('Income Statement'!U97>0,'Income Statement'!U97,0) -> 0.001 | F95: 24.999 | G95: 0.99996 | H95: =IF('Income Statement'!U97>0,'Income Statement'!X97,0) -> zero out
A96: =IF('Income Statement'!U98>0,'Income Statement'!A98,0) -> 0 | B96: =IF('Income Statement'!U98>0,'Income Statement'!B98,0) -> 0 | C96: =IF('Income Statement'!U98>0,'Income Statement'!S98,0) -> 0 | D96: =IF('Income Statement'!U98>0,'Income Statement'!T98,0) -> 0 | E96: =IF('Income Statement'!U98>0,'Income Statement'!U98,0) -> 0 | F96: 0 | H96: =IF('Income Statement'!U98>0,'Income Statement'!X98,0) -> 0
A97: =IF('Income Statement'!U99>0,'Income Statement'!A99,0) -> 0 | B97: =IF('Income Statement'!U99>0,'Income Statement'!B99,0) -> 0 | C97: =IF('Income Statement'!U99>0,'Income Statement'!S99,0) -> 0 | D97: =IF('Income Statement'!U99>0,'Income Statement'!T99,0) -> 0 | E97: =IF('Income Statement'!U99>0,'Income Statement'!U99,0) -> 0 | F97: 0 | H97: =IF('Income Statement'!U99>0,'Income Statement'!X99,0) -> 0
A98: =IF('Income Statement'!U100>0,'Income Statement'!A100,0) -> 56140 | B98: =IF('Income Statement'!U100>0,'Income Statement'!B100,0) -> Security Supplies | C98: =IF('Income Statement'!U100>0,'Income Statement'!S100,0) -> 3 yr avg | D98: =IF('Income Statement'!U100>0,'Income Statement'!T100,0) -> 36 | E98: =IF('Income Statement'!U100>0,'Income Statement'!U100,0) -> 0.001 | F98: 35.999 | G98: 0.9999722222 | H98: =IF('Income Statement'!U100>0,'Income Statement'!X100,0) -> zero out
A99: =IF('Income Statement'!U101>0,'Income Statement'!A101,0) -> 0 | B99: =IF('Income Statement'!U101>0,'Income Statement'!B101,0) -> 0 | C99: =IF('Income Statement'!U101>0,'Income Statement'!S101,0) -> 0 | D99: =IF('Income Statement'!U101>0,'Income Statement'!T101,0) -> 0 | E99: =IF('Income Statement'!U101>0,'Income Statement'!U101,0) -> 0 | F99: 0 | H99: =IF('Income Statement'!U101>0,'Income Statement'!X101,0) -> 0
A100: =IF('Income Statement'!U102>0,'Income Statement'!A102,0) -> 0 | B100: =IF('Income Statement'!U102>0,'Income Statement'!B102,0) -> 0 | C100: =IF('Income Statement'!U102>0,'Income Statement'!S102,0) -> 0 | D100: =IF('Income Statement'!U102>0,'Income Statement'!T102,0) -> 0 | E100: =IF('Income Statement'!U102>0,'Income Statement'!U102,0) -> 0 | F100: 0 | H100: =IF('Income Statement'!U102>0,'Income Statement'!X102,0) -> 0
A101: =IF('Income Statement'!U103>0,'Income Statement'!A103,0) -> 0 | B101: =IF('Income Statement'!U103>0,'Income Statement'!B103,0) -> 0 | C101: =IF('Income Statement'!U103>0,'Income Statement'!S103,0) -> 0 | D101: =IF('Income Statement'!U103>0,'Income Statement'!T103,0) -> 0 | E101: =IF('Income Statement'!U103>0,'Income Statement'!U103,0) -> 0 | F101: 0 | H101: =IF('Income Statement'!U103>0,'Income Statement'!X103,0) -> 0
A102: =IF('Income Statement'!U104>0,'Income Statement'!A104,0) -> 0 | B102: =IF('Income Statement'!U104>0,'Income Statement'!B104,0) -> 0 | C102: =IF('Income Statement'!U104>0,'Income Statement'!S104,0) -> 0 | D102: =IF('Income Statement'!U104>0,'Income Statement'!T104,0) -> 0 | E102: =IF('Income Statement'!U104>0,'Income Statement'!U104,0) -> 0 | F102: 0 | H102: =IF('Income Statement'!U104>0,'Income Statement'!X104,0) -> 0
A103: =IF('Income Statement'!U105>0,'Income Statement'!A105,0) -> 56145 | B103: =IF('Income Statement'!U105>0,'Income Statement'!B105,0) -> Windows & Glass Supplies | C103: =IF('Income Statement'!U105>0,'Income Statement'!S105,0) -> 3 yr avg | D103: =IF('Income Statement'!U105>0,'Income Statement'!T105,0) -> 8 | E103: =IF('Income Statement'!U105>0,'Income Statement'!U105,0) -> 0.001 | F103: 7.999 | G103: 0.999875 | H103: =IF('Income Statement'!U105>0,'Income Statement'!X105,0) -> zero out
A104: =IF('Income Statement'!U106>0,'Income Statement'!A106,0) -> 0 | B104: =IF('Income Statement'!U106>0,'Income Statement'!B106,0) -> 0 | C104: =IF('Income Statement'!U106>0,'Income Statement'!S106,0) -> 0 | D104: =IF('Income Statement'!U106>0,'Income Statement'!T106,0) -> 0 | E104: =IF('Income Statement'!U106>0,'Income Statement'!U106,0) -> 0 | F104: 0 | H104: =IF('Income Statement'!U106>0,'Income Statement'!X106,0) -> 0
A105: =IF('Income Statement'!U107>0,'Income Statement'!A107,0) -> 0 | B105: =IF('Income Statement'!U107>0,'Income Statement'!B107,0) -> 0 | C105: =IF('Income Statement'!U107>0,'Income Statement'!S107,0) -> 0 | D105: =IF('Income Statement'!U107>0,'Income Statement'!T107,0) -> 0 | E105: =IF('Income Statement'!U107>0,'Income Statement'!U107,0) -> 0 | F105: 0 | H105: =IF('Income Statement'!U107>0,'Income Statement'!X107,0) -> 0
A106: =IF('Income Statement'!U108>0,'Income Statement'!A108,0) -> 56154 | B106: =IF('Income Statement'!U108>0,'Income Statement'!B108,0) -> Ranges/ovens | C106: =IF('Income Statement'!U108>0,'Income Statement'!S108,0) -> 3 yr avg | D106: =IF('Income Statement'!U108>0,'Income Statement'!T108,0) -> 18 | E106: =IF('Income Statement'!U108>0,'Income Statement'!U108,0) -> 0.001 | F106: 17.999 | G106: 0.9999444444 | H106: =IF('Income Statement'!U108>0,'Income Statement'!X108,0) -> zero out
A107: =IF('Income Statement'!U109>0,'Income Statement'!A109,0) -> 56160 | B107: =IF('Income Statement'!U109>0,'Income Statement'!B109,0) -> Appliance Replacmnt Budget | C107: =IF('Income Statement'!U109>0,'Income Statement'!S109,0) -> 3 yr avg | D107: =IF('Income Statement'!U109>0,'Income Statement'!T109,0) -> 6337 | E107: =IF('Income Statement'!U109>0,'Income Statement'!U109,0) -> 9000 | F107: -2663 | G107: -0.4202303929 | H107: =IF('Income Statement'!U109>0,'Income Statement'!X109,0) -> Used T12 - appliances are breaking
A108: =IF('Income Statement'!U110>0,'Income Statement'!A110,0) -> 0 | B108: =IF('Income Statement'!U110>0,'Income Statement'!B110,0) -> 0 | C108: =IF('Income Statement'!U110>0,'Income Statement'!S110,0) -> 0 | D108: =IF('Income Statement'!U110>0,'Income Statement'!T110,0) -> 0 | E108: =IF('Income Statement'!U110>0,'Income Statement'!U110,0) -> 0 | F108: 0 | H108: =IF('Income Statement'!U110>0,'Income Statement'!X110,0) -> 0
A109: =IF('Income Statement'!U111>0,'Income Statement'!A111,0) -> 0 | B109: =IF('Income Statement'!U111>0,'Income Statement'!B111,0) -> 0 | C109: =IF('Income Statement'!U111>0,'Income Statement'!S111,0) -> 0 | D109: =IF('Income Statement'!U111>0,'Income Statement'!T111,0) -> 0 | E109: =IF('Income Statement'!U111>0,'Income Statement'!U111,0) -> 0 | F109: 0 | H109: =IF('Income Statement'!U111>0,'Income Statement'!X111,0) -> 0
A110: =IF('Income Statement'!U112>0,'Income Statement'!A112,0) -> 56210 | B110: =IF('Income Statement'!U112>0,'Income Statement'!B112,0) -> Appliance Repair Contractor | C110: =IF('Income Statement'!U112>0,'Income Statement'!S112,0) -> 3 yr avg | D110: =IF('Income Statement'!U112>0,'Income Statement'!T112,0) -> 735 | E110: =IF('Income Statement'!U112>0,'Income Statement'!U112,0) -> 1200 | F110: -465 | G110: -0.6326530612 | H110: =IF('Income Statement'!U112>0,'Income Statement'!X112,0) -> used T12 - 3 yr avg during covid
A111: =IF('Income Statement'!U113>0,'Income Statement'!A113,0) -> 0 | B111: =IF('Income Statement'!U113>0,'Income Statement'!B113,0) -> 0 | C111: =IF('Income Statement'!U113>0,'Income Statement'!S113,0) -> 0 | D111: =IF('Income Statement'!U113>0,'Income Statement'!T113,0) -> 0 | E111: =IF('Income Statement'!U113>0,'Income Statement'!U113,0) -> 0 | F111: 0 | H111: =IF('Income Statement'!U113>0,'Income Statement'!X113,0) -> 0
A112: =IF('Income Statement'!U114>0,'Income Statement'!A114,0) -> 0 | B112: =IF('Income Statement'!U114>0,'Income Statement'!B114,0) -> 0 | C112: =IF('Income Statement'!U114>0,'Income Statement'!S114,0) -> 0 | D112: =IF('Income Statement'!U114>0,'Income Statement'!T114,0) -> 0 | E112: =IF('Income Statement'!U114>0,'Income Statement'!U114,0) -> 0 | F112: 0 | H112: =IF('Income Statement'!U114>0,'Income Statement'!X114,0) -> 0
A113: =IF('Income Statement'!U115>0,'Income Statement'!A115,0) -> 56216 | B113: =IF('Income Statement'!U115>0,'Income Statement'!B115,0) -> Custodial Contractor | C113: =IF('Income Statement'!U115>0,'Income Statement'!S115,0) -> Contract | D113: =IF('Income Statement'!U115>0,'Income Statement'!T115,0) -> 0 | E113: =IF('Income Statement'!U115>0,'Income Statement'!U115,0) -> 44122 | F113: -44122 | H113: =IF('Income Statement'!U115>0,'Income Statement'!X115,0) -> contract + extractions
A114: =IF('Income Statement'!U116>0,'Income Statement'!A116,0) -> 56217 | B114: =IF('Income Statement'!U116>0,'Income Statement'!B116,0) -> Decorating Contractor | C114: =IF('Income Statement'!U116>0,'Income Statement'!S116,0) -> 3 yr avg | D114: =IF('Income Statement'!U116>0,'Income Statement'!T116,0) -> 45 | E114: =IF('Income Statement'!U116>0,'Income Statement'!U116,0) -> 0.001 | F114: 44.999 | G114: 0.9999777778 | H114: =IF('Income Statement'!U116>0,'Income Statement'!X116,0) -> zero out
A115: =IF('Income Statement'!U117>0,'Income Statement'!A117,0) -> 56218 | B115: =IF('Income Statement'!U117>0,'Income Statement'!B117,0) -> Doors Contractor | C115: =IF('Income Statement'!U117>0,'Income Statement'!S117,0) -> 3 yr avg | D115: =IF('Income Statement'!U117>0,'Income Statement'!T117,0) -> 95 | E115: =IF('Income Statement'!U117>0,'Income Statement'!U117,0) -> 0.001 | F115: 94.999 | G115: 0.9999894737 | H115: =IF('Income Statement'!U117>0,'Income Statement'!X117,0) -> zero out
A116: =IF('Income Statement'!U118>0,'Income Statement'!A118,0) -> 0 | B116: =IF('Income Statement'!U118>0,'Income Statement'!B118,0) -> 0 | C116: =IF('Income Statement'!U118>0,'Income Statement'!S118,0) -> 0 | D116: =IF('Income Statement'!U118>0,'Income Statement'!T118,0) -> 0 | E116: =IF('Income Statement'!U118>0,'Income Statement'!U118,0) -> 0 | F116: 0 | H116: =IF('Income Statement'!U118>0,'Income Statement'!X118,0) -> 0
A117: =IF('Income Statement'!U119>0,'Income Statement'!A119,0) -> 56221 | B117: =IF('Income Statement'!U119>0,'Income Statement'!B119,0) -> Exterminating Contractor | C117: =IF('Income Statement'!U119>0,'Income Statement'!S119,0) -> Contract | D117: =IF('Income Statement'!U119>0,'Income Statement'!T119,0) -> 0 | E117: =IF('Income Statement'!U119>0,'Income Statement'!U119,0) -> 3396 | F117: -3396 | H117: =IF('Income Statement'!U119>0,'Income Statement'!X119,0) -> contract + treatments
A118: =IF('Income Statement'!U120>0,'Income Statement'!A120,0) -> 56222 | B118: =IF('Income Statement'!U120>0,'Income Statement'!B120,0) -> Fence Contractor | C118: =IF('Income Statement'!U120>0,'Income Statement'!S120,0) -> 3 yr avg | D118: =IF('Income Statement'!U120>0,'Income Statement'!T120,0) -> 78 | E118: =IF('Income Statement'!U120>0,'Income Statement'!U120,0) -> 0.001 | F118: 77.999 | G118: 0.9999871795 | H118: =IF('Income Statement'!U120>0,'Income Statement'!X120,0) -> zero out
A119: =IF('Income Statement'!U121>0,'Income Statement'!A121,0) -> 56223 | B119: =IF('Income Statement'!U121>0,'Income Statement'!B121,0) -> Fire System Contractor | C119: =IF('Income Statement'!U121>0,'Income Statement'!S121,0) -> Contract | D119: =IF('Income Statement'!U121>0,'Income Statement'!T121,0) -> 0 | E119: =IF('Income Statement'!U121>0,'Income Statement'!U121,0) -> 5468 | F119: -5468 | H119: =IF('Income Statement'!U121>0,'Income Statement'!X121,0) -> contract - reclass between fire contractor & monitoring
A120: =IF('Income Statement'!U122>0,'Income Statement'!A122,0) -> 56224 | B120: =IF('Income Statement'!U122>0,'Income Statement'!B122,0) -> Fire Alarm Monitoring | C120: =IF('Income Statement'!U122>0,'Income Statement'!S122,0) -> Contract | D120: =IF('Income Statement'!U122>0,'Income Statement'!T122,0) -> 0 | E120: =IF('Income Statement'!U122>0,'Income Statement'!U122,0) -> 7920 | F120: -7920 | H120: =IF('Income Statement'!U122>0,'Income Statement'!X122,0) -> contract - reclass between fire contractor & monitoring
A121: =IF('Income Statement'!U123>0,'Income Statement'!A123,0) -> 56225 | B121: =IF('Income Statement'!U123>0,'Income Statement'!B123,0) -> Flooring-Tile Contractor | C121: =IF('Income Statement'!U123>0,'Income Statement'!S123,0) -> 3 yr avg | D121: =IF('Income Statement'!U123>0,'Income Statement'!T123,0) -> 27 | E121: =IF('Income Statement'!U123>0,'Income Statement'!U123,0) -> 0.001 | F121: 26.999 | G121: 0.999962963 | H121: =IF('Income Statement'!U123>0,'Income Statement'!X123,0) -> zero out
A122: =IF('Income Statement'!U124>0,'Income Statement'!A124,0) -> 0 | B122: =IF('Income Statement'!U124>0,'Income Statement'!B124,0) -> 0 | C122: =IF('Income Statement'!U124>0,'Income Statement'!S124,0) -> 0 | D122: =IF('Income Statement'!U124>0,'Income Statement'!T124,0) -> 0 | E122: =IF('Income Statement'!U124>0,'Income Statement'!U124,0) -> 0 | F122: 0 | H122: =IF('Income Statement'!U124>0,'Income Statement'!X124,0) -> 0
A123: =IF('Income Statement'!U125>0,'Income Statement'!A125,0) -> 56231 | B123: =IF('Income Statement'!U125>0,'Income Statement'!B125,0) -> Landscaping Contractor | C123: =IF('Income Statement'!U125>0,'Income Statement'!S125,0) -> Contract | D123: =IF('Income Statement'!U125>0,'Income Statement'!T125,0) -> 0 | E123: =IF('Income Statement'!U125>0,'Income Statement'!U125,0) -> 37630 | F123: -37630 | H123: =IF('Income Statement'!U125>0,'Income Statement'!X125,0) -> contract
A124: =IF('Income Statement'!U126>0,'Income Statement'!A126,0) -> 0 | B124: =IF('Income Statement'!U126>0,'Income Statement'!B126,0) -> 0 | C124: =IF('Income Statement'!U126>0,'Income Statement'!S126,0) -> 0 | D124: =IF('Income Statement'!U126>0,'Income Statement'!T126,0) -> 0 | E124: =IF('Income Statement'!U126>0,'Income Statement'!U126,0) -> 0 | F124: 0 | H124: =IF('Income Statement'!U126>0,'Income Statement'!X126,0) -> 0
A125: =IF('Income Statement'!U127>0,'Income Statement'!A127,0) -> 0 | B125: =IF('Income Statement'!U127>0,'Income Statement'!B127,0) -> 0 | C125: =IF('Income Statement'!U127>0,'Income Statement'!S127,0) -> 0 | D125: =IF('Income Statement'!U127>0,'Income Statement'!T127,0) -> 0 | E125: =IF('Income Statement'!U127>0,'Income Statement'!U127,0) -> 0 | F125: 0 | H125: =IF('Income Statement'!U127>0,'Income Statement'!X127,0) -> 0
A126: =IF('Income Statement'!U128>0,'Income Statement'!A128,0) -> 56237 | B126: =IF('Income Statement'!U128>0,'Income Statement'!B128,0) -> Pool Contractor | C126: =IF('Income Statement'!U128>0,'Income Statement'!S128,0) -> Contract | D126: =IF('Income Statement'!U128>0,'Income Statement'!T128,0) -> 0 | E126: =IF('Income Statement'!U128>0,'Income Statement'!U128,0) -> 22314.28 | F126: -22314.28 | H126: =IF('Income Statement'!U128>0,'Income Statement'!X128,0) -> contract
A127: =IF('Income Statement'!U129>0,'Income Statement'!A129,0) -> 0 | B127: =IF('Income Statement'!U129>0,'Income Statement'!B129,0) -> 0 | C127: =IF('Income Statement'!U129>0,'Income Statement'!S129,0) -> 0 | D127: =IF('Income Statement'!U129>0,'Income Statement'!T129,0) -> 0 | E127: =IF('Income Statement'!U129>0,'Income Statement'!U129,0) -> 0 | F127: 0 | H127: =IF('Income Statement'!U129>0,'Income Statement'!X129,0) -> 0
A128: =IF('Income Statement'!U130>0,'Income Statement'!A130,0) -> 56240 | B128: =IF('Income Statement'!U130>0,'Income Statement'!B130,0) -> Security Contractor | C128: =IF('Income Statement'!U130>0,'Income Statement'!S130,0) -> Contract | D128: =IF('Income Statement'!U130>0,'Income Statement'!T130,0) -> 0 | E128: =IF('Income Statement'!U130>0,'Income Statement'!U130,0) -> 55200 | F128: -55200 | H128: =IF('Income Statement'!U130>0,'Income Statement'!X130,0) -> contract
A129: =IF('Income Statement'!U131>0,'Income Statement'!A131,0) -> 56241 | B129: =IF('Income Statement'!U131>0,'Income Statement'!B131,0) -> Signs Contractor | C129: =IF('Income Statement'!U131>0,'Income Statement'!S131,0) -> 3 yr avg | D129: =IF('Income Statement'!U131>0,'Income Statement'!T131,0) -> 88 | E129: =IF('Income Statement'!U131>0,'Income Statement'!U131,0) -> 0.001 | F129: 87.999 | G129: 0.9999886364 | H129: =IF('Income Statement'!U131>0,'Income Statement'!X131,0) -> zero out
A130: =IF('Income Statement'!U132>0,'Income Statement'!A132,0) -> 0 | B130: =IF('Income Statement'!U132>0,'Income Statement'!B132,0) -> 0 | C130: =IF('Income Statement'!U132>0,'Income Statement'!S132,0) -> 0 | D130: =IF('Income Statement'!U132>0,'Income Statement'!T132,0) -> 0 | E130: =IF('Income Statement'!U132>0,'Income Statement'!U132,0) -> 0 | F130: 0 | H130: =IF('Income Statement'!U132>0,'Income Statement'!X132,0) -> 0
A131: =IF('Income Statement'!U133>0,'Income Statement'!A133,0) -> 56244 | B131: =IF('Income Statement'!U133>0,'Income Statement'!B133,0) -> Trash Removal | C131: =IF('Income Statement'!U133>0,'Income Statement'!S133,0) -> Contract | D131: =IF('Income Statement'!U133>0,'Income Statement'!T133,0) -> 0 | E131: =IF('Income Statement'!U133>0,'Income Statement'!U133,0) -> 25788 | F131: -25788 | H131: =IF('Income Statement'!U133>0,'Income Statement'!X133,0) -> contract
A132: =IF('Income Statement'!U134>0,'Income Statement'!A134,0) -> 0 | B132: =IF('Income Statement'!U134>0,'Income Statement'!B134,0) -> 0 | C132: =IF('Income Statement'!U134>0,'Income Statement'!S134,0) -> 0 | D132: =IF('Income Statement'!U134>0,'Income Statement'!T134,0) -> 0 | E132: =IF('Income Statement'!U134>0,'Income Statement'!U134,0) -> 0 | F132: 0 | H132: =IF('Income Statement'!U134>0,'Income Statement'!X134,0) -> 0
A133: =IF('Income Statement'!U135>0,'Income Statement'!A135,0) -> 0 | B133: =IF('Income Statement'!U135>0,'Income Statement'!B135,0) -> 0 | C133: =IF('Income Statement'!U135>0,'Income Statement'!S135,0) -> 0 | D133: =IF('Income Statement'!U135>0,'Income Statement'!T135,0) -> 0 | E133: =IF('Income Statement'!U135>0,'Income Statement'!U135,0) -> 0 | F133: 0 | H133: =IF('Income Statement'!U135>0,'Income Statement'!X135,0) -> 0
A134: =IF('Income Statement'!U136>0,'Income Statement'!A136,0) -> 0 | B134: =IF('Income Statement'!U136>0,'Income Statement'!B136,0) -> 0 | C134: =IF('Income Statement'!U136>0,'Income Statement'!S136,0) -> 0 | D134: =IF('Income Statement'!U136>0,'Income Statement'!T136,0) -> 0 | E134: =IF('Income Statement'!U136>0,'Income Statement'!U136,0) -> 0 | F134: 0 | G134: =F134/D134 ->  | H134: =IF('Income Statement'!U136>0,'Income Statement'!X136,0) -> 0
A135: =IF('Income Statement'!U137>0,'Income Statement'!A137,0) -> 0 | B135: =IF('Income Statement'!U137>0,'Income Statement'!B137,0) -> 0 | C135: =IF('Income Statement'!U137>0,'Income Statement'!S137,0) -> 0 | D135: =IF('Income Statement'!U137>0,'Income Statement'!T137,0) -> 0 | E135: =IF('Income Statement'!U137>0,'Income Statement'!U137,0) -> 0 | F135: 0 | H135: =IF('Income Statement'!U137>0,'Income Statement'!X137,0) -> 0
A136: =IF('Income Statement'!U138>0,'Income Statement'!A138,0) -> 0 | B136: =IF('Income Statement'!U138>0,'Income Statement'!B138,0) -> 0 | C136: =IF('Income Statement'!U138>0,'Income Statement'!S138,0) -> 0 | D136: =IF('Income Statement'!U138>0,'Income Statement'!T138,0) -> 0 | E136: =IF('Income Statement'!U138>0,'Income Statement'!U138,0) -> 0 | F136: 0 | H136: =IF('Income Statement'!U138>0,'Income Statement'!X138,0) -> 0
A137: =IF('Income Statement'!U139>0,'Income Statement'!A139,0) -> 0 | B137: =IF('Income Statement'!U139>0,'Income Statement'!B139,0) -> 0 | C137: =IF('Income Statement'!U139>0,'Income Statement'!S139,0) -> 0 | D137: =IF('Income Statement'!U139>0,'Income Statement'!T139,0) -> 0 | E137: =IF('Income Statement'!U139>0,'Income Statement'!U139,0) -> 0 | F137: 0 | H137: =IF('Income Statement'!U139>0,'Income Statement'!X139,0) -> 0
A138: =IF('Income Statement'!U140>0,'Income Statement'!A140,0) -> 0 | B138: =IF('Income Statement'!U140>0,'Income Statement'!B140,0) -> 0 | C138: =IF('Income Statement'!U140>0,'Income Statement'!S140,0) -> 0 | D138: =IF('Income Statement'!U140>0,'Income Statement'!T140,0) -> 0 | E138: =IF('Income Statement'!U140>0,'Income Statement'!U140,0) -> 0 | F138: 0 | H138: =IF('Income Statement'!U140>0,'Income Statement'!X140,0) -> 0
A139: =IF('Income Statement'!U141>0,'Income Statement'!A141,0) -> 0 | B139: =IF('Income Statement'!U141>0,'Income Statement'!B141,0) -> 0 | C139: =IF('Income Statement'!U141>0,'Income Statement'!S141,0) -> 0 | D139: =IF('Income Statement'!U141>0,'Income Statement'!T141,0) -> 0 | E139: =IF('Income Statement'!U141>0,'Income Statement'!U141,0) -> 0 | F139: =IF(LEFT(A139,1)="4",E139-D139,D139-E139) -> 0 | H139: =IF('Income Statement'!U141>0,'Income Statement'!X141,0) -> 0
A140: =IF('Income Statement'!U142>0,'Income Statement'!A142,0) -> 0 | B140: =IF('Income Statement'!U142>0,'Income Statement'!B142,0) -> 0 | C140: =IF('Income Statement'!U142>0,'Income Statement'!S142,0) -> 0 | D140: =IF('Income Statement'!U142>0,'Income Statement'!T142,0) -> 0 | E140: =IF('Income Statement'!U142>0,'Income Statement'!U142,0) -> 0 | F140: 0 | H140: =IF('Income Statement'!U142>0,'Income Statement'!X142,0) -> 0
A141: =IF('Income Statement'!U143>0,'Income Statement'!A143,0) -> 0 | B141: =IF('Income Statement'!U143>0,'Income Statement'!B143,0) -> 0 | C141: =IF('Income Statement'!U143>0,'Income Statement'!S143,0) -> 0 | D141: =IF('Income Statement'!U143>0,'Income Statement'!T143,0) -> 0 | E141: =IF('Income Statement'!U143>0,'Income Statement'!U143,0) -> 0 | F141: 0 | H141: =IF('Income Statement'!U143>0,'Income Statement'!X143,0) -> 0
A142: =IF('Income Statement'!U144>0,'Income Statement'!A144,0) -> 0 | B142: =IF('Income Statement'!U144>0,'Income Statement'!B144,0) -> 0 | C142: =IF('Income Statement'!U144>0,'Income Statement'!S144,0) -> 0 | D142: =IF('Income Statement'!U144>0,'Income Statement'!T144,0) -> 0 | E142: =IF('Income Statement'!U144>0,'Income Statement'!U144,0) -> 0 | F142: 0 | H142: =IF('Income Statement'!U144>0,'Income Statement'!X144,0) -> 0
A143: =IF('Income Statement'!U145>0,'Income Statement'!A145,0) -> 0 | B143: =IF('Income Statement'!U145>0,'Income Statement'!B145,0) -> 0 | C143: =IF('Income Statement'!U145>0,'Income Statement'!S145,0) -> 0 | D143: =IF('Income Statement'!U145>0,'Income Statement'!T145,0) -> 0 | E143: =IF('Income Statement'!U145>0,'Income Statement'!U145,0) -> 0 | F143: 0 | H143: =IF('Income Statement'!U145>0,'Income Statement'!X145,0) -> 0
A144: =IF('Income Statement'!U146>0,'Income Statement'!A146,0) -> 0 | B144: =IF('Income Statement'!U146>0,'Income Statement'!B146,0) -> 0 | C144: =IF('Income Statement'!U146>0,'Income Statement'!S146,0) -> 0 | D144: =IF('Income Statement'!U146>0,'Income Statement'!T146,0) -> 0 | E144: =IF('Income Statement'!U146>0,'Income Statement'!U146,0) -> 0 | F144: 0 | H144: =IF('Income Statement'!U146>0,'Income Statement'!X146,0) -> 0
A145: =IF('Income Statement'!U147>0,'Income Statement'!A147,0) -> 0 | B145: =IF('Income Statement'!U147>0,'Income Statement'!B147,0) -> 0 | C145: =IF('Income Statement'!U147>0,'Income Statement'!S147,0) -> 0 | D145: =IF('Income Statement'!U147>0,'Income Statement'!T147,0) -> 0 | E145: =IF('Income Statement'!U147>0,'Income Statement'!U147,0) -> 0 | F145: 0 | H145: =IF('Income Statement'!U147>0,'Income Statement'!X147,0) -> 0
A146: =IF('Income Statement'!U148>0,'Income Statement'!A148,0) -> 0 | B146: =IF('Income Statement'!U148>0,'Income Statement'!B148,0) -> 0 | C146: =IF('Income Statement'!U148>0,'Income Statement'!S148,0) -> 0 | D146: =IF('Income Statement'!U148>0,'Income Statement'!T148,0) -> 0 | E146: =IF('Income Statement'!U148>0,'Income Statement'!U148,0) -> 0 | F146: 0 | H146: =IF('Income Statement'!U148>0,'Income Statement'!X148,0) -> 0
A147: =IF('Income Statement'!U149>0,'Income Statement'!A149,0) -> 0 | B147: =IF('Income Statement'!U149>0,'Income Statement'!B149,0) -> 0 | C147: =IF('Income Statement'!U149>0,'Income Statement'!S149,0) -> 0 | D147: =IF('Income Statement'!U149>0,'Income Statement'!T149,0) -> 0 | E147: =IF('Income Statement'!U149>0,'Income Statement'!U149,0) -> 0 | F147: 0 | H147: =IF('Income Statement'!U149>0,'Income Statement'!X149,0) -> 0
A148: =IF('Income Statement'!U150>0,'Income Statement'!A150,0) -> 50105 | B148: =IF('Income Statement'!U150>0,'Income Statement'!B150,0) -> Cable | C148: =IF('Income Statement'!U150>0,'Income Statement'!S150,0) -> T12 | D148: =IF('Income Statement'!U150>0,'Income Statement'!T150,0) -> 94 | E148: =IF('Income Statement'!U150>0,'Income Statement'!U150,0) -> 0.001 | F148: 93.999 | G148: 0.9999893617 | H148: =IF('Income Statement'!U150>0,'Income Statement'!X150,0) -> zero out
A149: =IF('Income Statement'!U151>0,'Income Statement'!A151,0) -> 0 | B149: =IF('Income Statement'!U151>0,'Income Statement'!B151,0) -> 0 | C149: =IF('Income Statement'!U151>0,'Income Statement'!S151,0) -> 0 | D149: =IF('Income Statement'!U151>0,'Income Statement'!T151,0) -> 0 | E149: =IF('Income Statement'!U151>0,'Income Statement'!U151,0) -> 0 | F149: 0 | H149: =IF('Income Statement'!U151>0,'Income Statement'!X151,0) -> 0
A150: =IF('Income Statement'!U152>0,'Income Statement'!A152,0) -> 57110 | B150: =IF('Income Statement'!U152>0,'Income Statement'!B152,0) -> Advertising | C150: =IF('Income Statement'!U152>0,'Income Statement'!S152,0) -> T12 | D150: =IF('Income Statement'!U152>0,'Income Statement'!T152,0) -> 36608 | E150: =IF('Income Statement'!U152>0,'Income Statement'!U152,0) -> 41000 | F150: -4392 | G150: -0.1199737762 | H150: =IF('Income Statement'!U152>0,'Income Statement'!X152,0) -> 3 yr avg
A151: =IF('Income Statement'!U153>0,'Income Statement'!A153,0) -> 0 | B151: =IF('Income Statement'!U153>0,'Income Statement'!B153,0) -> 0 | C151: =IF('Income Statement'!U153>0,'Income Statement'!S153,0) -> 0 | D151: =IF('Income Statement'!U153>0,'Income Statement'!T153,0) -> 0 | E151: =IF('Income Statement'!U153>0,'Income Statement'!U153,0) -> 0 | F151: 0 | H151: =IF('Income Statement'!U153>0,'Income Statement'!X153,0) -> 0
A152: =IF('Income Statement'!U154>0,'Income Statement'!A154,0) -> 57129 | B152: =IF('Income Statement'!U154>0,'Income Statement'!B154,0) -> Architect/Engineer | C152: =IF('Income Statement'!U154>0,'Income Statement'!S154,0) -> T12 | D152: =IF('Income Statement'!U154>0,'Income Statement'!T154,0) -> 9733 | E152: =IF('Income Statement'!U154>0,'Income Statement'!U154,0) -> 0.001 | F152: 9732.999 | G152: 0.9999998973 | H152: =IF('Income Statement'!U154>0,'Income Statement'!X154,0) -> zero out - capital exp
